{"text_format":"1","workbook":"xlsx","n_sheets":9,"sheets":["разн. списки","Сводные таблицы для меня","Таб 1.1-1.2","Ф1-3","Ф4 ПРОФЕССИИ","Ф5 СПЕЦИАЛЬНОСТИ","Ф6-9","Трудоустройство выпускников","диаграммы"],"not_rendered":{"charts":40,"images":0,"macros":1,"external_links":0,"defined_names":9,"comments":0,"pivot_tables":16},"unopened":[],"bounds":{"document_bytes":16777216,"sheet_cells":100000,"rows_first":2000,"rows_last":500,"rows_between":2000,"halvings":0,"cell_chars":16384,"cell_head_chars":4096},"cells_cut":0,"cells_raw":0,"read":"whole","date_system":"1900"}

{"sheet":"разн. списки","index":0,"n_rows":494,"n_cols":24,"rows_kept":494,"cut":false,"hidden":false,"merged":[]}
[null,null,null,null,null,null,null,null,"Список профессий",null,null,null,null,"Список специальностей"]
["Да",null,"Сведения внесены полностью"]
["Нет",null,"Сведения внесены частично",null,null,null,null,null,"05.01.01 Гидрометнаблюдатель","05.00.00 НАУКИ О ЗЕМЛЕ",null,null,null,"05.02.01 Картография","05.00.00 НАУКИ О ЗЕМЛЕ",null,null,null,null,null,null,null,"05.01.01 Гидрометнаблюдатель","проф"]
[null,null,"Сведения не внесены",null,null,null,null,null,"08.01.01 Изготовитель арматурных сеток и каркасов","08.00.00 ТЕХНИКА И ТЕХНОЛОГИИ СТРОИТЕЛЬСТВА",null,null,null,"05.02.02 Гидрология","05.00.00 НАУКИ О ЗЕМЛЕ",null,null,null,null,null,null,null,"08.01.01 Изготовитель арматурных сеток и каркасов","проф"]
[null,null,null,null,null,null,null,null,"08.01.02 Монтажник трубопроводов","08.00.00 ТЕХНИКА И ТЕХНОЛОГИИ СТРОИТЕЛЬСТВА",null,null,null,"05.02.03 Метеорология","05.00.00 НАУКИ О ЗЕМЛЕ",null,null,null,null,null,null,null,"08.01.02 Монтажник трубопроводов","проф"]
[null,null,null,null,null,null,null,null,"08.01.04 Кровельщик","08.00.00 ТЕХНИКА И ТЕХНОЛОГИИ СТРОИТЕЛЬСТВА",null,null,null,"07.02.01 Архитектура","07.00.00 АРХИТЕКТУРА",null,null,null,null,null,null,null,"08.01.04 Кровельщик","проф"]
[null,null,null,null,null,null,null,null,"08.01.05 Мастер столярно-плотничных и паркетных работ","08.00.00 ТЕХНИКА И ТЕХНОЛОГИИ СТРОИТЕЛЬСТВА",null,null,null,"08.02.01 Строительство и эксплуатация зданий и сооружений","08.00.00 ТЕХНИКА И ТЕХНОЛОГИИ СТРОИТЕЛЬСТВА",null,null,null,null,null,null,null,"08.01.05 Мастер столярно-плотничных и паркетных работ","проф"]
["Бюджет",null,null,null,null,null,null,null,"08.01.06 Мастер сухого строительства","08.00.00 ТЕХНИКА И ТЕХНОЛОГИИ СТРОИТЕЛЬСТВА",null,null,null,"08.02.02 Строительство и эксплуатация инженерных сооружений","08.00.00 ТЕХНИКА И ТЕХНОЛОГИИ СТРОИТЕЛЬСТВА",null,null,null,null,null,null,null,"08.01.06 Мастер сухого строительства","проф"]
["Внебюджет",null,null,null,null,null,null,null,"08.01.07 Мастер общестроительных работ","08.00.00 ТЕХНИКА И ТЕХНОЛОГИИ СТРОИТЕЛЬСТВА",null,null,null,"08.02.03 Производство неметаллических строительных изделий и конструкций","08.00.00 ТЕХНИКА И ТЕХНОЛОГИИ СТРОИТЕЛЬСТВА",null,null,null,null,null,null,null,"08.01.07 Мастер общестроительных работ","проф"]
[null,null,null,null,null,null,null,null,"08.01.08 Мастер отделочных строительных работ","08.00.00 ТЕХНИКА И ТЕХНОЛОГИИ СТРОИТЕЛЬСТВА",null,null,null,"08.02.04 Водоснабжение и водоотведение","08.00.00 ТЕХНИКА И ТЕХНОЛОГИИ СТРОИТЕЛЬСТВА",null,null,null,null,null,null,null,"08.01.08 Мастер отделочных строительных работ","проф"]
["Очная",null,null,null,null,null,null,null,"08.01.09 Слесарь по строительно-монтажным работам","08.00.00 ТЕХНИКА И ТЕХНОЛОГИИ СТРОИТЕЛЬСТВА",null,null,null,"08.02.05 Строительство и эксплуатация автомобильных дорог и аэродромов","08.00.00 ТЕХНИКА И ТЕХНОЛОГИИ СТРОИТЕЛЬСТВА",null,null,null,null,null,null,null,"08.01.09 Слесарь по строительно-монтажным работам","проф"]
["Очно-заочная",null,null,null,null,null,null,null,"08.01.10 Мастер жилищно-коммунального хозяйства","08.00.00 ТЕХНИКА И ТЕХНОЛОГИИ СТРОИТЕЛЬСТВА",null,null,null,"08.02.06 Строительство и эксплуатация городских путей сообщения","08.00.00 ТЕХНИКА И ТЕХНОЛОГИИ СТРОИТЕЛЬСТВА",null,null,null,null,null,null,null,"08.01.10 Мастер жилищно-коммунального хозяйства","проф"]
["Заочная",null,null,null,null,null,null,null,"08.01.11 Машинист машин и оборудования в производстве цемента","08.00.00 ТЕХНИКА И ТЕХНОЛОГИИ СТРОИТЕЛЬСТВА",null,null,null,"08.02.07 Монтаж и эксплуатация внутренних сантехнических устройств, кондиционирования воздуха и вентиляции","08.00.00 ТЕХНИКА И ТЕХНОЛОГИИ СТРОИТЕЛЬСТВА",null,null,null,null,null,null,null,"08.01.11 Машинист машин и оборудования в производстве цемента","проф"]
[null,null,null,null,null,null,null,null,"08.01.13 Изготовитель железобетонных изделий","08.00.00 ТЕХНИКА И ТЕХНОЛОГИИ СТРОИТЕЛЬСТВА",null,null,null,"08.02.08 Монтаж и эксплуатация оборудования и систем газоснабжения","08.00.00 ТЕХНИКА И ТЕХНОЛОГИИ СТРОИТЕЛЬСТВА",null,null,null,null,null,null,null,"08.01.13 Изготовитель железобетонных изделий","проф"]
[null,null,null,null,null,null,null,null,"08.01.14 Монтажник санитарно-технических, вентиляционных систем и оборудования","08.00.00 ТЕХНИКА И ТЕХНОЛОГИИ СТРОИТЕЛЬСТВА",null,null,null,"08.02.09 Монтаж, наладка и эксплуатация электрооборудования промышленных и гражданских зданий","08.00.00 ТЕХНИКА И ТЕХНОЛОГИИ СТРОИТЕЛЬСТВА",null,null,null,null,null,null,null,"08.01.14 Монтажник санитарно-технических, вентиляционных систем и оборудования","проф"]
[null,null,null,null,null,null,null,null,"08.01.15 Слесарь по изготовлению деталей и узлов технических систем в строительстве","08.00.00 ТЕХНИКА И ТЕХНОЛОГИИ СТРОИТЕЛЬСТВА",null,null,null,"08.02.10 Строительство железных дорог, путь и путевое хозяйство","08.00.00 ТЕХНИКА И ТЕХНОЛОГИИ СТРОИТЕЛЬСТВА",null,null,null,null,null,null,null,"08.01.15 Слесарь по изготовлению деталей и узлов технических систем в строительстве","проф"]
["Голова",null,null,null,null,null,null,null,"08.01.16 Электромонтажник по сигнализации, централизации и блокировке","08.00.00 ТЕХНИКА И ТЕХНОЛОГИИ СТРОИТЕЛЬСТВА",null,null,null,"08.02.11 Управление, эксплуатация и обслуживание многоквартирного дома","08.00.00 ТЕХНИКА И ТЕХНОЛОГИИ СТРОИТЕЛЬСТВА",null,null,null,null,null,null,null,"08.01.16 Электромонтажник по сигнализации, централизации и блокировке","проф"]
["Филиал",null,null,null,null,null,null,null,"08.01.17 Электромонтажник-наладчик","08.00.00 ТЕХНИКА И ТЕХНОЛОГИИ СТРОИТЕЛЬСТВА",null,null,null,"09.02.01 Компьютерные системы и комплексы","09.00.00 ИНФОРМАТИКА И ВЫЧИСЛИТЕЛЬНАЯ ТЕХНИКА",null,null,null,null,null,null,null,"08.01.17 Электромонтажник-наладчик","проф"]
[null,null,null,null,null,null,null,null,"08.01.18 Электромонтажник электрических сетей и электрооборудования","08.00.00 ТЕХНИКА И ТЕХНОЛОГИИ СТРОИТЕЛЬСТВА",null,null,null,"09.02.02 Компьютерные сети","09.00.00 ИНФОРМАТИКА И ВЫЧИСЛИТЕЛЬНАЯ ТЕХНИКА",null,null,null,null,null,null,null,"08.01.18 Электромонтажник электрических сетей и электрооборудования","проф"]
[null,null,null,null,null,null,null,null,"08.01.19 Электромонтажник по силовым сетям и электрооборудованию","08.00.00 ТЕХНИКА И ТЕХНОЛОГИИ СТРОИТЕЛЬСТВА",null,null,null,"09.02.03 Программирование в компьютерных системах","09.00.00 ИНФОРМАТИКА И ВЫЧИСЛИТЕЛЬНАЯ ТЕХНИКА",null,null,null,null,null,null,null,"08.01.19 Электромонтажник по силовым сетям и электрооборудованию","проф"]
[null,null,null,null,null,null,null,null,"08.01.21 Монтажник электрических подъемников (лифтов)","08.00.00 ТЕХНИКА И ТЕХНОЛОГИИ СТРОИТЕЛЬСТВА",null,null,null,"09.02.04 Информационные системы (по отраслям)","09.00.00 ИНФОРМАТИКА И ВЫЧИСЛИТЕЛЬНАЯ ТЕХНИКА",null,null,null,null,null,null,null,"08.01.21 Монтажник электрических подъемников (лифтов)","проф"]
[null,null,null,null,null,null,null,null,"08.01.22 Мастер путевых машин","08.00.00 ТЕХНИКА И ТЕХНОЛОГИИ СТРОИТЕЛЬСТВА",null,null,null,"09.02.05 Прикладная информатика (по отраслям)","09.00.00 ИНФОРМАТИКА И ВЫЧИСЛИТЕЛЬНАЯ ТЕХНИКА",null,null,null,null,null,null,null,"08.01.22 Мастер путевых машин","проф"]
[null,null,null,null,null,null,null,null,"08.01.23 Бригадир-путеец","08.00.00 ТЕХНИКА И ТЕХНОЛОГИИ СТРОИТЕЛЬСТВА",null,null,null,"09.02.06 Сетевое и системное администрирование","09.00.00 ИНФОРМАТИКА И ВЫЧИСЛИТЕЛЬНАЯ ТЕХНИКА",null,null,null,null,null,null,null,"08.01.23 Бригадир-путеец","проф"]
[null,null,null,null,null,null,null,null,"08.01.24 Мастер столярно-плотничных, паркетных и стекольных работ","08.00.00 ТЕХНИКА И ТЕХНОЛОГИИ СТРОИТЕЛЬСТВА",null,null,null,"09.02.07 Информационные системы и программирование","09.00.00 ИНФОРМАТИКА И ВЫЧИСЛИТЕЛЬНАЯ ТЕХНИКА",null,null,null,null,null,null,null,"08.01.24 Мастер столярно-плотничных, паркетных и стекольных работ","проф"]
[null,null,null,null,null,null,null,null,"08.01.25 Мастер отделочных строительных и декоративных работ","08.00.00 ТЕХНИКА И ТЕХНОЛОГИИ СТРОИТЕЛЬСТВА",null,null,null,"10.02.01 Организация и технология защиты информации","10.00.00 ИНФОРМАЦИОННАЯ БЕЗОПАСНОСТЬ",null,null,null,null,null,null,null,"08.01.25 Мастер отделочных строительных и декоративных работ","проф"]
[null,null,null,null,null,null,null,null,"08.01.26 Мастер по ремонту и обслуживанию инженерных систем жилищно-коммунального хозяйства","08.00.00 ТЕХНИКА И ТЕХНОЛОГИИ СТРОИТЕЛЬСТВА",null,null,null,"10.02.02 Информационная безопасность телекоммуникационных систем","10.00.00 ИНФОРМАЦИОННАЯ БЕЗОПАСНОСТЬ",null,null,null,null,null,null,null,"08.01.26 Мастер по ремонту и обслуживанию инженерных систем жилищно-коммунального хозяйства","проф"]
[null,null,null,null,null,null,null,null,"09.01.01 Наладчик аппаратного и программного обеспечения","09.00.00 ИНФОРМАТИКА И ВЫЧИСЛИТЕЛЬНАЯ ТЕХНИКА",null,null,null,"10.02.03 Информационная безопасность автоматизированных систем","10.00.00 ИНФОРМАЦИОННАЯ БЕЗОПАСНОСТЬ",null,null,null,null,null,null,null,"09.01.01 Наладчик аппаратного и программного обеспечения","проф"]
[null,null,null,null,null,null,null,null,"09.01.02 Наладчик компьютерных сетей","09.00.00 ИНФОРМАТИКА И ВЫЧИСЛИТЕЛЬНАЯ ТЕХНИКА",null,null,null,"10.02.04 Обеспечение информационной безопасности телекоммуникационных систем","10.00.00 ИНФОРМАЦИОННАЯ БЕЗОПАСНОСТЬ",null,null,null,null,null,null,null,"09.01.02 Наладчик компьютерных сетей","проф"]
[null,null,null,null,null,null,null,null,"09.01.03 Мастер по обработке цифровой информации","09.00.00 ИНФОРМАТИКА И ВЫЧИСЛИТЕЛЬНАЯ ТЕХНИКА",null,null,null,"10.02.05 Обеспечение информационной безопасности автоматизированных систем","10.00.00 ИНФОРМАЦИОННАЯ БЕЗОПАСНОСТЬ",null,null,null,null,null,null,null,"09.01.03 Мастер по обработке цифровой информации","проф"]
[null,null,null,null,null,null,null,null,"11.01.01 Монтажник радиоэлектронной аппаратуры и приборов","11.00.00 ЭЛЕКТРОНИКА, РАДИОТЕХНИКА И СИСТЕМЫ СВЯЗИ",null,null,null,"11.02.01 Радиоаппаратостроение","11.00.00 ЭЛЕКТРОНИКА, РАДИОТЕХНИКА И СИСТЕМЫ СВЯЗИ",null,null,null,null,null,null,null,"11.01.01 Монтажник радиоэлектронной аппаратуры и приборов","проф"]
[null,null,null,null,null,null,null,null,"11.01.02 Радиомеханик","11.00.00 ЭЛЕКТРОНИКА, РАДИОТЕХНИКА И СИСТЕМЫ СВЯЗИ",null,null,null,"11.02.02 Техническое обслуживание и ремонт радиоэлектронной техники (по отраслям)","11.00.00 ЭЛЕКТРОНИКА, РАДИОТЕХНИКА И СИСТЕМЫ СВЯЗИ",null,null,null,null,null,null,null,"11.01.02 Радиомеханик","проф"]
[null,null,null,null,null,null,null,null,"11.01.05 Монтажник связи","11.00.00 ЭЛЕКТРОНИКА, РАДИОТЕХНИКА И СИСТЕМЫ СВЯЗИ",null,null,null,"11.02.03 Эксплуатация оборудования радиосвязи и электрорадионавигации судов","11.00.00 ЭЛЕКТРОНИКА, РАДИОТЕХНИКА И СИСТЕМЫ СВЯЗИ",null,null,null,null,null,null,null,"11.01.05 Монтажник связи","проф"]
[null,null,null,null,null,null,null,null,"11.01.06 Электромонтер оборудования электросвязи и проводного вещания","11.00.00 ЭЛЕКТРОНИКА, РАДИОТЕХНИКА И СИСТЕМЫ СВЯЗИ",null,null,null,"11.02.04 Радиотехнические комплексы и системы управления космических летательных аппаратов","11.00.00 ЭЛЕКТРОНИКА, РАДИОТЕХНИКА И СИСТЕМЫ СВЯЗИ",null,null,null,null,null,null,null,"11.01.06 Электромонтер оборудования электросвязи и проводного вещания","проф"]
[null,null,null,null,null,null,null,null,"11.01.07 Электромонтер по ремонту линейно-кабельных сооружений телефонной связи и проводного вещания","11.00.00 ЭЛЕКТРОНИКА, РАДИОТЕХНИКА И СИСТЕМЫ СВЯЗИ",null,null,null,"11.02.05 Аудиовизуальная техника","11.00.00 ЭЛЕКТРОНИКА, РАДИОТЕХНИКА И СИСТЕМЫ СВЯЗИ",null,null,null,null,null,null,null,"11.01.07 Электромонтер по ремонту линейно-кабельных сооружений телефонной связи и проводного вещания","проф"]
[null,null,null,null,null,null,null,null,"11.01.08 Оператор связи","11.00.00 ЭЛЕКТРОНИКА, РАДИОТЕХНИКА И СИСТЕМЫ СВЯЗИ",null,null,null,"11.02.06 Техническая эксплуатация транспортного радиоэлектронного оборудования (по видам транспорта)","11.00.00 ЭЛЕКТРОНИКА, РАДИОТЕХНИКА И СИСТЕМЫ СВЯЗИ",null,null,null,null,null,null,null,"11.01.08 Оператор связи","проф"]
[null,null,null,null,null,null,null,null,"11.01.11 Наладчик технологического оборудования (электронная техника)","11.00.00 ЭЛЕКТРОНИКА, РАДИОТЕХНИКА И СИСТЕМЫ СВЯЗИ",null,null,null,"11.02.07 Радиотехнические информационные системы","11.00.00 ЭЛЕКТРОНИКА, РАДИОТЕХНИКА И СИСТЕМЫ СВЯЗИ",null,null,null,null,null,null,null,"11.01.11 Наладчик технологического оборудования (электронная техника)","проф"]
[null,null,null,null,null,null,null,null,"12.01.02 Оптик-механик","12.00.00 ФОТОНИКА, ПРИБОРОСТРОЕНИЕ, ОПТИЧЕСКИЕ И БИОТЕХНИЧЕСКИЕ СИСТЕМЫ И ТЕХНОЛОГИИ",null,null,null,"11.02.08 Средства связи с подвижными объектами","11.00.00 ЭЛЕКТРОНИКА, РАДИОТЕХНИКА И СИСТЕМЫ СВЯЗИ",null,null,null,null,null,null,null,"12.01.02 Оптик-механик","проф"]
[null,null,null,null,null,null,null,null,"12.01.07 Электромеханик по ремонту и обслуживанию электронной медицинской аппаратуры","12.00.00 ФОТОНИКА, ПРИБОРОСТРОЕНИЕ, ОПТИЧЕСКИЕ И БИОТЕХНИЧЕСКИЕ СИСТЕМЫ И ТЕХНОЛОГИИ",null,null,null,"11.02.09 Многоканальные телекоммуникационные системы","11.00.00 ЭЛЕКТРОНИКА, РАДИОТЕХНИКА И СИСТЕМЫ СВЯЗИ",null,null,null,null,null,null,null,"12.01.07 Электромеханик по ремонту и обслуживанию электронной медицинской аппаратуры","проф"]
[null,null,null,null,null,null,null,null,"12.01.09 Мастер по изготовлению и сборке деталей и узлов оптических и оптико-электронных приборов и систем","12.00.00 ФОТОНИКА, ПРИБОРОСТРОЕНИЕ, ОПТИЧЕСКИЕ И БИОТЕХНИЧЕСКИЕ СИСТЕМЫ И ТЕХНОЛОГИИ",null,null,null,"11.02.10 Радиосвязь, радиовещание и телевидение","11.00.00 ЭЛЕКТРОНИКА, РАДИОТЕХНИКА И СИСТЕМЫ СВЯЗИ",null,null,null,null,null,null,null,"12.01.09 Мастер по изготовлению и сборке деталей и узлов оптических и оптико-электронных приборов и систем","проф"]
[null,null,null,null,null,null,null,null,"13.01.01 Машинист котлов","13.00.00 ЭЛЕКТРО- И ТЕПЛОЭНЕРГЕТИКА",null,null,null,"11.02.11 Сети связи и системы коммутации","11.00.00 ЭЛЕКТРОНИКА, РАДИОТЕХНИКА И СИСТЕМЫ СВЯЗИ",null,null,null,null,null,null,null,"13.01.01 Машинист котлов","проф"]
[null,null,null,null,null,null,null,null,"13.01.02 Машинист паровых турбин","13.00.00 ЭЛЕКТРО- И ТЕПЛОЭНЕРГЕТИКА",null,null,null,"11.02.12 Почтовая связь","11.00.00 ЭЛЕКТРОНИКА, РАДИОТЕХНИКА И СИСТЕМЫ СВЯЗИ",null,null,null,null,null,null,null,"13.01.02 Машинист паровых турбин","проф"]
[null,null,null,null,null,null,null,null,"13.01.03 Электрослесарь по ремонту оборудования электростанций","13.00.00 ЭЛЕКТРО- И ТЕПЛОЭНЕРГЕТИКА",null,null,null,"11.02.13 Твердотельная электроника","11.00.00 ЭЛЕКТРОНИКА, РАДИОТЕХНИКА И СИСТЕМЫ СВЯЗИ",null,null,null,null,null,null,null,"13.01.03 Электрослесарь по ремонту оборудования электростанций","проф"]
[null,null,null,null,null,null,null,null,"13.01.04 Слесарь по ремонту оборудования электростанций","13.00.00 ЭЛЕКТРО- И ТЕПЛОЭНЕРГЕТИКА",null,null,null,"11.02.14 Электронные приборы и устройства","11.00.00 ЭЛЕКТРОНИКА, РАДИОТЕХНИКА И СИСТЕМЫ СВЯЗИ",null,null,null,null,null,null,null,"13.01.04 Слесарь по ремонту оборудования электростанций","проф"]
[null,null,null,null,null,null,null,null,"13.01.05 Электромонтер по техническому обслуживанию электростанций и сетей","13.00.00 ЭЛЕКТРО- И ТЕПЛОЭНЕРГЕТИКА",null,null,null,"11.02.15 Инфокоммуникационные сети и системы связи","11.00.00 ЭЛЕКТРОНИКА, РАДИОТЕХНИКА И СИСТЕМЫ СВЯЗИ",null,null,null,null,null,null,null,"13.01.05 Электромонтер по техническому обслуживанию электростанций и сетей","проф"]
[null,null,null,null,null,null,null,null,"13.01.06 Электромонтер-линейщик по монтажу воздушных линий высокого напряжения и контактной сети","13.00.00 ЭЛЕКТРО- И ТЕПЛОЭНЕРГЕТИКА",null,null,null,"11.02.16 Монтаж, техническое обслуживание и ремонт электронных приборов и устройств","11.00.00 ЭЛЕКТРОНИКА, РАДИОТЕХНИКА И СИСТЕМЫ СВЯЗИ",null,null,null,null,null,null,null,"13.01.06 Электромонтер-линейщик по монтажу воздушных линий высокого напряжения и контактной сети","проф"]
[null,null,null,null,null,null,null,null,"13.01.07 Электромонтер по ремонту электросетей","13.00.00 ЭЛЕКТРО- И ТЕПЛОЭНЕРГЕТИКА",null,null,null,"12.02.01 Авиационные приборы и комплексы","12.00.00 ФОТОНИКА, ПРИБОРОСТРОЕНИЕ, ОПТИЧЕСКИЕ И БИОТЕХНИЧЕСКИЕ СИСТЕМЫ И ТЕХНОЛОГИИ",null,null,null,null,null,null,null,"13.01.07 Электромонтер по ремонту электросетей","проф"]
[null,null,null,null,null,null,null,null,"13.01.10 Электромонтер по ремонту и обслуживанию электрооборудования (по отраслям)","13.00.00 ЭЛЕКТРО- И ТЕПЛОЭНЕРГЕТИКА",null,null,null,"12.02.02 Утратила силу с 1 сентября 2020 г. - Приказ Минпросвещения России от 3 декабря 2019 г. N 655","12.00.00 ФОТОНИКА, ПРИБОРОСТРОЕНИЕ, ОПТИЧЕСКИЕ И БИОТЕХНИЧЕСКИЕ СИСТЕМЫ И ТЕХНОЛОГИИ",null,null,null,null,null,null,null,"13.01.10 Электромонтер по ремонту и обслуживанию электрооборудования (по отраслям)","проф"]
[null,null,null,null,null,null,null,null,"13.01.13 Электромонтажник-схемщик","13.00.00 ЭЛЕКТРО- И ТЕПЛОЭНЕРГЕТИКА",null,null,null,"12.02.03 Радиоэлектронные приборные устройства","12.00.00 ФОТОНИКА, ПРИБОРОСТРОЕНИЕ, ОПТИЧЕСКИЕ И БИОТЕХНИЧЕСКИЕ СИСТЕМЫ И ТЕХНОЛОГИИ",null,null,null,null,null,null,null,"13.01.13 Электромонтажник-схемщик","проф"]
[null,null,null,null,null,null,null,null,"13.01.14 Электромеханик по лифтам","13.00.00 ЭЛЕКТРО- И ТЕПЛОЭНЕРГЕТИКА",null,null,null,"12.02.04 Электромеханические приборные устройства","12.00.00 ФОТОНИКА, ПРИБОРОСТРОЕНИЕ, ОПТИЧЕСКИЕ И БИОТЕХНИЧЕСКИЕ СИСТЕМЫ И ТЕХНОЛОГИИ",null,null,null,null,null,null,null,"13.01.14 Электромеханик по лифтам","проф"]
[null,null,null,null,null,null,null,null,"15.01.04 Наладчик сварочного и газоплазморезательного оборудования","15.00.00 МАШИНОСТРОЕНИЕ",null,null,null,"12.02.05 Оптические и оптико-электронные приборы и системы","12.00.00 ФОТОНИКА, ПРИБОРОСТРОЕНИЕ, ОПТИЧЕСКИЕ И БИОТЕХНИЧЕСКИЕ СИСТЕМЫ И ТЕХНОЛОГИИ",null,null,null,null,null,null,null,"15.01.04 Наладчик сварочного и газоплазморезательного оборудования","проф"]
[null,null,null,null,null,null,null,null,"15.01.05 Сварщик (ручной и частично механизированной сварки (наплавки)","15.00.00 МАШИНОСТРОЕНИЕ",null,null,null,"12.02.06 Биотехнические и медицинские аппараты и системы","12.00.00 ФОТОНИКА, ПРИБОРОСТРОЕНИЕ, ОПТИЧЕСКИЕ И БИОТЕХНИЧЕСКИЕ СИСТЕМЫ И ТЕХНОЛОГИИ",null,null,null,null,null,null,null,"15.01.05 Сварщик (ручной и частично механизированной сварки (наплавки)","проф"]
[null,null,null,null,null,null,null,null,"15.01.05 Сварщик (электросварочные и газосварочные работы)","15.00.00 МАШИНОСТРОЕНИЕ",null,null,null,"12.02.07 Монтаж, техническое обслуживание и ремонт медицинской техники","12.00.00 ФОТОНИКА, ПРИБОРОСТРОЕНИЕ, ОПТИЧЕСКИЕ И БИОТЕХНИЧЕСКИЕ СИСТЕМЫ И ТЕХНОЛОГИИ",null,null,null,null,null,null,null,"15.01.05 Сварщик (электросварочные и газосварочные работы)","проф"]
[null,null,null,null,null,null,null,null,"15.01.06 Сварщик на лазерных установках","15.00.00 МАШИНОСТРОЕНИЕ",null,null,null,"12.02.08 Протезно-ортопедическая и реабилитационная техника","12.00.00 ФОТОНИКА, ПРИБОРОСТРОЕНИЕ, ОПТИЧЕСКИЕ И БИОТЕХНИЧЕСКИЕ СИСТЕМЫ И ТЕХНОЛОГИИ",null,null,null,null,null,null,null,"15.01.06 Сварщик на лазерных установках","проф"]
[null,null,null,null,null,null,null,null,"15.01.08 Наладчик литейного оборудования","15.00.00 МАШИНОСТРОЕНИЕ",null,null,null,"12.02.09 Производство и эксплуатация оптических и оптико-электронных приборов и систем","12.00.00 ФОТОНИКА, ПРИБОРОСТРОЕНИЕ, ОПТИЧЕСКИЕ И БИОТЕХНИЧЕСКИЕ СИСТЕМЫ И ТЕХНОЛОГИИ",null,null,null,null,null,null,null,"15.01.08 Наладчик литейного оборудования","проф"]
[null,null,null,null,null,null,null,null,"15.01.09 Машинист лесозаготовительных и трелевочных машин","15.00.00 МАШИНОСТРОЕНИЕ",null,null,null,"12.02.10 Монтаж, техническое обслуживание и ремонт биотехнических и медицинских аппаратов и систем","12.00.00 ФОТОНИКА, ПРИБОРОСТРОЕНИЕ, ОПТИЧЕСКИЕ И БИОТЕХНИЧЕСКИЕ СИСТЕМЫ И ТЕХНОЛОГИИ",null,null,null,null,null,null,null,"15.01.09 Машинист лесозаготовительных и трелевочных машин","проф"]
[null,null,null,null,null,null,null,null,"15.01.10 Слесарь по ремонту лесозаготовительного оборудования","15.00.00 МАШИНОСТРОЕНИЕ",null,null,null,"13.02.01 Тепловые электрические станции","13.00.00 ЭЛЕКТРО- И ТЕПЛОЭНЕРГЕТИКА",null,null,null,null,null,null,null,"15.01.10 Слесарь по ремонту лесозаготовительного оборудования","проф"]
[null,null,null,null,null,null,null,null,"15.01.13 Монтажник технологического оборудования (по видам оборудования)","15.00.00 МАШИНОСТРОЕНИЕ",null,null,null,"13.02.02 Теплоснабжение и теплотехническое оборудование","13.00.00 ЭЛЕКТРО- И ТЕПЛОЭНЕРГЕТИКА",null,null,null,null,null,null,null,"15.01.13 Монтажник технологического оборудования (по видам оборудования)","проф"]
[null,null,null,null,null,null,null,null,"15.01.17 Электромеханик по торговому и холодильному оборудованию","15.00.00 МАШИНОСТРОЕНИЕ",null,null,null,"13.02.03 Электрические станции, сети и системы","13.00.00 ЭЛЕКТРО- И ТЕПЛОЭНЕРГЕТИКА",null,null,null,null,null,null,null,"15.01.17 Электромеханик по торговому и холодильному оборудованию","проф"]
[null,null,null,null,null,null,null,null,"15.01.18 Машинист холодильных установок","15.00.00 МАШИНОСТРОЕНИЕ",null,null,null,"13.02.04 Гидроэлектроэнергетические установки","13.00.00 ЭЛЕКТРО- И ТЕПЛОЭНЕРГЕТИКА",null,null,null,null,null,null,null,"15.01.18 Машинист холодильных установок","проф"]
[null,null,null,null,null,null,null,null,"15.01.19 Наладчик контрольно-измерительных приборов и автоматики","15.00.00 МАШИНОСТРОЕНИЕ",null,null,null,"13.02.05 Технология воды, топлива и смазочных материалов на электрических станциях","13.00.00 ЭЛЕКТРО- И ТЕПЛОЭНЕРГЕТИКА",null,null,null,null,null,null,null,"15.01.19 Наладчик контрольно-измерительных приборов и автоматики","проф"]
[null,null,null,null,null,null,null,null,"15.01.20 Слесарь по контрольно-измерительным приборам и автоматике","15.00.00 МАШИНОСТРОЕНИЕ",null,null,null,"13.02.06 Релейная защита и автоматизация электроэнергетических систем","13.00.00 ЭЛЕКТРО- И ТЕПЛОЭНЕРГЕТИКА",null,null,null,null,null,null,null,"15.01.20 Слесарь по контрольно-измерительным приборам и автоматике","проф"]
[null,null,null,null,null,null,null,null,"15.01.21 Электромонтер охранно-пожарной сигнализации","15.00.00 МАШИНОСТРОЕНИЕ",null,null,null,"13.02.07 Электроснабжение (по отраслям)","13.00.00 ЭЛЕКТРО- И ТЕПЛОЭНЕРГЕТИКА",null,null,null,null,null,null,null,"15.01.21 Электромонтер охранно-пожарной сигнализации","проф"]
[null,null,null,null,null,null,null,null,"15.01.22 Чертежник-конструктор","15.00.00 МАШИНОСТРОЕНИЕ",null,null,null,"13.02.08 Электроизоляционная, кабельная и конденсаторная техника","13.00.00 ЭЛЕКТРО- И ТЕПЛОЭНЕРГЕТИКА",null,null,null,null,null,null,null,"15.01.22 Чертежник-конструктор","проф"]
[null,null,null,null,null,null,null,null,"15.01.23 Наладчик станков и оборудования в механообработке","15.00.00 МАШИНОСТРОЕНИЕ",null,null,null,"13.02.09 Монтаж и эксплуатация линий электропередачи","13.00.00 ЭЛЕКТРО- И ТЕПЛОЭНЕРГЕТИКА",null,null,null,null,null,null,null,"15.01.23 Наладчик станков и оборудования в механообработке","проф"]
[null,null,null,null,null,null,null,null,"15.01.25 Станочник (металлообработка)","15.00.00 МАШИНОСТРОЕНИЕ",null,null,null,"13.02.10 Электрические машины и аппараты","13.00.00 ЭЛЕКТРО- И ТЕПЛОЭНЕРГЕТИКА",null,null,null,null,null,null,null,"15.01.25 Станочник (металлообработка)","проф"]
[null,null,null,null,null,null,null,null,"15.01.26 Токарь-универсал","15.00.00 МАШИНОСТРОЕНИЕ",null,null,null,"13.02.11 Техническая эксплуатация и обслуживание электрического и электромеханического оборудования (по отраслям)","13.00.00 ЭЛЕКТРО- И ТЕПЛОЭНЕРГЕТИКА",null,null,null,null,null,null,null,"15.01.26 Токарь-универсал","проф"]
[null,null,null,null,null,null,null,null,"15.01.27 Фрезеровщик-универсал","15.00.00 МАШИНОСТРОЕНИЕ",null,null,null,"14.02.01 Атомные электрические станции и установки","14.00.00 ЯДЕРНАЯ ЭНЕРГЕТИКА И ТЕХНОЛОГИИ",null,null,null,null,null,null,null,"15.01.27 Фрезеровщик-универсал","проф"]
[null,null,null,null,null,null,null,null,"15.01.29 Контролер станочных и слесарных работ","15.00.00 МАШИНОСТРОЕНИЕ",null,null,null,"14.02.02 Радиационная безопасность","14.00.00 ЯДЕРНАЯ ЭНЕРГЕТИКА И ТЕХНОЛОГИИ",null,null,null,null,null,null,null,"15.01.29 Контролер станочных и слесарных работ","проф"]
[null,null,null,null,null,null,null,null,"15.01.30 Слесарь","15.00.00 МАШИНОСТРОЕНИЕ",null,null,null,"14.02.03 Утратила силу с 1 сентября 2020 г. - Приказ Минпросвещения России от 3 декабря 2019 г. N 655","14.00.00 ЯДЕРНАЯ ЭНЕРГЕТИКА И ТЕХНОЛОГИИ",null,null,null,null,null,null,null,"15.01.30 Слесарь","проф"]
[null,null,null,null,null,null,null,null,"15.01.31 Мастер контрольно-измерительных приборов и автоматики","15.00.00 МАШИНОСТРОЕНИЕ",null,null,null,"15.02.01 Монтаж и техническая эксплуатация промышленного оборудования (по отраслям)","15.00.00 МАШИНОСТРОЕНИЕ",null,null,null,null,null,null,null,"15.01.31 Мастер контрольно-измерительных приборов и автоматики","проф"]
[null,null,null,null,null,null,null,null,"15.01.32 Оператор станков с программным управлением","15.00.00 МАШИНОСТРОЕНИЕ",null,null,null,"15.02.02 Техническая эксплуатация оборудования для производства электронной техники","15.00.00 МАШИНОСТРОЕНИЕ",null,null,null,null,null,null,null,"15.01.32 Оператор станков с программным управлением","проф"]
[null,null,null,null,null,null,null,null,"15.01.33 Токарь на станках с числовым программным управлением","15.00.00 МАШИНОСТРОЕНИЕ",null,null,null,"15.02.03 Техническая эксплуатация гидравлических машин, гидроприводов и гидропневмоавтоматики","15.00.00 МАШИНОСТРОЕНИЕ",null,null,null,null,null,null,null,"15.01.33 Токарь на станках с числовым программным управлением","проф"]
[null,null,null,null,null,null,null,null,"15.01.34 Фрезеровщик на станках с числовым программным управлением","15.00.00 МАШИНОСТРОЕНИЕ",null,null,null,"15.02.04 Специальные машины и устройства","15.00.00 МАШИНОСТРОЕНИЕ",null,null,null,null,null,null,null,"15.01.34 Фрезеровщик на станках с числовым программным управлением","проф"]
[null,null,null,null,null,null,null,null,"15.01.35 Мастер слесарных работ","15.00.00 МАШИНОСТРОЕНИЕ",null,null,null,"15.02.05 Техническая эксплуатация оборудования в торговле и общественном питании","15.00.00 МАШИНОСТРОЕНИЕ",null,null,null,null,null,null,null,"15.01.35 Мастер слесарных работ","проф"]
[null,null,null,null,null,null,null,null,"15.01.36 Дефектоскопист","15.00.00 МАШИНОСТРОЕНИЕ",null,null,null,"15.02.06 Монтаж и техническая эксплуатация холодильно-компрессорных машин и установок (по отраслям)","15.00.00 МАШИНОСТРОЕНИЕ",null,null,null,null,null,null,null,"15.01.36 Дефектоскопист","проф"]
[null,null,null,null,null,null,null,null,"18.01.01 Лаборант по физико-механическим испытаниям","18.00.00 ХИМИЧЕСКИЕ ТЕХНОЛОГИИ",null,null,null,"15.02.07 Автоматизация технологических процессов и производств (по отраслям)","15.00.00 МАШИНОСТРОЕНИЕ",null,null,null,null,null,null,null,"18.01.01 Лаборант по физико-механическим испытаниям","проф"]
[null,null,null,null,null,null,null,null,"18.01.02 Лаборант-эколог","18.00.00 ХИМИЧЕСКИЕ ТЕХНОЛОГИИ",null,null,null,"15.02.08 Технология машиностроения","15.00.00 МАШИНОСТРОЕНИЕ",null,null,null,null,null,null,null,"18.01.02 Лаборант-эколог","проф"]
[null,null,null,null,null,null,null,null,"18.01.03 Аппаратчик-оператор экологических установок","18.00.00 ХИМИЧЕСКИЕ ТЕХНОЛОГИИ",null,null,null,"15.02.09 Аддитивные технологии","15.00.00 МАШИНОСТРОЕНИЕ",null,null,null,null,null,null,null,"18.01.03 Аппаратчик-оператор экологических установок","проф"]
[null,null,null,null,null,null,null,null,"18.01.05 Аппаратчик-оператор производства неорганических веществ","18.00.00 ХИМИЧЕСКИЕ ТЕХНОЛОГИИ",null,null,null,"15.02.10 Мехатроника и мобильная робототехника (по отраслям)","15.00.00 МАШИНОСТРОЕНИЕ",null,null,null,null,null,null,null,"18.01.05 Аппаратчик-оператор производства неорганических веществ","проф"]
[null,null,null,null,null,null,null,null,"18.01.06 Оператор производства стекловолокна, стекловолокнистых материалов и изделий стеклопластиков","18.00.00 ХИМИЧЕСКИЕ ТЕХНОЛОГИИ",null,null,null,"15.02.11 Техническая эксплуатация и обслуживание роботизированного производства","15.00.00 МАШИНОСТРОЕНИЕ",null,null,null,null,null,null,null,"18.01.06 Оператор производства стекловолокна, стекловолокнистых материалов и изделий стеклопластиков","проф"]
[null,null,null,null,null,null,null,null,"18.01.08 Мастер-изготовитель деталей и изделий из стекла","18.00.00 ХИМИЧЕСКИЕ ТЕХНОЛОГИИ",null,null,null,"15.02.12 Монтаж, техническое обслуживание и ремонт промышленного оборудования (по отраслям)","15.00.00 МАШИНОСТРОЕНИЕ",null,null,null,null,null,null,null,"18.01.08 Мастер-изготовитель деталей и изделий из стекла","проф"]
[null,null,null,null,null,null,null,null,"18.01.12 Изготовитель фарфоровых и фаянсовых изделий","18.00.00 ХИМИЧЕСКИЕ ТЕХНОЛОГИИ",null,null,null,"15.02.13 Техническое обслуживание и ремонт систем вентиляции и кондиционирования","15.00.00 МАШИНОСТРОЕНИЕ",null,null,null,null,null,null,null,"18.01.12 Изготовитель фарфоровых и фаянсовых изделий","проф"]
[null,null,null,null,null,null,null,null,"18.01.22 Оператор в производстве шин","18.00.00 ХИМИЧЕСКИЕ ТЕХНОЛОГИИ",null,null,null,"15.02.14 Оснащение средствами автоматизации технологических процессов и производств (по отраслям)","15.00.00 МАШИНОСТРОЕНИЕ",null,null,null,null,null,null,null,"18.01.22 Оператор в производстве шин","проф"]
[null,null,null,null,null,null,null,null,"18.01.24 Мастер шиномонтажной мастерской","18.00.00 ХИМИЧЕСКИЕ ТЕХНОЛОГИИ",null,null,null,"15.02.15 Технология металлообрабатывающего производства","15.00.00 МАШИНОСТРОЕНИЕ",null,null,null,null,null,null,null,"18.01.24 Мастер шиномонтажной мастерской","проф"]
[null,null,null,null,null,null,null,null,"18.01.26 Аппаратчик-оператор нефтехимического производства","18.00.00 ХИМИЧЕСКИЕ ТЕХНОЛОГИИ",null,null,null,"18.02.01 Аналитический контроль качества химических соединений","18.00.00 ХИМИЧЕСКИЕ ТЕХНОЛОГИИ",null,null,null,null,null,null,null,"18.01.26 Аппаратчик-оператор нефтехимического производства","проф"]
[null,null,null,null,null,null,null,null,"18.01.27 Машинист технологических насосов и компрессоров","18.00.00 ХИМИЧЕСКИЕ ТЕХНОЛОГИИ",null,null,null,"18.02.02 Утратила силу с 1 сентября 2020 г. - Приказ Минпросвещения России от 3 декабря 2019 г. N 655","18.00.00 ХИМИЧЕСКИЕ ТЕХНОЛОГИИ",null,null,null,null,null,null,null,"18.01.27 Машинист технологических насосов и компрессоров","проф"]
[null,null,null,null,null,null,null,null,"18.01.28 Оператор нефтепереработки","18.00.00 ХИМИЧЕСКИЕ ТЕХНОЛОГИИ",null,null,null,"18.02.03 Химическая технология неорганических веществ","18.00.00 ХИМИЧЕСКИЕ ТЕХНОЛОГИИ",null,null,null,null,null,null,null,"18.01.28 Оператор нефтепереработки","проф"]
[null,null,null,null,null,null,null,null,"18.01.29 Мастер по обслуживанию магистральных трубопроводов","18.00.00 ХИМИЧЕСКИЕ ТЕХНОЛОГИИ",null,null,null,"18.02.04 Электрохимическое производство","18.00.00 ХИМИЧЕСКИЕ ТЕХНОЛОГИИ",null,null,null,null,null,null,null,"18.01.29 Мастер по обслуживанию магистральных трубопроводов","проф"]
[null,null,null,null,null,null,null,null,"18.01.31 Машинист машин коксохимического производства","18.00.00 ХИМИЧЕСКИЕ ТЕХНОЛОГИИ",null,null,null,"18.02.05 Производство тугоплавких неметаллических и силикатных материалов и изделий","18.00.00 ХИМИЧЕСКИЕ ТЕХНОЛОГИИ",null,null,null,null,null,null,null,"18.01.31 Машинист машин коксохимического производства","проф"]
[null,null,null,null,null,null,null,null,"18.01.32 Аппаратчик-оператор азотных производств и продуктов органического синтеза","18.00.00 ХИМИЧЕСКИЕ ТЕХНОЛОГИИ",null,null,null,"18.02.06 Химическая технология органических веществ","18.00.00 ХИМИЧЕСКИЕ ТЕХНОЛОГИИ",null,null,null,null,null,null,null,"18.01.32 Аппаратчик-оператор азотных производств и продуктов органического синтеза","проф"]
[null,null,null,null,null,null,null,null,"18.01.33 Лаборант по контролю качества сырья, реактивов, промежуточных продуктов, готовой продукции, отходов производства (по отраслям)","18.00.00 ХИМИЧЕСКИЕ ТЕХНОЛОГИИ",null,null,null,"18.02.07 Технология производства и переработки пластических масс и эластомеров","18.00.00 ХИМИЧЕСКИЕ ТЕХНОЛОГИИ",null,null,null,null,null,null,null,"18.01.33 Лаборант по контролю качества сырья, реактивов, промежуточных продуктов, готовой продукции, отходов производства (по отраслям)","проф"]
[null,null,null,null,null,null,null,null,"19.01.01 Аппаратчик-оператор в биотехнологии","19.00.00 ПРОМЫШЛЕННАЯ ЭКОЛОГИЯ И БИОТЕХНОЛОГИИ",null,null,null,"18.02.08 Утратила силу с 1 сентября 2020 г. - Приказ Минпросвещения России от 3 декабря 2019 г. N 655","18.00.00 ХИМИЧЕСКИЕ ТЕХНОЛОГИИ",null,null,null,null,null,null,null,"19.01.01 Аппаратчик-оператор в биотехнологии","проф"]
[null,null,null,null,null,null,null,null,"19.01.02 Лаборант-аналитик","19.00.00 ПРОМЫШЛЕННАЯ ЭКОЛОГИЯ И БИОТЕХНОЛОГИИ",null,null,null,"18.02.09 Переработка нефти и газа","18.00.00 ХИМИЧЕСКИЕ ТЕХНОЛОГИИ",null,null,null,null,null,null,null,"19.01.02 Лаборант-аналитик","проф"]
[null,null,null,null,null,null,null,null,"19.01.04 Пекарь","19.00.00 ПРОМЫШЛЕННАЯ ЭКОЛОГИЯ И БИОТЕХНОЛОГИИ",null,null,null,"18.02.10 Коксохимическое производство","18.00.00 ХИМИЧЕСКИЕ ТЕХНОЛОГИИ",null,null,null,null,null,null,null,"19.01.04 Пекарь","проф"]
[null,null,null,null,null,null,null,null,"19.01.06 Аппаратчик производства сахара","19.00.00 ПРОМЫШЛЕННАЯ ЭКОЛОГИЯ И БИОТЕХНОЛОГИИ",null,null,null,"18.02.11 Технология пиротехнических составов и изделий","18.00.00 ХИМИЧЕСКИЕ ТЕХНОЛОГИИ",null,null,null,null,null,null,null,"19.01.06 Аппаратчик производства сахара","проф"]
[null,null,null,null,null,null,null,null,"19.01.07 Кондитер сахаристых изделий","19.00.00 ПРОМЫШЛЕННАЯ ЭКОЛОГИЯ И БИОТЕХНОЛОГИИ",null,null,null,"18.02.12 Технология аналитического контроля химических соединений","18.00.00 ХИМИЧЕСКИЕ ТЕХНОЛОГИИ",null,null,null,null,null,null,null,"19.01.07 Кондитер сахаристых изделий","проф"]
[null,null,null,null,null,null,null,null,"19.01.09 Наладчик оборудования в производстве пищевой продукции (по отраслям производства)","19.00.00 ПРОМЫШЛЕННАЯ ЭКОЛОГИЯ И БИОТЕХНОЛОГИИ",null,null,null,"18.02.13 Технология производства изделий из полимерных композитов","18.00.00 ХИМИЧЕСКИЕ ТЕХНОЛОГИИ",null,null,null,null,null,null,null,"19.01.09 Наладчик оборудования в производстве пищевой продукции (по отраслям производства)","проф"]
[null,null,null,null,null,null,null,null,"19.01.10 Мастер производства молочной продукции","19.00.00 ПРОМЫШЛЕННАЯ ЭКОЛОГИЯ И БИОТЕХНОЛОГИИ",null,null,null,"19.02.01 Биохимическое производство","19.00.00 ПРОМЫШЛЕННАЯ ЭКОЛОГИЯ И БИОТЕХНОЛОГИИ",null,null,null,null,null,null,null,"19.01.10 Мастер производства молочной продукции","проф"]
[null,null,null,null,null,null,null,null,"19.01.11 Изготовитель мороженого","19.00.00 ПРОМЫШЛЕННАЯ ЭКОЛОГИЯ И БИОТЕХНОЛОГИИ",null,null,null,"19.02.02 Технология хранения и переработки зерна","19.00.00 ПРОМЫШЛЕННАЯ ЭКОЛОГИЯ И БИОТЕХНОЛОГИИ",null,null,null,null,null,null,null,"19.01.11 Изготовитель мороженого","проф"]
[null,null,null,null,null,null,null,null,"19.01.12 Переработчик скота и мяса","19.00.00 ПРОМЫШЛЕННАЯ ЭКОЛОГИЯ И БИОТЕХНОЛОГИИ",null,null,null,"19.02.03 Технология хлеба, кондитерских и макаронных изделий","19.00.00 ПРОМЫШЛЕННАЯ ЭКОЛОГИЯ И БИОТЕХНОЛОГИИ",null,null,null,null,null,null,null,"19.01.12 Переработчик скота и мяса","проф"]
[null,null,null,null,null,null,null,null,"19.01.14 Оператор процессов колбасного производства","19.00.00 ПРОМЫШЛЕННАЯ ЭКОЛОГИЯ И БИОТЕХНОЛОГИИ",null,null,null,"19.02.04 Технология сахаристых продуктов","19.00.00 ПРОМЫШЛЕННАЯ ЭКОЛОГИЯ И БИОТЕХНОЛОГИИ",null,null,null,null,null,null,null,"19.01.14 Оператор процессов колбасного производства","проф"]
[null,null,null,null,null,null,null,null,"19.01.15 Аппаратчик получения растительного масла","19.00.00 ПРОМЫШЛЕННАЯ ЭКОЛОГИЯ И БИОТЕХНОЛОГИИ",null,null,null,"19.02.05 Технология бродильных производств и виноделие","19.00.00 ПРОМЫШЛЕННАЯ ЭКОЛОГИЯ И БИОТЕХНОЛОГИИ",null,null,null,null,null,null,null,"19.01.15 Аппаратчик получения растительного масла","проф"]
[null,null,null,null,null,null,null,null,"20.01.01 Пожарный","20.00.00 ТЕХНОСФЕРНАЯ БЕЗОПАСНОСТЬ И ПРИРОДООБУСТРОЙСТВО",null,null,null,"19.02.06 Технология консервов и пищеконцентратов","19.00.00 ПРОМЫШЛЕННАЯ ЭКОЛОГИЯ И БИОТЕХНОЛОГИИ",null,null,null,null,null,null,null,"20.01.01 Пожарный","проф"]
[null,null,null,null,null,null,null,null,"21.01.01 Оператор нефтяных и газовых скважин","21.00.00 ПРИКЛАДНАЯ ГЕОЛОГИЯ, ГОРНОЕ ДЕЛО, НЕФТЕГАЗОВОЕ ДЕЛО И ГЕОДЕЗИЯ",null,null,null,"19.02.07 Технология молока и молочных продуктов","19.00.00 ПРОМЫШЛЕННАЯ ЭКОЛОГИЯ И БИОТЕХНОЛОГИИ",null,null,null,null,null,null,null,"21.01.01 Оператор нефтяных и газовых скважин","проф"]
[null,null,null,null,null,null,null,null,"21.01.02 Оператор по ремонту скважин","21.00.00 ПРИКЛАДНАЯ ГЕОЛОГИЯ, ГОРНОЕ ДЕЛО, НЕФТЕГАЗОВОЕ ДЕЛО И ГЕОДЕЗИЯ",null,null,null,"19.02.08 Технология мяса и мясных продуктов","19.00.00 ПРОМЫШЛЕННАЯ ЭКОЛОГИЯ И БИОТЕХНОЛОГИИ",null,null,null,null,null,null,null,"21.01.02 Оператор по ремонту скважин","проф"]
[null,null,null,null,null,null,null,null,"21.01.03 Бурильщик эксплуатационных и разведочных скважин","21.00.00 ПРИКЛАДНАЯ ГЕОЛОГИЯ, ГОРНОЕ ДЕЛО, НЕФТЕГАЗОВОЕ ДЕЛО И ГЕОДЕЗИЯ",null,null,null,"19.02.09 Технология жиров и жирозаменителей","19.00.00 ПРОМЫШЛЕННАЯ ЭКОЛОГИЯ И БИОТЕХНОЛОГИИ",null,null,null,null,null,null,null,"21.01.03 Бурильщик эксплуатационных и разведочных скважин","проф"]
[null,null,null,null,null,null,null,null,"21.01.04 Машинист на буровых установках","21.00.00 ПРИКЛАДНАЯ ГЕОЛОГИЯ, ГОРНОЕ ДЕЛО, НЕФТЕГАЗОВОЕ ДЕЛО И ГЕОДЕЗИЯ",null,null,null,"19.02.10 Технология продукции общественного питания","19.00.00 ПРОМЫШЛЕННАЯ ЭКОЛОГИЯ И БИОТЕХНОЛОГИИ",null,null,null,null,null,null,null,"21.01.04 Машинист на буровых установках","проф"]
[null,null,null,null,null,null,null,null,"21.01.07 Бурильщик морского бурения скважин","21.00.00 ПРИКЛАДНАЯ ГЕОЛОГИЯ, ГОРНОЕ ДЕЛО, НЕФТЕГАЗОВОЕ ДЕЛО И ГЕОДЕЗИЯ",null,null,null,"20.02.01 Рациональное использование природохозяйственных комплексов","20.00.00 ТЕХНОСФЕРНАЯ БЕЗОПАСНОСТЬ И ПРИРОДООБУСТРОЙСТВО",null,null,null,null,null,null,null,"21.01.07 Бурильщик морского бурения скважин","проф"]
[null,null,null,null,null,null,null,null,"21.01.08 Машинист на открытых горных работах","21.00.00 ПРИКЛАДНАЯ ГЕОЛОГИЯ, ГОРНОЕ ДЕЛО, НЕФТЕГАЗОВОЕ ДЕЛО И ГЕОДЕЗИЯ",null,null,null,"20.02.02 Защита в чрезвычайных ситуациях","20.00.00 ТЕХНОСФЕРНАЯ БЕЗОПАСНОСТЬ И ПРИРОДООБУСТРОЙСТВО",null,null,null,null,null,null,null,"21.01.08 Машинист на открытых горных работах","проф"]
[null,null,null,null,null,null,null,null,"21.01.10 Ремонтник горного оборудования","21.00.00 ПРИКЛАДНАЯ ГЕОЛОГИЯ, ГОРНОЕ ДЕЛО, НЕФТЕГАЗОВОЕ ДЕЛО И ГЕОДЕЗИЯ",null,null,null,"20.02.03 Природоохранное обустройство территорий","20.00.00 ТЕХНОСФЕРНАЯ БЕЗОПАСНОСТЬ И ПРИРОДООБУСТРОЙСТВО",null,null,null,null,null,null,null,"21.01.10 Ремонтник горного оборудования","проф"]
[null,null,null,null,null,null,null,null,"21.01.13 Проходчик","21.00.00 ПРИКЛАДНАЯ ГЕОЛОГИЯ, ГОРНОЕ ДЕЛО, НЕФТЕГАЗОВОЕ ДЕЛО И ГЕОДЕЗИЯ",null,null,null,"20.02.04 Пожарная безопасность","20.00.00 ТЕХНОСФЕРНАЯ БЕЗОПАСНОСТЬ И ПРИРОДООБУСТРОЙСТВО",null,null,null,null,null,null,null,"21.01.13 Проходчик","проф"]
[null,null,null,null,null,null,null,null,"21.01.15 Электрослесарь подземный","21.00.00 ПРИКЛАДНАЯ ГЕОЛОГИЯ, ГОРНОЕ ДЕЛО, НЕФТЕГАЗОВОЕ ДЕЛО И ГЕОДЕЗИЯ",null,null,null,"20.02.05 Организация оперативного (экстренного) реагирования в чрезвычайных ситуациях","20.00.00 ТЕХНОСФЕРНАЯ БЕЗОПАСНОСТЬ И ПРИРОДООБУСТРОЙСТВО",null,null,null,null,null,null,null,"21.01.15 Электрослесарь подземный","проф"]
[null,null,null,null,null,null,null,null,"21.01.16 Обогатитель полезных ископаемых","21.00.00 ПРИКЛАДНАЯ ГЕОЛОГИЯ, ГОРНОЕ ДЕЛО, НЕФТЕГАЗОВОЕ ДЕЛО И ГЕОДЕЗИЯ",null,null,null,"21.02.01 Разработка и эксплуатация нефтяных и газовых месторождений","21.00.00 ПРИКЛАДНАЯ ГЕОЛОГИЯ, ГОРНОЕ ДЕЛО, НЕФТЕГАЗОВОЕ ДЕЛО И ГЕОДЕЗИЯ",null,null,null,null,null,null,null,"21.01.16 Обогатитель полезных ископаемых","проф"]
[null,null,null,null,null,null,null,null,"22.01.03 Машинист крана металлургического производства","22.00.00 ТЕХНОЛОГИИ МАТЕРИАЛОВ",null,null,null,"21.02.02 Бурение нефтяных и газовых скважин","21.00.00 ПРИКЛАДНАЯ ГЕОЛОГИЯ, ГОРНОЕ ДЕЛО, НЕФТЕГАЗОВОЕ ДЕЛО И ГЕОДЕЗИЯ",null,null,null,null,null,null,null,"22.01.03 Машинист крана металлургического производства","проф"]
[null,null,null,null,null,null,null,null,"22.01.04 Контролер металлургического производства","22.00.00 ТЕХНОЛОГИИ МАТЕРИАЛОВ",null,null,null,"21.02.03 Сооружение и эксплуатация газонефтепроводов и газонефтехранилищ","21.00.00 ПРИКЛАДНАЯ ГЕОЛОГИЯ, ГОРНОЕ ДЕЛО, НЕФТЕГАЗОВОЕ ДЕЛО И ГЕОДЕЗИЯ",null,null,null,null,null,null,null,"22.01.04 Контролер металлургического производства","проф"]
[null,null,null,null,null,null,null,null,"22.01.05 Аппаратчик-оператор в производстве цветных металлов","22.00.00 ТЕХНОЛОГИИ МАТЕРИАЛОВ",null,null,null,"21.02.04 Землеустройство","21.00.00 ПРИКЛАДНАЯ ГЕОЛОГИЯ, ГОРНОЕ ДЕЛО, НЕФТЕГАЗОВОЕ ДЕЛО И ГЕОДЕЗИЯ",null,null,null,null,null,null,null,"22.01.05 Аппаратчик-оператор в производстве цветных металлов","проф"]
[null,null,null,null,null,null,null,null,"22.01.08 Оператор прокатного производства","22.00.00 ТЕХНОЛОГИИ МАТЕРИАЛОВ",null,null,null,"21.02.05 Земельно-имущественные отношения","21.00.00 ПРИКЛАДНАЯ ГЕОЛОГИЯ, ГОРНОЕ ДЕЛО, НЕФТЕГАЗОВОЕ ДЕЛО И ГЕОДЕЗИЯ",null,null,null,null,null,null,null,"22.01.08 Оператор прокатного производства","проф"]
[null,null,null,null,null,null,null,null,"22.01.09 Оператор трубного производства","22.00.00 ТЕХНОЛОГИИ МАТЕРИАЛОВ",null,null,null,"21.02.06 Информационные системы обеспечения градостроительной деятельности","21.00.00 ПРИКЛАДНАЯ ГЕОЛОГИЯ, ГОРНОЕ ДЕЛО, НЕФТЕГАЗОВОЕ ДЕЛО И ГЕОДЕЗИЯ",null,null,null,null,null,null,null,"22.01.09 Оператор трубного производства","проф"]
[null,null,null,null,null,null,null,null,"23.01.01 Оператор транспортного терминала","23.00.00 ТЕХНИКА И ТЕХНОЛОГИИ НАЗЕМНОГО ТРАНСПОРТА",null,null,null,"21.02.07 Аэрофотогеодезия","21.00.00 ПРИКЛАДНАЯ ГЕОЛОГИЯ, ГОРНОЕ ДЕЛО, НЕФТЕГАЗОВОЕ ДЕЛО И ГЕОДЕЗИЯ",null,null,null,null,null,null,null,"23.01.01 Оператор транспортного терминала","проф"]
[null,null,null,null,null,null,null,null,"23.01.02 Докер-механизатор","23.00.00 ТЕХНИКА И ТЕХНОЛОГИИ НАЗЕМНОГО ТРАНСПОРТА",null,null,null,"21.02.08 Прикладная геодезия","21.00.00 ПРИКЛАДНАЯ ГЕОЛОГИЯ, ГОРНОЕ ДЕЛО, НЕФТЕГАЗОВОЕ ДЕЛО И ГЕОДЕЗИЯ",null,null,null,null,null,null,null,"23.01.02 Докер-механизатор","проф"]
[null,null,null,null,null,null,null,null,"23.01.03 Автомеханик","23.00.00 ТЕХНИКА И ТЕХНОЛОГИИ НАЗЕМНОГО ТРАНСПОРТА",null,null,null,"21.02.09 Гидрогеология и инженерная геология","21.00.00 ПРИКЛАДНАЯ ГЕОЛОГИЯ, ГОРНОЕ ДЕЛО, НЕФТЕГАЗОВОЕ ДЕЛО И ГЕОДЕЗИЯ",null,null,null,null,null,null,null,"23.01.03 Автомеханик","проф"]
[null,null,null,null,null,null,null,null,"23.01.04 Водитель городского электротранспорта","23.00.00 ТЕХНИКА И ТЕХНОЛОГИИ НАЗЕМНОГО ТРАНСПОРТА",null,null,null,"21.02.10 Геология и разведка нефтяных и газовых месторождений","21.00.00 ПРИКЛАДНАЯ ГЕОЛОГИЯ, ГОРНОЕ ДЕЛО, НЕФТЕГАЗОВОЕ ДЕЛО И ГЕОДЕЗИЯ",null,null,null,null,null,null,null,"23.01.04 Водитель городского электротранспорта","проф"]
[null,null,null,null,null,null,null,null,"23.01.06 Машинист дорожных и строительных машин","23.00.00 ТЕХНИКА И ТЕХНОЛОГИИ НАЗЕМНОГО ТРАНСПОРТА",null,null,null,"21.02.11 Геофизические методы поисков и разведки месторождений полезных ископаемых","21.00.00 ПРИКЛАДНАЯ ГЕОЛОГИЯ, ГОРНОЕ ДЕЛО, НЕФТЕГАЗОВОЕ ДЕЛО И ГЕОДЕЗИЯ",null,null,null,null,null,null,null,"23.01.06 Машинист дорожных и строительных машин","проф"]
[null,null,null,null,null,null,null,null,"23.01.07 Машинист крана (крановщик)","23.00.00 ТЕХНИКА И ТЕХНОЛОГИИ НАЗЕМНОГО ТРАНСПОРТА",null,null,null,"21.02.12 Технология и техника разведки месторождений полезных ископаемых","21.00.00 ПРИКЛАДНАЯ ГЕОЛОГИЯ, ГОРНОЕ ДЕЛО, НЕФТЕГАЗОВОЕ ДЕЛО И ГЕОДЕЗИЯ",null,null,null,null,null,null,null,"23.01.07 Машинист крана (крановщик)","проф"]
[null,null,null,null,null,null,null,null,"23.01.08 Слесарь по ремонту строительных машин","23.00.00 ТЕХНИКА И ТЕХНОЛОГИИ НАЗЕМНОГО ТРАНСПОРТА",null,null,null,"21.02.13 Геологическая съемка, поиски и разведка месторождений полезных ископаемых","21.00.00 ПРИКЛАДНАЯ ГЕОЛОГИЯ, ГОРНОЕ ДЕЛО, НЕФТЕГАЗОВОЕ ДЕЛО И ГЕОДЕЗИЯ",null,null,null,null,null,null,null,"23.01.08 Слесарь по ремонту строительных машин","проф"]
[null,null,null,null,null,null,null,null,"23.01.09 Машинист локомотива","23.00.00 ТЕХНИКА И ТЕХНОЛОГИИ НАЗЕМНОГО ТРАНСПОРТА",null,null,null,"21.02.14 Маркшейдерское дело","21.00.00 ПРИКЛАДНАЯ ГЕОЛОГИЯ, ГОРНОЕ ДЕЛО, НЕФТЕГАЗОВОЕ ДЕЛО И ГЕОДЕЗИЯ",null,null,null,null,null,null,null,"23.01.09 Машинист локомотива","проф"]
[null,null,null,null,null,null,null,null,"23.01.10 Слесарь по обслуживанию и ремонту подвижного состава","23.00.00 ТЕХНИКА И ТЕХНОЛОГИИ НАЗЕМНОГО ТРАНСПОРТА",null,null,null,"21.02.15 Открытые горные работы","21.00.00 ПРИКЛАДНАЯ ГЕОЛОГИЯ, ГОРНОЕ ДЕЛО, НЕФТЕГАЗОВОЕ ДЕЛО И ГЕОДЕЗИЯ",null,null,null,null,null,null,null,"23.01.10 Слесарь по обслуживанию и ремонту подвижного состава","проф"]
[null,null,null,null,null,null,null,null,"23.01.11 Слесарь-электрик по ремонту электрооборудования подвижного состава (электровозов, электропоездов)","23.00.00 ТЕХНИКА И ТЕХНОЛОГИИ НАЗЕМНОГО ТРАНСПОРТА",null,null,null,"21.02.16 Шахтное строительство","21.00.00 ПРИКЛАДНАЯ ГЕОЛОГИЯ, ГОРНОЕ ДЕЛО, НЕФТЕГАЗОВОЕ ДЕЛО И ГЕОДЕЗИЯ",null,null,null,null,null,null,null,"23.01.11 Слесарь-электрик по ремонту электрооборудования подвижного состава (электровозов, электропоездов)","проф"]
[null,null,null,null,null,null,null,null,"23.01.12 Слесарь-электрик метрополитена","23.00.00 ТЕХНИКА И ТЕХНОЛОГИИ НАЗЕМНОГО ТРАНСПОРТА",null,null,null,"21.02.17 Подземная разработка месторождений полезных ископаемых","21.00.00 ПРИКЛАДНАЯ ГЕОЛОГИЯ, ГОРНОЕ ДЕЛО, НЕФТЕГАЗОВОЕ ДЕЛО И ГЕОДЕЗИЯ",null,null,null,null,null,null,null,"23.01.12 Слесарь-электрик метрополитена","проф"]
[null,null,null,null,null,null,null,null,"23.01.13 Электромонтер тяговой подстанции","23.00.00 ТЕХНИКА И ТЕХНОЛОГИИ НАЗЕМНОГО ТРАНСПОРТА",null,null,null,"21.02.18 Обогащение полезных ископаемых","21.00.00 ПРИКЛАДНАЯ ГЕОЛОГИЯ, ГОРНОЕ ДЕЛО, НЕФТЕГАЗОВОЕ ДЕЛО И ГЕОДЕЗИЯ",null,null,null,null,null,null,null,"23.01.13 Электромонтер тяговой подстанции","проф"]
[null,null,null,null,null,null,null,null,"23.01.14 Электромонтер устройств сигнализации, централизации, блокировки (СЦБ)","23.00.00 ТЕХНИКА И ТЕХНОЛОГИИ НАЗЕМНОГО ТРАНСПОРТА",null,null,null,"22.02.01 Металлургия черных металлов","22.00.00 ТЕХНОЛОГИИ МАТЕРИАЛОВ",null,null,null,null,null,null,null,"23.01.14 Электромонтер устройств сигнализации, централизации, блокировки (СЦБ)","проф"]
[null,null,null,null,null,null,null,null,"23.01.15 Оператор поста централизации","23.00.00 ТЕХНИКА И ТЕХНОЛОГИИ НАЗЕМНОГО ТРАНСПОРТА",null,null,null,"22.02.02 Металлургия цветных металлов","22.00.00 ТЕХНОЛОГИИ МАТЕРИАЛОВ",null,null,null,null,null,null,null,"23.01.15 Оператор поста централизации","проф"]
[null,null,null,null,null,null,null,null,"23.01.16 Составитель поездов","23.00.00 ТЕХНИКА И ТЕХНОЛОГИИ НАЗЕМНОГО ТРАНСПОРТА",null,null,null,"22.02.03 Литейное производство черных и цветных металлов","22.00.00 ТЕХНОЛОГИИ МАТЕРИАЛОВ",null,null,null,null,null,null,null,"23.01.16 Составитель поездов","проф"]
[null,null,null,null,null,null,null,null,"23.01.17 Мастер по ремонту и обслуживанию автомобилей","23.00.00 ТЕХНИКА И ТЕХНОЛОГИИ НАЗЕМНОГО ТРАНСПОРТА",null,null,null,"22.02.04 Металловедение и термическая обработка металлов","22.00.00 ТЕХНОЛОГИИ МАТЕРИАЛОВ",null,null,null,null,null,null,null,"23.01.17 Мастер по ремонту и обслуживанию автомобилей","проф"]
[null,null,null,null,null,null,null,null,"24.01.01 Слесарь-сборщик авиационной техники","24.00.00 АВИАЦИОННАЯ И РАКЕТНО-КОСМИЧЕСКАЯ ТЕХНИКА",null,null,null,"22.02.05 Обработка металлов давлением","22.00.00 ТЕХНОЛОГИИ МАТЕРИАЛОВ",null,null,null,null,null,null,null,"24.01.01 Слесарь-сборщик авиационной техники","проф"]
[null,null,null,null,null,null,null,null,"24.01.02 Электромонтажник авиационной техники","24.00.00 АВИАЦИОННАЯ И РАКЕТНО-КОСМИЧЕСКАЯ ТЕХНИКА",null,null,null,"22.02.06 Сварочное производство","22.00.00 ТЕХНОЛОГИИ МАТЕРИАЛОВ",null,null,null,null,null,null,null,"24.01.02 Электромонтажник авиационной техники","проф"]
[null,null,null,null,null,null,null,null,"24.01.04 Слесарь по ремонту авиационной техники","24.00.00 АВИАЦИОННАЯ И РАКЕТНО-КОСМИЧЕСКАЯ ТЕХНИКА",null,null,null,"22.02.07 Порошковая металлургия, композиционные материалы, покрытия","22.00.00 ТЕХНОЛОГИИ МАТЕРИАЛОВ",null,null,null,null,null,null,null,"24.01.04 Слесарь по ремонту авиационной техники","проф"]
[null,null,null,null,null,null,null,null,"26.01.01 Судостроитель-судоремонтник металлических судов","26.00.00 ТЕХНИКА И ТЕХНОЛОГИИ КОРАБЛЕСТРОЕНИЯ И ВОДНОГО ТРАНСПОРТА",null,null,null,"23.02.01 Организация перевозок и управление на транспорте (по видам)","23.00.00 ТЕХНИКА И ТЕХНОЛОГИИ НАЗЕМНОГО ТРАНСПОРТА",null,null,null,null,null,null,null,"26.01.01 Судостроитель-судоремонтник металлических судов","проф"]
[null,null,null,null,null,null,null,null,"26.01.02 Судостроитель-судоремонтник неметаллических судов","26.00.00 ТЕХНИКА И ТЕХНОЛОГИИ КОРАБЛЕСТРОЕНИЯ И ВОДНОГО ТРАНСПОРТА",null,null,null,"23.02.02 Автомобиле- и тракторостроение","23.00.00 ТЕХНИКА И ТЕХНОЛОГИИ НАЗЕМНОГО ТРАНСПОРТА",null,null,null,null,null,null,null,"26.01.02 Судостроитель-судоремонтник неметаллических судов","проф"]
[null,null,null,null,null,null,null,null,"26.01.03 Слесарь-монтажник судовой","26.00.00 ТЕХНИКА И ТЕХНОЛОГИИ КОРАБЛЕСТРОЕНИЯ И ВОДНОГО ТРАНСПОРТА",null,null,null,"23.02.03 Техническое обслуживание и ремонт автомобильного транспорта","23.00.00 ТЕХНИКА И ТЕХНОЛОГИИ НАЗЕМНОГО ТРАНСПОРТА",null,null,null,null,null,null,null,"26.01.03 Слесарь-монтажник судовой","проф"]
[null,null,null,null,null,null,null,null,"26.01.05 Электрорадиомонтажник судовой","26.00.00 ТЕХНИКА И ТЕХНОЛОГИИ КОРАБЛЕСТРОЕНИЯ И ВОДНОГО ТРАНСПОРТА",null,null,null,"23.02.04 Техническая эксплуатация подъемно-транспортных, строительных, дорожных машин и оборудования (по отраслям)","23.00.00 ТЕХНИКА И ТЕХНОЛОГИИ НАЗЕМНОГО ТРАНСПОРТА",null,null,null,null,null,null,null,"26.01.05 Электрорадиомонтажник судовой","проф"]
[null,null,null,null,null,null,null,null,"26.01.06 Судоводитель-помощник механика маломерного судна","26.00.00 ТЕХНИКА И ТЕХНОЛОГИИ КОРАБЛЕСТРОЕНИЯ И ВОДНОГО ТРАНСПОРТА",null,null,null,"23.02.05 Эксплуатация транспортного электрооборудования и автоматики (по видам транспорта, за исключением водного)","23.00.00 ТЕХНИКА И ТЕХНОЛОГИИ НАЗЕМНОГО ТРАНСПОРТА",null,null,null,null,null,null,null,"26.01.06 Судоводитель-помощник механика маломерного судна","проф"]
[null,null,null,null,null,null,null,null,"26.01.07 Матрос","26.00.00 ТЕХНИКА И ТЕХНОЛОГИИ КОРАБЛЕСТРОЕНИЯ И ВОДНОГО ТРАНСПОРТА",null,null,null,"23.02.06 Техническая эксплуатация подвижного состава железных дорог","23.00.00 ТЕХНИКА И ТЕХНОЛОГИИ НАЗЕМНОГО ТРАНСПОРТА",null,null,null,null,null,null,null,"26.01.07 Матрос","проф"]
[null,null,null,null,null,null,null,null,"26.01.08 Моторист (машинист)","26.00.00 ТЕХНИКА И ТЕХНОЛОГИИ КОРАБЛЕСТРОЕНИЯ И ВОДНОГО ТРАНСПОРТА",null,null,null,"23.02.07 Техническое обслуживание и ремонт двигателей, систем и агрегатов автомобилей","23.00.00 ТЕХНИКА И ТЕХНОЛОГИИ НАЗЕМНОГО ТРАНСПОРТА",null,null,null,null,null,null,null,"26.01.08 Моторист (машинист)","проф"]
[null,null,null,null,null,null,null,null,"26.01.09 Моторист судовой","26.00.00 ТЕХНИКА И ТЕХНОЛОГИИ КОРАБЛЕСТРОЕНИЯ И ВОДНОГО ТРАНСПОРТА",null,null,null,"24.02.01 Производство летательных аппаратов","24.00.00 АВИАЦИОННАЯ И РАКЕТНО-КОСМИЧЕСКАЯ ТЕХНИКА",null,null,null,null,null,null,null,"26.01.09 Моторист судовой","проф"]
[null,null,null,null,null,null,null,null,"26.01.10 Механик маломерного судна","26.00.00 ТЕХНИКА И ТЕХНОЛОГИИ КОРАБЛЕСТРОЕНИЯ И ВОДНОГО ТРАНСПОРТА",null,null,null,"24.02.02 Производство авиационных двигателей","24.00.00 АВИАЦИОННАЯ И РАКЕТНО-КОСМИЧЕСКАЯ ТЕХНИКА",null,null,null,null,null,null,null,"26.01.10 Механик маломерного судна","проф"]
[null,null,null,null,null,null,null,null,"26.01.12 Электрик судовой","26.00.00 ТЕХНИКА И ТЕХНОЛОГИИ КОРАБЛЕСТРОЕНИЯ И ВОДНОГО ТРАНСПОРТА",null,null,null,"24.02.03 Утратила силу с 1 сентября 2020 г. - Приказ Минпросвещения России от 3 декабря 2019 г. N 655","24.00.00 АВИАЦИОННАЯ И РАКЕТНО-КОСМИЧЕСКАЯ ТЕХНИКА",null,null,null,null,null,null,null,"26.01.12 Электрик судовой","проф"]
[null,null,null,null,null,null,null,null,"26.01.13 Водолаз","26.00.00 ТЕХНИКА И ТЕХНОЛОГИИ КОРАБЛЕСТРОЕНИЯ И ВОДНОГО ТРАНСПОРТА",null,null,null,"25.02.01 Техническая эксплуатация летательных аппаратов и двигателей","25.00.00 АЭРОНАВИГАЦИЯ И ЭКСПЛУАТАЦИЯ АВИАЦИОННОЙ И РАКЕТНО-КОСМИЧЕСКОЙ ТЕХНИКИ",null,null,null,null,null,null,null,"26.01.13 Водолаз","проф"]
[null,null,null,null,null,null,null,null,"29.01.01 Скорняк","29.00.00 ТЕХНОЛОГИИ ЛЕГКОЙ ПРОМЫШЛЕННОСТИ",null,null,null,"25.02.02 Обслуживание летательных аппаратов горюче-смазочными материалами","25.00.00 АЭРОНАВИГАЦИЯ И ЭКСПЛУАТАЦИЯ АВИАЦИОННОЙ И РАКЕТНО-КОСМИЧЕСКОЙ ТЕХНИКИ",null,null,null,null,null,null,null,"29.01.01 Скорняк","проф"]
[null,null,null,null,null,null,null,null,"29.01.02 Обувщик (широкого профиля)","29.00.00 ТЕХНОЛОГИИ ЛЕГКОЙ ПРОМЫШЛЕННОСТИ",null,null,null,"25.02.03 Техническая эксплуатация электрифицированных и пилотажно-навигационных комплексов","25.00.00 АЭРОНАВИГАЦИЯ И ЭКСПЛУАТАЦИЯ АВИАЦИОННОЙ И РАКЕТНО-КОСМИЧЕСКОЙ ТЕХНИКИ",null,null,null,null,null,null,null,"29.01.02 Обувщик (широкого профиля)","проф"]
[null,null,null,null,null,null,null,null,"29.01.03 Сборщик обуви","29.00.00 ТЕХНОЛОГИИ ЛЕГКОЙ ПРОМЫШЛЕННОСТИ",null,null,null,"25.02.04 Летная эксплуатация летательных аппаратов","25.00.00 АЭРОНАВИГАЦИЯ И ЭКСПЛУАТАЦИЯ АВИАЦИОННОЙ И РАКЕТНО-КОСМИЧЕСКОЙ ТЕХНИКИ",null,null,null,null,null,null,null,"29.01.03 Сборщик обуви","проф"]
[null,null,null,null,null,null,null,null,"29.01.04 Художник по костюму","29.00.00 ТЕХНОЛОГИИ ЛЕГКОЙ ПРОМЫШЛЕННОСТИ",null,null,null,"25.02.05 Управление движением воздушного транспорта","25.00.00 АЭРОНАВИГАЦИЯ И ЭКСПЛУАТАЦИЯ АВИАЦИОННОЙ И РАКЕТНО-КОСМИЧЕСКОЙ ТЕХНИКИ",null,null,null,null,null,null,null,"29.01.04 Художник по костюму","проф"]
[null,null,null,null,null,null,null,null,"29.01.05 Закройщик","29.00.00 ТЕХНОЛОГИИ ЛЕГКОЙ ПРОМЫШЛЕННОСТИ",null,null,null,"25.02.06 Производство и обслуживание авиационной техники","25.00.00 АЭРОНАВИГАЦИЯ И ЭКСПЛУАТАЦИЯ АВИАЦИОННОЙ И РАКЕТНО-КОСМИЧЕСКОЙ ТЕХНИКИ",null,null,null,null,null,null,null,"29.01.05 Закройщик","проф"]
[null,null,null,null,null,null,null,null,"29.01.07 Портной","29.00.00 ТЕХНОЛОГИИ ЛЕГКОЙ ПРОМЫШЛЕННОСТИ",null,null,null,"25.02.07 Техническое обслуживание авиационных двигателей","25.00.00 АЭРОНАВИГАЦИЯ И ЭКСПЛУАТАЦИЯ АВИАЦИОННОЙ И РАКЕТНО-КОСМИЧЕСКОЙ ТЕХНИКИ",null,null,null,null,null,null,null,"29.01.07 Портной","проф"]
[null,null,null,null,null,null,null,null,"29.01.08 Оператор швейного оборудования","29.00.00 ТЕХНОЛОГИИ ЛЕГКОЙ ПРОМЫШЛЕННОСТИ",null,null,null,"25.02.08 Эксплуатация беспилотных авиационных систем","25.00.00 АЭРОНАВИГАЦИЯ И ЭКСПЛУАТАЦИЯ АВИАЦИОННОЙ И РАКЕТНО-КОСМИЧЕСКОЙ ТЕХНИКИ",null,null,null,null,null,null,null,"29.01.08 Оператор швейного оборудования","проф"]
[null,null,null,null,null,null,null,null,"29.01.09 Вышивальщица","29.00.00 ТЕХНОЛОГИИ ЛЕГКОЙ ПРОМЫШЛЕННОСТИ",null,null,null,"26.02.01 Эксплуатация внутренних водных путей","26.00.00 ТЕХНИКА И ТЕХНОЛОГИИ КОРАБЛЕСТРОЕНИЯ И ВОДНОГО ТРАНСПОРТА",null,null,null,null,null,null,null,"29.01.09 Вышивальщица","проф"]
[null,null,null,null,null,null,null,null,"29.01.10 Модистка головных уборов","29.00.00 ТЕХНОЛОГИИ ЛЕГКОЙ ПРОМЫШЛЕННОСТИ",null,null,null,"26.02.02 Судостроение","26.00.00 ТЕХНИКА И ТЕХНОЛОГИИ КОРАБЛЕСТРОЕНИЯ И ВОДНОГО ТРАНСПОРТА",null,null,null,null,null,null,null,"29.01.10 Модистка головных уборов","проф"]
[null,null,null,null,null,null,null,null,"29.01.16 Ткач","29.00.00 ТЕХНОЛОГИИ ЛЕГКОЙ ПРОМЫШЛЕННОСТИ",null,null,null,"26.02.03 Судовождение","26.00.00 ТЕХНИКА И ТЕХНОЛОГИИ КОРАБЛЕСТРОЕНИЯ И ВОДНОГО ТРАНСПОРТА",null,null,null,null,null,null,null,"29.01.16 Ткач","проф"]
[null,null,null,null,null,null,null,null,"29.01.17 Оператор вязально-швейного оборудования","29.00.00 ТЕХНОЛОГИИ ЛЕГКОЙ ПРОМЫШЛЕННОСТИ",null,null,null,"26.02.04 Монтаж и техническое обслуживание судовых машин и механизмов","26.00.00 ТЕХНИКА И ТЕХНОЛОГИИ КОРАБЛЕСТРОЕНИЯ И ВОДНОГО ТРАНСПОРТА",null,null,null,null,null,null,null,"29.01.17 Оператор вязально-швейного оборудования","проф"]
[null,null,null,null,null,null,null,null,"29.01.24 Оператор электронного набора и верстки","29.00.00 ТЕХНОЛОГИИ ЛЕГКОЙ ПРОМЫШЛЕННОСТИ",null,null,null,"26.02.05 Эксплуатация судовых энергетических установок","26.00.00 ТЕХНИКА И ТЕХНОЛОГИИ КОРАБЛЕСТРОЕНИЯ И ВОДНОГО ТРАНСПОРТА",null,null,null,null,null,null,null,"29.01.24 Оператор электронного набора и верстки","проф"]
[null,null,null,null,null,null,null,null,"29.01.25 Переплетчик","29.00.00 ТЕХНОЛОГИИ ЛЕГКОЙ ПРОМЫШЛЕННОСТИ",null,null,null,"26.02.06 Эксплуатация судового электрооборудования и средств автоматики","26.00.00 ТЕХНИКА И ТЕХНОЛОГИИ КОРАБЛЕСТРОЕНИЯ И ВОДНОГО ТРАНСПОРТА",null,null,null,null,null,null,null,"29.01.25 Переплетчик","проф"]
[null,null,null,null,null,null,null,null,"29.01.26 Печатник плоской печати","29.00.00 ТЕХНОЛОГИИ ЛЕГКОЙ ПРОМЫШЛЕННОСТИ",null,null,null,"27.02.01 Метрология","27.00.00 УПРАВЛЕНИЕ В ТЕХНИЧЕСКИХ СИСТЕМАХ",null,null,null,null,null,null,null,"29.01.26 Печатник плоской печати","проф"]
[null,null,null,null,null,null,null,null,"29.01.27 Мастер печатного дела","29.00.00 ТЕХНОЛОГИИ ЛЕГКОЙ ПРОМЫШЛЕННОСТИ",null,null,null,"27.02.02 Техническое регулирование и управление качеством","27.00.00 УПРАВЛЕНИЕ В ТЕХНИЧЕСКИХ СИСТЕМАХ",null,null,null,null,null,null,null,"29.01.27 Мастер печатного дела","проф"]
[null,null,null,null,null,null,null,null,"29.01.28 Огранщик алмазов в бриллианты","29.00.00 ТЕХНОЛОГИИ ЛЕГКОЙ ПРОМЫШЛЕННОСТИ",null,null,null,"27.02.03 Автоматика и телемеханика на транспорте (железнодорожном транспорте)","27.00.00 УПРАВЛЕНИЕ В ТЕХНИЧЕСКИХ СИСТЕМАХ",null,null,null,null,null,null,null,"29.01.28 Огранщик алмазов в бриллианты","проф"]
[null,null,null,null,null,null,null,null,"29.01.29 Мастер столярного и мебельного производства","29.00.00 ТЕХНОЛОГИИ ЛЕГКОЙ ПРОМЫШЛЕННОСТИ",null,null,null,"27.02.04 Автоматические системы управления","27.00.00 УПРАВЛЕНИЕ В ТЕХНИЧЕСКИХ СИСТЕМАХ",null,null,null,null,null,null,null,"29.01.29 Мастер столярного и мебельного производства","проф"]
[null,null,null,null,null,null,null,null,"34.01.01 Младшая медицинская сестра по уходу за больными","34.00.00 СЕСТРИНСКОЕ ДЕЛО",null,null,null,"27.02.05 Системы и средства диспетчерского управления","27.00.00 УПРАВЛЕНИЕ В ТЕХНИЧЕСКИХ СИСТЕМАХ",null,null,null,null,null,null,null,"34.01.01 Младшая медицинская сестра по уходу за больными","проф"]
[null,null,null,null,null,null,null,null,"35.01.01 Мастер по лесному хозяйству","35.00.00 СЕЛЬСКОЕ, ЛЕСНОЕ И РЫБНОЕ ХОЗЯЙСТВО",null,null,null,"27.02.06 Контроль работы измерительных приборов","27.00.00 УПРАВЛЕНИЕ В ТЕХНИЧЕСКИХ СИСТЕМАХ",null,null,null,null,null,null,null,"35.01.01 Мастер по лесному хозяйству","проф"]
[null,null,null,null,null,null,null,null,"35.01.02 Станочник деревообрабатывающих станков","35.00.00 СЕЛЬСКОЕ, ЛЕСНОЕ И РЫБНОЕ ХОЗЯЙСТВО",null,null,null,"27.02.07 Управление качеством продукции, процессов и услуг (по отраслям)","27.00.00 УПРАВЛЕНИЕ В ТЕХНИЧЕСКИХ СИСТЕМАХ",null,null,null,null,null,null,null,"35.01.02 Станочник деревообрабатывающих станков","проф"]
[null,null,null,null,null,null,null,null,"35.01.03 Станочник-обработчик","35.00.00 СЕЛЬСКОЕ, ЛЕСНОЕ И РЫБНОЕ ХОЗЯЙСТВО",null,null,null,"29.02.01 Конструирование, моделирование и технология изделий из кожи","29.00.00 ТЕХНОЛОГИИ ЛЕГКОЙ ПРОМЫШЛЕННОСТИ",null,null,null,null,null,null,null,"35.01.03 Станочник-обработчик","проф"]
[null,null,null,null,null,null,null,null,"35.01.04 Оператор линии и установок в деревообработке","35.00.00 СЕЛЬСКОЕ, ЛЕСНОЕ И РЫБНОЕ ХОЗЯЙСТВО",null,null,null,"29.02.02 Технология кожи и меха","29.00.00 ТЕХНОЛОГИИ ЛЕГКОЙ ПРОМЫШЛЕННОСТИ",null,null,null,null,null,null,null,"35.01.04 Оператор линии и установок в деревообработке","проф"]
[null,null,null,null,null,null,null,null,"35.01.05 Контролер полуфабрикатов и изделий из древесины","35.00.00 СЕЛЬСКОЕ, ЛЕСНОЕ И РЫБНОЕ ХОЗЯЙСТВО",null,null,null,"29.02.03 Конструирование, моделирование и технология изделий из меха","29.00.00 ТЕХНОЛОГИИ ЛЕГКОЙ ПРОМЫШЛЕННОСТИ",null,null,null,null,null,null,null,"35.01.05 Контролер полуфабрикатов и изделий из древесины","проф"]
[null,null,null,null,null,null,null,null,"35.01.06 Машинист машин по производству бумаги и картона","35.00.00 СЕЛЬСКОЕ, ЛЕСНОЕ И РЫБНОЕ ХОЗЯЙСТВО",null,null,null,"29.02.04 Конструирование, моделирование и технология швейных изделий","29.00.00 ТЕХНОЛОГИИ ЛЕГКОЙ ПРОМЫШЛЕННОСТИ",null,null,null,null,null,null,null,"35.01.06 Машинист машин по производству бумаги и картона","проф"]
[null,null,null,null,null,null,null,null,"35.01.09 Мастер растениеводства","35.00.00 СЕЛЬСКОЕ, ЛЕСНОЕ И РЫБНОЕ ХОЗЯЙСТВО",null,null,null,"29.02.05 Технология текстильных изделий (по видам)","29.00.00 ТЕХНОЛОГИИ ЛЕГКОЙ ПРОМЫШЛЕННОСТИ",null,null,null,null,null,null,null,"35.01.09 Мастер растениеводства","проф"]
[null,null,null,null,null,null,null,null,"35.01.10 Овощевод защищенного грунта","35.00.00 СЕЛЬСКОЕ, ЛЕСНОЕ И РЫБНОЕ ХОЗЯЙСТВО",null,null,null,"29.02.06 Полиграфическое производство","29.00.00 ТЕХНОЛОГИИ ЛЕГКОЙ ПРОМЫШЛЕННОСТИ",null,null,null,null,null,null,null,"35.01.10 Овощевод защищенного грунта","проф"]
[null,null,null,null,null,null,null,null,"35.01.11 Мастер сельскохозяйственного производства","35.00.00 СЕЛЬСКОЕ, ЛЕСНОЕ И РЫБНОЕ ХОЗЯЙСТВО",null,null,null,"29.02.07 Производство изделий из бумаги и картона","29.00.00 ТЕХНОЛОГИИ ЛЕГКОЙ ПРОМЫШЛЕННОСТИ",null,null,null,null,null,null,null,"35.01.11 Мастер сельскохозяйственного производства","проф"]
[null,null,null,null,null,null,null,null,"35.01.12 Заготовитель продуктов и сырья","35.00.00 СЕЛЬСКОЕ, ЛЕСНОЕ И РЫБНОЕ ХОЗЯЙСТВО",null,null,null,"29.02.08 Технология обработки алмазов","29.00.00 ТЕХНОЛОГИИ ЛЕГКОЙ ПРОМЫШЛЕННОСТИ",null,null,null,null,null,null,null,"35.01.12 Заготовитель продуктов и сырья","проф"]
[null,null,null,null,null,null,null,null,"35.01.13 Тракторист-машинист сельскохозяйственного производства","35.00.00 СЕЛЬСКОЕ, ЛЕСНОЕ И РЫБНОЕ ХОЗЯЙСТВО",null,null,null,"29.02.09 Печатное дело","29.00.00 ТЕХНОЛОГИИ ЛЕГКОЙ ПРОМЫШЛЕННОСТИ",null,null,null,null,null,null,null,"35.01.13 Тракторист-машинист сельскохозяйственного производства","проф"]
[null,null,null,null,null,null,null,null,"35.01.14 Мастер по техническому обслуживанию и ремонту машинно-тракторного парка","35.00.00 СЕЛЬСКОЕ, ЛЕСНОЕ И РЫБНОЕ ХОЗЯЙСТВО",null,null,null,"31.02.01 Лечебное дело","31.00.00 КЛИНИЧЕСКАЯ МЕДИЦИНА",null,null,null,null,null,null,null,"35.01.14 Мастер по техническому обслуживанию и ремонту машинно-тракторного парка","проф"]
[null,null,null,null,null,null,null,null,"35.01.15 Электромонтер по ремонту и обслуживанию электрооборудования в сельскохозяйственном производстве","35.00.00 СЕЛЬСКОЕ, ЛЕСНОЕ И РЫБНОЕ ХОЗЯЙСТВО",null,null,null,"31.02.02 Акушерское дело","31.00.00 КЛИНИЧЕСКАЯ МЕДИЦИНА",null,null,null,null,null,null,null,"35.01.15 Электромонтер по ремонту и обслуживанию электрооборудования в сельскохозяйственном производстве","проф"]
[null,null,null,null,null,null,null,null,"35.01.16 Рыбовод","35.00.00 СЕЛЬСКОЕ, ЛЕСНОЕ И РЫБНОЕ ХОЗЯЙСТВО",null,null,null,"31.02.03 Лабораторная диагностика","31.00.00 КЛИНИЧЕСКАЯ МЕДИЦИНА",null,null,null,null,null,null,null,"35.01.16 Рыбовод","проф"]
[null,null,null,null,null,null,null,null,"35.01.17 Обработчик рыбы и морепродуктов","35.00.00 СЕЛЬСКОЕ, ЛЕСНОЕ И РЫБНОЕ ХОЗЯЙСТВО",null,null,null,"31.02.04 Медицинская оптика","31.00.00 КЛИНИЧЕСКАЯ МЕДИЦИНА",null,null,null,null,null,null,null,"35.01.17 Обработчик рыбы и морепродуктов","проф"]
[null,null,null,null,null,null,null,null,"35.01.19 Мастер садово-паркового и ландшафтного строительства","35.00.00 СЕЛЬСКОЕ, ЛЕСНОЕ И РЫБНОЕ ХОЗЯЙСТВО",null,null,null,"31.02.05 Стоматология ортопедическая","31.00.00 КЛИНИЧЕСКАЯ МЕДИЦИНА",null,null,null,null,null,null,null,"35.01.19 Мастер садово-паркового и ландшафтного строительства","проф"]
[null,null,null,null,null,null,null,null,"35.01.20 Пчеловод","35.00.00 СЕЛЬСКОЕ, ЛЕСНОЕ И РЫБНОЕ ХОЗЯЙСТВО",null,null,null,"31.02.06 Стоматология профилактическая","31.00.00 КЛИНИЧЕСКАЯ МЕДИЦИНА",null,null,null,null,null,null,null,"35.01.20 Пчеловод","проф"]
[null,null,null,null,null,null,null,null,"35.01.21 Оленевод-механизатор","35.00.00 СЕЛЬСКОЕ, ЛЕСНОЕ И РЫБНОЕ ХОЗЯЙСТВО",null,null,null,"32.02.01 Медико-профилактическое дело","32.00.00 НАУКИ О ЗДОРОВЬЕ И",null,null,null,null,null,null,null,"35.01.21 Оленевод-механизатор","проф"]
[null,null,null,null,null,null,null,null,"35.01.23 Хозяйка(ин) усадьбы","35.00.00 СЕЛЬСКОЕ, ЛЕСНОЕ И РЫБНОЕ ХОЗЯЙСТВО",null,null,null,"33.02.01 Фармация","33.00.00 ФАРМАЦИЯ",null,null,null,null,null,null,null,"35.01.23 Хозяйка(ин) усадьбы","проф"]
[null,null,null,null,null,null,null,null,"35.01.24 Управляющий сельской усадьбой","35.00.00 СЕЛЬСКОЕ, ЛЕСНОЕ И РЫБНОЕ ХОЗЯЙСТВО",null,null,null,"34.02.01 Сестринское дело","34.00.00 СЕСТРИНСКОЕ ДЕЛО",null,null,null,null,null,null,null,"35.01.24 Управляющий сельской усадьбой","проф"]
[null,null,null,null,null,null,null,null,"36.01.01 Младший ветеринарный фельдшер","36.00.00 ВЕТЕРИНАРИЯ И ЗООТЕХНИЯ",null,null,null,"35.02.01 Лесное и лесопарковое хозяйство","35.00.00 СЕЛЬСКОЕ, ЛЕСНОЕ И РЫБНОЕ ХОЗЯЙСТВО",null,null,null,null,null,null,null,"36.01.01 Младший ветеринарный фельдшер","проф"]
[null,null,null,null,null,null,null,null,"36.01.02 Мастер животноводства","36.00.00 ВЕТЕРИНАРИЯ И ЗООТЕХНИЯ",null,null,null,"35.02.02 Технология лесозаготовок","35.00.00 СЕЛЬСКОЕ, ЛЕСНОЕ И РЫБНОЕ ХОЗЯЙСТВО",null,null,null,null,null,null,null,"36.01.02 Мастер животноводства","проф"]
[null,null,null,null,null,null,null,null,"36.01.03 Тренер-наездник лошадей","36.00.00 ВЕТЕРИНАРИЯ И ЗООТЕХНИЯ",null,null,null,"35.02.03 Технология деревообработки","35.00.00 СЕЛЬСКОЕ, ЛЕСНОЕ И РЫБНОЕ ХОЗЯЙСТВО",null,null,null,null,null,null,null,"36.01.03 Тренер-наездник лошадей","проф"]
[null,null,null,null,null,null,null,null,"38.01.01 Оператор диспетчерской (производственно-диспетчерской) службы","38.00.00 ЭКОНОМИКА И УПРАВЛЕНИЕ",null,null,null,"35.02.04 Технология комплексной переработки древесины","35.00.00 СЕЛЬСКОЕ, ЛЕСНОЕ И РЫБНОЕ ХОЗЯЙСТВО",null,null,null,null,null,null,null,"38.01.01 Оператор диспетчерской (производственно-диспетчерской) службы","проф"]
[null,null,null,null,null,null,null,null,"38.01.02 Продавец, контролер-кассир","38.00.00 ЭКОНОМИКА И УПРАВЛЕНИЕ",null,null,null,"35.02.05 Агрономия","35.00.00 СЕЛЬСКОЕ, ЛЕСНОЕ И РЫБНОЕ ХОЗЯЙСТВО",null,null,null,null,null,null,null,"38.01.02 Продавец, контролер-кассир","проф"]
[null,null,null,null,null,null,null,null,"38.01.03 Контролер банка","38.00.00 ЭКОНОМИКА И УПРАВЛЕНИЕ",null,null,null,"35.02.06 Технология производства и переработки сельскохозяйственной продукции","35.00.00 СЕЛЬСКОЕ, ЛЕСНОЕ И РЫБНОЕ ХОЗЯЙСТВО",null,null,null,null,null,null,null,"38.01.03 Контролер банка","проф"]
[null,null,null,null,null,null,null,null,"39.01.01 Социальный работник","39.00.00 СОЦИОЛОГИЯ И СОЦИАЛЬНАЯ РАБОТА",null,null,null,"35.02.07 Механизация сельского хозяйства","35.00.00 СЕЛЬСКОЕ, ЛЕСНОЕ И РЫБНОЕ ХОЗЯЙСТВО",null,null,null,null,null,null,null,"39.01.01 Социальный работник","проф"]
[null,null,null,null,null,null,null,null,"42.01.01 Агент рекламный","42.00.00 СРЕДСТВА МАССОВОЙ ИНФОРМАЦИИ И ИНФОРМАЦИОННО-БИБЛИОТЕЧНОЕ ДЕЛО",null,null,null,"35.02.08 Электрификация и автоматизация сельского хозяйства","35.00.00 СЕЛЬСКОЕ, ЛЕСНОЕ И РЫБНОЕ ХОЗЯЙСТВО",null,null,null,null,null,null,null,"42.01.01 Агент рекламный","проф"]
[null,null,null,null,null,null,null,null,"43.01.01 Официант, бармен","43.00.00 СЕРВИС И ТУРИЗМ",null,null,null,"35.02.09 Ихтиология и рыбоводство","35.00.00 СЕЛЬСКОЕ, ЛЕСНОЕ И РЫБНОЕ ХОЗЯЙСТВО",null,null,null,null,null,null,null,"43.01.01 Официант, бармен","проф"]
[null,null,null,null,null,null,null,null,"43.01.02 Парикмахер","43.00.00 СЕРВИС И ТУРИЗМ",null,null,null,"35.02.10 Обработка водных биоресурсов","35.00.00 СЕЛЬСКОЕ, ЛЕСНОЕ И РЫБНОЕ ХОЗЯЙСТВО",null,null,null,null,null,null,null,"43.01.02 Парикмахер","проф"]
[null,null,null,null,null,null,null,null,"43.01.03 Бортпроводник судовой","43.00.00 СЕРВИС И ТУРИЗМ",null,null,null,"35.02.11 Промышленное рыболовство","35.00.00 СЕЛЬСКОЕ, ЛЕСНОЕ И РЫБНОЕ ХОЗЯЙСТВО",null,null,null,null,null,null,null,"43.01.03 Бортпроводник судовой","проф"]
[null,null,null,null,null,null,null,null,"43.01.04 Повар судовой","43.00.00 СЕРВИС И ТУРИЗМ",null,null,null,"35.02.12 Садово-парковое и ландшафтное строительство","35.00.00 СЕЛЬСКОЕ, ЛЕСНОЕ И РЫБНОЕ ХОЗЯЙСТВО",null,null,null,null,null,null,null,"43.01.04 Повар судовой","проф"]
[null,null,null,null,null,null,null,null,"43.01.05 Оператор по обработке перевозочных документов на железнодорожном транспорте","43.00.00 СЕРВИС И ТУРИЗМ",null,null,null,"35.02.13 Пчеловодство","35.00.00 СЕЛЬСКОЕ, ЛЕСНОЕ И РЫБНОЕ ХОЗЯЙСТВО",null,null,null,null,null,null,null,"43.01.05 Оператор по обработке перевозочных документов на железнодорожном транспорте","проф"]
[null,null,null,null,null,null,null,null,"43.01.06 Проводник на железнодорожном транспорте","43.00.00 СЕРВИС И ТУРИЗМ",null,null,null,"35.02.14 Охотоведение и звероводство","35.00.00 СЕЛЬСКОЕ, ЛЕСНОЕ И РЫБНОЕ ХОЗЯЙСТВО",null,null,null,null,null,null,null,"43.01.06 Проводник на железнодорожном транспорте","проф"]
[null,null,null,null,null,null,null,null,"43.01.07 Слесарь по эксплуатации и ремонту газового оборудования","43.00.00 СЕРВИС И ТУРИЗМ",null,null,null,"35.02.15 Кинология","35.00.00 СЕЛЬСКОЕ, ЛЕСНОЕ И РЫБНОЕ ХОЗЯЙСТВО",null,null,null,null,null,null,null,"43.01.07 Слесарь по эксплуатации и ремонту газового оборудования","проф"]
[null,null,null,null,null,null,null,null,"43.01.09 Повар, кондитер","43.00.00 СЕРВИС И ТУРИЗМ",null,null,null,"35.02.16 Эксплуатация и ремонт сельскохозяйственной техники и оборудования","35.00.00 СЕЛЬСКОЕ, ЛЕСНОЕ И РЫБНОЕ ХОЗЯЙСТВО",null,null,null,null,null,null,null,"43.01.09 Повар, кондитер","проф"]
[null,null,null,null,null,null,null,null,"46.01.01 Секретарь","46.00.00 ИСТОРИЯ И АРХЕОЛОГИЯ",null,null,null,"36.02.01 Ветеринария","36.00.00 ВЕТЕРИНАРИЯ И ЗООТЕХНИЯ",null,null,null,null,null,null,null,"46.01.01 Секретарь","проф"]
[null,null,null,null,null,null,null,null,"46.01.02 Архивариус","46.00.00 ИСТОРИЯ И АРХЕОЛОГИЯ",null,null,null,"36.02.02 Зоотехния","36.00.00 ВЕТЕРИНАРИЯ И ЗООТЕХНИЯ",null,null,null,null,null,null,null,"46.01.02 Архивариус","проф"]
[null,null,null,null,null,null,null,null,"46.01.03 Делопроизводитель","46.00.00 ИСТОРИЯ И АРХЕОЛОГИЯ",null,null,null,"38.02.01 Экономика и бухгалтерский учет (по отраслям)","38.00.00 ЭКОНОМИКА И УПРАВЛЕНИЕ",null,null,null,null,null,null,null,"46.01.03 Делопроизводитель","проф"]
[null,null,null,null,null,null,null,null,"53.01.01 Мастер по ремонту и обслуживанию музыкальных инструментов (по видам)","53.00.00 МУЗЫКАЛЬНОЕ ИСКУССТВО",null,null,null,"38.02.02 Страховое дело (по отраслям)","38.00.00 ЭКОНОМИКА И УПРАВЛЕНИЕ",null,null,null,null,null,null,null,"53.01.01 Мастер по ремонту и обслуживанию музыкальных инструментов (по видам)","проф"]
[null,null,null,null,null,null,null,null,"54.01.01 Исполнитель художественно-оформительских работ","54.00.00 ИЗОБРАЗИТЕЛЬНОЕ И ПРИКЛАДНЫЕ ВИДЫ ИСКУССТВ",null,null,null,"38.02.03 Операционная деятельность в логистике","38.00.00 ЭКОНОМИКА И УПРАВЛЕНИЕ",null,null,null,null,null,null,null,"54.01.01 Исполнитель художественно-оформительских работ","проф"]
[null,null,null,null,null,null,null,null,"54.01.02 Ювелир","54.00.00 ИЗОБРАЗИТЕЛЬНОЕ И ПРИКЛАДНЫЕ ВИДЫ ИСКУССТВ",null,null,null,"38.02.04 Коммерция (по отраслям)","38.00.00 ЭКОНОМИКА И УПРАВЛЕНИЕ",null,null,null,null,null,null,null,"54.01.02 Ювелир","проф"]
[null,null,null,null,null,null,null,null,"54.01.03 Фотограф","54.00.00 ИЗОБРАЗИТЕЛЬНОЕ И ПРИКЛАДНЫЕ ВИДЫ ИСКУССТВ",null,null,null,"38.02.05 Товароведение и экспертиза качества потребительских товаров","38.00.00 ЭКОНОМИКА И УПРАВЛЕНИЕ",null,null,null,null,null,null,null,"54.01.03 Фотограф","проф"]
[null,null,null,null,null,null,null,null,"54.01.04 Мастер народных художественных промыслов","54.00.00 ИЗОБРАЗИТЕЛЬНОЕ И ПРИКЛАДНЫЕ ВИДЫ ИСКУССТВ",null,null,null,"38.02.06 Финансы","38.00.00 ЭКОНОМИКА И УПРАВЛЕНИЕ",null,null,null,null,null,null,null,"54.01.04 Мастер народных художественных промыслов","проф"]
[null,null,null,null,null,null,null,null,"54.01.05 Изготовитель художественных изделий из тканей с художественной росписью","54.00.00 ИЗОБРАЗИТЕЛЬНОЕ И ПРИКЛАДНЫЕ ВИДЫ ИСКУССТВ",null,null,null,"38.02.07 Банковское дело","38.00.00 ЭКОНОМИКА И УПРАВЛЕНИЕ",null,null,null,null,null,null,null,"54.01.05 Изготовитель художественных изделий из тканей с художественной росписью","проф"]
[null,null,null,null,null,null,null,null,"54.01.06 Изготовитель художественных изделий из металла","54.00.00 ИЗОБРАЗИТЕЛЬНОЕ И ПРИКЛАДНЫЕ ВИДЫ ИСКУССТВ",null,null,null,"39.02.01 Социальная работа","39.00.00 СОЦИОЛОГИЯ И СОЦИАЛЬНАЯ РАБОТА",null,null,null,null,null,null,null,"54.01.06 Изготовитель художественных изделий из металла","проф"]
[null,null,null,null,null,null,null,null,"54.01.07 Изготовитель художественных изделий из керамики","54.00.00 ИЗОБРАЗИТЕЛЬНОЕ И ПРИКЛАДНЫЕ ВИДЫ ИСКУССТВ",null,null,null,"39.02.02 Организация сурдокоммуникации","39.00.00 СОЦИОЛОГИЯ И СОЦИАЛЬНАЯ РАБОТА",null,null,null,null,null,null,null,"54.01.07 Изготовитель художественных изделий из керамики","проф"]
[null,null,null,null,null,null,null,null,"54.01.10 Художник росписи по дереву","54.00.00 ИЗОБРАЗИТЕЛЬНОЕ И ПРИКЛАДНЫЕ ВИДЫ ИСКУССТВ",null,null,null,"40.02.01 Право и организация социального обеспечения","40.00.00 ЮРИСПРУДЕНЦИЯ",null,null,null,null,null,null,null,"54.01.10 Художник росписи по дереву","проф"]
[null,null,null,null,null,null,null,null,"54.01.11 Художник росписи по ткани","54.00.00 ИЗОБРАЗИТЕЛЬНОЕ И ПРИКЛАДНЫЕ ВИДЫ ИСКУССТВ",null,null,null,"40.02.02 Правоохранительная деятельность","40.00.00 ЮРИСПРУДЕНЦИЯ",null,null,null,null,null,null,null,"54.01.11 Художник росписи по ткани","проф"]
[null,null,null,null,null,null,null,null,"54.01.12 Художник миниатюрной живописи","54.00.00 ИЗОБРАЗИТЕЛЬНОЕ И ПРИКЛАДНЫЕ ВИДЫ ИСКУССТВ",null,null,null,"40.02.03 Право и судебное администрирование","40.00.00 ЮРИСПРУДЕНЦИЯ",null,null,null,null,null,null,null,"54.01.12 Художник миниатюрной живописи","проф"]
[null,null,null,null,null,null,null,null,"54.01.13 Изготовитель художественных изделий из дерева","54.00.00 ИЗОБРАЗИТЕЛЬНОЕ И ПРИКЛАДНЫЕ ВИДЫ ИСКУССТВ",null,null,null,"42.02.01 Реклама","42.00.00 СРЕДСТВА МАССОВОЙ ИНФОРМАЦИИ И ИНФОРМАЦИОННО-БИБЛИОТЕЧНОЕ ДЕЛО",null,null,null,null,null,null,null,"54.01.13 Изготовитель художественных изделий из дерева","проф"]
[null,null,null,null,null,null,null,null,"54.01.14 Резчик","54.00.00 ИЗОБРАЗИТЕЛЬНОЕ И ПРИКЛАДНЫЕ ВИДЫ ИСКУССТВ",null,null,null,"42.02.02 Издательское дело","42.00.00 СРЕДСТВА МАССОВОЙ ИНФОРМАЦИИ И ИНФОРМАЦИОННО-БИБЛИОТЕЧНОЕ ДЕЛО",null,null,null,null,null,null,null,"54.01.14 Резчик","проф"]
[null,null,null,null,null,null,null,null,"54.01.16 Лепщик-модельщик архитектурных деталей","54.00.00 ИЗОБРАЗИТЕЛЬНОЕ И ПРИКЛАДНЫЕ ВИДЫ ИСКУССТВ",null,null,null,"43.02.01 Организация обслуживания в общественном питании","43.00.00 СЕРВИС И ТУРИЗМ",null,null,null,null,null,null,null,"54.01.16 Лепщик-модельщик архитектурных деталей","проф"]
[null,null,null,null,null,null,null,null,"54.01.17 Реставратор строительный","54.00.00 ИЗОБРАЗИТЕЛЬНОЕ И ПРИКЛАДНЫЕ ВИДЫ ИСКУССТВ",null,null,null,"43.02.02 Парикмахерское искусство","43.00.00 СЕРВИС И ТУРИЗМ",null,null,null,null,null,null,null,"54.01.17 Реставратор строительный","проф"]
[null,null,null,null,null,null,null,null,"54.01.19 Реставратор памятников каменного и деревянного зодчества","54.00.00 ИЗОБРАЗИТЕЛЬНОЕ И ПРИКЛАДНЫЕ ВИДЫ ИСКУССТВ",null,null,null,"43.02.03 Стилистика и искусство визажа","43.00.00 СЕРВИС И ТУРИЗМ",null,null,null,null,null,null,null,"54.01.19 Реставратор памятников каменного и деревянного зодчества","проф"]
[null,null,null,null,null,null,null,null,"54.01.20 Графический дизайнер","54.00.00 ИЗОБРАЗИТЕЛЬНОЕ И ПРИКЛАДНЫЕ ВИДЫ ИСКУССТВ",null,null,null,"43.02.04 Прикладная эстетика","43.00.00 СЕРВИС И ТУРИЗМ",null,null,null,null,null,null,null,"54.01.20 Графический дизайнер","проф"]
[null,null,null,null,null,null,null,null,null,null,null,null,null,"43.02.05 Флористика","43.00.00 СЕРВИС И ТУРИЗМ",null,null,null,null,null,null,null,"05.02.01 Картография","спец"]
[null,null,null,null,null,null,null,null,null,null,null,null,null,"43.02.06 Сервис на транспорте (по видам транспорта)","43.00.00 СЕРВИС И ТУРИЗМ",null,null,null,null,null,null,null,"05.02.02 Гидрология","спец"]
[null,null,null,null,null,null,null,null,null,null,null,null,null,"43.02.07 Сервис по химической обработке изделий","43.00.00 СЕРВИС И ТУРИЗМ",null,null,null,null,null,null,null,"05.02.03 Метеорология","спец"]
[null,null,null,null,null,null,null,null,null,null,null,null,null,"43.02.08 Сервис домашнего и коммунального хозяйства","43.00.00 СЕРВИС И ТУРИЗМ",null,null,null,null,null,null,null,"07.02.01 Архитектура","спец"]
[null,null,null,null,null,null,null,null,null,null,null,null,null,"43.02.09 Утратила силу с 1 сентября 2020 г. - Приказ Минпросвещения России от 3 декабря 2019 г. N 655","43.00.00 СЕРВИС И ТУРИЗМ",null,null,null,null,null,null,null,"08.02.01 Строительство и эксплуатация зданий и сооружений","спец"]
[null,null,null,null,null,null,null,null,null,null,null,null,null,"43.02.10 Туризм","43.00.00 СЕРВИС И ТУРИЗМ",null,null,null,null,null,null,null,"08.02.02 Строительство и эксплуатация инженерных сооружений","спец"]
[null,null,null,null,null,null,null,null,null,null,null,null,null,"43.02.11 Гостиничный сервис","43.00.00 СЕРВИС И ТУРИЗМ",null,null,null,null,null,null,null,"08.02.03 Производство неметаллических строительных изделий и конструкций","спец"]
[null,null,null,null,null,null,null,null,null,null,null,null,null,"43.02.12 Технология эстетических услуг","43.00.00 СЕРВИС И ТУРИЗМ",null,null,null,null,null,null,null,"08.02.04 Водоснабжение и водоотведение","спец"]
[null,null,null,null,null,null,null,null,null,null,null,null,null,"43.02.13 Технология парикмахерского искусства","43.00.00 СЕРВИС И ТУРИЗМ",null,null,null,null,null,null,null,"08.02.05 Строительство и эксплуатация автомобильных дорог и аэродромов","спец"]
[null,null,null,null,null,null,null,null,null,null,null,null,null,"43.02.14 Гостиничное дело","43.00.00 СЕРВИС И ТУРИЗМ",null,null,null,null,null,null,null,"08.02.06 Строительство и эксплуатация городских путей сообщения","спец"]
[null,null,null,null,null,null,null,null,null,null,null,null,null,"43.02.15 Поварское и кондитерское дело","43.00.00 СЕРВИС И ТУРИЗМ",null,null,null,null,null,null,null,"08.02.07 Монтаж и эксплуатация внутренних сантехнических устройств, кондиционирования воздуха и вентиляции","спец"]
[null,null,null,null,null,null,null,null,null,null,null,null,null,"44.02.01 Дошкольное образование","44.00.00 ОБРАЗОВАНИЕ И ПЕДАГОГИЧЕСКИЕ НАУКИ",null,null,null,null,null,null,null,"08.02.08 Монтаж и эксплуатация оборудования и систем газоснабжения","спец"]
[null,null,null,null,null,null,null,null,null,null,null,null,null,"44.02.02 Преподавание в начальных классах","44.00.00 ОБРАЗОВАНИЕ И ПЕДАГОГИЧЕСКИЕ НАУКИ",null,null,null,null,null,null,null,"08.02.09 Монтаж, наладка и эксплуатация электрооборудования промышленных и гражданских зданий","спец"]
[null,null,null,null,null,null,null,null,null,null,null,null,null,"44.02.03 Педагогика дополнительного образования","44.00.00 ОБРАЗОВАНИЕ И ПЕДАГОГИЧЕСКИЕ НАУКИ",null,null,null,null,null,null,null,"08.02.10 Строительство железных дорог, путь и путевое хозяйство","спец"]
[null,null,null,null,null,null,null,null,null,null,null,null,null,"44.02.04 Специальное дошкольное образование","44.00.00 ОБРАЗОВАНИЕ И ПЕДАГОГИЧЕСКИЕ НАУКИ",null,null,null,null,null,null,null,"08.02.11 Управление, эксплуатация и обслуживание многоквартирного дома","спец"]
[null,null,null,null,null,null,null,null,null,null,null,null,null,"44.02.05 Коррекционная педагогика в начальном образовании","44.00.00 ОБРАЗОВАНИЕ И ПЕДАГОГИЧЕСКИЕ НАУКИ",null,null,null,null,null,null,null,"09.02.01 Компьютерные системы и комплексы","спец"]
[null,null,null,null,null,null,null,null,null,null,null,null,null,"44.02.06 Профессиональное обучение (по отраслям)","44.00.00 ОБРАЗОВАНИЕ И ПЕДАГОГИЧЕСКИЕ НАУКИ",null,null,null,null,null,null,null,"09.02.02 Компьютерные сети","спец"]
[null,null,null,null,null,null,null,null,null,null,null,null,null,"46.02.01 Документационное обеспечение управления и архивоведение","46.00.00 ИСТОРИЯ И АРХЕОЛОГИЯ",null,null,null,null,null,null,null,"09.02.03 Программирование в компьютерных системах","спец"]
[null,null,null,null,null,null,null,null,null,null,null,null,null,"49.02.01 Физическая культура","49.00.00 ФИЗИЧЕСКАЯ КУЛЬТУРА И СПОРТ",null,null,null,null,null,null,null,"09.02.04 Информационные системы (по отраслям)","спец"]
[null,null,null,null,null,null,null,null,null,null,null,null,null,"49.02.02 Адаптивная физическая культура","49.00.00 ФИЗИЧЕСКАЯ КУЛЬТУРА И СПОРТ",null,null,null,null,null,null,null,"09.02.05 Прикладная информатика (по отраслям)","спец"]
[null,null,null,null,null,null,null,null,null,null,null,null,null,"49.02.03 Спорт","49.00.00 ФИЗИЧЕСКАЯ КУЛЬТУРА И СПОРТ",null,null,null,null,null,null,null,"09.02.06 Сетевое и системное администрирование","спец"]
[null,null,null,null,null,null,null,null,null,null,null,null,null,"50.02.01 Мировая художественная культура","50.00.00 ИСКУССТВОЗНАНИЕ",null,null,null,null,null,null,null,"09.02.07 Информационные системы и программирование","спец"]
[null,null,null,null,null,null,null,null,null,null,null,null,null,"51.02.01 Народное художественное творчество (по видам)","51.00.00 КУЛЬТУРОВЕДЕНИЕ И СОЦИОКУЛЬТУРНЫЕ ПРОЕКТЫ",null,null,null,null,null,null,null,"10.02.01 Организация и технология защиты информации","спец"]
[null,null,null,null,null,null,null,null,null,null,null,null,null,"51.02.02 Социально-культурная деятельность (по видам)","51.00.00 КУЛЬТУРОВЕДЕНИЕ И СОЦИОКУЛЬТУРНЫЕ ПРОЕКТЫ",null,null,null,null,null,null,null,"10.02.02 Информационная безопасность телекоммуникационных систем","спец"]
[null,null,null,null,null,null,null,null,null,null,null,null,null,"51.02.03 Библиотековедение","51.00.00 КУЛЬТУРОВЕДЕНИЕ И СОЦИОКУЛЬТУРНЫЕ ПРОЕКТЫ",null,null,null,null,null,null,null,"10.02.03 Информационная безопасность автоматизированных систем","спец"]
[null,null,null,null,null,null,null,null,null,null,null,null,null,"52.02.01 Искусство балета","52.00.00 СЦЕНИЧЕСКИЕ ИСКУССТВА И ЛИТЕРАТУРНОЕ ТВОРЧЕСТВО",null,null,null,null,null,null,null,"10.02.04 Обеспечение информационной безопасности телекоммуникационных систем","спец"]
[null,null,null,null,null,null,null,null,null,null,null,null,null,"52.02.02 Искусство танца (по видам)","52.00.00 СЦЕНИЧЕСКИЕ ИСКУССТВА И ЛИТЕРАТУРНОЕ ТВОРЧЕСТВО",null,null,null,null,null,null,null,"10.02.05 Обеспечение информационной безопасности автоматизированных систем","спец"]
[null,null,null,null,null,null,null,null,null,null,null,null,null,"52.02.03 Цирковое искусство","52.00.00 СЦЕНИЧЕСКИЕ ИСКУССТВА И ЛИТЕРАТУРНОЕ ТВОРЧЕСТВО",null,null,null,null,null,null,null,"11.02.01 Радиоаппаратостроение","спец"]
[null,null,null,null,null,null,null,null,null,null,null,null,null,"52.02.04 Актерское искусство","52.00.00 СЦЕНИЧЕСКИЕ ИСКУССТВА И ЛИТЕРАТУРНОЕ ТВОРЧЕСТВО",null,null,null,null,null,null,null,"11.02.02 Техническое обслуживание и ремонт радиоэлектронной техники (по отраслям)","спец"]
[null,null,null,null,null,null,null,null,null,null,null,null,null,"52.02.05 Искусство эстрады","52.00.00 СЦЕНИЧЕСКИЕ ИСКУССТВА И ЛИТЕРАТУРНОЕ ТВОРЧЕСТВО",null,null,null,null,null,null,null,"11.02.03 Эксплуатация оборудования радиосвязи и электрорадионавигации судов","спец"]
[null,null,null,null,null,null,null,null,null,null,null,null,null,"53.02.01 Музыкальное образование","53.00.00 МУЗЫКАЛЬНОЕ ИСКУССТВО",null,null,null,null,null,null,null,"11.02.04 Радиотехнические комплексы и системы управления космических летательных аппаратов","спец"]
[null,null,null,null,null,null,null,null,null,null,null,null,null,"53.02.02 Музыкальное искусство эстрады (по видам)","53.00.00 МУЗЫКАЛЬНОЕ ИСКУССТВО",null,null,null,null,null,null,null,"11.02.05 Аудиовизуальная техника","спец"]
[null,null,null,null,null,null,null,null,null,null,null,null,null,"53.02.03 Инструментальное исполнительство (по видам инструментов)","53.00.00 МУЗЫКАЛЬНОЕ ИСКУССТВО",null,null,null,null,null,null,null,"11.02.06 Техническая эксплуатация транспортного радиоэлектронного оборудования (по видам транспорта)","спец"]
[null,null,null,null,null,null,null,null,null,null,null,null,null,"53.02.04 Вокальное искусство","53.00.00 МУЗЫКАЛЬНОЕ ИСКУССТВО",null,null,null,null,null,null,null,"11.02.07 Радиотехнические информационные системы","спец"]
[null,null,null,null,null,null,null,null,null,null,null,null,null,"53.02.05 Сольное и хоровое народное пение","53.00.00 МУЗЫКАЛЬНОЕ ИСКУССТВО",null,null,null,null,null,null,null,"11.02.08 Средства связи с подвижными объектами","спец"]
[null,null,null,null,null,null,null,null,null,null,null,null,null,"53.02.06 Хоровое дирижирование","53.00.00 МУЗЫКАЛЬНОЕ ИСКУССТВО",null,null,null,null,null,null,null,"11.02.09 Многоканальные телекоммуникационные системы","спец"]
[null,null,null,null,null,null,null,null,null,null,null,null,null,"53.02.06 Хоровое дирижирование с присвоением квалификаций хормейстер, преподаватель","53.00.00 МУЗЫКАЛЬНОЕ ИСКУССТВО",null,null,null,null,null,null,null,"11.02.10 Радиосвязь, радиовещание и телевидение","спец"]
[null,null,null,null,null,null,null,null,null,null,null,null,null,"53.02.07 Теория музыки","53.00.00 МУЗЫКАЛЬНОЕ ИСКУССТВО",null,null,null,null,null,null,null,"11.02.11 Сети связи и системы коммутации","спец"]
[null,null,null,null,null,null,null,null,null,null,null,null,null,"53.02.08 Музыкальное звукооператорское мастерство","53.00.00 МУЗЫКАЛЬНОЕ ИСКУССТВО",null,null,null,null,null,null,null,"11.02.12 Почтовая связь","спец"]
[null,null,null,null,null,null,null,null,null,null,null,null,null,"53.02.09 Театрально-декорационное искусство (по видам)","53.00.00 МУЗЫКАЛЬНОЕ ИСКУССТВО",null,null,null,null,null,null,null,"11.02.13 Твердотельная электроника","спец"]
[null,null,null,null,null,null,null,null,null,null,null,null,null,"54.02.01 Дизайн (по отраслям)","54.00.00 ИЗОБРАЗИТЕЛЬНОЕ И ПРИКЛАДНЫЕ ВИДЫ ИСКУССТВ",null,null,null,null,null,null,null,"11.02.14 Электронные приборы и устройства","спец"]
[null,null,null,null,null,null,null,null,null,null,null,null,null,"54.02.02 Декоративно-прикладное искусство и народные промыслы (по видам)","54.00.00 ИЗОБРАЗИТЕЛЬНОЕ И ПРИКЛАДНЫЕ ВИДЫ ИСКУССТВ",null,null,null,null,null,null,null,"11.02.15 Инфокоммуникационные сети и системы связи","спец"]
[null,null,null,null,null,null,null,null,null,null,null,null,null,"54.02.03 Художественное оформление изделий текстильной и легкой промышленности","54.00.00 ИЗОБРАЗИТЕЛЬНОЕ И ПРИКЛАДНЫЕ ВИДЫ ИСКУССТВ",null,null,null,null,null,null,null,"11.02.16 Монтаж, техническое обслуживание и ремонт электронных приборов и устройств","спец"]
[null,null,null,null,null,null,null,null,null,null,null,null,null,"54.02.04 Реставрация","54.00.00 ИЗОБРАЗИТЕЛЬНОЕ И ПРИКЛАДНЫЕ ВИДЫ ИСКУССТВ",null,null,null,null,null,null,null,"12.02.01 Авиационные приборы и комплексы","спец"]
[null,null,null,null,null,null,null,null,null,null,null,null,null,"54.02.05 Живопись (по видам)","54.00.00 ИЗОБРАЗИТЕЛЬНОЕ И ПРИКЛАДНЫЕ ВИДЫ ИСКУССТВ",null,null,null,null,null,null,null,"12.02.02 Утратила силу с 1 сентября 2020 г. - Приказ Минпросвещения России от 3 декабря 2019 г. N 655","спец"]
[null,null,null,null,null,null,null,null,null,null,null,null,null,"54.02.05 Живопись с присвоением квалификаций художник-живописец, преподаватель","54.00.00 ИЗОБРАЗИТЕЛЬНОЕ И ПРИКЛАДНЫЕ ВИДЫ ИСКУССТВ",null,null,null,null,null,null,null,"12.02.03 Радиоэлектронные приборные устройства","спец"]
[null,null,null,null,null,null,null,null,null,null,null,null,null,"54.02.06 Изобразительное искусство и черчение","54.00.00 ИЗОБРАЗИТЕЛЬНОЕ И ПРИКЛАДНЫЕ ВИДЫ ИСКУССТВ",null,null,null,null,null,null,null,"12.02.04 Электромеханические приборные устройства","спец"]
[null,null,null,null,null,null,null,null,null,null,null,null,null,"54.02.07 Скульптура","54.00.00 ИЗОБРАЗИТЕЛЬНОЕ И ПРИКЛАДНЫЕ ВИДЫ ИСКУССТВ",null,null,null,null,null,null,null,"12.02.05 Оптические и оптико-электронные приборы и системы","спец"]
[null,null,null,null,null,null,null,null,null,null,null,null,null,"54.02.08 Техника и искусство фотографии","54.00.00 ИЗОБРАЗИТЕЛЬНОЕ И ПРИКЛАДНЫЕ ВИДЫ ИСКУССТВ",null,null,null,null,null,null,null,"12.02.06 Биотехнические и медицинские аппараты и системы","спец"]
[null,null,null,null,null,null,null,null,null,null,null,null,null,"55.02.01 Театральная и аудиовизуальная техника (по видам)","55.00.00 ЭКРАННЫЕ ИСКУССТВА",null,null,null,null,null,null,null,"12.02.07 Монтаж, техническое обслуживание и ремонт медицинской техники","спец"]
[null,null,null,null,null,null,null,null,null,null,null,null,null,"55.02.02 Анимация (по видам)","55.00.00 ЭКРАННЫЕ ИСКУССТВА",null,null,null,null,null,null,null,"12.02.08 Протезно-ортопедическая и реабилитационная техника","спец"]
[null,null,null,null,null,null,null,null,null,null,null,null,null,"57.02.01 Пограничная деятельность (по видам деятельности)","57.00.00 ОБЕСПЕЧЕНИЕ ГОСУДАРСТВЕННОЙ БЕЗОПАСНОСТИ",null,null,null,null,null,null,null,"12.02.09 Производство и эксплуатация оптических и оптико-электронных приборов и систем","спец"]
[null,null,null,null,null,null,null,null,null,null,null,null,null,null,null,null,null,null,null,null,null,null,"12.02.10 Монтаж, техническое обслуживание и ремонт биотехнических и медицинских аппаратов и систем","спец"]
[null,null,null,null,null,null,null,null,null,null,null,null,null,null,null,null,null,null,null,null,null,null,"13.02.01 Тепловые электрические станции","спец"]
[null,null,null,null,null,null,null,null,null,null,null,null,null,null,null,null,null,null,null,null,null,null,"13.02.02 Теплоснабжение и теплотехническое оборудование","спец"]
[null,null,null,null,null,null,null,null,null,null,null,null,null,null,null,null,null,null,null,null,null,null,"13.02.03 Электрические станции, сети и системы","спец"]
[null,null,null,null,null,null,null,null,null,null,null,null,null,null,null,null,null,null,null,null,null,null,"13.02.04 Гидроэлектроэнергетические установки","спец"]
[null,null,null,null,null,null,null,null,null,null,null,null,null,null,null,null,null,null,null,null,null,null,"13.02.05 Технология воды, топлива и смазочных материалов на электрических станциях","спец"]
[null,null,null,null,null,null,null,null,null,null,null,null,null,null,null,null,null,null,null,null,null,null,"13.02.06 Релейная защита и автоматизация электроэнергетических систем","спец"]
[null,null,null,null,null,null,null,null,null,null,null,null,null,null,null,null,null,null,null,null,null,null,"13.02.07 Электроснабжение (по отраслям)","спец"]
[null,null,null,null,null,null,null,null,null,null,null,null,null,null,null,null,null,null,null,null,null,null,"13.02.08 Электроизоляционная, кабельная и конденсаторная техника","спец"]
[null,null,null,null,null,null,null,null,null,null,null,null,null,null,null,null,null,null,null,null,null,null,"13.02.09 Монтаж и эксплуатация линий электропередачи","спец"]
[null,null,null,null,null,null,null,null,null,null,null,null,null,null,null,null,null,null,null,null,null,null,"13.02.10 Электрические машины и аппараты","спец"]
[null,null,null,null,null,null,null,null,null,null,null,null,null,null,null,null,null,null,null,null,null,null,"13.02.11 Техническая эксплуатация и обслуживание электрического и электромеханического оборудования (по отраслям)","спец"]
[null,null,null,null,null,null,null,null,null,null,null,null,null,null,null,null,null,null,null,null,null,null,"14.02.01 Атомные электрические станции и установки","спец"]
[null,null,null,null,null,null,null,null,null,null,null,null,null,null,null,null,null,null,null,null,null,null,"14.02.02 Радиационная безопасность","спец"]
[null,null,null,null,null,null,null,null,null,null,null,null,null,null,null,null,null,null,null,null,null,null,"14.02.03 Утратила силу с 1 сентября 2020 г. - Приказ Минпросвещения России от 3 декабря 2019 г. N 655","спец"]
[null,null,null,null,null,null,null,null,null,null,null,null,null,null,null,null,null,null,null,null,null,null,"15.02.01 Монтаж и техническая эксплуатация промышленного оборудования (по отраслям)","спец"]
[null,null,null,null,null,null,null,null,null,null,null,null,null,null,null,null,null,null,null,null,null,null,"15.02.02 Техническая эксплуатация оборудования для производства электронной техники","спец"]
[null,null,null,null,null,null,null,null,null,null,null,null,null,null,null,null,null,null,null,null,null,null,"15.02.03 Техническая эксплуатация гидравлических машин, гидроприводов и гидропневмоавтоматики","спец"]
[null,null,null,null,null,null,null,null,null,null,null,null,null,null,null,null,null,null,null,null,null,null,"15.02.04 Специальные машины и устройства","спец"]
[null,null,null,null,null,null,null,null,null,null,null,null,null,null,null,null,null,null,null,null,null,null,"15.02.05 Техническая эксплуатация оборудования в торговле и общественном питании","спец"]
[null,null,null,null,null,null,null,null,null,null,null,null,null,null,null,null,null,null,null,null,null,null,"15.02.06 Монтаж и техническая эксплуатация холодильно-компрессорных машин и установок (по отраслям)","спец"]
[null,null,null,null,null,null,null,null,null,null,null,null,null,null,null,null,null,null,null,null,null,null,"15.02.07 Автоматизация технологических процессов и производств (по отраслям)","спец"]
[null,null,null,null,null,null,null,null,null,null,null,null,null,null,null,null,null,null,null,null,null,null,"15.02.08 Технология машиностроения","спец"]
[null,null,null,null,null,null,null,null,null,null,null,null,null,null,null,null,null,null,null,null,null,null,"15.02.09 Аддитивные технологии","спец"]
[null,null,null,null,null,null,null,null,null,null,null,null,null,null,null,null,null,null,null,null,null,null,"15.02.10 Мехатроника и мобильная робототехника (по отраслям)","спец"]
[null,null,null,null,null,null,null,null,null,null,null,null,null,null,null,null,null,null,null,null,null,null,"15.02.11 Техническая эксплуатация и обслуживание роботизированного производства","спец"]
[null,null,null,null,null,null,null,null,null,null,null,null,null,null,null,null,null,null,null,null,null,null,"15.02.12 Монтаж, техническое обслуживание и ремонт промышленного оборудования (по отраслям)","спец"]
[null,null,null,null,null,null,null,null,null,null,null,null,null,null,null,null,null,null,null,null,null,null,"15.02.13 Техническое обслуживание и ремонт систем вентиляции и кондиционирования","спец"]
[null,null,null,null,null,null,null,null,null,null,null,null,null,null,null,null,null,null,null,null,null,null,"15.02.14 Оснащение средствами автоматизации технологических процессов и производств (по отраслям)","спец"]
[null,null,null,null,null,null,null,null,null,null,null,null,null,null,null,null,null,null,null,null,null,null,"15.02.15 Технология металлообрабатывающего производства","спец"]
[null,null,null,null,null,null,null,null,null,null,null,null,null,null,null,null,null,null,null,null,null,null,"18.02.01 Аналитический контроль качества химических соединений","спец"]
[null,null,null,null,null,null,null,null,null,null,null,null,null,null,null,null,null,null,null,null,null,null,"18.02.02 Утратила силу с 1 сентября 2020 г. - Приказ Минпросвещения России от 3 декабря 2019 г. N 655","спец"]
[null,null,null,null,null,null,null,null,null,null,null,null,null,null,null,null,null,null,null,null,null,null,"18.02.03 Химическая технология неорганических веществ","спец"]
[null,null,null,null,null,null,null,null,null,null,null,null,null,null,null,null,null,null,null,null,null,null,"18.02.04 Электрохимическое производство","спец"]
[null,null,null,null,null,null,null,null,null,null,null,null,null,null,null,null,null,null,null,null,null,null,"18.02.05 Производство тугоплавких неметаллических и силикатных материалов и изделий","спец"]
[null,null,null,null,null,null,null,null,null,null,null,null,null,null,null,null,null,null,null,null,null,null,"18.02.06 Химическая технология органических веществ","спец"]
[null,null,null,null,null,null,null,null,null,null,null,null,null,null,null,null,null,null,null,null,null,null,"18.02.07 Технология производства и переработки пластических масс и эластомеров","спец"]
[null,null,null,null,null,null,null,null,null,null,null,null,null,null,null,null,null,null,null,null,null,null,"18.02.08 Утратила силу с 1 сентября 2020 г. - Приказ Минпросвещения России от 3 декабря 2019 г. N 655","спец"]
[null,null,null,null,null,null,null,null,null,null,null,null,null,null,null,null,null,null,null,null,null,null,"18.02.09 Переработка нефти и газа","спец"]
[null,null,null,null,null,null,null,null,null,null,null,null,null,null,null,null,null,null,null,null,null,null,"18.02.10 Коксохимическое производство","спец"]
[null,null,null,null,null,null,null,null,null,null,null,null,null,null,null,null,null,null,null,null,null,null,"18.02.11 Технология пиротехнических составов и изделий","спец"]
[null,null,null,null,null,null,null,null,null,null,null,null,null,null,null,null,null,null,null,null,null,null,"18.02.12 Технология аналитического контроля химических соединений","спец"]
[null,null,null,null,null,null,null,null,null,null,null,null,null,null,null,null,null,null,null,null,null,null,"18.02.13 Технология производства изделий из полимерных композитов","спец"]
[null,null,null,null,null,null,null,null,null,null,null,null,null,null,null,null,null,null,null,null,null,null,"19.02.01 Биохимическое производство","спец"]
[null,null,null,null,null,null,null,null,null,null,null,null,null,null,null,null,null,null,null,null,null,null,"19.02.02 Технология хранения и переработки зерна","спец"]
[null,null,null,null,null,null,null,null,null,null,null,null,null,null,null,null,null,null,null,null,null,null,"19.02.03 Технология хлеба, кондитерских и макаронных изделий","спец"]
[null,null,null,null,null,null,null,null,null,null,null,null,null,null,null,null,null,null,null,null,null,null,"19.02.04 Технология сахаристых продуктов","спец"]
[null,null,null,null,null,null,null,null,null,null,null,null,null,null,null,null,null,null,null,null,null,null,"19.02.05 Технология бродильных производств и виноделие","спец"]
[null,null,null,null,null,null,null,null,null,null,null,null,null,null,null,null,null,null,null,null,null,null,"19.02.06 Технология консервов и пищеконцентратов","спец"]
[null,null,null,null,null,null,null,null,null,null,null,null,null,null,null,null,null,null,null,null,null,null,"19.02.07 Технология молока и молочных продуктов","спец"]
[null,null,null,null,null,null,null,null,null,null,null,null,null,null,null,null,null,null,null,null,null,null,"19.02.08 Технология мяса и мясных продуктов","спец"]
[null,null,null,null,null,null,null,null,null,null,null,null,null,null,null,null,null,null,null,null,null,null,"19.02.09 Технология жиров и жирозаменителей","спец"]
[null,null,null,null,null,null,null,null,null,null,null,null,null,null,null,null,null,null,null,null,null,null,"19.02.10 Технология продукции общественного питания","спец"]
[null,null,null,null,null,null,null,null,null,null,null,null,null,null,null,null,null,null,null,null,null,null,"20.02.01 Рациональное использование природохозяйственных комплексов","спец"]
[null,null,null,null,null,null,null,null,null,null,null,null,null,null,null,null,null,null,null,null,null,null,"20.02.02 Защита в чрезвычайных ситуациях","спец"]
[null,null,null,null,null,null,null,null,null,null,null,null,null,null,null,null,null,null,null,null,null,null,"20.02.03 Природоохранное обустройство территорий","спец"]
[null,null,null,null,null,null,null,null,null,null,null,null,null,null,null,null,null,null,null,null,null,null,"20.02.04 Пожарная безопасность","спец"]
[null,null,null,null,null,null,null,null,null,null,null,null,null,null,null,null,null,null,null,null,null,null,"20.02.05 Организация оперативного (экстренного) реагирования в чрезвычайных ситуациях","спец"]
[null,null,null,null,null,null,null,null,null,null,null,null,null,null,null,null,null,null,null,null,null,null,"21.02.01 Разработка и эксплуатация нефтяных и газовых месторождений","спец"]
[null,null,null,null,null,null,null,null,null,null,null,null,null,null,null,null,null,null,null,null,null,null,"21.02.02 Бурение нефтяных и газовых скважин","спец"]
[null,null,null,null,null,null,null,null,null,null,null,null,null,null,null,null,null,null,null,null,null,null,"21.02.03 Сооружение и эксплуатация газонефтепроводов и газонефтехранилищ","спец"]
[null,null,null,null,null,null,null,null,null,null,null,null,null,null,null,null,null,null,null,null,null,null,"21.02.04 Землеустройство","спец"]
[null,null,null,null,null,null,null,null,null,null,null,null,null,null,null,null,null,null,null,null,null,null,"21.02.05 Земельно-имущественные отношения","спец"]
[null,null,null,null,null,null,null,null,null,null,null,null,null,null,null,null,null,null,null,null,null,null,"21.02.06 Информационные системы обеспечения градостроительной деятельности","спец"]
[null,null,null,null,null,null,null,null,null,null,null,null,null,null,null,null,null,null,null,null,null,null,"21.02.07 Аэрофотогеодезия","спец"]
[null,null,null,null,null,null,null,null,null,null,null,null,null,null,null,null,null,null,null,null,null,null,"21.02.08 Прикладная геодезия","спец"]
[null,null,null,null,null,null,null,null,null,null,null,null,null,null,null,null,null,null,null,null,null,null,"21.02.09 Гидрогеология и инженерная геология","спец"]
[null,null,null,null,null,null,null,null,null,null,null,null,null,null,null,null,null,null,null,null,null,null,"21.02.10 Геология и разведка нефтяных и газовых месторождений","спец"]
[null,null,null,null,null,null,null,null,null,null,null,null,null,null,null,null,null,null,null,null,null,null,"21.02.11 Геофизические методы поисков и разведки месторождений полезных ископаемых","спец"]
[null,null,null,null,null,null,null,null,null,null,null,null,null,null,null,null,null,null,null,null,null,null,"21.02.12 Технология и техника разведки месторождений полезных ископаемых","спец"]
[null,null,null,null,null,null,null,null,null,null,null,null,null,null,null,null,null,null,null,null,null,null,"21.02.13 Геологическая съемка, поиски и разведка месторождений полезных ископаемых","спец"]
[null,null,null,null,null,null,null,null,null,null,null,null,null,null,null,null,null,null,null,null,null,null,"21.02.14 Маркшейдерское дело","спец"]
[null,null,null,null,null,null,null,null,null,null,null,null,null,null,null,null,null,null,null,null,null,null,"21.02.15 Открытые горные работы","спец"]
[null,null,null,null,null,null,null,null,null,null,null,null,null,null,null,null,null,null,null,null,null,null,"21.02.16 Шахтное строительство","спец"]
[null,null,null,null,null,null,null,null,null,null,null,null,null,null,null,null,null,null,null,null,null,null,"21.02.17 Подземная разработка месторождений полезных ископаемых","спец"]
[null,null,null,null,null,null,null,null,null,null,null,null,null,null,null,null,null,null,null,null,null,null,"21.02.18 Обогащение полезных ископаемых","спец"]
[null,null,null,null,null,null,null,null,null,null,null,null,null,null,null,null,null,null,null,null,null,null,"22.02.01 Металлургия черных металлов","спец"]
[null,null,null,null,null,null,null,null,null,null,null,null,null,null,null,null,null,null,null,null,null,null,"22.02.02 Металлургия цветных металлов","спец"]
[null,null,null,null,null,null,null,null,null,null,null,null,null,null,null,null,null,null,null,null,null,null,"22.02.03 Литейное производство черных и цветных металлов","спец"]
[null,null,null,null,null,null,null,null,null,null,null,null,null,null,null,null,null,null,null,null,null,null,"22.02.04 Металловедение и термическая обработка металлов","спец"]
[null,null,null,null,null,null,null,null,null,null,null,null,null,null,null,null,null,null,null,null,null,null,"22.02.05 Обработка металлов давлением","спец"]
[null,null,null,null,null,null,null,null,null,null,null,null,null,null,null,null,null,null,null,null,null,null,"22.02.06 Сварочное производство","спец"]
[null,null,null,null,null,null,null,null,null,null,null,null,null,null,null,null,null,null,null,null,null,null,"22.02.07 Порошковая металлургия, композиционные материалы, покрытия","спец"]
[null,null,null,null,null,null,null,null,null,null,null,null,null,null,null,null,null,null,null,null,null,null,"23.02.01 Организация перевозок и управление на транспорте (по видам)","спец"]
[null,null,null,null,null,null,null,null,null,null,null,null,null,null,null,null,null,null,null,null,null,null,"23.02.02 Автомобиле- и тракторостроение","спец"]
[null,null,null,null,null,null,null,null,null,null,null,null,null,null,null,null,null,null,null,null,null,null,"23.02.03 Техническое обслуживание и ремонт автомобильного транспорта","спец"]
[null,null,null,null,null,null,null,null,null,null,null,null,null,null,null,null,null,null,null,null,null,null,"23.02.04 Техническая эксплуатация подъемно-транспортных, строительных, дорожных машин и оборудования (по отраслям)","спец"]
[null,null,null,null,null,null,null,null,null,null,null,null,null,null,null,null,null,null,null,null,null,null,"23.02.05 Эксплуатация транспортного электрооборудования и автоматики (по видам транспорта, за исключением водного)","спец"]
[null,null,null,null,null,null,null,null,null,null,null,null,null,null,null,null,null,null,null,null,null,null,"23.02.06 Техническая эксплуатация подвижного состава железных дорог","спец"]
[null,null,null,null,null,null,null,null,null,null,null,null,null,null,null,null,null,null,null,null,null,null,"23.02.07 Техническое обслуживание и ремонт двигателей, систем и агрегатов автомобилей","спец"]
[null,null,null,null,null,null,null,null,null,null,null,null,null,null,null,null,null,null,null,null,null,null,"24.02.01 Производство летательных аппаратов","спец"]
[null,null,null,null,null,null,null,null,null,null,null,null,null,null,null,null,null,null,null,null,null,null,"24.02.02 Производство авиационных двигателей","спец"]
[null,null,null,null,null,null,null,null,null,null,null,null,null,null,null,null,null,null,null,null,null,null,"24.02.03 Утратила силу с 1 сентября 2020 г. - Приказ Минпросвещения России от 3 декабря 2019 г. N 655","спец"]
[null,null,null,null,null,null,null,null,null,null,null,null,null,null,null,null,null,null,null,null,null,null,"25.02.01 Техническая эксплуатация летательных аппаратов и двигателей","спец"]
[null,null,null,null,null,null,null,null,null,null,null,null,null,null,null,null,null,null,null,null,null,null,"25.02.02 Обслуживание летательных аппаратов горюче-смазочными материалами","спец"]
[null,null,null,null,null,null,null,null,null,null,null,null,null,null,null,null,null,null,null,null,null,null,"25.02.03 Техническая эксплуатация электрифицированных и пилотажно-навигационных комплексов","спец"]
[null,null,null,null,null,null,null,null,null,null,null,null,null,null,null,null,null,null,null,null,null,null,"25.02.04 Летная эксплуатация летательных аппаратов","спец"]
[null,null,null,null,null,null,null,null,null,null,null,null,null,null,null,null,null,null,null,null,null,null,"25.02.05 Управление движением воздушного транспорта","спец"]
[null,null,null,null,null,null,null,null,null,null,null,null,null,null,null,null,null,null,null,null,null,null,"25.02.06 Производство и обслуживание авиационной техники","спец"]
[null,null,null,null,null,null,null,null,null,null,null,null,null,null,null,null,null,null,null,null,null,null,"25.02.07 Техническое обслуживание авиационных двигателей","спец"]
[null,null,null,null,null,null,null,null,null,null,null,null,null,null,null,null,null,null,null,null,null,null,"25.02.08 Эксплуатация беспилотных авиационных систем","спец"]
[null,null,null,null,null,null,null,null,null,null,null,null,null,null,null,null,null,null,null,null,null,null,"26.02.01 Эксплуатация внутренних водных путей","спец"]
[null,null,null,null,null,null,null,null,null,null,null,null,null,null,null,null,null,null,null,null,null,null,"26.02.02 Судостроение","спец"]
[null,null,null,null,null,null,null,null,null,null,null,null,null,null,null,null,null,null,null,null,null,null,"26.02.03 Судовождение","спец"]
[null,null,null,null,null,null,null,null,null,null,null,null,null,null,null,null,null,null,null,null,null,null,"26.02.04 Монтаж и техническое обслуживание судовых машин и механизмов","спец"]
[null,null,null,null,null,null,null,null,null,null,null,null,null,null,null,null,null,null,null,null,null,null,"26.02.05 Эксплуатация судовых энергетических установок","спец"]
[null,null,null,null,null,null,null,null,null,null,null,null,null,null,null,null,null,null,null,null,null,null,"26.02.06 Эксплуатация судового электрооборудования и средств автоматики","спец"]
[null,null,null,null,null,null,null,null,null,null,null,null,null,null,null,null,null,null,null,null,null,null,"27.02.01 Метрология","спец"]
[null,null,null,null,null,null,null,null,null,null,null,null,null,null,null,null,null,null,null,null,null,null,"27.02.02 Техническое регулирование и управление качеством","спец"]
[null,null,null,null,null,null,null,null,null,null,null,null,null,null,null,null,null,null,null,null,null,null,"27.02.03 Автоматика и телемеханика на транспорте (железнодорожном транспорте)","спец"]
[null,null,null,null,null,null,null,null,null,null,null,null,null,null,null,null,null,null,null,null,null,null,"27.02.04 Автоматические системы управления","спец"]
[null,null,null,null,null,null,null,null,null,null,null,null,null,null,null,null,null,null,null,null,null,null,"27.02.05 Системы и средства диспетчерского управления","спец"]
[null,null,null,null,null,null,null,null,null,null,null,null,null,null,null,null,null,null,null,null,null,null,"27.02.06 Контроль работы измерительных приборов","спец"]
[null,null,null,null,null,null,null,null,null,null,null,null,null,null,null,null,null,null,null,null,null,null,"27.02.07 Управление качеством продукции, процессов и услуг (по отраслям)","спец"]
[null,null,null,null,null,null,null,null,null,null,null,null,null,null,null,null,null,null,null,null,null,null,"29.02.01 Конструирование, моделирование и технология изделий из кожи","спец"]
[null,null,null,null,null,null,null,null,null,null,null,null,null,null,null,null,null,null,null,null,null,null,"29.02.02 Технология кожи и меха","спец"]
[null,null,null,null,null,null,null,null,null,null,null,null,null,null,null,null,null,null,null,null,null,null,"29.02.03 Конструирование, моделирование и технология изделий из меха","спец"]
[null,null,null,null,null,null,null,null,null,null,null,null,null,null,null,null,null,null,null,null,null,null,"29.02.04 Конструирование, моделирование и технология швейных изделий","спец"]
[null,null,null,null,null,null,null,null,null,null,null,null,null,null,null,null,null,null,null,null,null,null,"29.02.05 Технология текстильных изделий (по видам)","спец"]
[null,null,null,null,null,null,null,null,null,null,null,null,null,null,null,null,null,null,null,null,null,null,"29.02.06 Полиграфическое производство","спец"]
[null,null,null,null,null,null,null,null,null,null,null,null,null,null,null,null,null,null,null,null,null,null,"29.02.07 Производство изделий из бумаги и картона","спец"]
[null,null,null,null,null,null,null,null,null,null,null,null,null,null,null,null,null,null,null,null,null,null,"29.02.08 Технология обработки алмазов","спец"]
[null,null,null,null,null,null,null,null,null,null,null,null,null,null,null,null,null,null,null,null,null,null,"29.02.09 Печатное дело","спец"]
[null,null,null,null,null,null,null,null,null,null,null,null,null,null,null,null,null,null,null,null,null,null,"31.02.01 Лечебное дело","спец"]
[null,null,null,null,null,null,null,null,null,null,null,null,null,null,null,null,null,null,null,null,null,null,"31.02.02 Акушерское дело","спец"]
[null,null,null,null,null,null,null,null,null,null,null,null,null,null,null,null,null,null,null,null,null,null,"31.02.03 Лабораторная диагностика","спец"]
[null,null,null,null,null,null,null,null,null,null,null,null,null,null,null,null,null,null,null,null,null,null,"31.02.04 Медицинская оптика","спец"]
[null,null,null,null,null,null,null,null,null,null,null,null,null,null,null,null,null,null,null,null,null,null,"31.02.05 Стоматология ортопедическая","спец"]
[null,null,null,null,null,null,null,null,null,null,null,null,null,null,null,null,null,null,null,null,null,null,"31.02.06 Стоматология профилактическая","спец"]
[null,null,null,null,null,null,null,null,null,null,null,null,null,null,null,null,null,null,null,null,null,null,"32.02.01 Медико-профилактическое дело","спец"]
[null,null,null,null,null,null,null,null,null,null,null,null,null,null,null,null,null,null,null,null,null,null,"33.02.01 Фармация","спец"]
[null,null,null,null,null,null,null,null,null,null,null,null,null,null,null,null,null,null,null,null,null,null,"34.02.01 Сестринское дело","спец"]
[null,null,null,null,null,null,null,null,null,null,null,null,null,null,null,null,null,null,null,null,null,null,"35.02.01 Лесное и лесопарковое хозяйство","спец"]
[null,null,null,null,null,null,null,null,null,null,null,null,null,null,null,null,null,null,null,null,null,null,"35.02.02 Технология лесозаготовок","спец"]
[null,null,null,null,null,null,null,null,null,null,null,null,null,null,null,null,null,null,null,null,null,null,"35.02.03 Технология деревообработки","спец"]
[null,null,null,null,null,null,null,null,null,null,null,null,null,null,null,null,null,null,null,null,null,null,"35.02.04 Технология комплексной переработки древесины","спец"]
[null,null,null,null,null,null,null,null,null,null,null,null,null,null,null,null,null,null,null,null,null,null,"35.02.05 Агрономия","спец"]
[null,null,null,null,null,null,null,null,null,null,null,null,null,null,null,null,null,null,null,null,null,null,"35.02.06 Технология производства и переработки сельскохозяйственной продукции","спец"]
[null,null,null,null,null,null,null,null,null,null,null,null,null,null,null,null,null,null,null,null,null,null,"35.02.07 Механизация сельского хозяйства","спец"]
[null,null,null,null,null,null,null,null,null,null,null,null,null,null,null,null,null,null,null,null,null,null,"35.02.08 Электрификация и автоматизация сельского хозяйства","спец"]
[null,null,null,null,null,null,null,null,null,null,null,null,null,null,null,null,null,null,null,null,null,null,"35.02.09 Ихтиология и рыбоводство","спец"]
[null,null,null,null,null,null,null,null,null,null,null,null,null,null,null,null,null,null,null,null,null,null,"35.02.10 Обработка водных биоресурсов","спец"]
[null,null,null,null,null,null,null,null,null,null,null,null,null,null,null,null,null,null,null,null,null,null,"35.02.11 Промышленное рыболовство","спец"]
[null,null,null,null,null,null,null,null,null,null,null,null,null,null,null,null,null,null,null,null,null,null,"35.02.12 Садово-парковое и ландшафтное строительство","спец"]
[null,null,null,null,null,null,null,null,null,null,null,null,null,null,null,null,null,null,null,null,null,null,"35.02.13 Пчеловодство","спец"]
[null,null,null,null,null,null,null,null,null,null,null,null,null,null,null,null,null,null,null,null,null,null,"35.02.14 Охотоведение и звероводство","спец"]
[null,null,null,null,null,null,null,null,null,null,null,null,null,null,null,null,null,null,null,null,null,null,"35.02.15 Кинология","спец"]
[null,null,null,null,null,null,null,null,null,null,null,null,null,null,null,null,null,null,null,null,null,null,"35.02.16 Эксплуатация и ремонт сельскохозяйственной техники и оборудования","спец"]
[null,null,null,null,null,null,null,null,null,null,null,null,null,null,null,null,null,null,null,null,null,null,"36.02.01 Ветеринария","спец"]
[null,null,null,null,null,null,null,null,null,null,null,null,null,null,null,null,null,null,null,null,null,null,"36.02.02 Зоотехния","спец"]
[null,null,null,null,null,null,null,null,null,null,null,null,null,null,null,null,null,null,null,null,null,null,"38.02.01 Экономика и бухгалтерский учет (по отраслям)","спец"]
[null,null,null,null,null,null,null,null,null,null,null,null,null,null,null,null,null,null,null,null,null,null,"38.02.02 Страховое дело (по отраслям)","спец"]
[null,null,null,null,null,null,null,null,null,null,null,null,null,null,null,null,null,null,null,null,null,null,"38.02.03 Операционная деятельность в логистике","спец"]
[null,null,null,null,null,null,null,null,null,null,null,null,null,null,null,null,null,null,null,null,null,null,"38.02.04 Коммерция (по отраслям)","спец"]
[null,null,null,null,null,null,null,null,null,null,null,null,null,null,null,null,null,null,null,null,null,null,"38.02.05 Товароведение и экспертиза качества потребительских товаров","спец"]
[null,null,null,null,null,null,null,null,null,null,null,null,null,null,null,null,null,null,null,null,null,null,"38.02.06 Финансы","спец"]
[null,null,null,null,null,null,null,null,null,null,null,null,null,null,null,null,null,null,null,null,null,null,"38.02.07 Банковское дело","спец"]
[null,null,null,null,null,null,null,null,null,null,null,null,null,null,null,null,null,null,null,null,null,null,"39.02.01 Социальная работа","спец"]
[null,null,null,null,null,null,null,null,null,null,null,null,null,null,null,null,null,null,null,null,null,null,"39.02.02 Организация сурдокоммуникации","спец"]
[null,null,null,null,null,null,null,null,null,null,null,null,null,null,null,null,null,null,null,null,null,null,"40.02.01 Право и организация социального обеспечения","спец"]
[null,null,null,null,null,null,null,null,null,null,null,null,null,null,null,null,null,null,null,null,null,null,"40.02.02 Правоохранительная деятельность","спец"]
[null,null,null,null,null,null,null,null,null,null,null,null,null,null,null,null,null,null,null,null,null,null,"40.02.03 Право и судебное администрирование","спец"]
[null,null,null,null,null,null,null,null,null,null,null,null,null,null,null,null,null,null,null,null,null,null,"42.02.01 Реклама","спец"]
[null,null,null,null,null,null,null,null,null,null,null,null,null,null,null,null,null,null,null,null,null,null,"42.02.02 Издательское дело","спец"]
[null,null,null,null,null,null,null,null,null,null,null,null,null,null,null,null,null,null,null,null,null,null,"43.02.01 Организация обслуживания в общественном питании","спец"]
[null,null,null,null,null,null,null,null,null,null,null,null,null,null,null,null,null,null,null,null,null,null,"43.02.02 Парикмахерское искусство","спец"]
[null,null,null,null,null,null,null,null,null,null,null,null,null,null,null,null,null,null,null,null,null,null,"43.02.03 Стилистика и искусство визажа","спец"]
[null,null,null,null,null,null,null,null,null,null,null,null,null,null,null,null,null,null,null,null,null,null,"43.02.04 Прикладная эстетика","спец"]
[null,null,null,null,null,null,null,null,null,null,null,null,null,null,null,null,null,null,null,null,null,null,"43.02.05 Флористика","спец"]
[null,null,null,null,null,null,null,null,null,null,null,null,null,null,null,null,null,null,null,null,null,null,"43.02.06 Сервис на транспорте (по видам транспорта)","спец"]
[null,null,null,null,null,null,null,null,null,null,null,null,null,null,null,null,null,null,null,null,null,null,"43.02.07 Сервис по химической обработке изделий","спец"]
[null,null,null,null,null,null,null,null,null,null,null,null,null,null,null,null,null,null,null,null,null,null,"43.02.08 Сервис домашнего и коммунального хозяйства","спец"]
[null,null,null,null,null,null,null,null,null,null,null,null,null,null,null,null,null,null,null,null,null,null,"43.02.09 Утратила силу с 1 сентября 2020 г. - Приказ Минпросвещения России от 3 декабря 2019 г. N 655","спец"]
[null,null,null,null,null,null,null,null,null,null,null,null,null,null,null,null,null,null,null,null,null,null,"43.02.10 Туризм","спец"]
[null,null,null,null,null,null,null,null,null,null,null,null,null,null,null,null,null,null,null,null,null,null,"43.02.11 Гостиничный сервис","спец"]
[null,null,null,null,null,null,null,null,null,null,null,null,null,null,null,null,null,null,null,null,null,null,"43.02.12 Технология эстетических услуг","спец"]
[null,null,null,null,null,null,null,null,null,null,null,null,null,null,null,null,null,null,null,null,null,null,"43.02.13 Технология парикмахерского искусства","спец"]
[null,null,null,null,null,null,null,null,null,null,null,null,null,null,null,null,null,null,null,null,null,null,"43.02.14 Гостиничное дело","спец"]
[null,null,null,null,null,null,null,null,null,null,null,null,null,null,null,null,null,null,null,null,null,null,"43.02.15 Поварское и кондитерское дело","спец"]
[null,null,null,null,null,null,null,null,null,null,null,null,null,null,null,null,null,null,null,null,null,null,"44.02.01 Дошкольное образование","спец"]
[null,null,null,null,null,null,null,null,null,null,null,null,null,null,null,null,null,null,null,null,null,null,"44.02.02 Преподавание в начальных классах","спец"]
[null,null,null,null,null,null,null,null,null,null,null,null,null,null,null,null,null,null,null,null,null,null,"44.02.03 Педагогика дополнительного образования","спец"]
[null,null,null,null,null,null,null,null,null,null,null,null,null,null,null,null,null,null,null,null,null,null,"44.02.04 Специальное дошкольное образование","спец"]
[null,null,null,null,null,null,null,null,null,null,null,null,null,null,null,null,null,null,null,null,null,null,"44.02.05 Коррекционная педагогика в начальном образовании","спец"]
[null,null,null,null,null,null,null,null,null,null,null,null,null,null,null,null,null,null,null,null,null,null,"44.02.06 Профессиональное обучение (по отраслям)","спец"]
[null,null,null,null,null,null,null,null,null,null,null,null,null,null,null,null,null,null,null,null,null,null,"46.02.01 Документационное обеспечение управления и архивоведение","спец"]
[null,null,null,null,null,null,null,null,null,null,null,null,null,null,null,null,null,null,null,null,null,null,"49.02.01 Физическая культура","спец"]
[null,null,null,null,null,null,null,null,null,null,null,null,null,null,null,null,null,null,null,null,null,null,"49.02.02 Адаптивная физическая культура","спец"]
[null,null,null,null,null,null,null,null,null,null,null,null,null,null,null,null,null,null,null,null,null,null,"49.02.03 Спорт","спец"]
[null,null,null,null,null,null,null,null,null,null,null,null,null,null,null,null,null,null,null,null,null,null,"50.02.01 Мировая художественная культура","спец"]
[null,null,null,null,null,null,null,null,null,null,null,null,null,null,null,null,null,null,null,null,null,null,"51.02.01 Народное художественное творчество (по видам)","спец"]
[null,null,null,null,null,null,null,null,null,null,null,null,null,null,null,null,null,null,null,null,null,null,"51.02.02 Социально-культурная деятельность (по видам)","спец"]
[null,null,null,null,null,null,null,null,null,null,null,null,null,null,null,null,null,null,null,null,null,null,"51.02.03 Библиотековедение","спец"]
[null,null,null,null,null,null,null,null,null,null,null,null,null,null,null,null,null,null,null,null,null,null,"52.02.01 Искусство балета","спец"]
[null,null,null,null,null,null,null,null,null,null,null,null,null,null,null,null,null,null,null,null,null,null,"52.02.02 Искусство танца (по видам)","спец"]
[null,null,null,null,null,null,null,null,null,null,null,null,null,null,null,null,null,null,null,null,null,null,"52.02.03 Цирковое искусство","спец"]
[null,null,null,null,null,null,null,null,null,null,null,null,null,null,null,null,null,null,null,null,null,null,"52.02.04 Актерское искусство","спец"]
[null,null,null,null,null,null,null,null,null,null,null,null,null,null,null,null,null,null,null,null,null,null,"52.02.05 Искусство эстрады","спец"]
[null,null,null,null,null,null,null,null,null,null,null,null,null,null,null,null,null,null,null,null,null,null,"53.02.01 Музыкальное образование","спец"]
[null,null,null,null,null,null,null,null,null,null,null,null,null,null,null,null,null,null,null,null,null,null,"53.02.02 Музыкальное искусство эстрады (по видам)","спец"]
[null,null,null,null,null,null,null,null,null,null,null,null,null,null,null,null,null,null,null,null,null,null,"53.02.03 Инструментальное исполнительство (по видам инструментов)","спец"]
[null,null,null,null,null,null,null,null,null,null,null,null,null,null,null,null,null,null,null,null,null,null,"53.02.04 Вокальное искусство","спец"]
[null,null,null,null,null,null,null,null,null,null,null,null,null,null,null,null,null,null,null,null,null,null,"53.02.05 Сольное и хоровое народное пение","спец"]
[null,null,null,null,null,null,null,null,null,null,null,null,null,null,null,null,null,null,null,null,null,null,"53.02.06 Хоровое дирижирование","спец"]
[null,null,null,null,null,null,null,null,null,null,null,null,null,null,null,null,null,null,null,null,null,null,"53.02.06 Хоровое дирижирование с присвоением квалификаций хормейстер, преподаватель","спец"]
[null,null,null,null,null,null,null,null,null,null,null,null,null,null,null,null,null,null,null,null,null,null,"53.02.07 Теория музыки","спец"]
[null,null,null,null,null,null,null,null,null,null,null,null,null,null,null,null,null,null,null,null,null,null,"53.02.08 Музыкальное звукооператорское мастерство","спец"]
[null,null,null,null,null,null,null,null,null,null,null,null,null,null,null,null,null,null,null,null,null,null,"53.02.09 Театрально-декорационное искусство (по видам)","спец"]
[null,null,null,null,null,null,null,null,null,null,null,null,null,null,null,null,null,null,null,null,null,null,"54.02.01 Дизайн (по отраслям)","спец"]
[null,null,null,null,null,null,null,null,null,null,null,null,null,null,null,null,null,null,null,null,null,null,"54.02.02 Декоративно-прикладное искусство и народные промыслы (по видам)","спец"]
[null,null,null,null,null,null,null,null,null,null,null,null,null,null,null,null,null,null,null,null,null,null,"54.02.03 Художественное оформление изделий текстильной и легкой промышленности","спец"]
[null,null,null,null,null,null,null,null,null,null,null,null,null,null,null,null,null,null,null,null,null,null,"54.02.04 Реставрация","спец"]
[null,null,null,null,null,null,null,null,null,null,null,null,null,null,null,null,null,null,null,null,null,null,"54.02.05 Живопись (по видам)","спец"]
[null,null,null,null,null,null,null,null,null,null,null,null,null,null,null,null,null,null,null,null,null,null,"54.02.05 Живопись с присвоением квалификаций художник-живописец, преподаватель","спец"]
[null,null,null,null,null,null,null,null,null,null,null,null,null,null,null,null,null,null,null,null,null,null,"54.02.06 Изобразительное искусство и черчение","спец"]
[null,null,null,null,null,null,null,null,null,null,null,null,null,null,null,null,null,null,null,null,null,null,"54.02.07 Скульптура","спец"]
[null,null,null,null,null,null,null,null,null,null,null,null,null,null,null,null,null,null,null,null,null,null,"54.02.08 Техника и искусство фотографии","спец"]
[null,null,null,null,null,null,null,null,null,null,null,null,null,null,null,null,null,null,null,null,null,null,"55.02.01 Театральная и аудиовизуальная техника (по видам)","спец"]
[null,null,null,null,null,null,null,null,null,null,null,null,null,null,null,null,null,null,null,null,null,null,"55.02.02 Анимация (по видам)","спец"]
[null,null,null,null,null,null,null,null,null,null,null,null,null,null,null,null,null,null,null,null,null,null,"57.02.01 Пограничная деятельность (по видам деятельности)","спец"]

{"sheet":"Сводные таблицы для меня","index":1,"n_rows":345,"n_cols":31,"rows_kept":345,"cut":false,"hidden":false,"merged":[[262,1,262,2],[2,18,2,19],[2,23,2,24],[2,28,2,29],[0,1,0,2],[2,1,2,2],[2,5,2,6],[2,9,2,10],[2,12,2,13]]}
[null,"Профессии"]
[]
[null,"Форма обучения",null,null,null,"Бюджет/внебюджет",null,null,null,"Кол-во профессий",null,null,"Вид и форма гиа",null,null,null,null,null,"Результаты защиты вкр",null,null,null,null,"Результаты защиты ГЭ",null,null,null,null,"Результаты защиты ГЭ"]
[null,"Названия строк","Сумма по полю Количество выпускников по профессии",null,null,"Названия строк","Сумма по полю Количество выпускников по профессии",null,null,"Названия строк","Сумма по полю Количество выпускников по профессии",null,"Сумма по полю Численность обучающихся, выполнявших  выпускную квалификационную работу в виде демонстрационного экзамена, чел.","Сумма по полю Численность обучающихся, выполнявших  выпускную квалификационную работу в виде выпускной практической квалификационной работы и письменной экзаменационной работы, чел.","Сумма по полю Численность обучающихся, выполнявших  выпускную квалификационную работу в виде выпускной практической квалификационной работы и письменной экзаменационной работы, при этом практическая квалификационная работа проводится в виде демонстрационного экзамена, ",null,null,null,"Сумма по полю отлично (ВКР)","Сумма по полю хорошо (ВКР)","Сумма по полю удовлетворительно (ВКР)","Сумма по полю Неудовлетворительно (ВКР)",null,"Сумма по полю отлично (ГЭ)","Сумма по полю хорошо (ГЭ)","Сумма по полю удовлетворительно (ГЭ)","Сумма по полю Неудовлетворительно (ГЭ)",null,"Названия строк","Сумма по полю Количество выпускников по профессии","Сумма по полю Количество студентов прошедших демонстрационный экзамен по каждой компетенции в рамках ГИА, чел."]
[null,"Заочная",40,null,null,"Бюджет",26,null,null,"05.01.01 Гидрометнаблюдатель",26,null,19,20,27,null,null,null,15,14,17,16,null,11,16,15,18,null,"05.01.01 Гидрометнаблюдатель",26,9]
[null,"Очная",13,null,null,"Внебюджет",40,null,null,"08.01.07 Мастер общестроительных работ",40,null,null,null,null,null,null,null,null,null,null,null,null,null,null,null,null,null,"08.01.07 Мастер общестроительных работ",40]
[null,"(пусто)",0,null,null,"(пусто)",0,null,null,"(пусто)",0,null,null,null,null,null,null,null,null,null,null,null,null,null,null,null,null,null,"(пусто)",0]
[null,"Очно-заочная",13,null,null,"Общий итог",66,null,null,"Общий итог",66,null,null,null,null,null,null,null,null,null,null,null,null,null,null,null,null,null,"Общий итог",66,9]
[null,"Общий итог",66]
[]
[]
[]
[]
[]
[]
[]
[]
[]
[]
[]
[]
[]
[]
[]
[]
[]
[]
[]
[]
[]
[]
[]
[]
[]
[]
[]
[]
[]
[]
[]
[]
[]
[]
[]
[]
[]
[]
[]
[]
[]
[]
[]
[]
[]
[]
[]
[]
[]
[]
[]
[]
[]
[]
[]
[]
[]
[]
[]
[]
[]
[]
[]
[]
[]
[]
[]
[]
[]
[]
[]
[]
[]
[]
[]
[]
[]
[]
[]
[]
[]
[]
[]
[]
[]
[]
[]
[]
[]
[]
[]
[]
[]
[]
[]
[]
[]
[]
[]
[]
[]
[]
[]
[]
[]
[]
[]
[]
[]
[]
[]
[]
[]
[]
[]
[]
[]
[]
[]
[]
[]
[]
[]
[]
[]
[]
[]
[]
[]
[]
[]
[]
[]
[]
[]
[]
[]
[]
[]
[]
[]
[]
[]
[]
[]
[]
[]
[]
[]
[]
[]
[]
[]
[]
[]
[]
[]
[]
[]
[]
[]
[]
[]
[]
[]
[]
[]
[]
[]
[]
[]
[]
[]
[]
[]
[]
[]
[]
[]
[]
[]
[]
[]
[]
[]
[]
[]
[]
[]
[]
[]
[]
[]
[]
[]
[]
[]
[]
[]
[]
[]
[]
[]
[]
[]
[]
[]
[]
[]
[]
[]
[]
[]
[]
[]
[]
[]
[]
[]
[]
[]
[]
[]
[]
[]
[]
[]
[]
[]
[]
[]
[]
[]
[]
[]
[]
[]
[]
[]
[]
[]
[]
[]
[]
[]
[]
[]
[]
[]
[]
[]
[]
[]
[null,"Специальности"]
[]
[]
[null,"Названия строк","Сумма по полю Количество выпускников по специальности, чел",null,null,"Названия строк","Сумма по полю Количество выпускников по специальности, чел",null,null,"Названия строк","Сумма по полю Количество выпускников по специальности, чел",null,"Сумма по полю Численность обучающихся, выполнявших   выпускную квалификационную работу в виде дипломной работы (дипломного проекта), чел.","Сумма по полю Численность обучающихся, выполнявших   выпускную квалификационную работу в виде дипломной работы (дипломного проекта) и демонстрационного экзамена, чел.","Сумма по полю Численность обучающихся, выполнявших   выпускную квалификационную работу в виде дипломной работы (дипломного проекта) и сдававших государственный экзамен, чел.","Сумма по полю Численность обучающихся, выполнявших   выпускную квалификационную работу в виде дипломной работы (дипломного проекта) и сдававших государственный экзамен в виде демонстрационного экзамена, чел.",null,null,"Сумма по полю отлично (ВКР)","Сумма по полю хорошо (ВКР)","Сумма по полю удовлетворительно (ВКР)","Сумма по полю Неудовлетворительно (ВКР)",null,"Сумма по полю отлично (ГЭ)","Сумма по полю хорошо (ГЭ","Сумма по полю удовлетворительно  (ГЭ)","Сумма по полю Неудовлетворительно (ГЭ)",null,"Названия строк","Сумма по полю Количество выпускников по специальности, чел","Количество по полю Количество студентов прошедших демонстрационный экзамен по каждой компетенции в рамках ГИА, чел."]
[null,"(пусто)",0,null,null,"Бюджет",68,null,null,"05.02.01 Картография",44,null,22,26,28,26,null,null,57,8,11,15,null,2,6,9,11,null,"05.02.01 Картография",44]
[null,"Очная",24,null,null,"Внебюджет",34,null,null,"08.02.05 Строительство и эксплуатация автомобильных дорог и аэродромов",34,null,null,null,null,null,null,null,null,null,null,null,null,null,null,null,null,null,"08.02.05 Строительство и эксплуатация автомобильных дорог и аэродромов",34]
[null,"Очно-заочная",58,null,null,"(пусто)",0,null,null,"(пусто)",0,null,null,null,null,null,null,null,null,null,null,null,null,null,null,null,null,null,"(пусто)",0]
[null,"Заочная",20,null,null,"Общий итог",102,null,null,"07.02.01 Архитектура",24,null,null,null,null,null,null,null,null,null,null,null,null,null,null,null,null,null,"07.02.01 Архитектура",24]
[null,"Общий итог",102,null,null,null,null,null,null,"Общий итог",102,null,null,null,null,null,null,null,null,null,null,null,null,null,null,null,null,null,"Общий итог",102]
[]
[]
[]
[]
[]
[]
[]
[]
[]
[]
[]
[]
[]
[]
[]
[]
[]
[]
[]
[]
[]
[]
[]
[]
[]
[]
[]
[]
[]
[]
[]
[]
[]
[]
[]
[]
[]
[]
[]
[]
[]
[]
[]
[]
[]
[]
[]
[]
[]
[]
[]
[]
[]
[]
[]
[]
[]
[]
[]
[]
[]
[]
[]
[]
[]
[]
[]
[]
[]
[]
[]
[]
[null,"Сумма по полю Кол-во обучающихся на начало обучения","Сумма по полю Кол-во допущенных к ГИА","Сумма по полю Кол-во не явившихся на ГИА","Сумма по полю Кол-во получивших дипломы",null,"Сумма по полю Кол-во получивших дипломы","Сумма по полю Из них с отличием ","Сумма по полю Из них на «4» и «5»","Сумма по полю Остальные дипломы"]
[null,152,129,37,137,null,137,54,19,64]

{"sheet":"Таб 1.1-1.2","index":2,"n_rows":203,"n_cols":8,"rows_kept":203,"cut":false,"hidden":false,"merged":[[0,1,0,7],[5,1,6,1],[5,2,5,7],[1,1,1,4],[1,5,1,7],[2,1,2,4],[2,5,2,7]]}
[null,"Заполняются ТОЛЬКО ЗЕЛЕНЫЕ ЯЧЕЙКИ"]
[null,"НАИМЕНОВАНИЕ ОБРАЗОВАТЕЛЬНОЙ ОРГАНИЗАЦИИ",null,null,null,"Вместо этого текста, напишите название"]
[null,"ФИО ОТВЕТСТВЕННОГО ЗА ЗАПОЛНЕНИЕ/КОНТАКТНЫЕ ДАННЫЕ",null,null,null,"Вместо этого текста, напишите ФИО ответственного и контактные данные"]
[]
[null,"Таблица 1.1. Сравнительная таблица количественных показателей выпуска за период с 2018 по 2022 г. (Заполняет только головное учреждение за себя и за филиалы)"]
[null,"Учебный год","Состояние контингента"]
[null,null,"Общее количество выпускников, получивших дипломы, включая филиалы, при наличии), чел.","В том числе, общее количество выпускников, получивших дипломы, (только филиалы), чел.","В том числе, численность выпускников, получивших дипломы с отличием, чел.","В том числе, численность выпускников получивших дипломы по наиболее востребованным на рынке труда, новым и перспективным профессиям и специальностям, требующих среднего профессионального образования (Топ 50), чел.","В том числе, численность выпускников, получивших дипломы и прошедшие демонстрационный экзамен, чел.","В том числе, численность выпускников, получивших дипломы и прошедшие процедуру НОК, чел."]
[{"$f":"C8-D8","v":90},"2017/2018",100,10,1,300,1,100]
[{"$f":"C9-D9","v":108},"2018/2019",120,12,1,5,1,2]
[{"$f":"C10-D10","v":136},"2019/2020",150,14,1,5,2,3]
[{"$f":"C11-D11","v":154},"2020/2021",170,16,5,8,3,4]
[{"$f":"C12-D12","v":180},"2021/2022",200,20,10,10,18,5]
[]
[null,"Таблица 1.2. Выпуск 2022 г. по специальностям и профессиям (заполняют все учреждения, как головные, так и филиалы - отдельно друг от друга)"]
[null,"Наименование специальности/профессии СПО по которой осуществлялся выпуск в 2022 году (выберите из списка)","Наименование квалификации"," Реквизиты ФГОС СПО (Наименование ФГОС СПО, дата утверждения)","Численность выпускников по специальности/профессии, получивших дипломы, чел.","В том числе, численность прошедших демонстрационный экзамен, чел.","В том числе, численность, прошедших независимую оценку квалификации, чел.","Численность трудоустроенных выпускников, чел."]
[{"$f":"IF(ISBLANK(B16),\"\",VLOOKUP(B16,'разн. списки'!$W$3:$X$494,2,FALSE))","v":"проф"},"13.01.04 Слесарь по ремонту оборудования электростанций","Слесарь",null,100,5,4,3]
[{"$f":"IF(ISBLANK(B17),\"\",VLOOKUP(B17,'разн. списки'!$W$3:$X$494,2,FALSE))","v":"спец"},"21.02.06 Информационные системы обеспечения градостроительной деятельности","Информатик",null,285,41,4,200]
[{"$f":"IF(ISBLANK(B18),\"\",VLOOKUP(B18,'разн. списки'!$W$3:$X$494,2,FALSE))","v":""}]
[{"$f":"IF(ISBLANK(B19),\"\",VLOOKUP(B19,'разн. списки'!$W$3:$X$494,2,FALSE))","v":""}]
[{"$f":"IF(ISBLANK(B20),\"\",VLOOKUP(B20,'разн. списки'!$W$3:$X$494,2,FALSE))","v":""}]
[{"$f":"IF(ISBLANK(B21),\"\",VLOOKUP(B21,'разн. списки'!$W$3:$X$494,2,FALSE))","v":""}]
[{"$f":"IF(ISBLANK(B22),\"\",VLOOKUP(B22,'разн. списки'!$W$3:$X$494,2,FALSE))","v":""}]
[{"$f":"IF(ISBLANK(B23),\"\",VLOOKUP(B23,'разн. списки'!$W$3:$X$494,2,FALSE))","v":""}]
[{"$f":"IF(ISBLANK(B24),\"\",VLOOKUP(B24,'разн. списки'!$W$3:$X$494,2,FALSE))","v":""}]
[{"$f":"IF(ISBLANK(B25),\"\",VLOOKUP(B25,'разн. списки'!$W$3:$X$494,2,FALSE))","v":""}]
[{"$f":"IF(ISBLANK(B26),\"\",VLOOKUP(B26,'разн. списки'!$W$3:$X$494,2,FALSE))","v":""}]
[{"$f":"IF(ISBLANK(B27),\"\",VLOOKUP(B27,'разн. списки'!$W$3:$X$494,2,FALSE))","v":""}]
[{"$f":"IF(ISBLANK(B28),\"\",VLOOKUP(B28,'разн. списки'!$W$3:$X$494,2,FALSE))","v":""}]
[{"$f":"IF(ISBLANK(B29),\"\",VLOOKUP(B29,'разн. списки'!$W$3:$X$494,2,FALSE))","v":""}]
[{"$f":"IF(ISBLANK(B30),\"\",VLOOKUP(B30,'разн. списки'!$W$3:$X$494,2,FALSE))","v":""}]
[{"$f":"IF(ISBLANK(B31),\"\",VLOOKUP(B31,'разн. списки'!$W$3:$X$494,2,FALSE))","v":""}]
[{"$f":"IF(ISBLANK(B32),\"\",VLOOKUP(B32,'разн. списки'!$W$3:$X$494,2,FALSE))","v":""}]
[{"$f":"IF(ISBLANK(B33),\"\",VLOOKUP(B33,'разн. списки'!$W$3:$X$494,2,FALSE))","v":""}]
[{"$f":"IF(ISBLANK(B34),\"\",VLOOKUP(B34,'разн. списки'!$W$3:$X$494,2,FALSE))","v":""}]
[{"$f":"IF(ISBLANK(B35),\"\",VLOOKUP(B35,'разн. списки'!$W$3:$X$494,2,FALSE))","v":""}]
[{"$f":"IF(ISBLANK(B36),\"\",VLOOKUP(B36,'разн. списки'!$W$3:$X$494,2,FALSE))","v":""}]
[{"$f":"IF(ISBLANK(B37),\"\",VLOOKUP(B37,'разн. списки'!$W$3:$X$494,2,FALSE))","v":""}]
[{"$f":"IF(ISBLANK(B38),\"\",VLOOKUP(B38,'разн. списки'!$W$3:$X$494,2,FALSE))","v":""}]
[{"$f":"IF(ISBLANK(B39),\"\",VLOOKUP(B39,'разн. списки'!$W$3:$X$494,2,FALSE))","v":""}]
[{"$f":"IF(ISBLANK(B40),\"\",VLOOKUP(B40,'разн. списки'!$W$3:$X$494,2,FALSE))","v":""}]
[{"$f":"IF(ISBLANK(B41),\"\",VLOOKUP(B41,'разн. списки'!$W$3:$X$494,2,FALSE))","v":""}]
[{"$f":"IF(ISBLANK(B42),\"\",VLOOKUP(B42,'разн. списки'!$W$3:$X$494,2,FALSE))","v":""}]
[{"$f":"IF(ISBLANK(B43),\"\",VLOOKUP(B43,'разн. списки'!$W$3:$X$494,2,FALSE))","v":""}]
[{"$f":"IF(ISBLANK(B44),\"\",VLOOKUP(B44,'разн. списки'!$W$3:$X$494,2,FALSE))","v":""}]
[{"$f":"IF(ISBLANK(B45),\"\",VLOOKUP(B45,'разн. списки'!$W$3:$X$494,2,FALSE))","v":""}]
[{"$f":"IF(ISBLANK(B46),\"\",VLOOKUP(B46,'разн. списки'!$W$3:$X$494,2,FALSE))","v":""}]
[{"$f":"IF(ISBLANK(B47),\"\",VLOOKUP(B47,'разн. списки'!$W$3:$X$494,2,FALSE))","v":""}]
[{"$f":"IF(ISBLANK(B48),\"\",VLOOKUP(B48,'разн. списки'!$W$3:$X$494,2,FALSE))","v":""}]
[{"$f":"IF(ISBLANK(B49),\"\",VLOOKUP(B49,'разн. списки'!$W$3:$X$494,2,FALSE))","v":""}]
[{"$f":"IF(ISBLANK(B50),\"\",VLOOKUP(B50,'разн. списки'!$W$3:$X$494,2,FALSE))","v":""}]
[{"$f":"IF(ISBLANK(B51),\"\",VLOOKUP(B51,'разн. списки'!$W$3:$X$494,2,FALSE))","v":""}]
[{"$f":"IF(ISBLANK(B52),\"\",VLOOKUP(B52,'разн. списки'!$W$3:$X$494,2,FALSE))","v":""}]
[{"$f":"IF(ISBLANK(B53),\"\",VLOOKUP(B53,'разн. списки'!$W$3:$X$494,2,FALSE))","v":""}]
[{"$f":"IF(ISBLANK(B54),\"\",VLOOKUP(B54,'разн. списки'!$W$3:$X$494,2,FALSE))","v":""}]
[{"$f":"IF(ISBLANK(B55),\"\",VLOOKUP(B55,'разн. списки'!$W$3:$X$494,2,FALSE))","v":""}]
[{"$f":"IF(ISBLANK(B56),\"\",VLOOKUP(B56,'разн. списки'!$W$3:$X$494,2,FALSE))","v":""}]
[{"$f":"IF(ISBLANK(B57),\"\",VLOOKUP(B57,'разн. списки'!$W$3:$X$494,2,FALSE))","v":""}]
[{"$f":"IF(ISBLANK(B58),\"\",VLOOKUP(B58,'разн. списки'!$W$3:$X$494,2,FALSE))","v":""}]
[{"$f":"IF(ISBLANK(B59),\"\",VLOOKUP(B59,'разн. списки'!$W$3:$X$494,2,FALSE))","v":""}]
[{"$f":"IF(ISBLANK(B60),\"\",VLOOKUP(B60,'разн. списки'!$W$3:$X$494,2,FALSE))","v":""}]
[{"$f":"IF(ISBLANK(B61),\"\",VLOOKUP(B61,'разн. списки'!$W$3:$X$494,2,FALSE))","v":""}]
[{"$f":"IF(ISBLANK(B62),\"\",VLOOKUP(B62,'разн. списки'!$W$3:$X$494,2,FALSE))","v":""}]
[{"$f":"IF(ISBLANK(B63),\"\",VLOOKUP(B63,'разн. списки'!$W$3:$X$494,2,FALSE))","v":""}]
[{"$f":"IF(ISBLANK(B64),\"\",VLOOKUP(B64,'разн. списки'!$W$3:$X$494,2,FALSE))","v":""}]
[{"$f":"IF(ISBLANK(B65),\"\",VLOOKUP(B65,'разн. списки'!$W$3:$X$494,2,FALSE))","v":""}]
[{"$f":"IF(ISBLANK(B66),\"\",VLOOKUP(B66,'разн. списки'!$W$3:$X$494,2,FALSE))","v":""}]
[{"$f":"IF(ISBLANK(B67),\"\",VLOOKUP(B67,'разн. списки'!$W$3:$X$494,2,FALSE))","v":""}]
[{"$f":"IF(ISBLANK(B68),\"\",VLOOKUP(B68,'разн. списки'!$W$3:$X$494,2,FALSE))","v":""}]
[{"$f":"IF(ISBLANK(B69),\"\",VLOOKUP(B69,'разн. списки'!$W$3:$X$494,2,FALSE))","v":""}]
[{"$f":"IF(ISBLANK(B70),\"\",VLOOKUP(B70,'разн. списки'!$W$3:$X$494,2,FALSE))","v":""}]
[{"$f":"IF(ISBLANK(B71),\"\",VLOOKUP(B71,'разн. списки'!$W$3:$X$494,2,FALSE))","v":""}]
[{"$f":"IF(ISBLANK(B72),\"\",VLOOKUP(B72,'разн. списки'!$W$3:$X$494,2,FALSE))","v":""}]
[{"$f":"IF(ISBLANK(B73),\"\",VLOOKUP(B73,'разн. списки'!$W$3:$X$494,2,FALSE))","v":""}]
[{"$f":"IF(ISBLANK(B74),\"\",VLOOKUP(B74,'разн. списки'!$W$3:$X$494,2,FALSE))","v":""}]
[{"$f":"IF(ISBLANK(B75),\"\",VLOOKUP(B75,'разн. списки'!$W$3:$X$494,2,FALSE))","v":""}]
[{"$f":"IF(ISBLANK(B76),\"\",VLOOKUP(B76,'разн. списки'!$W$3:$X$494,2,FALSE))","v":""}]
[{"$f":"IF(ISBLANK(B77),\"\",VLOOKUP(B77,'разн. списки'!$W$3:$X$494,2,FALSE))","v":""}]
[{"$f":"IF(ISBLANK(B78),\"\",VLOOKUP(B78,'разн. списки'!$W$3:$X$494,2,FALSE))","v":""}]
[{"$f":"IF(ISBLANK(B79),\"\",VLOOKUP(B79,'разн. списки'!$W$3:$X$494,2,FALSE))","v":""}]
[{"$f":"IF(ISBLANK(B80),\"\",VLOOKUP(B80,'разн. списки'!$W$3:$X$494,2,FALSE))","v":""}]
[{"$f":"IF(ISBLANK(B81),\"\",VLOOKUP(B81,'разн. списки'!$W$3:$X$494,2,FALSE))","v":""}]
[{"$f":"IF(ISBLANK(B82),\"\",VLOOKUP(B82,'разн. списки'!$W$3:$X$494,2,FALSE))","v":""}]
[{"$f":"IF(ISBLANK(B83),\"\",VLOOKUP(B83,'разн. списки'!$W$3:$X$494,2,FALSE))","v":""}]
[{"$f":"IF(ISBLANK(B84),\"\",VLOOKUP(B84,'разн. списки'!$W$3:$X$494,2,FALSE))","v":""}]
[{"$f":"IF(ISBLANK(B85),\"\",VLOOKUP(B85,'разн. списки'!$W$3:$X$494,2,FALSE))","v":""}]
[{"$f":"IF(ISBLANK(B86),\"\",VLOOKUP(B86,'разн. списки'!$W$3:$X$494,2,FALSE))","v":""}]
[{"$f":"IF(ISBLANK(B87),\"\",VLOOKUP(B87,'разн. списки'!$W$3:$X$494,2,FALSE))","v":""}]
[{"$f":"IF(ISBLANK(B88),\"\",VLOOKUP(B88,'разн. списки'!$W$3:$X$494,2,FALSE))","v":""}]
[{"$f":"IF(ISBLANK(B89),\"\",VLOOKUP(B89,'разн. списки'!$W$3:$X$494,2,FALSE))","v":""}]
[{"$f":"IF(ISBLANK(B90),\"\",VLOOKUP(B90,'разн. списки'!$W$3:$X$494,2,FALSE))","v":""}]
[{"$f":"IF(ISBLANK(B91),\"\",VLOOKUP(B91,'разн. списки'!$W$3:$X$494,2,FALSE))","v":""}]
[{"$f":"IF(ISBLANK(B92),\"\",VLOOKUP(B92,'разн. списки'!$W$3:$X$494,2,FALSE))","v":""}]
[{"$f":"IF(ISBLANK(B93),\"\",VLOOKUP(B93,'разн. списки'!$W$3:$X$494,2,FALSE))","v":""}]
[{"$f":"IF(ISBLANK(B94),\"\",VLOOKUP(B94,'разн. списки'!$W$3:$X$494,2,FALSE))","v":""}]
[{"$f":"IF(ISBLANK(B95),\"\",VLOOKUP(B95,'разн. списки'!$W$3:$X$494,2,FALSE))","v":""}]
[{"$f":"IF(ISBLANK(B96),\"\",VLOOKUP(B96,'разн. списки'!$W$3:$X$494,2,FALSE))","v":""}]
[{"$f":"IF(ISBLANK(B97),\"\",VLOOKUP(B97,'разн. списки'!$W$3:$X$494,2,FALSE))","v":""}]
[{"$f":"IF(ISBLANK(B98),\"\",VLOOKUP(B98,'разн. списки'!$W$3:$X$494,2,FALSE))","v":""}]
[{"$f":"IF(ISBLANK(B99),\"\",VLOOKUP(B99,'разн. списки'!$W$3:$X$494,2,FALSE))","v":""}]
[{"$f":"IF(ISBLANK(B100),\"\",VLOOKUP(B100,'разн. списки'!$W$3:$X$494,2,FALSE))","v":""}]
[{"$f":"IF(ISBLANK(B101),\"\",VLOOKUP(B101,'разн. списки'!$W$3:$X$494,2,FALSE))","v":""}]
[{"$f":"IF(ISBLANK(B102),\"\",VLOOKUP(B102,'разн. списки'!$W$3:$X$494,2,FALSE))","v":""}]
[{"$f":"IF(ISBLANK(B103),\"\",VLOOKUP(B103,'разн. списки'!$W$3:$X$494,2,FALSE))","v":""}]
[{"$f":"IF(ISBLANK(B104),\"\",VLOOKUP(B104,'разн. списки'!$W$3:$X$494,2,FALSE))","v":""}]
[{"$f":"IF(ISBLANK(B105),\"\",VLOOKUP(B105,'разн. списки'!$W$3:$X$494,2,FALSE))","v":""}]
[{"$f":"IF(ISBLANK(B106),\"\",VLOOKUP(B106,'разн. списки'!$W$3:$X$494,2,FALSE))","v":""}]
[{"$f":"IF(ISBLANK(B107),\"\",VLOOKUP(B107,'разн. списки'!$W$3:$X$494,2,FALSE))","v":""}]
[{"$f":"IF(ISBLANK(B108),\"\",VLOOKUP(B108,'разн. списки'!$W$3:$X$494,2,FALSE))","v":""}]
[{"$f":"IF(ISBLANK(B109),\"\",VLOOKUP(B109,'разн. списки'!$W$3:$X$494,2,FALSE))","v":""}]
[{"$f":"IF(ISBLANK(B110),\"\",VLOOKUP(B110,'разн. списки'!$W$3:$X$494,2,FALSE))","v":""}]
[{"$f":"IF(ISBLANK(B111),\"\",VLOOKUP(B111,'разн. списки'!$W$3:$X$494,2,FALSE))","v":""}]
[{"$f":"IF(ISBLANK(B112),\"\",VLOOKUP(B112,'разн. списки'!$W$3:$X$494,2,FALSE))","v":""}]
[{"$f":"IF(ISBLANK(B113),\"\",VLOOKUP(B113,'разн. списки'!$W$3:$X$494,2,FALSE))","v":""}]
[{"$f":"IF(ISBLANK(B114),\"\",VLOOKUP(B114,'разн. списки'!$W$3:$X$494,2,FALSE))","v":""}]
[{"$f":"IF(ISBLANK(B115),\"\",VLOOKUP(B115,'разн. списки'!$W$3:$X$494,2,FALSE))","v":""}]
[{"$f":"IF(ISBLANK(B116),\"\",VLOOKUP(B116,'разн. списки'!$W$3:$X$494,2,FALSE))","v":""}]
[{"$f":"IF(ISBLANK(B117),\"\",VLOOKUP(B117,'разн. списки'!$W$3:$X$494,2,FALSE))","v":""}]
[{"$f":"IF(ISBLANK(B118),\"\",VLOOKUP(B118,'разн. списки'!$W$3:$X$494,2,FALSE))","v":""}]
[{"$f":"IF(ISBLANK(B119),\"\",VLOOKUP(B119,'разн. списки'!$W$3:$X$494,2,FALSE))","v":""}]
[{"$f":"IF(ISBLANK(B120),\"\",VLOOKUP(B120,'разн. списки'!$W$3:$X$494,2,FALSE))","v":""}]
[{"$f":"IF(ISBLANK(B121),\"\",VLOOKUP(B121,'разн. списки'!$W$3:$X$494,2,FALSE))","v":""}]
[{"$f":"IF(ISBLANK(B122),\"\",VLOOKUP(B122,'разн. списки'!$W$3:$X$494,2,FALSE))","v":""}]
[{"$f":"IF(ISBLANK(B123),\"\",VLOOKUP(B123,'разн. списки'!$W$3:$X$494,2,FALSE))","v":""}]
[{"$f":"IF(ISBLANK(B124),\"\",VLOOKUP(B124,'разн. списки'!$W$3:$X$494,2,FALSE))","v":""}]
[{"$f":"IF(ISBLANK(B125),\"\",VLOOKUP(B125,'разн. списки'!$W$3:$X$494,2,FALSE))","v":""}]
[{"$f":"IF(ISBLANK(B126),\"\",VLOOKUP(B126,'разн. списки'!$W$3:$X$494,2,FALSE))","v":""}]
[{"$f":"IF(ISBLANK(B127),\"\",VLOOKUP(B127,'разн. списки'!$W$3:$X$494,2,FALSE))","v":""}]
[{"$f":"IF(ISBLANK(B128),\"\",VLOOKUP(B128,'разн. списки'!$W$3:$X$494,2,FALSE))","v":""}]
[{"$f":"IF(ISBLANK(B129),\"\",VLOOKUP(B129,'разн. списки'!$W$3:$X$494,2,FALSE))","v":""}]
[{"$f":"IF(ISBLANK(B130),\"\",VLOOKUP(B130,'разн. списки'!$W$3:$X$494,2,FALSE))","v":""}]
[{"$f":"IF(ISBLANK(B131),\"\",VLOOKUP(B131,'разн. списки'!$W$3:$X$494,2,FALSE))","v":""}]
[{"$f":"IF(ISBLANK(B132),\"\",VLOOKUP(B132,'разн. списки'!$W$3:$X$494,2,FALSE))","v":""}]
[{"$f":"IF(ISBLANK(B133),\"\",VLOOKUP(B133,'разн. списки'!$W$3:$X$494,2,FALSE))","v":""}]
[{"$f":"IF(ISBLANK(B134),\"\",VLOOKUP(B134,'разн. списки'!$W$3:$X$494,2,FALSE))","v":""}]
[{"$f":"IF(ISBLANK(B135),\"\",VLOOKUP(B135,'разн. списки'!$W$3:$X$494,2,FALSE))","v":""}]
[{"$f":"IF(ISBLANK(B136),\"\",VLOOKUP(B136,'разн. списки'!$W$3:$X$494,2,FALSE))","v":""}]
[{"$f":"IF(ISBLANK(B137),\"\",VLOOKUP(B137,'разн. списки'!$W$3:$X$494,2,FALSE))","v":""}]
[{"$f":"IF(ISBLANK(B138),\"\",VLOOKUP(B138,'разн. списки'!$W$3:$X$494,2,FALSE))","v":""}]
[{"$f":"IF(ISBLANK(B139),\"\",VLOOKUP(B139,'разн. списки'!$W$3:$X$494,2,FALSE))","v":""}]
[{"$f":"IF(ISBLANK(B140),\"\",VLOOKUP(B140,'разн. списки'!$W$3:$X$494,2,FALSE))","v":""}]
[{"$f":"IF(ISBLANK(B141),\"\",VLOOKUP(B141,'разн. списки'!$W$3:$X$494,2,FALSE))","v":""}]
[{"$f":"IF(ISBLANK(B142),\"\",VLOOKUP(B142,'разн. списки'!$W$3:$X$494,2,FALSE))","v":""}]
[{"$f":"IF(ISBLANK(B143),\"\",VLOOKUP(B143,'разн. списки'!$W$3:$X$494,2,FALSE))","v":""}]
[{"$f":"IF(ISBLANK(B144),\"\",VLOOKUP(B144,'разн. списки'!$W$3:$X$494,2,FALSE))","v":""}]
[{"$f":"IF(ISBLANK(B145),\"\",VLOOKUP(B145,'разн. списки'!$W$3:$X$494,2,FALSE))","v":""}]
[{"$f":"IF(ISBLANK(B146),\"\",VLOOKUP(B146,'разн. списки'!$W$3:$X$494,2,FALSE))","v":""}]
[{"$f":"IF(ISBLANK(B147),\"\",VLOOKUP(B147,'разн. списки'!$W$3:$X$494,2,FALSE))","v":""}]
[{"$f":"IF(ISBLANK(B148),\"\",VLOOKUP(B148,'разн. списки'!$W$3:$X$494,2,FALSE))","v":""}]
[{"$f":"IF(ISBLANK(B149),\"\",VLOOKUP(B149,'разн. списки'!$W$3:$X$494,2,FALSE))","v":""}]
[{"$f":"IF(ISBLANK(B150),\"\",VLOOKUP(B150,'разн. списки'!$W$3:$X$494,2,FALSE))","v":""}]
[{"$f":"IF(ISBLANK(B151),\"\",VLOOKUP(B151,'разн. списки'!$W$3:$X$494,2,FALSE))","v":""}]
[{"$f":"IF(ISBLANK(B152),\"\",VLOOKUP(B152,'разн. списки'!$W$3:$X$494,2,FALSE))","v":""}]
[{"$f":"IF(ISBLANK(B153),\"\",VLOOKUP(B153,'разн. списки'!$W$3:$X$494,2,FALSE))","v":""}]
[{"$f":"IF(ISBLANK(B154),\"\",VLOOKUP(B154,'разн. списки'!$W$3:$X$494,2,FALSE))","v":""}]
[{"$f":"IF(ISBLANK(B155),\"\",VLOOKUP(B155,'разн. списки'!$W$3:$X$494,2,FALSE))","v":""}]
[{"$f":"IF(ISBLANK(B156),\"\",VLOOKUP(B156,'разн. списки'!$W$3:$X$494,2,FALSE))","v":""}]
[{"$f":"IF(ISBLANK(B157),\"\",VLOOKUP(B157,'разн. списки'!$W$3:$X$494,2,FALSE))","v":""}]
[{"$f":"IF(ISBLANK(B158),\"\",VLOOKUP(B158,'разн. списки'!$W$3:$X$494,2,FALSE))","v":""}]
[{"$f":"IF(ISBLANK(B159),\"\",VLOOKUP(B159,'разн. списки'!$W$3:$X$494,2,FALSE))","v":""}]
[{"$f":"IF(ISBLANK(B160),\"\",VLOOKUP(B160,'разн. списки'!$W$3:$X$494,2,FALSE))","v":""}]
[{"$f":"IF(ISBLANK(B161),\"\",VLOOKUP(B161,'разн. списки'!$W$3:$X$494,2,FALSE))","v":""}]
[{"$f":"IF(ISBLANK(B162),\"\",VLOOKUP(B162,'разн. списки'!$W$3:$X$494,2,FALSE))","v":""}]
[{"$f":"IF(ISBLANK(B163),\"\",VLOOKUP(B163,'разн. списки'!$W$3:$X$494,2,FALSE))","v":""}]
[{"$f":"IF(ISBLANK(B164),\"\",VLOOKUP(B164,'разн. списки'!$W$3:$X$494,2,FALSE))","v":""}]
[{"$f":"IF(ISBLANK(B165),\"\",VLOOKUP(B165,'разн. списки'!$W$3:$X$494,2,FALSE))","v":""}]
[{"$f":"IF(ISBLANK(B166),\"\",VLOOKUP(B166,'разн. списки'!$W$3:$X$494,2,FALSE))","v":""}]
[{"$f":"IF(ISBLANK(B167),\"\",VLOOKUP(B167,'разн. списки'!$W$3:$X$494,2,FALSE))","v":""}]
[{"$f":"IF(ISBLANK(B168),\"\",VLOOKUP(B168,'разн. списки'!$W$3:$X$494,2,FALSE))","v":""}]
[{"$f":"IF(ISBLANK(B169),\"\",VLOOKUP(B169,'разн. списки'!$W$3:$X$494,2,FALSE))","v":""}]
[{"$f":"IF(ISBLANK(B170),\"\",VLOOKUP(B170,'разн. списки'!$W$3:$X$494,2,FALSE))","v":""}]
[{"$f":"IF(ISBLANK(B171),\"\",VLOOKUP(B171,'разн. списки'!$W$3:$X$494,2,FALSE))","v":""}]
[{"$f":"IF(ISBLANK(B172),\"\",VLOOKUP(B172,'разн. списки'!$W$3:$X$494,2,FALSE))","v":""}]
[{"$f":"IF(ISBLANK(B173),\"\",VLOOKUP(B173,'разн. списки'!$W$3:$X$494,2,FALSE))","v":""}]
[{"$f":"IF(ISBLANK(B174),\"\",VLOOKUP(B174,'разн. списки'!$W$3:$X$494,2,FALSE))","v":""}]
[{"$f":"IF(ISBLANK(B175),\"\",VLOOKUP(B175,'разн. списки'!$W$3:$X$494,2,FALSE))","v":""}]
[{"$f":"IF(ISBLANK(B176),\"\",VLOOKUP(B176,'разн. списки'!$W$3:$X$494,2,FALSE))","v":""}]
[{"$f":"IF(ISBLANK(B177),\"\",VLOOKUP(B177,'разн. списки'!$W$3:$X$494,2,FALSE))","v":""}]
[{"$f":"IF(ISBLANK(B178),\"\",VLOOKUP(B178,'разн. списки'!$W$3:$X$494,2,FALSE))","v":""}]
[{"$f":"IF(ISBLANK(B179),\"\",VLOOKUP(B179,'разн. списки'!$W$3:$X$494,2,FALSE))","v":""}]
[{"$f":"IF(ISBLANK(B180),\"\",VLOOKUP(B180,'разн. списки'!$W$3:$X$494,2,FALSE))","v":""}]
[{"$f":"IF(ISBLANK(B181),\"\",VLOOKUP(B181,'разн. списки'!$W$3:$X$494,2,FALSE))","v":""}]
[{"$f":"IF(ISBLANK(B182),\"\",VLOOKUP(B182,'разн. списки'!$W$3:$X$494,2,FALSE))","v":""}]
[{"$f":"IF(ISBLANK(B183),\"\",VLOOKUP(B183,'разн. списки'!$W$3:$X$494,2,FALSE))","v":""}]
[{"$f":"IF(ISBLANK(B184),\"\",VLOOKUP(B184,'разн. списки'!$W$3:$X$494,2,FALSE))","v":""}]
[{"$f":"IF(ISBLANK(B185),\"\",VLOOKUP(B185,'разн. списки'!$W$3:$X$494,2,FALSE))","v":""}]
[{"$f":"IF(ISBLANK(B186),\"\",VLOOKUP(B186,'разн. списки'!$W$3:$X$494,2,FALSE))","v":""}]
[{"$f":"IF(ISBLANK(B187),\"\",VLOOKUP(B187,'разн. списки'!$W$3:$X$494,2,FALSE))","v":""}]
[{"$f":"IF(ISBLANK(B188),\"\",VLOOKUP(B188,'разн. списки'!$W$3:$X$494,2,FALSE))","v":""}]
[{"$f":"IF(ISBLANK(B189),\"\",VLOOKUP(B189,'разн. списки'!$W$3:$X$494,2,FALSE))","v":""}]
[{"$f":"IF(ISBLANK(B190),\"\",VLOOKUP(B190,'разн. списки'!$W$3:$X$494,2,FALSE))","v":""}]
[{"$f":"IF(ISBLANK(B191),\"\",VLOOKUP(B191,'разн. списки'!$W$3:$X$494,2,FALSE))","v":""}]
[{"$f":"IF(ISBLANK(B192),\"\",VLOOKUP(B192,'разн. списки'!$W$3:$X$494,2,FALSE))","v":""}]
[{"$f":"IF(ISBLANK(B193),\"\",VLOOKUP(B193,'разн. списки'!$W$3:$X$494,2,FALSE))","v":""}]
[{"$f":"IF(ISBLANK(B194),\"\",VLOOKUP(B194,'разн. списки'!$W$3:$X$494,2,FALSE))","v":""}]
[{"$f":"IF(ISBLANK(B195),\"\",VLOOKUP(B195,'разн. списки'!$W$3:$X$494,2,FALSE))","v":""}]
[{"$f":"IF(ISBLANK(B196),\"\",VLOOKUP(B196,'разн. списки'!$W$3:$X$494,2,FALSE))","v":""}]
[{"$f":"IF(ISBLANK(B197),\"\",VLOOKUP(B197,'разн. списки'!$W$3:$X$494,2,FALSE))","v":""}]
[{"$f":"IF(ISBLANK(B198),\"\",VLOOKUP(B198,'разн. списки'!$W$3:$X$494,2,FALSE))","v":""}]
[{"$f":"IF(ISBLANK(B199),\"\",VLOOKUP(B199,'разн. списки'!$W$3:$X$494,2,FALSE))","v":""}]
[{"$f":"IF(ISBLANK(B200),\"\",VLOOKUP(B200,'разн. списки'!$W$3:$X$494,2,FALSE))","v":""}]
[{"$f":"IF(ISBLANK(B201),\"\",VLOOKUP(B201,'разн. списки'!$W$3:$X$494,2,FALSE))","v":""}]
[{"$f":"IF(ISBLANK(B202),\"\",VLOOKUP(B202,'разн. списки'!$W$3:$X$494,2,FALSE))","v":""}]
[null,null,null,null,{"$f":"SUM(E16:E202)","v":385},{"$f":"SUM(F16:F202)","v":46},{"$f":"SUM(G16:G202)","v":8},{"$f":"SUM(H16:H202)","v":203}]

{"sheet":"Ф1-3","index":3,"n_rows":21,"n_cols":17,"rows_kept":21,"cut":false,"hidden":false,"merged":[[1,0,1,16],[8,0,8,16],[2,15,2,16],[3,2,4,2],[3,3,3,5],[3,6,4,6],[3,7,3,11],[3,12,3,14],[3,15,4,15],[3,16,4,16],[2,0,4,0],[2,1,4,1],[2,2,2,5],[2,6,2,11],[2,12,2,14],[15,0,15,9],[9,15,9,16],[10,2,11,2],[10,3,10,5],[10,6,11,6],[10,7,10,11],[10,12,10,14],[10,15,11,15],[10,16,11,16],[9,0,11,0],[9,1,11,1],[9,2,9,5],[9,6,9,11],[9,12,9,14],[16,0,18,0],[16,1,17,2],[16,3,17,4],[16,5,17,8],[16,9,18,9]]}
[]
["Форма №1  Сведения о характеристике состава государственной экзаменационной комиссии по программам среднего профессионального образования по СПЕЦИАЛЬНОСТЯМ"]
["Наименование образовательной организации","Количество выпускников 2022 года по всем формам обучения, чел. (Автоматически подтягивается из Таб 1.2)","2.2.1. Председатель ГЭК",null,null,null,"2.2.2. Члены ГЭК",null,null,null,null,null,"2.2.3. Наименования предприятий (организаций), участвующих в работе ГЭК",null,null,"2.2.4.Информация о внесении членов ГЭК в базу кадровых ресурсов на цифровой платформе ЦОПП"]
[null,null,"Суммарно по всем комиссиям и формам обучения,  чел. \n(НЕ ЗАПОЛНЯЕТСЯ, СУММА СТОЛБЦОВ 4-6)","из них:",null,null,"Суммарно по всем комиссиям и формам обучения,  чел. (НЕ ЗАПОЛНЯЕТСЯ, СУММА СТОЛБЦОВ 8-11)","из них:",null,null,null,null,"из них:",null,null,"Всего внесено, чел.","В том числе экспертов Союза Ворлдскиллс"]
[null,null,null,"руководители/заместители руководителей, чел.","руководители структурных подразделений, чел.","прочие работники предприятий (организаций)",null,"представители работодателей / общественных союзов (ассоцийций), чел.","представители образовательных организаций, чел.","фрилансеры, самозанятые, ИП, чел","прочие работники предприятий (организаций), чел.","Из членов ГЭК (из столбца 7) эксперты Союза Ворлдскиллс вне зависимости от статуса, чел.","малые (среднесписочная численность сотрудников до 100 чел)","средние (среднесписочная численность сотрудников 101-250 чел)","крупные (среднесписочная численность сотрудников свыше 250 чел)"]
[1,2,3,4,5,6,7,8,9,10,11,12,13,14,15,16,17]
[{"$f":"'Таб 1.1-1.2'!$F$2","v":"Вместо этого текста, напишите название"},{"$f":"SUMIF('Таб 1.1-1.2'!$A$16:$A$202,\"спец\",'Таб 1.1-1.2'!$E$16:$E$202)","v":285},{"$f":"SUM(D7:F7)","v":12},2,4,6,{"$f":"SUM(H7:K7)","v":10},1,2,3,4,2,"ИП Григорьев","ООО Уралмедь","ООО ЕВРАЗ",1,1]
[]
["Форма №2  Сведения о характеристике состава государственной экзаменационной комиссии по программам среднего профессионального образования квалифицированных рабочих и служащих"]
["Наименование образовательной организации","Количество выпускников 2022 года по всем формам обучения, чел. (Автоматически подтягивается из Таб 1.2)","2.2.1. Председатель ГЭК",null,null,null,"2.2.2. Члены ГЭК",null,null,null,null,null,"2.2.3. Наименования предприятий (организаций), участвующих в работе ГЭК",null,null,"2.2.4.Информация о внесении членов ГЭК в базу кадровых ресурсов на цифровой платформе ЦОПП"]
[null,null,"Суммарно по всем комиссиям и формам обучения,  чел. \n(НЕ ЗАПОЛНЯЕТСЯ, СУММА СТОЛБЦОВ 4-6)","из них:",null,null,"Суммарно по всем комиссиям и формам обучения,  чел. (НЕ ЗАПОЛНЯЕТСЯ, СУММА СТОЛБЦОВ 8-11)","из них:",null,null,null,null,"из них:",null,null,"Всего внесено, чел.","В том числе экспертов Союза Ворлдскиллс"]
[null,null,null,"руководители/заместители руководителей, чел.","руководители структурных подразделений, чел.","прочие работники предприятий (организаций)",null,"представители работодателей / общественных союзов (ассоцийций), чел.","представители образовательных организаций, чел.","фрилансеры, замозанятые, ИП, чел","прочие работники предприятий (организаций), чел.","Из членов ГЭК (из столбца 7) эксперты Союза Ворлдскиллс вне зависимости от статуса, чел.","малые (среднесписочная численность сотрудников до 100 чел)","средние (среднесписочная численность сотрудников 101-250 чел)","крупные (среднесписочная численность сотрудников свыше 250 чел)"]
[1,2,3,4,5,6,7,8,9,10,11,12,13,14,15,16,17]
[{"$f":"'Таб 1.1-1.2'!$F$2","v":"Вместо этого текста, напишите название"},{"$f":"SUMIF('Таб 1.1-1.2'!$A$16:$A$202,\"проф\",'Таб 1.1-1.2'!$E$16:$E$202)","v":100},{"$f":"SUM(D14:F14)","v":6},1,2,3,{"$f":"SUM(H14:K14)","v":10},1,2,3,4,5,null,null,null,2,1]
[]
["Форма №3 Сведения о численности обучающихся последнего года обучения по программам среднего профессионального образования"]
["Наименование образовательной организации","4.1. Количество обучающихся последнего года обучения 2022 года (по данным СПО-1 на 01.10.2021г.)",null,"4.2. Количество обучающихся, допущенных к ГИА",null,"4.3. Количество выпускников получивших документ о квалификации по программам среднего профессионального образования",null,null,null,"4.4. Количество обучающихся последнего года обучения 2022 года, прошедших обучение по программам профессионального обучения по профессии рабочего, должности служащего в рамках образовательной программы среднего профессионального образования программам подготовки специалистов среднего звена (профессиональные модули) и получивших свидетельство о  профессии рабочего, должности служащего, чел."]
[]
[null,"Всего, чел.","из них с ОВЗ и / или инвалидов, чел.","Всего, чел.","из них с ОВЗ и / или инвалидов, чел.","Всего, чел.","Из них с ОВЗ и / или инвалидов, чел.","С отличием, чел","Из них с ОВЗ и / или инвалидов, чел."]
[1,2,3,4,5,6,7,8,9,10]
[{"$f":"'Таб 1.1-1.2'!$F$2","v":"Вместо этого текста, напишите название"},100,1,50,2,{"$f":"'Таб 1.1-1.2'!E203","v":385},3,200,75,20]

{"sheet":"Ф4 ПРОФЕССИИ","index":4,"n_rows":405,"n_cols":18,"rows_kept":405,"cut":false,"hidden":false,"merged":[[0,0,0,17],[1,8,1,15],[2,8,2,11],[2,12,2,15],[1,0,3,0],[1,2,3,2],[1,3,3,3],[1,16,3,16],[1,1,3,1],[1,4,3,4],[1,5,2,7],[1,17,3,17]]}
["ФОРМА №4 Виды и формы государственной итоговой аттестации по программам среднего профессионального образования по программам подготовки квалифицированных рабочих, служащих"]
["Код/Наименование профессии (выберите из списка)","Укрупненная группа (не заполняется)","Форма обучения (Выберите из списка)","Бюджет/Внебюджет (Выберите из списка)","Количество выпускников по профессии, допущенных и сдававших ГИА чел. (Не заполняется, сумма 7-9 столбцов)","Вид и форма ГИА ",null,null,"Результаты ГИА",null,null,null,null,null,null,null,"Наименование компетенции демонстрационного экзамена","Количество студентов прошедших демонстрационный экзамен по каждой компетенции в рамках ГИА, чел."]
[null,null,null,null,null,null,null,null,"Результаты защиты ВКР",null,null,null,"Результаты Государственного экзамена"]
[null,null,null,null,null,"Из столбца 6 Численность обучающихся, выполнявших  выпускную квалификационную работу в виде демонстрационного экзамена, чел.","Из столбца 6 Численность обучающихся, выполнявших  выпускную квалификационную работу в виде выпускной практической квалификационной работы и письменной экзаменационной работы","Из столбца 6 Численность обучающихся, выполнявших  выпускную квалификационную работу в виде выпускной практической квалификационной работы и письменной экзаменационной работы, при этом практическая квалификационная работа проводится в виде демонстрационного экзамена","отлично","хорошо","удовлетворительно ","Неудовлетворительно ","отлично","хорошо","удовлетворительно ","Неудовлетворительно "]
[1,2,3,4,5,6,7,8,9,10,11,12,13,14,15,16,17,18]
["1","Укрупненная группа","Форма обучения","Бюджет/Внебюджет","Количество выпускников по профессии","Численность обучающихся, выполнявших  выпускную квалификационную работу в виде демонстрационного экзамена, чел.","Численность обучающихся, выполнявших  выпускную квалификационную работу в виде выпускной практической квалификационной работы и письменной экзаменационной работы, чел.","Численность обучающихся, выполнявших  выпускную квалификационную работу в виде выпускной практической квалификационной работы и письменной экзаменационной работы, при этом практическая квалификационная работа проводится в виде демонстрационного экзамена, ","отлично (ВКР)","хорошо (ВКР)","удовлетворительно (ВКР)","Неудовлетворительно (ВКР)","отлично (ГЭ)","хорошо (ГЭ)","удовлетворительно (ГЭ)","Неудовлетворительно (ГЭ)","Наименование компетенции демонстрационного экзамена","Количество студентов прошедших демонстрационный экзамен по каждой компетенции в рамках ГИА, чел."]
["05.01.01 Гидрометнаблюдатель",{"$f":"IF(ISBLANK(A7),\"\",VLOOKUP(A7,'разн. списки'!$I$3:$J$222,2,FALSE))","v":"05.00.00 НАУКИ О ЗЕМЛЕ"},"Очная","Бюджет",{"$f":"SUM(F7:H7)","v":13},4,4,5,1,4,7,6,4,5,2,3,null,4]
["08.01.07 Мастер общестроительных работ",{"$f":"IF(ISBLANK(A8),\"\",VLOOKUP(A8,'разн. списки'!$I$3:$J$222,2,FALSE))","v":"08.00.00 ТЕХНИКА И ТЕХНОЛОГИИ СТРОИТЕЛЬСТВА"},"Заочная","Внебюджет",{"$f":"SUM(F8:H8)","v":40},10,15,15,10,5,6,4,3,4,5,6]
["05.01.01 Гидрометнаблюдатель",{"$f":"IF(ISBLANK(A9),\"\",VLOOKUP(A9,'разн. списки'!$I$3:$J$222,2,FALSE))","v":"05.00.00 НАУКИ О ЗЕМЛЕ"},"Очно-заочная","Бюджет",{"$f":"SUM(F9:H9)","v":13},5,1,7,4,5,4,6,4,7,8,9,null,5]
[null,{"$f":"IF(ISBLANK(A10),\"\",VLOOKUP(A10,'разн. списки'!$I$3:$J$222,2,FALSE))","v":""},null,null,0]
[null,{"$f":"IF(ISBLANK(A11),\"\",VLOOKUP(A11,'разн. списки'!$I$3:$J$222,2,FALSE))","v":""},null,null,0]
[null,{"$f":"IF(ISBLANK(A12),\"\",VLOOKUP(A12,'разн. списки'!$I$3:$J$222,2,FALSE))","v":""},null,null,0]
[null,{"$f":"IF(ISBLANK(A13),\"\",VLOOKUP(A13,'разн. списки'!$I$3:$J$222,2,FALSE))","v":""},null,null,0]
[null,{"$f":"IF(ISBLANK(A14),\"\",VLOOKUP(A14,'разн. списки'!$I$3:$J$222,2,FALSE))","v":""},null,null,0]
[null,{"$f":"IF(ISBLANK(A15),\"\",VLOOKUP(A15,'разн. списки'!$I$3:$J$222,2,FALSE))","v":""},null,null,0]
[null,{"$f":"IF(ISBLANK(A16),\"\",VLOOKUP(A16,'разн. списки'!$I$3:$J$222,2,FALSE))","v":""},null,null,0]
[null,{"$f":"IF(ISBLANK(A17),\"\",VLOOKUP(A17,'разн. списки'!$I$3:$J$222,2,FALSE))","v":""},null,null,0]
[null,{"$f":"IF(ISBLANK(A18),\"\",VLOOKUP(A18,'разн. списки'!$I$3:$J$222,2,FALSE))","v":""},null,null,0]
[null,{"$f":"IF(ISBLANK(A19),\"\",VLOOKUP(A19,'разн. списки'!$I$3:$J$222,2,FALSE))","v":""},null,null,0]
[null,{"$f":"IF(ISBLANK(A20),\"\",VLOOKUP(A20,'разн. списки'!$I$3:$J$222,2,FALSE))","v":""},null,null,0]
[null,{"$f":"IF(ISBLANK(A21),\"\",VLOOKUP(A21,'разн. списки'!$I$3:$J$222,2,FALSE))","v":""},null,null,0]
[null,{"$f":"IF(ISBLANK(A22),\"\",VLOOKUP(A22,'разн. списки'!$I$3:$J$222,2,FALSE))","v":""},null,null,0]
[null,{"$f":"IF(ISBLANK(A23),\"\",VLOOKUP(A23,'разн. списки'!$I$3:$J$222,2,FALSE))","v":""},null,null,0]
[null,{"$f":"IF(ISBLANK(A24),\"\",VLOOKUP(A24,'разн. списки'!$I$3:$J$222,2,FALSE))","v":""},null,null,0]
[null,{"$f":"IF(ISBLANK(A25),\"\",VLOOKUP(A25,'разн. списки'!$I$3:$J$222,2,FALSE))","v":""},null,null,0]
[null,{"$f":"IF(ISBLANK(A26),\"\",VLOOKUP(A26,'разн. списки'!$I$3:$J$222,2,FALSE))","v":""},null,null,0]
[null,{"$f":"IF(ISBLANK(A27),\"\",VLOOKUP(A27,'разн. списки'!$I$3:$J$222,2,FALSE))","v":""},null,null,0]
[null,{"$f":"IF(ISBLANK(A28),\"\",VLOOKUP(A28,'разн. списки'!$I$3:$J$222,2,FALSE))","v":""},null,null,0]
[null,{"$f":"IF(ISBLANK(A29),\"\",VLOOKUP(A29,'разн. списки'!$I$3:$J$222,2,FALSE))","v":""},null,null,0]
[null,{"$f":"IF(ISBLANK(A30),\"\",VLOOKUP(A30,'разн. списки'!$I$3:$J$222,2,FALSE))","v":""},null,null,0]
[null,{"$f":"IF(ISBLANK(A31),\"\",VLOOKUP(A31,'разн. списки'!$I$3:$J$222,2,FALSE))","v":""},null,null,0]
[null,{"$f":"IF(ISBLANK(A32),\"\",VLOOKUP(A32,'разн. списки'!$I$3:$J$222,2,FALSE))","v":""},null,null,0]
[null,{"$f":"IF(ISBLANK(A33),\"\",VLOOKUP(A33,'разн. списки'!$I$3:$J$222,2,FALSE))","v":""},null,null,0]
[null,{"$f":"IF(ISBLANK(A34),\"\",VLOOKUP(A34,'разн. списки'!$I$3:$J$222,2,FALSE))","v":""},null,null,0]
[null,{"$f":"IF(ISBLANK(A35),\"\",VLOOKUP(A35,'разн. списки'!$I$3:$J$222,2,FALSE))","v":""},null,null,0]
[null,{"$f":"IF(ISBLANK(A36),\"\",VLOOKUP(A36,'разн. списки'!$I$3:$J$222,2,FALSE))","v":""},null,null,0]
[null,{"$f":"IF(ISBLANK(A37),\"\",VLOOKUP(A37,'разн. списки'!$I$3:$J$222,2,FALSE))","v":""},null,null,0]
[null,{"$f":"IF(ISBLANK(A38),\"\",VLOOKUP(A38,'разн. списки'!$I$3:$J$222,2,FALSE))","v":""},null,null,0]
[null,{"$f":"IF(ISBLANK(A39),\"\",VLOOKUP(A39,'разн. списки'!$I$3:$J$222,2,FALSE))","v":""},null,null,0]
[null,{"$f":"IF(ISBLANK(A40),\"\",VLOOKUP(A40,'разн. списки'!$I$3:$J$222,2,FALSE))","v":""},null,null,0]
[null,{"$f":"IF(ISBLANK(A41),\"\",VLOOKUP(A41,'разн. списки'!$I$3:$J$222,2,FALSE))","v":""},null,null,0]
[null,{"$f":"IF(ISBLANK(A42),\"\",VLOOKUP(A42,'разн. списки'!$I$3:$J$222,2,FALSE))","v":""},null,null,0]
[null,{"$f":"IF(ISBLANK(A43),\"\",VLOOKUP(A43,'разн. списки'!$I$3:$J$222,2,FALSE))","v":""},null,null,0]
[null,{"$f":"IF(ISBLANK(A44),\"\",VLOOKUP(A44,'разн. списки'!$I$3:$J$222,2,FALSE))","v":""},null,null,0]
[null,{"$f":"IF(ISBLANK(A45),\"\",VLOOKUP(A45,'разн. списки'!$I$3:$J$222,2,FALSE))","v":""},null,null,0]
[null,{"$f":"IF(ISBLANK(A46),\"\",VLOOKUP(A46,'разн. списки'!$I$3:$J$222,2,FALSE))","v":""},null,null,0]
[null,{"$f":"IF(ISBLANK(A47),\"\",VLOOKUP(A47,'разн. списки'!$I$3:$J$222,2,FALSE))","v":""},null,null,0]
[null,{"$f":"IF(ISBLANK(A48),\"\",VLOOKUP(A48,'разн. списки'!$I$3:$J$222,2,FALSE))","v":""},null,null,0]
[null,{"$f":"IF(ISBLANK(A49),\"\",VLOOKUP(A49,'разн. списки'!$I$3:$J$222,2,FALSE))","v":""},null,null,0]
[null,{"$f":"IF(ISBLANK(A50),\"\",VLOOKUP(A50,'разн. списки'!$I$3:$J$222,2,FALSE))","v":""},null,null,0]
[null,{"$f":"IF(ISBLANK(A51),\"\",VLOOKUP(A51,'разн. списки'!$I$3:$J$222,2,FALSE))","v":""},null,null,0]
[null,{"$f":"IF(ISBLANK(A52),\"\",VLOOKUP(A52,'разн. списки'!$I$3:$J$222,2,FALSE))","v":""},null,null,0]
[null,{"$f":"IF(ISBLANK(A53),\"\",VLOOKUP(A53,'разн. списки'!$I$3:$J$222,2,FALSE))","v":""},null,null,0]
[null,{"$f":"IF(ISBLANK(A54),\"\",VLOOKUP(A54,'разн. списки'!$I$3:$J$222,2,FALSE))","v":""},null,null,0]
[null,{"$f":"IF(ISBLANK(A55),\"\",VLOOKUP(A55,'разн. списки'!$I$3:$J$222,2,FALSE))","v":""},null,null,0]
[null,{"$f":"IF(ISBLANK(A56),\"\",VLOOKUP(A56,'разн. списки'!$I$3:$J$222,2,FALSE))","v":""},null,null,0]
[null,{"$f":"IF(ISBLANK(A57),\"\",VLOOKUP(A57,'разн. списки'!$I$3:$J$222,2,FALSE))","v":""},null,null,0]
[null,{"$f":"IF(ISBLANK(A58),\"\",VLOOKUP(A58,'разн. списки'!$I$3:$J$222,2,FALSE))","v":""},null,null,0]
[null,{"$f":"IF(ISBLANK(A59),\"\",VLOOKUP(A59,'разн. списки'!$I$3:$J$222,2,FALSE))","v":""},null,null,0]
[null,{"$f":"IF(ISBLANK(A60),\"\",VLOOKUP(A60,'разн. списки'!$I$3:$J$222,2,FALSE))","v":""},null,null,0]
[null,{"$f":"IF(ISBLANK(A61),\"\",VLOOKUP(A61,'разн. списки'!$I$3:$J$222,2,FALSE))","v":""},null,null,0]
[null,{"$f":"IF(ISBLANK(A62),\"\",VLOOKUP(A62,'разн. списки'!$I$3:$J$222,2,FALSE))","v":""},null,null,0]
[null,{"$f":"IF(ISBLANK(A63),\"\",VLOOKUP(A63,'разн. списки'!$I$3:$J$222,2,FALSE))","v":""},null,null,0]
[null,{"$f":"IF(ISBLANK(A64),\"\",VLOOKUP(A64,'разн. списки'!$I$3:$J$222,2,FALSE))","v":""},null,null,0]
[null,{"$f":"IF(ISBLANK(A65),\"\",VLOOKUP(A65,'разн. списки'!$I$3:$J$222,2,FALSE))","v":""},null,null,0]
[null,{"$f":"IF(ISBLANK(A66),\"\",VLOOKUP(A66,'разн. списки'!$I$3:$J$222,2,FALSE))","v":""},null,null,0]
[null,{"$f":"IF(ISBLANK(A67),\"\",VLOOKUP(A67,'разн. списки'!$I$3:$J$222,2,FALSE))","v":""},null,null,0]
[null,{"$f":"IF(ISBLANK(A68),\"\",VLOOKUP(A68,'разн. списки'!$I$3:$J$222,2,FALSE))","v":""},null,null,0]
[null,{"$f":"IF(ISBLANK(A69),\"\",VLOOKUP(A69,'разн. списки'!$I$3:$J$222,2,FALSE))","v":""},null,null,0]
[null,{"$f":"IF(ISBLANK(A70),\"\",VLOOKUP(A70,'разн. списки'!$I$3:$J$222,2,FALSE))","v":""},null,null,0]
[null,{"$f":"IF(ISBLANK(A71),\"\",VLOOKUP(A71,'разн. списки'!$I$3:$J$222,2,FALSE))","v":""},null,null,0]
[null,{"$f":"IF(ISBLANK(A72),\"\",VLOOKUP(A72,'разн. списки'!$I$3:$J$222,2,FALSE))","v":""},null,null,{"$f":"SUM(F72:H72)","v":0}]
[null,{"$f":"IF(ISBLANK(A73),\"\",VLOOKUP(A73,'разн. списки'!$I$3:$J$222,2,FALSE))","v":""},null,null,0]
[null,{"$f":"IF(ISBLANK(A74),\"\",VLOOKUP(A74,'разн. списки'!$I$3:$J$222,2,FALSE))","v":""},null,null,0]
[null,{"$f":"IF(ISBLANK(A75),\"\",VLOOKUP(A75,'разн. списки'!$I$3:$J$222,2,FALSE))","v":""},null,null,0]
[null,{"$f":"IF(ISBLANK(A76),\"\",VLOOKUP(A76,'разн. списки'!$I$3:$J$222,2,FALSE))","v":""},null,null,0]
[null,{"$f":"IF(ISBLANK(A77),\"\",VLOOKUP(A77,'разн. списки'!$I$3:$J$222,2,FALSE))","v":""},null,null,0]
[null,{"$f":"IF(ISBLANK(A78),\"\",VLOOKUP(A78,'разн. списки'!$I$3:$J$222,2,FALSE))","v":""},null,null,0]
[null,{"$f":"IF(ISBLANK(A79),\"\",VLOOKUP(A79,'разн. списки'!$I$3:$J$222,2,FALSE))","v":""},null,null,0]
[null,{"$f":"IF(ISBLANK(A80),\"\",VLOOKUP(A80,'разн. списки'!$I$3:$J$222,2,FALSE))","v":""},null,null,0]
[null,{"$f":"IF(ISBLANK(A81),\"\",VLOOKUP(A81,'разн. списки'!$I$3:$J$222,2,FALSE))","v":""},null,null,0]
[null,{"$f":"IF(ISBLANK(A82),\"\",VLOOKUP(A82,'разн. списки'!$I$3:$J$222,2,FALSE))","v":""},null,null,0]
[null,{"$f":"IF(ISBLANK(A83),\"\",VLOOKUP(A83,'разн. списки'!$I$3:$J$222,2,FALSE))","v":""},null,null,0]
[null,{"$f":"IF(ISBLANK(A84),\"\",VLOOKUP(A84,'разн. списки'!$I$3:$J$222,2,FALSE))","v":""},null,null,0]
[null,{"$f":"IF(ISBLANK(A85),\"\",VLOOKUP(A85,'разн. списки'!$I$3:$J$222,2,FALSE))","v":""},null,null,0]
[null,{"$f":"IF(ISBLANK(A86),\"\",VLOOKUP(A86,'разн. списки'!$I$3:$J$222,2,FALSE))","v":""},null,null,0]
[null,{"$f":"IF(ISBLANK(A87),\"\",VLOOKUP(A87,'разн. списки'!$I$3:$J$222,2,FALSE))","v":""},null,null,0]
[null,{"$f":"IF(ISBLANK(A88),\"\",VLOOKUP(A88,'разн. списки'!$I$3:$J$222,2,FALSE))","v":""},null,null,0]
[null,{"$f":"IF(ISBLANK(A89),\"\",VLOOKUP(A89,'разн. списки'!$I$3:$J$222,2,FALSE))","v":""},null,null,0]
[null,{"$f":"IF(ISBLANK(A90),\"\",VLOOKUP(A90,'разн. списки'!$I$3:$J$222,2,FALSE))","v":""},null,null,0]
[null,{"$f":"IF(ISBLANK(A91),\"\",VLOOKUP(A91,'разн. списки'!$I$3:$J$222,2,FALSE))","v":""},null,null,0]
[null,{"$f":"IF(ISBLANK(A92),\"\",VLOOKUP(A92,'разн. списки'!$I$3:$J$222,2,FALSE))","v":""},null,null,0]
[null,{"$f":"IF(ISBLANK(A93),\"\",VLOOKUP(A93,'разн. списки'!$I$3:$J$222,2,FALSE))","v":""},null,null,0]
[null,{"$f":"IF(ISBLANK(A94),\"\",VLOOKUP(A94,'разн. списки'!$I$3:$J$222,2,FALSE))","v":""},null,null,0]
[null,{"$f":"IF(ISBLANK(A95),\"\",VLOOKUP(A95,'разн. списки'!$I$3:$J$222,2,FALSE))","v":""},null,null,0]
[null,{"$f":"IF(ISBLANK(A96),\"\",VLOOKUP(A96,'разн. списки'!$I$3:$J$222,2,FALSE))","v":""},null,null,0]
[null,{"$f":"IF(ISBLANK(A97),\"\",VLOOKUP(A97,'разн. списки'!$I$3:$J$222,2,FALSE))","v":""},null,null,0]
[null,{"$f":"IF(ISBLANK(A98),\"\",VLOOKUP(A98,'разн. списки'!$I$3:$J$222,2,FALSE))","v":""},null,null,0]
[null,{"$f":"IF(ISBLANK(A99),\"\",VLOOKUP(A99,'разн. списки'!$I$3:$J$222,2,FALSE))","v":""},null,null,0]
[null,{"$f":"IF(ISBLANK(A100),\"\",VLOOKUP(A100,'разн. списки'!$I$3:$J$222,2,FALSE))","v":""},null,null,0]
[null,{"$f":"IF(ISBLANK(A101),\"\",VLOOKUP(A101,'разн. списки'!$I$3:$J$222,2,FALSE))","v":""},null,null,0]
[null,{"$f":"IF(ISBLANK(A102),\"\",VLOOKUP(A102,'разн. списки'!$I$3:$J$222,2,FALSE))","v":""},null,null,0]
[null,{"$f":"IF(ISBLANK(A103),\"\",VLOOKUP(A103,'разн. списки'!$I$3:$J$222,2,FALSE))","v":""},null,null,0]
[null,{"$f":"IF(ISBLANK(A104),\"\",VLOOKUP(A104,'разн. списки'!$I$3:$J$222,2,FALSE))","v":""},null,null,0]
[null,{"$f":"IF(ISBLANK(A105),\"\",VLOOKUP(A105,'разн. списки'!$I$3:$J$222,2,FALSE))","v":""},null,null,0]
[null,{"$f":"IF(ISBLANK(A106),\"\",VLOOKUP(A106,'разн. списки'!$I$3:$J$222,2,FALSE))","v":""},null,null,0]
[null,{"$f":"IF(ISBLANK(A107),\"\",VLOOKUP(A107,'разн. списки'!$I$3:$J$222,2,FALSE))","v":""},null,null,0]
[null,{"$f":"IF(ISBLANK(A108),\"\",VLOOKUP(A108,'разн. списки'!$I$3:$J$222,2,FALSE))","v":""},null,null,0]
[null,{"$f":"IF(ISBLANK(A109),\"\",VLOOKUP(A109,'разн. списки'!$I$3:$J$222,2,FALSE))","v":""},null,null,0]
[null,{"$f":"IF(ISBLANK(A110),\"\",VLOOKUP(A110,'разн. списки'!$I$3:$J$222,2,FALSE))","v":""},null,null,0]
[null,{"$f":"IF(ISBLANK(A111),\"\",VLOOKUP(A111,'разн. списки'!$I$3:$J$222,2,FALSE))","v":""},null,null,0]
[null,{"$f":"IF(ISBLANK(A112),\"\",VLOOKUP(A112,'разн. списки'!$I$3:$J$222,2,FALSE))","v":""},null,null,0]
[null,{"$f":"IF(ISBLANK(A113),\"\",VLOOKUP(A113,'разн. списки'!$I$3:$J$222,2,FALSE))","v":""},null,null,0]
[null,{"$f":"IF(ISBLANK(A114),\"\",VLOOKUP(A114,'разн. списки'!$I$3:$J$222,2,FALSE))","v":""},null,null,0]
[null,{"$f":"IF(ISBLANK(A115),\"\",VLOOKUP(A115,'разн. списки'!$I$3:$J$222,2,FALSE))","v":""},null,null,0]
[null,{"$f":"IF(ISBLANK(A116),\"\",VLOOKUP(A116,'разн. списки'!$I$3:$J$222,2,FALSE))","v":""},null,null,0]
[null,{"$f":"IF(ISBLANK(A117),\"\",VLOOKUP(A117,'разн. списки'!$I$3:$J$222,2,FALSE))","v":""},null,null,0]
[null,{"$f":"IF(ISBLANK(A118),\"\",VLOOKUP(A118,'разн. списки'!$I$3:$J$222,2,FALSE))","v":""},null,null,0]
[null,{"$f":"IF(ISBLANK(A119),\"\",VLOOKUP(A119,'разн. списки'!$I$3:$J$222,2,FALSE))","v":""},null,null,0]
[null,{"$f":"IF(ISBLANK(A120),\"\",VLOOKUP(A120,'разн. списки'!$I$3:$J$222,2,FALSE))","v":""},null,null,0]
[null,{"$f":"IF(ISBLANK(A121),\"\",VLOOKUP(A121,'разн. списки'!$I$3:$J$222,2,FALSE))","v":""},null,null,0]
[null,{"$f":"IF(ISBLANK(A122),\"\",VLOOKUP(A122,'разн. списки'!$I$3:$J$222,2,FALSE))","v":""},null,null,0]
[null,{"$f":"IF(ISBLANK(A123),\"\",VLOOKUP(A123,'разн. списки'!$I$3:$J$222,2,FALSE))","v":""},null,null,0]
[null,{"$f":"IF(ISBLANK(A124),\"\",VLOOKUP(A124,'разн. списки'!$I$3:$J$222,2,FALSE))","v":""},null,null,0]
[null,{"$f":"IF(ISBLANK(A125),\"\",VLOOKUP(A125,'разн. списки'!$I$3:$J$222,2,FALSE))","v":""},null,null,0]
[null,{"$f":"IF(ISBLANK(A126),\"\",VLOOKUP(A126,'разн. списки'!$I$3:$J$222,2,FALSE))","v":""},null,null,0]
[null,{"$f":"IF(ISBLANK(A127),\"\",VLOOKUP(A127,'разн. списки'!$I$3:$J$222,2,FALSE))","v":""},null,null,0]
[null,{"$f":"IF(ISBLANK(A128),\"\",VLOOKUP(A128,'разн. списки'!$I$3:$J$222,2,FALSE))","v":""},null,null,0]
[null,{"$f":"IF(ISBLANK(A129),\"\",VLOOKUP(A129,'разн. списки'!$I$3:$J$222,2,FALSE))","v":""},null,null,0]
[null,{"$f":"IF(ISBLANK(A130),\"\",VLOOKUP(A130,'разн. списки'!$I$3:$J$222,2,FALSE))","v":""},null,null,0]
[null,{"$f":"IF(ISBLANK(A131),\"\",VLOOKUP(A131,'разн. списки'!$I$3:$J$222,2,FALSE))","v":""},null,null,0]
[null,{"$f":"IF(ISBLANK(A132),\"\",VLOOKUP(A132,'разн. списки'!$I$3:$J$222,2,FALSE))","v":""},null,null,0]
[null,{"$f":"IF(ISBLANK(A133),\"\",VLOOKUP(A133,'разн. списки'!$I$3:$J$222,2,FALSE))","v":""},null,null,0]
[null,{"$f":"IF(ISBLANK(A134),\"\",VLOOKUP(A134,'разн. списки'!$I$3:$J$222,2,FALSE))","v":""},null,null,0]
[null,{"$f":"IF(ISBLANK(A135),\"\",VLOOKUP(A135,'разн. списки'!$I$3:$J$222,2,FALSE))","v":""},null,null,0]
[null,{"$f":"IF(ISBLANK(A136),\"\",VLOOKUP(A136,'разн. списки'!$I$3:$J$222,2,FALSE))","v":""},null,null,{"$f":"SUM(F136:H136)","v":0}]
[null,{"$f":"IF(ISBLANK(A137),\"\",VLOOKUP(A137,'разн. списки'!$I$3:$J$222,2,FALSE))","v":""},null,null,0]
[null,{"$f":"IF(ISBLANK(A138),\"\",VLOOKUP(A138,'разн. списки'!$I$3:$J$222,2,FALSE))","v":""},null,null,0]
[null,{"$f":"IF(ISBLANK(A139),\"\",VLOOKUP(A139,'разн. списки'!$I$3:$J$222,2,FALSE))","v":""},null,null,0]
[null,{"$f":"IF(ISBLANK(A140),\"\",VLOOKUP(A140,'разн. списки'!$I$3:$J$222,2,FALSE))","v":""},null,null,0]
[null,{"$f":"IF(ISBLANK(A141),\"\",VLOOKUP(A141,'разн. списки'!$I$3:$J$222,2,FALSE))","v":""},null,null,0]
[null,{"$f":"IF(ISBLANK(A142),\"\",VLOOKUP(A142,'разн. списки'!$I$3:$J$222,2,FALSE))","v":""},null,null,0]
[null,{"$f":"IF(ISBLANK(A143),\"\",VLOOKUP(A143,'разн. списки'!$I$3:$J$222,2,FALSE))","v":""},null,null,0]
[null,{"$f":"IF(ISBLANK(A144),\"\",VLOOKUP(A144,'разн. списки'!$I$3:$J$222,2,FALSE))","v":""},null,null,0]
[null,{"$f":"IF(ISBLANK(A145),\"\",VLOOKUP(A145,'разн. списки'!$I$3:$J$222,2,FALSE))","v":""},null,null,0]
[null,{"$f":"IF(ISBLANK(A146),\"\",VLOOKUP(A146,'разн. списки'!$I$3:$J$222,2,FALSE))","v":""},null,null,0]
[null,{"$f":"IF(ISBLANK(A147),\"\",VLOOKUP(A147,'разн. списки'!$I$3:$J$222,2,FALSE))","v":""},null,null,0]
[null,{"$f":"IF(ISBLANK(A148),\"\",VLOOKUP(A148,'разн. списки'!$I$3:$J$222,2,FALSE))","v":""},null,null,0]
[null,{"$f":"IF(ISBLANK(A149),\"\",VLOOKUP(A149,'разн. списки'!$I$3:$J$222,2,FALSE))","v":""},null,null,0]
[null,{"$f":"IF(ISBLANK(A150),\"\",VLOOKUP(A150,'разн. списки'!$I$3:$J$222,2,FALSE))","v":""},null,null,0]
[null,{"$f":"IF(ISBLANK(A151),\"\",VLOOKUP(A151,'разн. списки'!$I$3:$J$222,2,FALSE))","v":""},null,null,0]
[null,{"$f":"IF(ISBLANK(A152),\"\",VLOOKUP(A152,'разн. списки'!$I$3:$J$222,2,FALSE))","v":""},null,null,0]
[null,{"$f":"IF(ISBLANK(A153),\"\",VLOOKUP(A153,'разн. списки'!$I$3:$J$222,2,FALSE))","v":""},null,null,0]
[null,{"$f":"IF(ISBLANK(A154),\"\",VLOOKUP(A154,'разн. списки'!$I$3:$J$222,2,FALSE))","v":""},null,null,0]
[null,{"$f":"IF(ISBLANK(A155),\"\",VLOOKUP(A155,'разн. списки'!$I$3:$J$222,2,FALSE))","v":""},null,null,0]
[null,{"$f":"IF(ISBLANK(A156),\"\",VLOOKUP(A156,'разн. списки'!$I$3:$J$222,2,FALSE))","v":""},null,null,0]
[null,{"$f":"IF(ISBLANK(A157),\"\",VLOOKUP(A157,'разн. списки'!$I$3:$J$222,2,FALSE))","v":""},null,null,0]
[null,{"$f":"IF(ISBLANK(A158),\"\",VLOOKUP(A158,'разн. списки'!$I$3:$J$222,2,FALSE))","v":""},null,null,0]
[null,{"$f":"IF(ISBLANK(A159),\"\",VLOOKUP(A159,'разн. списки'!$I$3:$J$222,2,FALSE))","v":""},null,null,0]
[null,{"$f":"IF(ISBLANK(A160),\"\",VLOOKUP(A160,'разн. списки'!$I$3:$J$222,2,FALSE))","v":""},null,null,0]
[null,{"$f":"IF(ISBLANK(A161),\"\",VLOOKUP(A161,'разн. списки'!$I$3:$J$222,2,FALSE))","v":""},null,null,0]
[null,{"$f":"IF(ISBLANK(A162),\"\",VLOOKUP(A162,'разн. списки'!$I$3:$J$222,2,FALSE))","v":""},null,null,0]
[null,{"$f":"IF(ISBLANK(A163),\"\",VLOOKUP(A163,'разн. списки'!$I$3:$J$222,2,FALSE))","v":""},null,null,0]
[null,{"$f":"IF(ISBLANK(A164),\"\",VLOOKUP(A164,'разн. списки'!$I$3:$J$222,2,FALSE))","v":""},null,null,0]
[null,{"$f":"IF(ISBLANK(A165),\"\",VLOOKUP(A165,'разн. списки'!$I$3:$J$222,2,FALSE))","v":""},null,null,0]
[null,{"$f":"IF(ISBLANK(A166),\"\",VLOOKUP(A166,'разн. списки'!$I$3:$J$222,2,FALSE))","v":""},null,null,0]
[null,{"$f":"IF(ISBLANK(A167),\"\",VLOOKUP(A167,'разн. списки'!$I$3:$J$222,2,FALSE))","v":""},null,null,0]
[null,{"$f":"IF(ISBLANK(A168),\"\",VLOOKUP(A168,'разн. списки'!$I$3:$J$222,2,FALSE))","v":""},null,null,0]
[null,{"$f":"IF(ISBLANK(A169),\"\",VLOOKUP(A169,'разн. списки'!$I$3:$J$222,2,FALSE))","v":""},null,null,0]
[null,{"$f":"IF(ISBLANK(A170),\"\",VLOOKUP(A170,'разн. списки'!$I$3:$J$222,2,FALSE))","v":""},null,null,0]
[null,{"$f":"IF(ISBLANK(A171),\"\",VLOOKUP(A171,'разн. списки'!$I$3:$J$222,2,FALSE))","v":""},null,null,0]
[null,{"$f":"IF(ISBLANK(A172),\"\",VLOOKUP(A172,'разн. списки'!$I$3:$J$222,2,FALSE))","v":""},null,null,0]
[null,{"$f":"IF(ISBLANK(A173),\"\",VLOOKUP(A173,'разн. списки'!$I$3:$J$222,2,FALSE))","v":""},null,null,0]
[null,{"$f":"IF(ISBLANK(A174),\"\",VLOOKUP(A174,'разн. списки'!$I$3:$J$222,2,FALSE))","v":""},null,null,0]
[null,{"$f":"IF(ISBLANK(A175),\"\",VLOOKUP(A175,'разн. списки'!$I$3:$J$222,2,FALSE))","v":""},null,null,0]
[null,{"$f":"IF(ISBLANK(A176),\"\",VLOOKUP(A176,'разн. списки'!$I$3:$J$222,2,FALSE))","v":""},null,null,0]
[null,{"$f":"IF(ISBLANK(A177),\"\",VLOOKUP(A177,'разн. списки'!$I$3:$J$222,2,FALSE))","v":""},null,null,0]
[null,{"$f":"IF(ISBLANK(A178),\"\",VLOOKUP(A178,'разн. списки'!$I$3:$J$222,2,FALSE))","v":""},null,null,0]
[null,{"$f":"IF(ISBLANK(A179),\"\",VLOOKUP(A179,'разн. списки'!$I$3:$J$222,2,FALSE))","v":""},null,null,0]
[null,{"$f":"IF(ISBLANK(A180),\"\",VLOOKUP(A180,'разн. списки'!$I$3:$J$222,2,FALSE))","v":""},null,null,0]
[null,{"$f":"IF(ISBLANK(A181),\"\",VLOOKUP(A181,'разн. списки'!$I$3:$J$222,2,FALSE))","v":""},null,null,0]
[null,{"$f":"IF(ISBLANK(A182),\"\",VLOOKUP(A182,'разн. списки'!$I$3:$J$222,2,FALSE))","v":""},null,null,0]
[null,{"$f":"IF(ISBLANK(A183),\"\",VLOOKUP(A183,'разн. списки'!$I$3:$J$222,2,FALSE))","v":""},null,null,0]
[null,{"$f":"IF(ISBLANK(A184),\"\",VLOOKUP(A184,'разн. списки'!$I$3:$J$222,2,FALSE))","v":""},null,null,0]
[null,{"$f":"IF(ISBLANK(A185),\"\",VLOOKUP(A185,'разн. списки'!$I$3:$J$222,2,FALSE))","v":""},null,null,0]
[null,{"$f":"IF(ISBLANK(A186),\"\",VLOOKUP(A186,'разн. списки'!$I$3:$J$222,2,FALSE))","v":""},null,null,0]
[null,{"$f":"IF(ISBLANK(A187),\"\",VLOOKUP(A187,'разн. списки'!$I$3:$J$222,2,FALSE))","v":""},null,null,0]
[null,{"$f":"IF(ISBLANK(A188),\"\",VLOOKUP(A188,'разн. списки'!$I$3:$J$222,2,FALSE))","v":""},null,null,0]
[null,{"$f":"IF(ISBLANK(A189),\"\",VLOOKUP(A189,'разн. списки'!$I$3:$J$222,2,FALSE))","v":""},null,null,0]
[null,{"$f":"IF(ISBLANK(A190),\"\",VLOOKUP(A190,'разн. списки'!$I$3:$J$222,2,FALSE))","v":""},null,null,0]
[null,{"$f":"IF(ISBLANK(A191),\"\",VLOOKUP(A191,'разн. списки'!$I$3:$J$222,2,FALSE))","v":""},null,null,0]
[null,{"$f":"IF(ISBLANK(A192),\"\",VLOOKUP(A192,'разн. списки'!$I$3:$J$222,2,FALSE))","v":""},null,null,0]
[null,{"$f":"IF(ISBLANK(A193),\"\",VLOOKUP(A193,'разн. списки'!$I$3:$J$222,2,FALSE))","v":""},null,null,0]
[null,{"$f":"IF(ISBLANK(A194),\"\",VLOOKUP(A194,'разн. списки'!$I$3:$J$222,2,FALSE))","v":""},null,null,0]
[null,{"$f":"IF(ISBLANK(A195),\"\",VLOOKUP(A195,'разн. списки'!$I$3:$J$222,2,FALSE))","v":""},null,null,0]
[null,{"$f":"IF(ISBLANK(A196),\"\",VLOOKUP(A196,'разн. списки'!$I$3:$J$222,2,FALSE))","v":""},null,null,0]
[null,{"$f":"IF(ISBLANK(A197),\"\",VLOOKUP(A197,'разн. списки'!$I$3:$J$222,2,FALSE))","v":""},null,null,0]
[null,{"$f":"IF(ISBLANK(A198),\"\",VLOOKUP(A198,'разн. списки'!$I$3:$J$222,2,FALSE))","v":""},null,null,0]
[null,{"$f":"IF(ISBLANK(A199),\"\",VLOOKUP(A199,'разн. списки'!$I$3:$J$222,2,FALSE))","v":""},null,null,0]
[null,{"$f":"IF(ISBLANK(A200),\"\",VLOOKUP(A200,'разн. списки'!$I$3:$J$222,2,FALSE))","v":""},null,null,{"$f":"SUM(F200:H200)","v":0}]
[null,{"$f":"IF(ISBLANK(A201),\"\",VLOOKUP(A201,'разн. списки'!$I$3:$J$222,2,FALSE))","v":""},null,null,0]
[null,{"$f":"IF(ISBLANK(A202),\"\",VLOOKUP(A202,'разн. списки'!$I$3:$J$222,2,FALSE))","v":""},null,null,0]
[null,{"$f":"IF(ISBLANK(A203),\"\",VLOOKUP(A203,'разн. списки'!$I$3:$J$222,2,FALSE))","v":""},null,null,0]
[null,{"$f":"IF(ISBLANK(A204),\"\",VLOOKUP(A204,'разн. списки'!$I$3:$J$222,2,FALSE))","v":""},null,null,0]
[null,{"$f":"IF(ISBLANK(A205),\"\",VLOOKUP(A205,'разн. списки'!$I$3:$J$222,2,FALSE))","v":""},null,null,0]
[null,{"$f":"IF(ISBLANK(A206),\"\",VLOOKUP(A206,'разн. списки'!$I$3:$J$222,2,FALSE))","v":""},null,null,0]
[null,{"$f":"IF(ISBLANK(A207),\"\",VLOOKUP(A207,'разн. списки'!$I$3:$J$222,2,FALSE))","v":""},null,null,0]
[null,{"$f":"IF(ISBLANK(A208),\"\",VLOOKUP(A208,'разн. списки'!$I$3:$J$222,2,FALSE))","v":""},null,null,0]
[null,{"$f":"IF(ISBLANK(A209),\"\",VLOOKUP(A209,'разн. списки'!$I$3:$J$222,2,FALSE))","v":""},null,null,0]
[null,{"$f":"IF(ISBLANK(A210),\"\",VLOOKUP(A210,'разн. списки'!$I$3:$J$222,2,FALSE))","v":""},null,null,0]
[null,{"$f":"IF(ISBLANK(A211),\"\",VLOOKUP(A211,'разн. списки'!$I$3:$J$222,2,FALSE))","v":""},null,null,0]
[null,{"$f":"IF(ISBLANK(A212),\"\",VLOOKUP(A212,'разн. списки'!$I$3:$J$222,2,FALSE))","v":""},null,null,0]
[null,{"$f":"IF(ISBLANK(A213),\"\",VLOOKUP(A213,'разн. списки'!$I$3:$J$222,2,FALSE))","v":""},null,null,0]
[null,{"$f":"IF(ISBLANK(A214),\"\",VLOOKUP(A214,'разн. списки'!$I$3:$J$222,2,FALSE))","v":""},null,null,0]
[null,{"$f":"IF(ISBLANK(A215),\"\",VLOOKUP(A215,'разн. списки'!$I$3:$J$222,2,FALSE))","v":""},null,null,0]
[null,{"$f":"IF(ISBLANK(A216),\"\",VLOOKUP(A216,'разн. списки'!$I$3:$J$222,2,FALSE))","v":""},null,null,0]
[null,{"$f":"IF(ISBLANK(A217),\"\",VLOOKUP(A217,'разн. списки'!$I$3:$J$222,2,FALSE))","v":""},null,null,0]
[null,{"$f":"IF(ISBLANK(A218),\"\",VLOOKUP(A218,'разн. списки'!$I$3:$J$222,2,FALSE))","v":""},null,null,0]
[null,{"$f":"IF(ISBLANK(A219),\"\",VLOOKUP(A219,'разн. списки'!$I$3:$J$222,2,FALSE))","v":""},null,null,0]
[null,{"$f":"IF(ISBLANK(A220),\"\",VLOOKUP(A220,'разн. списки'!$I$3:$J$222,2,FALSE))","v":""},null,null,0]
[null,{"$f":"IF(ISBLANK(A221),\"\",VLOOKUP(A221,'разн. списки'!$I$3:$J$222,2,FALSE))","v":""},null,null,0]
[null,{"$f":"IF(ISBLANK(A222),\"\",VLOOKUP(A222,'разн. списки'!$I$3:$J$222,2,FALSE))","v":""},null,null,0]
[null,{"$f":"IF(ISBLANK(A223),\"\",VLOOKUP(A223,'разн. списки'!$I$3:$J$222,2,FALSE))","v":""},null,null,0]
[null,{"$f":"IF(ISBLANK(A224),\"\",VLOOKUP(A224,'разн. списки'!$I$3:$J$222,2,FALSE))","v":""},null,null,0]
[null,{"$f":"IF(ISBLANK(A225),\"\",VLOOKUP(A225,'разн. списки'!$I$3:$J$222,2,FALSE))","v":""},null,null,0]
[null,{"$f":"IF(ISBLANK(A226),\"\",VLOOKUP(A226,'разн. списки'!$I$3:$J$222,2,FALSE))","v":""},null,null,0]
[null,{"$f":"IF(ISBLANK(A227),\"\",VLOOKUP(A227,'разн. списки'!$I$3:$J$222,2,FALSE))","v":""},null,null,0]
[null,{"$f":"IF(ISBLANK(A228),\"\",VLOOKUP(A228,'разн. списки'!$I$3:$J$222,2,FALSE))","v":""},null,null,0]
[null,{"$f":"IF(ISBLANK(A229),\"\",VLOOKUP(A229,'разн. списки'!$I$3:$J$222,2,FALSE))","v":""},null,null,0]
[null,{"$f":"IF(ISBLANK(A230),\"\",VLOOKUP(A230,'разн. списки'!$I$3:$J$222,2,FALSE))","v":""},null,null,0]
[null,{"$f":"IF(ISBLANK(A231),\"\",VLOOKUP(A231,'разн. списки'!$I$3:$J$222,2,FALSE))","v":""},null,null,0]
[null,{"$f":"IF(ISBLANK(A232),\"\",VLOOKUP(A232,'разн. списки'!$I$3:$J$222,2,FALSE))","v":""},null,null,0]
[null,{"$f":"IF(ISBLANK(A233),\"\",VLOOKUP(A233,'разн. списки'!$I$3:$J$222,2,FALSE))","v":""},null,null,0]
[null,{"$f":"IF(ISBLANK(A234),\"\",VLOOKUP(A234,'разн. списки'!$I$3:$J$222,2,FALSE))","v":""},null,null,0]
[null,{"$f":"IF(ISBLANK(A235),\"\",VLOOKUP(A235,'разн. списки'!$I$3:$J$222,2,FALSE))","v":""},null,null,0]
[null,{"$f":"IF(ISBLANK(A236),\"\",VLOOKUP(A236,'разн. списки'!$I$3:$J$222,2,FALSE))","v":""},null,null,0]
[null,{"$f":"IF(ISBLANK(A237),\"\",VLOOKUP(A237,'разн. списки'!$I$3:$J$222,2,FALSE))","v":""},null,null,0]
[null,{"$f":"IF(ISBLANK(A238),\"\",VLOOKUP(A238,'разн. списки'!$I$3:$J$222,2,FALSE))","v":""},null,null,0]
[null,{"$f":"IF(ISBLANK(A239),\"\",VLOOKUP(A239,'разн. списки'!$I$3:$J$222,2,FALSE))","v":""},null,null,0]
[null,{"$f":"IF(ISBLANK(A240),\"\",VLOOKUP(A240,'разн. списки'!$I$3:$J$222,2,FALSE))","v":""},null,null,0]
[null,{"$f":"IF(ISBLANK(A241),\"\",VLOOKUP(A241,'разн. списки'!$I$3:$J$222,2,FALSE))","v":""},null,null,0]
[null,{"$f":"IF(ISBLANK(A242),\"\",VLOOKUP(A242,'разн. списки'!$I$3:$J$222,2,FALSE))","v":""},null,null,0]
[null,{"$f":"IF(ISBLANK(A243),\"\",VLOOKUP(A243,'разн. списки'!$I$3:$J$222,2,FALSE))","v":""},null,null,0]
[null,{"$f":"IF(ISBLANK(A244),\"\",VLOOKUP(A244,'разн. списки'!$I$3:$J$222,2,FALSE))","v":""},null,null,0]
[null,{"$f":"IF(ISBLANK(A245),\"\",VLOOKUP(A245,'разн. списки'!$I$3:$J$222,2,FALSE))","v":""},null,null,0]
[null,{"$f":"IF(ISBLANK(A246),\"\",VLOOKUP(A246,'разн. списки'!$I$3:$J$222,2,FALSE))","v":""},null,null,0]
[null,{"$f":"IF(ISBLANK(A247),\"\",VLOOKUP(A247,'разн. списки'!$I$3:$J$222,2,FALSE))","v":""},null,null,0]
[null,{"$f":"IF(ISBLANK(A248),\"\",VLOOKUP(A248,'разн. списки'!$I$3:$J$222,2,FALSE))","v":""},null,null,0]
[null,{"$f":"IF(ISBLANK(A249),\"\",VLOOKUP(A249,'разн. списки'!$I$3:$J$222,2,FALSE))","v":""},null,null,0]
[null,{"$f":"IF(ISBLANK(A250),\"\",VLOOKUP(A250,'разн. списки'!$I$3:$J$222,2,FALSE))","v":""},null,null,0]
[null,{"$f":"IF(ISBLANK(A251),\"\",VLOOKUP(A251,'разн. списки'!$I$3:$J$222,2,FALSE))","v":""},null,null,0]
[null,{"$f":"IF(ISBLANK(A252),\"\",VLOOKUP(A252,'разн. списки'!$I$3:$J$222,2,FALSE))","v":""},null,null,0]
[null,{"$f":"IF(ISBLANK(A253),\"\",VLOOKUP(A253,'разн. списки'!$I$3:$J$222,2,FALSE))","v":""},null,null,0]
[null,{"$f":"IF(ISBLANK(A254),\"\",VLOOKUP(A254,'разн. списки'!$I$3:$J$222,2,FALSE))","v":""},null,null,0]
[null,{"$f":"IF(ISBLANK(A255),\"\",VLOOKUP(A255,'разн. списки'!$I$3:$J$222,2,FALSE))","v":""},null,null,0]
[null,{"$f":"IF(ISBLANK(A256),\"\",VLOOKUP(A256,'разн. списки'!$I$3:$J$222,2,FALSE))","v":""},null,null,0]
[null,{"$f":"IF(ISBLANK(A257),\"\",VLOOKUP(A257,'разн. списки'!$I$3:$J$222,2,FALSE))","v":""},null,null,0]
[null,{"$f":"IF(ISBLANK(A258),\"\",VLOOKUP(A258,'разн. списки'!$I$3:$J$222,2,FALSE))","v":""},null,null,0]
[null,{"$f":"IF(ISBLANK(A259),\"\",VLOOKUP(A259,'разн. списки'!$I$3:$J$222,2,FALSE))","v":""},null,null,0]
[null,{"$f":"IF(ISBLANK(A260),\"\",VLOOKUP(A260,'разн. списки'!$I$3:$J$222,2,FALSE))","v":""},null,null,0]
[null,{"$f":"IF(ISBLANK(A261),\"\",VLOOKUP(A261,'разн. списки'!$I$3:$J$222,2,FALSE))","v":""},null,null,0]
[null,{"$f":"IF(ISBLANK(A262),\"\",VLOOKUP(A262,'разн. списки'!$I$3:$J$222,2,FALSE))","v":""},null,null,0]
[null,{"$f":"IF(ISBLANK(A263),\"\",VLOOKUP(A263,'разн. списки'!$I$3:$J$222,2,FALSE))","v":""},null,null,0]
[null,{"$f":"IF(ISBLANK(A264),\"\",VLOOKUP(A264,'разн. списки'!$I$3:$J$222,2,FALSE))","v":""},null,null,{"$f":"SUM(F264:H264)","v":0}]
[null,{"$f":"IF(ISBLANK(A265),\"\",VLOOKUP(A265,'разн. списки'!$I$3:$J$222,2,FALSE))","v":""},null,null,0]
[null,{"$f":"IF(ISBLANK(A266),\"\",VLOOKUP(A266,'разн. списки'!$I$3:$J$222,2,FALSE))","v":""},null,null,0]
[null,{"$f":"IF(ISBLANK(A267),\"\",VLOOKUP(A267,'разн. списки'!$I$3:$J$222,2,FALSE))","v":""},null,null,0]
[null,{"$f":"IF(ISBLANK(A268),\"\",VLOOKUP(A268,'разн. списки'!$I$3:$J$222,2,FALSE))","v":""},null,null,0]
[null,{"$f":"IF(ISBLANK(A269),\"\",VLOOKUP(A269,'разн. списки'!$I$3:$J$222,2,FALSE))","v":""},null,null,0]
[null,{"$f":"IF(ISBLANK(A270),\"\",VLOOKUP(A270,'разн. списки'!$I$3:$J$222,2,FALSE))","v":""},null,null,0]
[null,{"$f":"IF(ISBLANK(A271),\"\",VLOOKUP(A271,'разн. списки'!$I$3:$J$222,2,FALSE))","v":""},null,null,0]
[null,{"$f":"IF(ISBLANK(A272),\"\",VLOOKUP(A272,'разн. списки'!$I$3:$J$222,2,FALSE))","v":""},null,null,0]
[null,{"$f":"IF(ISBLANK(A273),\"\",VLOOKUP(A273,'разн. списки'!$I$3:$J$222,2,FALSE))","v":""},null,null,0]
[null,{"$f":"IF(ISBLANK(A274),\"\",VLOOKUP(A274,'разн. списки'!$I$3:$J$222,2,FALSE))","v":""},null,null,0]
[null,{"$f":"IF(ISBLANK(A275),\"\",VLOOKUP(A275,'разн. списки'!$I$3:$J$222,2,FALSE))","v":""},null,null,0]
[null,{"$f":"IF(ISBLANK(A276),\"\",VLOOKUP(A276,'разн. списки'!$I$3:$J$222,2,FALSE))","v":""},null,null,0]
[null,{"$f":"IF(ISBLANK(A277),\"\",VLOOKUP(A277,'разн. списки'!$I$3:$J$222,2,FALSE))","v":""},null,null,0]
[null,{"$f":"IF(ISBLANK(A278),\"\",VLOOKUP(A278,'разн. списки'!$I$3:$J$222,2,FALSE))","v":""},null,null,0]
[null,{"$f":"IF(ISBLANK(A279),\"\",VLOOKUP(A279,'разн. списки'!$I$3:$J$222,2,FALSE))","v":""},null,null,0]
[null,{"$f":"IF(ISBLANK(A280),\"\",VLOOKUP(A280,'разн. списки'!$I$3:$J$222,2,FALSE))","v":""},null,null,0]
[null,{"$f":"IF(ISBLANK(A281),\"\",VLOOKUP(A281,'разн. списки'!$I$3:$J$222,2,FALSE))","v":""},null,null,0]
[null,{"$f":"IF(ISBLANK(A282),\"\",VLOOKUP(A282,'разн. списки'!$I$3:$J$222,2,FALSE))","v":""},null,null,0]
[null,{"$f":"IF(ISBLANK(A283),\"\",VLOOKUP(A283,'разн. списки'!$I$3:$J$222,2,FALSE))","v":""},null,null,0]
[null,{"$f":"IF(ISBLANK(A284),\"\",VLOOKUP(A284,'разн. списки'!$I$3:$J$222,2,FALSE))","v":""},null,null,0]
[null,{"$f":"IF(ISBLANK(A285),\"\",VLOOKUP(A285,'разн. списки'!$I$3:$J$222,2,FALSE))","v":""},null,null,0]
[null,{"$f":"IF(ISBLANK(A286),\"\",VLOOKUP(A286,'разн. списки'!$I$3:$J$222,2,FALSE))","v":""},null,null,0]
[null,{"$f":"IF(ISBLANK(A287),\"\",VLOOKUP(A287,'разн. списки'!$I$3:$J$222,2,FALSE))","v":""},null,null,0]
[null,{"$f":"IF(ISBLANK(A288),\"\",VLOOKUP(A288,'разн. списки'!$I$3:$J$222,2,FALSE))","v":""},null,null,0]
[null,{"$f":"IF(ISBLANK(A289),\"\",VLOOKUP(A289,'разн. списки'!$I$3:$J$222,2,FALSE))","v":""},null,null,0]
[null,{"$f":"IF(ISBLANK(A290),\"\",VLOOKUP(A290,'разн. списки'!$I$3:$J$222,2,FALSE))","v":""},null,null,0]
[null,{"$f":"IF(ISBLANK(A291),\"\",VLOOKUP(A291,'разн. списки'!$I$3:$J$222,2,FALSE))","v":""},null,null,0]
[null,{"$f":"IF(ISBLANK(A292),\"\",VLOOKUP(A292,'разн. списки'!$I$3:$J$222,2,FALSE))","v":""},null,null,0]
[null,{"$f":"IF(ISBLANK(A293),\"\",VLOOKUP(A293,'разн. списки'!$I$3:$J$222,2,FALSE))","v":""},null,null,0]
[null,{"$f":"IF(ISBLANK(A294),\"\",VLOOKUP(A294,'разн. списки'!$I$3:$J$222,2,FALSE))","v":""},null,null,0]
[null,{"$f":"IF(ISBLANK(A295),\"\",VLOOKUP(A295,'разн. списки'!$I$3:$J$222,2,FALSE))","v":""},null,null,0]
[null,{"$f":"IF(ISBLANK(A296),\"\",VLOOKUP(A296,'разн. списки'!$I$3:$J$222,2,FALSE))","v":""},null,null,0]
[null,{"$f":"IF(ISBLANK(A297),\"\",VLOOKUP(A297,'разн. списки'!$I$3:$J$222,2,FALSE))","v":""},null,null,0]
[null,{"$f":"IF(ISBLANK(A298),\"\",VLOOKUP(A298,'разн. списки'!$I$3:$J$222,2,FALSE))","v":""},null,null,0]
[null,{"$f":"IF(ISBLANK(A299),\"\",VLOOKUP(A299,'разн. списки'!$I$3:$J$222,2,FALSE))","v":""},null,null,0]
[null,{"$f":"IF(ISBLANK(A300),\"\",VLOOKUP(A300,'разн. списки'!$I$3:$J$222,2,FALSE))","v":""},null,null,0]
[null,{"$f":"IF(ISBLANK(A301),\"\",VLOOKUP(A301,'разн. списки'!$I$3:$J$222,2,FALSE))","v":""},null,null,0]
[null,{"$f":"IF(ISBLANK(A302),\"\",VLOOKUP(A302,'разн. списки'!$I$3:$J$222,2,FALSE))","v":""},null,null,0]
[null,{"$f":"IF(ISBLANK(A303),\"\",VLOOKUP(A303,'разн. списки'!$I$3:$J$222,2,FALSE))","v":""},null,null,0]
[null,{"$f":"IF(ISBLANK(A304),\"\",VLOOKUP(A304,'разн. списки'!$I$3:$J$222,2,FALSE))","v":""},null,null,0]
[null,{"$f":"IF(ISBLANK(A305),\"\",VLOOKUP(A305,'разн. списки'!$I$3:$J$222,2,FALSE))","v":""},null,null,0]
[null,{"$f":"IF(ISBLANK(A306),\"\",VLOOKUP(A306,'разн. списки'!$I$3:$J$222,2,FALSE))","v":""},null,null,0]
[null,{"$f":"IF(ISBLANK(A307),\"\",VLOOKUP(A307,'разн. списки'!$I$3:$J$222,2,FALSE))","v":""},null,null,0]
[null,{"$f":"IF(ISBLANK(A308),\"\",VLOOKUP(A308,'разн. списки'!$I$3:$J$222,2,FALSE))","v":""},null,null,0]
[null,{"$f":"IF(ISBLANK(A309),\"\",VLOOKUP(A309,'разн. списки'!$I$3:$J$222,2,FALSE))","v":""},null,null,0]
[null,{"$f":"IF(ISBLANK(A310),\"\",VLOOKUP(A310,'разн. списки'!$I$3:$J$222,2,FALSE))","v":""},null,null,0]
[null,{"$f":"IF(ISBLANK(A311),\"\",VLOOKUP(A311,'разн. списки'!$I$3:$J$222,2,FALSE))","v":""},null,null,0]
[null,{"$f":"IF(ISBLANK(A312),\"\",VLOOKUP(A312,'разн. списки'!$I$3:$J$222,2,FALSE))","v":""},null,null,0]
[null,{"$f":"IF(ISBLANK(A313),\"\",VLOOKUP(A313,'разн. списки'!$I$3:$J$222,2,FALSE))","v":""},null,null,0]
[null,{"$f":"IF(ISBLANK(A314),\"\",VLOOKUP(A314,'разн. списки'!$I$3:$J$222,2,FALSE))","v":""},null,null,0]
[null,{"$f":"IF(ISBLANK(A315),\"\",VLOOKUP(A315,'разн. списки'!$I$3:$J$222,2,FALSE))","v":""},null,null,0]
[null,{"$f":"IF(ISBLANK(A316),\"\",VLOOKUP(A316,'разн. списки'!$I$3:$J$222,2,FALSE))","v":""},null,null,0]
[null,{"$f":"IF(ISBLANK(A317),\"\",VLOOKUP(A317,'разн. списки'!$I$3:$J$222,2,FALSE))","v":""},null,null,0]
[null,{"$f":"IF(ISBLANK(A318),\"\",VLOOKUP(A318,'разн. списки'!$I$3:$J$222,2,FALSE))","v":""},null,null,0]
[null,{"$f":"IF(ISBLANK(A319),\"\",VLOOKUP(A319,'разн. списки'!$I$3:$J$222,2,FALSE))","v":""},null,null,0]
[null,{"$f":"IF(ISBLANK(A320),\"\",VLOOKUP(A320,'разн. списки'!$I$3:$J$222,2,FALSE))","v":""},null,null,0]
[null,{"$f":"IF(ISBLANK(A321),\"\",VLOOKUP(A321,'разн. списки'!$I$3:$J$222,2,FALSE))","v":""},null,null,0]
[null,{"$f":"IF(ISBLANK(A322),\"\",VLOOKUP(A322,'разн. списки'!$I$3:$J$222,2,FALSE))","v":""},null,null,0]
[null,{"$f":"IF(ISBLANK(A323),\"\",VLOOKUP(A323,'разн. списки'!$I$3:$J$222,2,FALSE))","v":""},null,null,0]
[null,{"$f":"IF(ISBLANK(A324),\"\",VLOOKUP(A324,'разн. списки'!$I$3:$J$222,2,FALSE))","v":""},null,null,0]
[null,{"$f":"IF(ISBLANK(A325),\"\",VLOOKUP(A325,'разн. списки'!$I$3:$J$222,2,FALSE))","v":""},null,null,0]
[null,{"$f":"IF(ISBLANK(A326),\"\",VLOOKUP(A326,'разн. списки'!$I$3:$J$222,2,FALSE))","v":""},null,null,0]
[null,{"$f":"IF(ISBLANK(A327),\"\",VLOOKUP(A327,'разн. списки'!$I$3:$J$222,2,FALSE))","v":""},null,null,0]
[null,{"$f":"IF(ISBLANK(A328),\"\",VLOOKUP(A328,'разн. списки'!$I$3:$J$222,2,FALSE))","v":""},null,null,{"$f":"SUM(F328:H328)","v":0}]
[null,{"$f":"IF(ISBLANK(A329),\"\",VLOOKUP(A329,'разн. списки'!$I$3:$J$222,2,FALSE))","v":""},null,null,0]
[null,{"$f":"IF(ISBLANK(A330),\"\",VLOOKUP(A330,'разн. списки'!$I$3:$J$222,2,FALSE))","v":""},null,null,0]
[null,{"$f":"IF(ISBLANK(A331),\"\",VLOOKUP(A331,'разн. списки'!$I$3:$J$222,2,FALSE))","v":""},null,null,0]
[null,{"$f":"IF(ISBLANK(A332),\"\",VLOOKUP(A332,'разн. списки'!$I$3:$J$222,2,FALSE))","v":""},null,null,0]
[null,{"$f":"IF(ISBLANK(A333),\"\",VLOOKUP(A333,'разн. списки'!$I$3:$J$222,2,FALSE))","v":""},null,null,0]
[null,{"$f":"IF(ISBLANK(A334),\"\",VLOOKUP(A334,'разн. списки'!$I$3:$J$222,2,FALSE))","v":""},null,null,0]
[null,{"$f":"IF(ISBLANK(A335),\"\",VLOOKUP(A335,'разн. списки'!$I$3:$J$222,2,FALSE))","v":""},null,null,0]
[null,{"$f":"IF(ISBLANK(A336),\"\",VLOOKUP(A336,'разн. списки'!$I$3:$J$222,2,FALSE))","v":""},null,null,0]
[null,{"$f":"IF(ISBLANK(A337),\"\",VLOOKUP(A337,'разн. списки'!$I$3:$J$222,2,FALSE))","v":""},null,null,0]
[null,{"$f":"IF(ISBLANK(A338),\"\",VLOOKUP(A338,'разн. списки'!$I$3:$J$222,2,FALSE))","v":""},null,null,0]
[null,{"$f":"IF(ISBLANK(A339),\"\",VLOOKUP(A339,'разн. списки'!$I$3:$J$222,2,FALSE))","v":""},null,null,0]
[null,{"$f":"IF(ISBLANK(A340),\"\",VLOOKUP(A340,'разн. списки'!$I$3:$J$222,2,FALSE))","v":""},null,null,0]
[null,{"$f":"IF(ISBLANK(A341),\"\",VLOOKUP(A341,'разн. списки'!$I$3:$J$222,2,FALSE))","v":""},null,null,0]
[null,{"$f":"IF(ISBLANK(A342),\"\",VLOOKUP(A342,'разн. списки'!$I$3:$J$222,2,FALSE))","v":""},null,null,0]
[null,{"$f":"IF(ISBLANK(A343),\"\",VLOOKUP(A343,'разн. списки'!$I$3:$J$222,2,FALSE))","v":""},null,null,0]
[null,{"$f":"IF(ISBLANK(A344),\"\",VLOOKUP(A344,'разн. списки'!$I$3:$J$222,2,FALSE))","v":""},null,null,0]
[null,{"$f":"IF(ISBLANK(A345),\"\",VLOOKUP(A345,'разн. списки'!$I$3:$J$222,2,FALSE))","v":""},null,null,0]
[null,{"$f":"IF(ISBLANK(A346),\"\",VLOOKUP(A346,'разн. списки'!$I$3:$J$222,2,FALSE))","v":""},null,null,0]
[null,{"$f":"IF(ISBLANK(A347),\"\",VLOOKUP(A347,'разн. списки'!$I$3:$J$222,2,FALSE))","v":""},null,null,0]
[null,{"$f":"IF(ISBLANK(A348),\"\",VLOOKUP(A348,'разн. списки'!$I$3:$J$222,2,FALSE))","v":""},null,null,0]
[null,{"$f":"IF(ISBLANK(A349),\"\",VLOOKUP(A349,'разн. списки'!$I$3:$J$222,2,FALSE))","v":""},null,null,0]
[null,{"$f":"IF(ISBLANK(A350),\"\",VLOOKUP(A350,'разн. списки'!$I$3:$J$222,2,FALSE))","v":""},null,null,0]
[null,{"$f":"IF(ISBLANK(A351),\"\",VLOOKUP(A351,'разн. списки'!$I$3:$J$222,2,FALSE))","v":""},null,null,0]
[null,{"$f":"IF(ISBLANK(A352),\"\",VLOOKUP(A352,'разн. списки'!$I$3:$J$222,2,FALSE))","v":""},null,null,0]
[null,{"$f":"IF(ISBLANK(A353),\"\",VLOOKUP(A353,'разн. списки'!$I$3:$J$222,2,FALSE))","v":""},null,null,0]
[null,{"$f":"IF(ISBLANK(A354),\"\",VLOOKUP(A354,'разн. списки'!$I$3:$J$222,2,FALSE))","v":""},null,null,0]
[null,{"$f":"IF(ISBLANK(A355),\"\",VLOOKUP(A355,'разн. списки'!$I$3:$J$222,2,FALSE))","v":""},null,null,0]
[null,{"$f":"IF(ISBLANK(A356),\"\",VLOOKUP(A356,'разн. списки'!$I$3:$J$222,2,FALSE))","v":""},null,null,0]
[null,{"$f":"IF(ISBLANK(A357),\"\",VLOOKUP(A357,'разн. списки'!$I$3:$J$222,2,FALSE))","v":""},null,null,0]
[null,{"$f":"IF(ISBLANK(A358),\"\",VLOOKUP(A358,'разн. списки'!$I$3:$J$222,2,FALSE))","v":""},null,null,0]
[null,{"$f":"IF(ISBLANK(A359),\"\",VLOOKUP(A359,'разн. списки'!$I$3:$J$222,2,FALSE))","v":""},null,null,0]
[null,{"$f":"IF(ISBLANK(A360),\"\",VLOOKUP(A360,'разн. списки'!$I$3:$J$222,2,FALSE))","v":""},null,null,0]
[null,{"$f":"IF(ISBLANK(A361),\"\",VLOOKUP(A361,'разн. списки'!$I$3:$J$222,2,FALSE))","v":""},null,null,0]
[null,{"$f":"IF(ISBLANK(A362),\"\",VLOOKUP(A362,'разн. списки'!$I$3:$J$222,2,FALSE))","v":""},null,null,0]
[null,{"$f":"IF(ISBLANK(A363),\"\",VLOOKUP(A363,'разн. списки'!$I$3:$J$222,2,FALSE))","v":""},null,null,0]
[null,{"$f":"IF(ISBLANK(A364),\"\",VLOOKUP(A364,'разн. списки'!$I$3:$J$222,2,FALSE))","v":""},null,null,0]
[null,{"$f":"IF(ISBLANK(A365),\"\",VLOOKUP(A365,'разн. списки'!$I$3:$J$222,2,FALSE))","v":""},null,null,0]
[null,{"$f":"IF(ISBLANK(A366),\"\",VLOOKUP(A366,'разн. списки'!$I$3:$J$222,2,FALSE))","v":""},null,null,0]
[null,{"$f":"IF(ISBLANK(A367),\"\",VLOOKUP(A367,'разн. списки'!$I$3:$J$222,2,FALSE))","v":""},null,null,0]
[null,{"$f":"IF(ISBLANK(A368),\"\",VLOOKUP(A368,'разн. списки'!$I$3:$J$222,2,FALSE))","v":""},null,null,0]
[null,{"$f":"IF(ISBLANK(A369),\"\",VLOOKUP(A369,'разн. списки'!$I$3:$J$222,2,FALSE))","v":""},null,null,0]
[null,{"$f":"IF(ISBLANK(A370),\"\",VLOOKUP(A370,'разн. списки'!$I$3:$J$222,2,FALSE))","v":""},null,null,0]
[null,{"$f":"IF(ISBLANK(A371),\"\",VLOOKUP(A371,'разн. списки'!$I$3:$J$222,2,FALSE))","v":""},null,null,0]
[null,{"$f":"IF(ISBLANK(A372),\"\",VLOOKUP(A372,'разн. списки'!$I$3:$J$222,2,FALSE))","v":""},null,null,0]
[null,{"$f":"IF(ISBLANK(A373),\"\",VLOOKUP(A373,'разн. списки'!$I$3:$J$222,2,FALSE))","v":""},null,null,0]
[null,{"$f":"IF(ISBLANK(A374),\"\",VLOOKUP(A374,'разн. списки'!$I$3:$J$222,2,FALSE))","v":""},null,null,0]
[null,{"$f":"IF(ISBLANK(A375),\"\",VLOOKUP(A375,'разн. списки'!$I$3:$J$222,2,FALSE))","v":""},null,null,0]
[null,{"$f":"IF(ISBLANK(A376),\"\",VLOOKUP(A376,'разн. списки'!$I$3:$J$222,2,FALSE))","v":""},null,null,0]
[null,{"$f":"IF(ISBLANK(A377),\"\",VLOOKUP(A377,'разн. списки'!$I$3:$J$222,2,FALSE))","v":""},null,null,0]
[null,{"$f":"IF(ISBLANK(A378),\"\",VLOOKUP(A378,'разн. списки'!$I$3:$J$222,2,FALSE))","v":""},null,null,0]
[null,{"$f":"IF(ISBLANK(A379),\"\",VLOOKUP(A379,'разн. списки'!$I$3:$J$222,2,FALSE))","v":""},null,null,0]
[null,{"$f":"IF(ISBLANK(A380),\"\",VLOOKUP(A380,'разн. списки'!$I$3:$J$222,2,FALSE))","v":""},null,null,0]
[null,{"$f":"IF(ISBLANK(A381),\"\",VLOOKUP(A381,'разн. списки'!$I$3:$J$222,2,FALSE))","v":""},null,null,0]
[null,{"$f":"IF(ISBLANK(A382),\"\",VLOOKUP(A382,'разн. списки'!$I$3:$J$222,2,FALSE))","v":""},null,null,0]
[null,{"$f":"IF(ISBLANK(A383),\"\",VLOOKUP(A383,'разн. списки'!$I$3:$J$222,2,FALSE))","v":""},null,null,0]
[null,{"$f":"IF(ISBLANK(A384),\"\",VLOOKUP(A384,'разн. списки'!$I$3:$J$222,2,FALSE))","v":""},null,null,0]
[null,{"$f":"IF(ISBLANK(A385),\"\",VLOOKUP(A385,'разн. списки'!$I$3:$J$222,2,FALSE))","v":""},null,null,0]
[null,{"$f":"IF(ISBLANK(A386),\"\",VLOOKUP(A386,'разн. списки'!$I$3:$J$222,2,FALSE))","v":""},null,null,0]
[null,{"$f":"IF(ISBLANK(A387),\"\",VLOOKUP(A387,'разн. списки'!$I$3:$J$222,2,FALSE))","v":""},null,null,0]
[null,{"$f":"IF(ISBLANK(A388),\"\",VLOOKUP(A388,'разн. списки'!$I$3:$J$222,2,FALSE))","v":""},null,null,0]
[null,{"$f":"IF(ISBLANK(A389),\"\",VLOOKUP(A389,'разн. списки'!$I$3:$J$222,2,FALSE))","v":""},null,null,0]
[null,{"$f":"IF(ISBLANK(A390),\"\",VLOOKUP(A390,'разн. списки'!$I$3:$J$222,2,FALSE))","v":""},null,null,0]
[null,{"$f":"IF(ISBLANK(A391),\"\",VLOOKUP(A391,'разн. списки'!$I$3:$J$222,2,FALSE))","v":""},null,null,0]
[null,{"$f":"IF(ISBLANK(A392),\"\",VLOOKUP(A392,'разн. списки'!$I$3:$J$222,2,FALSE))","v":""},null,null,{"$f":"SUM(F392:H392)","v":0}]
[null,{"$f":"IF(ISBLANK(A393),\"\",VLOOKUP(A393,'разн. списки'!$I$3:$J$222,2,FALSE))","v":""},null,null,0]
[null,{"$f":"IF(ISBLANK(A394),\"\",VLOOKUP(A394,'разн. списки'!$I$3:$J$222,2,FALSE))","v":""},null,null,0]
[null,{"$f":"IF(ISBLANK(A395),\"\",VLOOKUP(A395,'разн. списки'!$I$3:$J$222,2,FALSE))","v":""},null,null,0]
[null,{"$f":"IF(ISBLANK(A396),\"\",VLOOKUP(A396,'разн. списки'!$I$3:$J$222,2,FALSE))","v":""},null,null,0]
[null,{"$f":"IF(ISBLANK(A397),\"\",VLOOKUP(A397,'разн. списки'!$I$3:$J$222,2,FALSE))","v":""},null,null,0]
[null,{"$f":"IF(ISBLANK(A398),\"\",VLOOKUP(A398,'разн. списки'!$I$3:$J$222,2,FALSE))","v":""},null,null,0]
[null,{"$f":"IF(ISBLANK(A399),\"\",VLOOKUP(A399,'разн. списки'!$I$3:$J$222,2,FALSE))","v":""},null,null,0]
[null,{"$f":"IF(ISBLANK(A400),\"\",VLOOKUP(A400,'разн. списки'!$I$3:$J$222,2,FALSE))","v":""},null,null,0]
[null,{"$f":"IF(ISBLANK(A401),\"\",VLOOKUP(A401,'разн. списки'!$I$3:$J$222,2,FALSE))","v":""},null,null,0]
[null,{"$f":"IF(ISBLANK(A402),\"\",VLOOKUP(A402,'разн. списки'!$I$3:$J$222,2,FALSE))","v":""},null,null,0]
[null,{"$f":"IF(ISBLANK(A403),\"\",VLOOKUP(A403,'разн. списки'!$I$3:$J$222,2,FALSE))","v":""},null,null,0]
[null,{"$f":"IF(ISBLANK(A404),\"\",VLOOKUP(A404,'разн. списки'!$I$3:$J$222,2,FALSE))","v":""},null,null,0]
[null,{"$f":"IF(ISBLANK(A405),\"\",VLOOKUP(A405,'разн. списки'!$I$3:$J$222,2,FALSE))","v":""},null,null,0]

{"sheet":"Ф5 СПЕЦИАЛЬНОСТИ","index":5,"n_rows":573,"n_cols":20,"rows_kept":573,"cut":false,"hidden":false,"merged":[[0,0,0,19],[1,19,3,19],[1,10,1,17],[2,10,2,13],[2,14,2,17],[2,7,3,7],[2,8,3,8],[1,5,1,8],[1,9,3,9],[1,18,3,18],[1,4,3,4],[2,5,3,5],[2,6,3,6],[1,0,3,0],[1,1,3,1],[1,2,3,2],[1,3,3,3]]}
["ФОРМА №5 Виды и формы государственной итоговой аттестации по программам среднего профессионального образования по программам специалистов среднего звена"]
["Код/Наименование специальности (выберите из списка)","Укрупненная группа (не заполняется)","Форма обучения (Выберите из списка)","Бюджет/Внебюджет (Выберите из списка)","Количество выпускников по специальности, допущенных и сдававших ГИА, чел (Не заполнять сумма столбцов 7-10)","Вид и форма ГИА ",null,null,null,"Численность обучающихся, сдававших государственный экзамен, чел.","Результаты ГИА",null,null,null,null,null,null,null,"Наименование компетенции демонстрационного экзамена","Количество студентов прошедших демонстрационный экзамен по каждой компетенции в рамках ГИА, чел."]
[null,null,null,null,null,"Численность обучающихся, выполнявших   выпускную квалификационную работу в виде дипломной работы (дипломного проекта), чел.","Численность обучающихся, выполнявших   выпускную квалификационную работу в виде дипломной работы (дипломного проекта) и демонстрационного экзамена, чел.","Численность обучающихся, выполнявших   выпускную квалификационную работу в виде дипломной работы (дипломного проекта) и сдававших государственный экзамен, чел.","Численность обучающихся, выполнявших   выпускную квалификационную работу в виде дипломной работы (дипломного проекта) и сдававших государственный экзамен в виде демонстрационного экзамена, чел.",null,"Результаты защиты ВКР",null,null,null,"Результаты Государственного экзамена"]
[null,null,null,null,null,null,null,null,null,null,"отлично (ВКР)","хорошо (ВКР)","удовлетворительно (ВКР)","Неудовлетворительно (ВКР)","отлично (ГЭ)","хорошо","удовлетворительно ","Неудовлетворительно "]
[1,2,3,4,5,6,7,8,9,10,11,12,13,14,15,16,17,18,19,20]
["Код/Наименование специальности","Укрупненная группа","Форма обучения","Бюджет/Внебюджет","Количество выпускников по специальности, чел","Численность обучающихся, выполнявших   выпускную квалификационную работу в виде дипломной работы (дипломного проекта), чел.","Численность обучающихся, выполнявших   выпускную квалификационную работу в виде дипломной работы (дипломного проекта) и демонстрационного экзамена, чел.","Численность обучающихся, выполнявших   выпускную квалификационную работу в виде дипломной работы (дипломного проекта) и сдававших государственный экзамен, чел.","Численность обучающихся, выполнявших   выпускную квалификационную работу в виде дипломной работы (дипломного проекта) и сдававших государственный экзамен в виде демонстрационного экзамена, чел.","Численность обучающихся, сдававших государственный экзамен, чел.","отлично (ВКР)","хорошо (ВКР)","удовлетворительно (ВКР)","Неудовлетворительно (ВКР)","отлично (ГЭ)","хорошо (ГЭ","удовлетворительно  (ГЭ)","Неудовлетворительно (ГЭ)","Наименование компетенции демонстрационного экзамена","Количество студентов прошедших демонстрационный экзамен по каждой компетенции в рамках ГИА, чел."]
["05.02.01 Картография",{"$f":"IF(ISBLANK(A7),\"\",VLOOKUP(A7,'разн. списки'!$N$3:$O$274,2,FALSE))","v":"05.00.00 НАУКИ О ЗЕМЛЕ"},"Очная","Бюджет",{"$f":"SUM(F7:I7)","v":24},5,4,7,8,10,10,5,7,8,1,4,5,6]
["08.02.05 Строительство и эксплуатация автомобильных дорог и аэродромов",{"$f":"IF(ISBLANK(A8),\"\",VLOOKUP(A8,'разн. списки'!$N$3:$O$274,2,FALSE))","v":"08.00.00 ТЕХНИКА И ТЕХНОЛОГИИ СТРОИТЕЛЬСТВА"},"Очно-заочная","Внебюджет",{"$f":"SUM(F8:I8)","v":34},7,8,9,10,5,2,3,4,7,1,2,4,5]
["05.02.01 Картография",{"$f":"IF(ISBLANK(A9),\"\",VLOOKUP(A9,'разн. списки'!$N$3:$O$274,2,FALSE))","v":"05.00.00 НАУКИ О ЗЕМЛЕ"},"Заочная","Бюджет",20,5,7,4,4]
["07.02.01 Архитектура",{"$f":"IF(ISBLANK(A10),\"\",VLOOKUP(A10,'разн. списки'!$N$3:$O$274,2,FALSE))","v":"07.00.00 АРХИТЕКТУРА"},"Очно-заочная","Бюджет",24,5,7,8,4,4,45]
[null,{"$f":"IF(ISBLANK(A11),\"\",VLOOKUP(A11,'разн. списки'!$N$3:$O$274,2,FALSE))","v":""},null,null,0]
[null,{"$f":"IF(ISBLANK(A12),\"\",VLOOKUP(A12,'разн. списки'!$N$3:$O$274,2,FALSE))","v":""},null,null,0]
[null,{"$f":"IF(ISBLANK(A13),\"\",VLOOKUP(A13,'разн. списки'!$N$3:$O$274,2,FALSE))","v":""},null,null,0]
[null,{"$f":"IF(ISBLANK(A14),\"\",VLOOKUP(A14,'разн. списки'!$N$3:$O$274,2,FALSE))","v":""},null,null,0]
[null,{"$f":"IF(ISBLANK(A15),\"\",VLOOKUP(A15,'разн. списки'!$N$3:$O$274,2,FALSE))","v":""},null,null,0]
[null,{"$f":"IF(ISBLANK(A16),\"\",VLOOKUP(A16,'разн. списки'!$N$3:$O$274,2,FALSE))","v":""},null,null,0]
[null,{"$f":"IF(ISBLANK(A17),\"\",VLOOKUP(A17,'разн. списки'!$N$3:$O$274,2,FALSE))","v":""},null,null,0]
[null,{"$f":"IF(ISBLANK(A18),\"\",VLOOKUP(A18,'разн. списки'!$N$3:$O$274,2,FALSE))","v":""},null,null,0]
[null,{"$f":"IF(ISBLANK(A19),\"\",VLOOKUP(A19,'разн. списки'!$N$3:$O$274,2,FALSE))","v":""},null,null,0]
[null,{"$f":"IF(ISBLANK(A20),\"\",VLOOKUP(A20,'разн. списки'!$N$3:$O$274,2,FALSE))","v":""},null,null,0]
[null,{"$f":"IF(ISBLANK(A21),\"\",VLOOKUP(A21,'разн. списки'!$N$3:$O$274,2,FALSE))","v":""},null,null,0]
[null,{"$f":"IF(ISBLANK(A22),\"\",VLOOKUP(A22,'разн. списки'!$N$3:$O$274,2,FALSE))","v":""},null,null,0]
[null,{"$f":"IF(ISBLANK(A23),\"\",VLOOKUP(A23,'разн. списки'!$N$3:$O$274,2,FALSE))","v":""},null,null,0]
[null,{"$f":"IF(ISBLANK(A24),\"\",VLOOKUP(A24,'разн. списки'!$N$3:$O$274,2,FALSE))","v":""},null,null,0]
[null,{"$f":"IF(ISBLANK(A25),\"\",VLOOKUP(A25,'разн. списки'!$N$3:$O$274,2,FALSE))","v":""},null,null,0]
[null,{"$f":"IF(ISBLANK(A26),\"\",VLOOKUP(A26,'разн. списки'!$N$3:$O$274,2,FALSE))","v":""},null,null,0]
[null,{"$f":"IF(ISBLANK(A27),\"\",VLOOKUP(A27,'разн. списки'!$N$3:$O$274,2,FALSE))","v":""},null,null,0]
[null,{"$f":"IF(ISBLANK(A28),\"\",VLOOKUP(A28,'разн. списки'!$N$3:$O$274,2,FALSE))","v":""},null,null,0]
[null,{"$f":"IF(ISBLANK(A29),\"\",VLOOKUP(A29,'разн. списки'!$N$3:$O$274,2,FALSE))","v":""},null,null,0]
[null,{"$f":"IF(ISBLANK(A30),\"\",VLOOKUP(A30,'разн. списки'!$N$3:$O$274,2,FALSE))","v":""},null,null,0]
[null,{"$f":"IF(ISBLANK(A31),\"\",VLOOKUP(A31,'разн. списки'!$N$3:$O$274,2,FALSE))","v":""},null,null,0]
[null,{"$f":"IF(ISBLANK(A32),\"\",VLOOKUP(A32,'разн. списки'!$N$3:$O$274,2,FALSE))","v":""},null,null,0]
[null,{"$f":"IF(ISBLANK(A33),\"\",VLOOKUP(A33,'разн. списки'!$N$3:$O$274,2,FALSE))","v":""},null,null,0]
[null,{"$f":"IF(ISBLANK(A34),\"\",VLOOKUP(A34,'разн. списки'!$N$3:$O$274,2,FALSE))","v":""},null,null,0]
[null,{"$f":"IF(ISBLANK(A35),\"\",VLOOKUP(A35,'разн. списки'!$N$3:$O$274,2,FALSE))","v":""},null,null,0]
[null,{"$f":"IF(ISBLANK(A36),\"\",VLOOKUP(A36,'разн. списки'!$N$3:$O$274,2,FALSE))","v":""},null,null,0]
[null,{"$f":"IF(ISBLANK(A37),\"\",VLOOKUP(A37,'разн. списки'!$N$3:$O$274,2,FALSE))","v":""},null,null,0]
[null,{"$f":"IF(ISBLANK(A38),\"\",VLOOKUP(A38,'разн. списки'!$N$3:$O$274,2,FALSE))","v":""},null,null,0]
[null,{"$f":"IF(ISBLANK(A39),\"\",VLOOKUP(A39,'разн. списки'!$N$3:$O$274,2,FALSE))","v":""},null,null,0]
[null,{"$f":"IF(ISBLANK(A40),\"\",VLOOKUP(A40,'разн. списки'!$N$3:$O$274,2,FALSE))","v":""},null,null,0]
[null,{"$f":"IF(ISBLANK(A41),\"\",VLOOKUP(A41,'разн. списки'!$N$3:$O$274,2,FALSE))","v":""},null,null,0]
[null,{"$f":"IF(ISBLANK(A42),\"\",VLOOKUP(A42,'разн. списки'!$N$3:$O$274,2,FALSE))","v":""},null,null,0]
[null,{"$f":"IF(ISBLANK(A43),\"\",VLOOKUP(A43,'разн. списки'!$N$3:$O$274,2,FALSE))","v":""},null,null,0]
[null,{"$f":"IF(ISBLANK(A44),\"\",VLOOKUP(A44,'разн. списки'!$N$3:$O$274,2,FALSE))","v":""},null,null,0]
[null,{"$f":"IF(ISBLANK(A45),\"\",VLOOKUP(A45,'разн. списки'!$N$3:$O$274,2,FALSE))","v":""},null,null,0]
[null,{"$f":"IF(ISBLANK(A46),\"\",VLOOKUP(A46,'разн. списки'!$N$3:$O$274,2,FALSE))","v":""},null,null,0]
[null,{"$f":"IF(ISBLANK(A47),\"\",VLOOKUP(A47,'разн. списки'!$N$3:$O$274,2,FALSE))","v":""},null,null,0]
[null,{"$f":"IF(ISBLANK(A48),\"\",VLOOKUP(A48,'разн. списки'!$N$3:$O$274,2,FALSE))","v":""},null,null,0]
[null,{"$f":"IF(ISBLANK(A49),\"\",VLOOKUP(A49,'разн. списки'!$N$3:$O$274,2,FALSE))","v":""},null,null,0]
[null,{"$f":"IF(ISBLANK(A50),\"\",VLOOKUP(A50,'разн. списки'!$N$3:$O$274,2,FALSE))","v":""},null,null,0]
[null,{"$f":"IF(ISBLANK(A51),\"\",VLOOKUP(A51,'разн. списки'!$N$3:$O$274,2,FALSE))","v":""},null,null,0]
[null,{"$f":"IF(ISBLANK(A52),\"\",VLOOKUP(A52,'разн. списки'!$N$3:$O$274,2,FALSE))","v":""},null,null,0]
[null,{"$f":"IF(ISBLANK(A53),\"\",VLOOKUP(A53,'разн. списки'!$N$3:$O$274,2,FALSE))","v":""},null,null,0]
[null,{"$f":"IF(ISBLANK(A54),\"\",VLOOKUP(A54,'разн. списки'!$N$3:$O$274,2,FALSE))","v":""},null,null,0]
[null,{"$f":"IF(ISBLANK(A55),\"\",VLOOKUP(A55,'разн. списки'!$N$3:$O$274,2,FALSE))","v":""},null,null,0]
[null,{"$f":"IF(ISBLANK(A56),\"\",VLOOKUP(A56,'разн. списки'!$N$3:$O$274,2,FALSE))","v":""},null,null,0]
[null,{"$f":"IF(ISBLANK(A57),\"\",VLOOKUP(A57,'разн. списки'!$N$3:$O$274,2,FALSE))","v":""},null,null,0]
[null,{"$f":"IF(ISBLANK(A58),\"\",VLOOKUP(A58,'разн. списки'!$N$3:$O$274,2,FALSE))","v":""},null,null,0]
[null,{"$f":"IF(ISBLANK(A59),\"\",VLOOKUP(A59,'разн. списки'!$N$3:$O$274,2,FALSE))","v":""},null,null,0]
[null,{"$f":"IF(ISBLANK(A60),\"\",VLOOKUP(A60,'разн. списки'!$N$3:$O$274,2,FALSE))","v":""},null,null,0]
[null,{"$f":"IF(ISBLANK(A61),\"\",VLOOKUP(A61,'разн. списки'!$N$3:$O$274,2,FALSE))","v":""},null,null,0]
[null,{"$f":"IF(ISBLANK(A62),\"\",VLOOKUP(A62,'разн. списки'!$N$3:$O$274,2,FALSE))","v":""},null,null,0]
[null,{"$f":"IF(ISBLANK(A63),\"\",VLOOKUP(A63,'разн. списки'!$N$3:$O$274,2,FALSE))","v":""},null,null,0]
[null,{"$f":"IF(ISBLANK(A64),\"\",VLOOKUP(A64,'разн. списки'!$N$3:$O$274,2,FALSE))","v":""},null,null,0]
[null,{"$f":"IF(ISBLANK(A65),\"\",VLOOKUP(A65,'разн. списки'!$N$3:$O$274,2,FALSE))","v":""},null,null,0]
[null,{"$f":"IF(ISBLANK(A66),\"\",VLOOKUP(A66,'разн. списки'!$N$3:$O$274,2,FALSE))","v":""},null,null,0]
[null,{"$f":"IF(ISBLANK(A67),\"\",VLOOKUP(A67,'разн. списки'!$N$3:$O$274,2,FALSE))","v":""},null,null,0]
[null,{"$f":"IF(ISBLANK(A68),\"\",VLOOKUP(A68,'разн. списки'!$N$3:$O$274,2,FALSE))","v":""},null,null,0]
[null,{"$f":"IF(ISBLANK(A69),\"\",VLOOKUP(A69,'разн. списки'!$N$3:$O$274,2,FALSE))","v":""},null,null,0]
[null,{"$f":"IF(ISBLANK(A70),\"\",VLOOKUP(A70,'разн. списки'!$N$3:$O$274,2,FALSE))","v":""},null,null,0]
[null,{"$f":"IF(ISBLANK(A71),\"\",VLOOKUP(A71,'разн. списки'!$N$3:$O$274,2,FALSE))","v":""},null,null,0]
[null,{"$f":"IF(ISBLANK(A72),\"\",VLOOKUP(A72,'разн. списки'!$N$3:$O$274,2,FALSE))","v":""},null,null,{"$f":"SUM(F72:I72)","v":0}]
[null,{"$f":"IF(ISBLANK(A73),\"\",VLOOKUP(A73,'разн. списки'!$N$3:$O$274,2,FALSE))","v":""},null,null,0]
[null,{"$f":"IF(ISBLANK(A74),\"\",VLOOKUP(A74,'разн. списки'!$N$3:$O$274,2,FALSE))","v":""},null,null,0]
[null,{"$f":"IF(ISBLANK(A75),\"\",VLOOKUP(A75,'разн. списки'!$N$3:$O$274,2,FALSE))","v":""},null,null,0]
[null,{"$f":"IF(ISBLANK(A76),\"\",VLOOKUP(A76,'разн. списки'!$N$3:$O$274,2,FALSE))","v":""},null,null,0]
[null,{"$f":"IF(ISBLANK(A77),\"\",VLOOKUP(A77,'разн. списки'!$N$3:$O$274,2,FALSE))","v":""},null,null,0]
[null,{"$f":"IF(ISBLANK(A78),\"\",VLOOKUP(A78,'разн. списки'!$N$3:$O$274,2,FALSE))","v":""},null,null,0]
[null,{"$f":"IF(ISBLANK(A79),\"\",VLOOKUP(A79,'разн. списки'!$N$3:$O$274,2,FALSE))","v":""},null,null,0]
[null,{"$f":"IF(ISBLANK(A80),\"\",VLOOKUP(A80,'разн. списки'!$N$3:$O$274,2,FALSE))","v":""},null,null,0]
[null,{"$f":"IF(ISBLANK(A81),\"\",VLOOKUP(A81,'разн. списки'!$N$3:$O$274,2,FALSE))","v":""},null,null,0]
[null,{"$f":"IF(ISBLANK(A82),\"\",VLOOKUP(A82,'разн. списки'!$N$3:$O$274,2,FALSE))","v":""},null,null,0]
[null,{"$f":"IF(ISBLANK(A83),\"\",VLOOKUP(A83,'разн. списки'!$N$3:$O$274,2,FALSE))","v":""},null,null,0]
[null,{"$f":"IF(ISBLANK(A84),\"\",VLOOKUP(A84,'разн. списки'!$N$3:$O$274,2,FALSE))","v":""},null,null,0]
[null,{"$f":"IF(ISBLANK(A85),\"\",VLOOKUP(A85,'разн. списки'!$N$3:$O$274,2,FALSE))","v":""},null,null,0]
[null,{"$f":"IF(ISBLANK(A86),\"\",VLOOKUP(A86,'разн. списки'!$N$3:$O$274,2,FALSE))","v":""},null,null,0]
[null,{"$f":"IF(ISBLANK(A87),\"\",VLOOKUP(A87,'разн. списки'!$N$3:$O$274,2,FALSE))","v":""},null,null,0]
[null,{"$f":"IF(ISBLANK(A88),\"\",VLOOKUP(A88,'разн. списки'!$N$3:$O$274,2,FALSE))","v":""},null,null,0]
[null,{"$f":"IF(ISBLANK(A89),\"\",VLOOKUP(A89,'разн. списки'!$N$3:$O$274,2,FALSE))","v":""},null,null,0]
[null,{"$f":"IF(ISBLANK(A90),\"\",VLOOKUP(A90,'разн. списки'!$N$3:$O$274,2,FALSE))","v":""},null,null,0]
[null,{"$f":"IF(ISBLANK(A91),\"\",VLOOKUP(A91,'разн. списки'!$N$3:$O$274,2,FALSE))","v":""},null,null,0]
[null,{"$f":"IF(ISBLANK(A92),\"\",VLOOKUP(A92,'разн. списки'!$N$3:$O$274,2,FALSE))","v":""},null,null,0]
[null,{"$f":"IF(ISBLANK(A93),\"\",VLOOKUP(A93,'разн. списки'!$N$3:$O$274,2,FALSE))","v":""},null,null,0]
[null,{"$f":"IF(ISBLANK(A94),\"\",VLOOKUP(A94,'разн. списки'!$N$3:$O$274,2,FALSE))","v":""},null,null,0]
[null,{"$f":"IF(ISBLANK(A95),\"\",VLOOKUP(A95,'разн. списки'!$N$3:$O$274,2,FALSE))","v":""},null,null,0]
[null,{"$f":"IF(ISBLANK(A96),\"\",VLOOKUP(A96,'разн. списки'!$N$3:$O$274,2,FALSE))","v":""},null,null,0]
[null,{"$f":"IF(ISBLANK(A97),\"\",VLOOKUP(A97,'разн. списки'!$N$3:$O$274,2,FALSE))","v":""},null,null,0]
[null,{"$f":"IF(ISBLANK(A98),\"\",VLOOKUP(A98,'разн. списки'!$N$3:$O$274,2,FALSE))","v":""},null,null,0]
[null,{"$f":"IF(ISBLANK(A99),\"\",VLOOKUP(A99,'разн. списки'!$N$3:$O$274,2,FALSE))","v":""},null,null,0]
[null,{"$f":"IF(ISBLANK(A100),\"\",VLOOKUP(A100,'разн. списки'!$N$3:$O$274,2,FALSE))","v":""},null,null,0]
[null,{"$f":"IF(ISBLANK(A101),\"\",VLOOKUP(A101,'разн. списки'!$N$3:$O$274,2,FALSE))","v":""},null,null,0]
[null,{"$f":"IF(ISBLANK(A102),\"\",VLOOKUP(A102,'разн. списки'!$N$3:$O$274,2,FALSE))","v":""},null,null,0]
[null,{"$f":"IF(ISBLANK(A103),\"\",VLOOKUP(A103,'разн. списки'!$N$3:$O$274,2,FALSE))","v":""},null,null,0]
[null,{"$f":"IF(ISBLANK(A104),\"\",VLOOKUP(A104,'разн. списки'!$N$3:$O$274,2,FALSE))","v":""},null,null,0]
[null,{"$f":"IF(ISBLANK(A105),\"\",VLOOKUP(A105,'разн. списки'!$N$3:$O$274,2,FALSE))","v":""},null,null,0]
[null,{"$f":"IF(ISBLANK(A106),\"\",VLOOKUP(A106,'разн. списки'!$N$3:$O$274,2,FALSE))","v":""},null,null,0]
[null,{"$f":"IF(ISBLANK(A107),\"\",VLOOKUP(A107,'разн. списки'!$N$3:$O$274,2,FALSE))","v":""},null,null,0]
[null,{"$f":"IF(ISBLANK(A108),\"\",VLOOKUP(A108,'разн. списки'!$N$3:$O$274,2,FALSE))","v":""},null,null,0]
[null,{"$f":"IF(ISBLANK(A109),\"\",VLOOKUP(A109,'разн. списки'!$N$3:$O$274,2,FALSE))","v":""},null,null,0]
[null,{"$f":"IF(ISBLANK(A110),\"\",VLOOKUP(A110,'разн. списки'!$N$3:$O$274,2,FALSE))","v":""},null,null,0]
[null,{"$f":"IF(ISBLANK(A111),\"\",VLOOKUP(A111,'разн. списки'!$N$3:$O$274,2,FALSE))","v":""},null,null,0]
[null,{"$f":"IF(ISBLANK(A112),\"\",VLOOKUP(A112,'разн. списки'!$N$3:$O$274,2,FALSE))","v":""},null,null,0]
[null,{"$f":"IF(ISBLANK(A113),\"\",VLOOKUP(A113,'разн. списки'!$N$3:$O$274,2,FALSE))","v":""},null,null,0]
[null,{"$f":"IF(ISBLANK(A114),\"\",VLOOKUP(A114,'разн. списки'!$N$3:$O$274,2,FALSE))","v":""},null,null,0]
[null,{"$f":"IF(ISBLANK(A115),\"\",VLOOKUP(A115,'разн. списки'!$N$3:$O$274,2,FALSE))","v":""},null,null,0]
[null,{"$f":"IF(ISBLANK(A116),\"\",VLOOKUP(A116,'разн. списки'!$N$3:$O$274,2,FALSE))","v":""},null,null,0]
[null,{"$f":"IF(ISBLANK(A117),\"\",VLOOKUP(A117,'разн. списки'!$N$3:$O$274,2,FALSE))","v":""},null,null,0]
[null,{"$f":"IF(ISBLANK(A118),\"\",VLOOKUP(A118,'разн. списки'!$N$3:$O$274,2,FALSE))","v":""},null,null,0]
[null,{"$f":"IF(ISBLANK(A119),\"\",VLOOKUP(A119,'разн. списки'!$N$3:$O$274,2,FALSE))","v":""},null,null,0]
[null,{"$f":"IF(ISBLANK(A120),\"\",VLOOKUP(A120,'разн. списки'!$N$3:$O$274,2,FALSE))","v":""},null,null,0]
[null,{"$f":"IF(ISBLANK(A121),\"\",VLOOKUP(A121,'разн. списки'!$N$3:$O$274,2,FALSE))","v":""},null,null,0]
[null,{"$f":"IF(ISBLANK(A122),\"\",VLOOKUP(A122,'разн. списки'!$N$3:$O$274,2,FALSE))","v":""},null,null,0]
[null,{"$f":"IF(ISBLANK(A123),\"\",VLOOKUP(A123,'разн. списки'!$N$3:$O$274,2,FALSE))","v":""},null,null,0]
[null,{"$f":"IF(ISBLANK(A124),\"\",VLOOKUP(A124,'разн. списки'!$N$3:$O$274,2,FALSE))","v":""},null,null,0]
[null,{"$f":"IF(ISBLANK(A125),\"\",VLOOKUP(A125,'разн. списки'!$N$3:$O$274,2,FALSE))","v":""},null,null,0]
[null,{"$f":"IF(ISBLANK(A126),\"\",VLOOKUP(A126,'разн. списки'!$N$3:$O$274,2,FALSE))","v":""},null,null,0]
[null,{"$f":"IF(ISBLANK(A127),\"\",VLOOKUP(A127,'разн. списки'!$N$3:$O$274,2,FALSE))","v":""},null,null,0]
[null,{"$f":"IF(ISBLANK(A128),\"\",VLOOKUP(A128,'разн. списки'!$N$3:$O$274,2,FALSE))","v":""},null,null,0]
[null,{"$f":"IF(ISBLANK(A129),\"\",VLOOKUP(A129,'разн. списки'!$N$3:$O$274,2,FALSE))","v":""},null,null,0]
[null,{"$f":"IF(ISBLANK(A130),\"\",VLOOKUP(A130,'разн. списки'!$N$3:$O$274,2,FALSE))","v":""},null,null,0]
[null,{"$f":"IF(ISBLANK(A131),\"\",VLOOKUP(A131,'разн. списки'!$N$3:$O$274,2,FALSE))","v":""},null,null,0]
[null,{"$f":"IF(ISBLANK(A132),\"\",VLOOKUP(A132,'разн. списки'!$N$3:$O$274,2,FALSE))","v":""},null,null,0]
[null,{"$f":"IF(ISBLANK(A133),\"\",VLOOKUP(A133,'разн. списки'!$N$3:$O$274,2,FALSE))","v":""},null,null,0]
[null,{"$f":"IF(ISBLANK(A134),\"\",VLOOKUP(A134,'разн. списки'!$N$3:$O$274,2,FALSE))","v":""},null,null,0]
[null,{"$f":"IF(ISBLANK(A135),\"\",VLOOKUP(A135,'разн. списки'!$N$3:$O$274,2,FALSE))","v":""},null,null,0]
[null,{"$f":"IF(ISBLANK(A136),\"\",VLOOKUP(A136,'разн. списки'!$N$3:$O$274,2,FALSE))","v":""},null,null,{"$f":"SUM(F136:I136)","v":0}]
[null,{"$f":"IF(ISBLANK(A137),\"\",VLOOKUP(A137,'разн. списки'!$N$3:$O$274,2,FALSE))","v":""},null,null,0]
[null,{"$f":"IF(ISBLANK(A138),\"\",VLOOKUP(A138,'разн. списки'!$N$3:$O$274,2,FALSE))","v":""},null,null,0]
[null,{"$f":"IF(ISBLANK(A139),\"\",VLOOKUP(A139,'разн. списки'!$N$3:$O$274,2,FALSE))","v":""},null,null,0]
[null,{"$f":"IF(ISBLANK(A140),\"\",VLOOKUP(A140,'разн. списки'!$N$3:$O$274,2,FALSE))","v":""},null,null,0]
[null,{"$f":"IF(ISBLANK(A141),\"\",VLOOKUP(A141,'разн. списки'!$N$3:$O$274,2,FALSE))","v":""},null,null,0]
[null,{"$f":"IF(ISBLANK(A142),\"\",VLOOKUP(A142,'разн. списки'!$N$3:$O$274,2,FALSE))","v":""},null,null,0]
[null,{"$f":"IF(ISBLANK(A143),\"\",VLOOKUP(A143,'разн. списки'!$N$3:$O$274,2,FALSE))","v":""},null,null,0]
[null,{"$f":"IF(ISBLANK(A144),\"\",VLOOKUP(A144,'разн. списки'!$N$3:$O$274,2,FALSE))","v":""},null,null,0]
[null,{"$f":"IF(ISBLANK(A145),\"\",VLOOKUP(A145,'разн. списки'!$N$3:$O$274,2,FALSE))","v":""},null,null,0]
[null,{"$f":"IF(ISBLANK(A146),\"\",VLOOKUP(A146,'разн. списки'!$N$3:$O$274,2,FALSE))","v":""},null,null,0]
[null,{"$f":"IF(ISBLANK(A147),\"\",VLOOKUP(A147,'разн. списки'!$N$3:$O$274,2,FALSE))","v":""},null,null,0]
[null,{"$f":"IF(ISBLANK(A148),\"\",VLOOKUP(A148,'разн. списки'!$N$3:$O$274,2,FALSE))","v":""},null,null,0]
[null,{"$f":"IF(ISBLANK(A149),\"\",VLOOKUP(A149,'разн. списки'!$N$3:$O$274,2,FALSE))","v":""},null,null,0]
[null,{"$f":"IF(ISBLANK(A150),\"\",VLOOKUP(A150,'разн. списки'!$N$3:$O$274,2,FALSE))","v":""},null,null,0]
[null,{"$f":"IF(ISBLANK(A151),\"\",VLOOKUP(A151,'разн. списки'!$N$3:$O$274,2,FALSE))","v":""},null,null,0]
[null,{"$f":"IF(ISBLANK(A152),\"\",VLOOKUP(A152,'разн. списки'!$N$3:$O$274,2,FALSE))","v":""},null,null,0]
[null,{"$f":"IF(ISBLANK(A153),\"\",VLOOKUP(A153,'разн. списки'!$N$3:$O$274,2,FALSE))","v":""},null,null,0]
[null,{"$f":"IF(ISBLANK(A154),\"\",VLOOKUP(A154,'разн. списки'!$N$3:$O$274,2,FALSE))","v":""},null,null,0]
[null,{"$f":"IF(ISBLANK(A155),\"\",VLOOKUP(A155,'разн. списки'!$N$3:$O$274,2,FALSE))","v":""},null,null,0]
[null,{"$f":"IF(ISBLANK(A156),\"\",VLOOKUP(A156,'разн. списки'!$N$3:$O$274,2,FALSE))","v":""},null,null,0]
[null,{"$f":"IF(ISBLANK(A157),\"\",VLOOKUP(A157,'разн. списки'!$N$3:$O$274,2,FALSE))","v":""},null,null,0]
[null,{"$f":"IF(ISBLANK(A158),\"\",VLOOKUP(A158,'разн. списки'!$N$3:$O$274,2,FALSE))","v":""},null,null,0]
[null,{"$f":"IF(ISBLANK(A159),\"\",VLOOKUP(A159,'разн. списки'!$N$3:$O$274,2,FALSE))","v":""},null,null,0]
[null,{"$f":"IF(ISBLANK(A160),\"\",VLOOKUP(A160,'разн. списки'!$N$3:$O$274,2,FALSE))","v":""},null,null,0]
[null,{"$f":"IF(ISBLANK(A161),\"\",VLOOKUP(A161,'разн. списки'!$N$3:$O$274,2,FALSE))","v":""},null,null,0]
[null,{"$f":"IF(ISBLANK(A162),\"\",VLOOKUP(A162,'разн. списки'!$N$3:$O$274,2,FALSE))","v":""},null,null,0]
[null,{"$f":"IF(ISBLANK(A163),\"\",VLOOKUP(A163,'разн. списки'!$N$3:$O$274,2,FALSE))","v":""},null,null,0]
[null,{"$f":"IF(ISBLANK(A164),\"\",VLOOKUP(A164,'разн. списки'!$N$3:$O$274,2,FALSE))","v":""},null,null,0]
[null,{"$f":"IF(ISBLANK(A165),\"\",VLOOKUP(A165,'разн. списки'!$N$3:$O$274,2,FALSE))","v":""},null,null,0]
[null,{"$f":"IF(ISBLANK(A166),\"\",VLOOKUP(A166,'разн. списки'!$N$3:$O$274,2,FALSE))","v":""},null,null,0]
[null,{"$f":"IF(ISBLANK(A167),\"\",VLOOKUP(A167,'разн. списки'!$N$3:$O$274,2,FALSE))","v":""},null,null,0]
[null,{"$f":"IF(ISBLANK(A168),\"\",VLOOKUP(A168,'разн. списки'!$N$3:$O$274,2,FALSE))","v":""},null,null,0]
[null,{"$f":"IF(ISBLANK(A169),\"\",VLOOKUP(A169,'разн. списки'!$N$3:$O$274,2,FALSE))","v":""},null,null,0]
[null,{"$f":"IF(ISBLANK(A170),\"\",VLOOKUP(A170,'разн. списки'!$N$3:$O$274,2,FALSE))","v":""},null,null,0]
[null,{"$f":"IF(ISBLANK(A171),\"\",VLOOKUP(A171,'разн. списки'!$N$3:$O$274,2,FALSE))","v":""},null,null,0]
[null,{"$f":"IF(ISBLANK(A172),\"\",VLOOKUP(A172,'разн. списки'!$N$3:$O$274,2,FALSE))","v":""},null,null,0]
[null,{"$f":"IF(ISBLANK(A173),\"\",VLOOKUP(A173,'разн. списки'!$N$3:$O$274,2,FALSE))","v":""},null,null,0]
[null,{"$f":"IF(ISBLANK(A174),\"\",VLOOKUP(A174,'разн. списки'!$N$3:$O$274,2,FALSE))","v":""},null,null,0]
[null,{"$f":"IF(ISBLANK(A175),\"\",VLOOKUP(A175,'разн. списки'!$N$3:$O$274,2,FALSE))","v":""},null,null,0]
[null,{"$f":"IF(ISBLANK(A176),\"\",VLOOKUP(A176,'разн. списки'!$N$3:$O$274,2,FALSE))","v":""},null,null,0]
[null,{"$f":"IF(ISBLANK(A177),\"\",VLOOKUP(A177,'разн. списки'!$N$3:$O$274,2,FALSE))","v":""},null,null,0]
[null,{"$f":"IF(ISBLANK(A178),\"\",VLOOKUP(A178,'разн. списки'!$N$3:$O$274,2,FALSE))","v":""},null,null,0]
[null,{"$f":"IF(ISBLANK(A179),\"\",VLOOKUP(A179,'разн. списки'!$N$3:$O$274,2,FALSE))","v":""},null,null,0]
[null,{"$f":"IF(ISBLANK(A180),\"\",VLOOKUP(A180,'разн. списки'!$N$3:$O$274,2,FALSE))","v":""},null,null,0]
[null,{"$f":"IF(ISBLANK(A181),\"\",VLOOKUP(A181,'разн. списки'!$N$3:$O$274,2,FALSE))","v":""},null,null,0]
[null,{"$f":"IF(ISBLANK(A182),\"\",VLOOKUP(A182,'разн. списки'!$N$3:$O$274,2,FALSE))","v":""},null,null,0]
[null,{"$f":"IF(ISBLANK(A183),\"\",VLOOKUP(A183,'разн. списки'!$N$3:$O$274,2,FALSE))","v":""},null,null,0]
[null,{"$f":"IF(ISBLANK(A184),\"\",VLOOKUP(A184,'разн. списки'!$N$3:$O$274,2,FALSE))","v":""},null,null,0]
[null,{"$f":"IF(ISBLANK(A185),\"\",VLOOKUP(A185,'разн. списки'!$N$3:$O$274,2,FALSE))","v":""},null,null,0]
[null,{"$f":"IF(ISBLANK(A186),\"\",VLOOKUP(A186,'разн. списки'!$N$3:$O$274,2,FALSE))","v":""},null,null,0]
[null,{"$f":"IF(ISBLANK(A187),\"\",VLOOKUP(A187,'разн. списки'!$N$3:$O$274,2,FALSE))","v":""},null,null,0]
[null,{"$f":"IF(ISBLANK(A188),\"\",VLOOKUP(A188,'разн. списки'!$N$3:$O$274,2,FALSE))","v":""},null,null,0]
[null,{"$f":"IF(ISBLANK(A189),\"\",VLOOKUP(A189,'разн. списки'!$N$3:$O$274,2,FALSE))","v":""},null,null,0]
[null,{"$f":"IF(ISBLANK(A190),\"\",VLOOKUP(A190,'разн. списки'!$N$3:$O$274,2,FALSE))","v":""},null,null,0]
[null,{"$f":"IF(ISBLANK(A191),\"\",VLOOKUP(A191,'разн. списки'!$N$3:$O$274,2,FALSE))","v":""},null,null,0]
[null,{"$f":"IF(ISBLANK(A192),\"\",VLOOKUP(A192,'разн. списки'!$N$3:$O$274,2,FALSE))","v":""},null,null,0]
[null,{"$f":"IF(ISBLANK(A193),\"\",VLOOKUP(A193,'разн. списки'!$N$3:$O$274,2,FALSE))","v":""},null,null,0]
[null,{"$f":"IF(ISBLANK(A194),\"\",VLOOKUP(A194,'разн. списки'!$N$3:$O$274,2,FALSE))","v":""},null,null,0]
[null,{"$f":"IF(ISBLANK(A195),\"\",VLOOKUP(A195,'разн. списки'!$N$3:$O$274,2,FALSE))","v":""},null,null,0]
[null,{"$f":"IF(ISBLANK(A196),\"\",VLOOKUP(A196,'разн. списки'!$N$3:$O$274,2,FALSE))","v":""},null,null,0]
[null,{"$f":"IF(ISBLANK(A197),\"\",VLOOKUP(A197,'разн. списки'!$N$3:$O$274,2,FALSE))","v":""},null,null,0]
[null,{"$f":"IF(ISBLANK(A198),\"\",VLOOKUP(A198,'разн. списки'!$N$3:$O$274,2,FALSE))","v":""},null,null,0]
[null,{"$f":"IF(ISBLANK(A199),\"\",VLOOKUP(A199,'разн. списки'!$N$3:$O$274,2,FALSE))","v":""},null,null,0]
[null,{"$f":"IF(ISBLANK(A200),\"\",VLOOKUP(A200,'разн. списки'!$N$3:$O$274,2,FALSE))","v":""},null,null,{"$f":"SUM(F200:I200)","v":0}]
[null,{"$f":"IF(ISBLANK(A201),\"\",VLOOKUP(A201,'разн. списки'!$N$3:$O$274,2,FALSE))","v":""},null,null,0]
[null,{"$f":"IF(ISBLANK(A202),\"\",VLOOKUP(A202,'разн. списки'!$N$3:$O$274,2,FALSE))","v":""},null,null,0]
[null,{"$f":"IF(ISBLANK(A203),\"\",VLOOKUP(A203,'разн. списки'!$N$3:$O$274,2,FALSE))","v":""},null,null,0]
[null,{"$f":"IF(ISBLANK(A204),\"\",VLOOKUP(A204,'разн. списки'!$N$3:$O$274,2,FALSE))","v":""},null,null,0]
[null,{"$f":"IF(ISBLANK(A205),\"\",VLOOKUP(A205,'разн. списки'!$N$3:$O$274,2,FALSE))","v":""},null,null,0]
[null,{"$f":"IF(ISBLANK(A206),\"\",VLOOKUP(A206,'разн. списки'!$N$3:$O$274,2,FALSE))","v":""},null,null,0]
[null,{"$f":"IF(ISBLANK(A207),\"\",VLOOKUP(A207,'разн. списки'!$N$3:$O$274,2,FALSE))","v":""},null,null,0]
[null,{"$f":"IF(ISBLANK(A208),\"\",VLOOKUP(A208,'разн. списки'!$N$3:$O$274,2,FALSE))","v":""},null,null,0]
[null,{"$f":"IF(ISBLANK(A209),\"\",VLOOKUP(A209,'разн. списки'!$N$3:$O$274,2,FALSE))","v":""},null,null,0]
[null,{"$f":"IF(ISBLANK(A210),\"\",VLOOKUP(A210,'разн. списки'!$N$3:$O$274,2,FALSE))","v":""},null,null,0]
[null,{"$f":"IF(ISBLANK(A211),\"\",VLOOKUP(A211,'разн. списки'!$N$3:$O$274,2,FALSE))","v":""},null,null,0]
[null,{"$f":"IF(ISBLANK(A212),\"\",VLOOKUP(A212,'разн. списки'!$N$3:$O$274,2,FALSE))","v":""},null,null,0]
[null,{"$f":"IF(ISBLANK(A213),\"\",VLOOKUP(A213,'разн. списки'!$N$3:$O$274,2,FALSE))","v":""},null,null,0]
[null,{"$f":"IF(ISBLANK(A214),\"\",VLOOKUP(A214,'разн. списки'!$N$3:$O$274,2,FALSE))","v":""},null,null,0]
[null,{"$f":"IF(ISBLANK(A215),\"\",VLOOKUP(A215,'разн. списки'!$N$3:$O$274,2,FALSE))","v":""},null,null,0]
[null,{"$f":"IF(ISBLANK(A216),\"\",VLOOKUP(A216,'разн. списки'!$N$3:$O$274,2,FALSE))","v":""},null,null,0]
[null,{"$f":"IF(ISBLANK(A217),\"\",VLOOKUP(A217,'разн. списки'!$N$3:$O$274,2,FALSE))","v":""},null,null,0]
[null,{"$f":"IF(ISBLANK(A218),\"\",VLOOKUP(A218,'разн. списки'!$N$3:$O$274,2,FALSE))","v":""},null,null,0]
[null,{"$f":"IF(ISBLANK(A219),\"\",VLOOKUP(A219,'разн. списки'!$N$3:$O$274,2,FALSE))","v":""},null,null,0]
[null,{"$f":"IF(ISBLANK(A220),\"\",VLOOKUP(A220,'разн. списки'!$N$3:$O$274,2,FALSE))","v":""},null,null,0]
[null,{"$f":"IF(ISBLANK(A221),\"\",VLOOKUP(A221,'разн. списки'!$N$3:$O$274,2,FALSE))","v":""},null,null,0]
[null,{"$f":"IF(ISBLANK(A222),\"\",VLOOKUP(A222,'разн. списки'!$N$3:$O$274,2,FALSE))","v":""},null,null,0]
[null,{"$f":"IF(ISBLANK(A223),\"\",VLOOKUP(A223,'разн. списки'!$N$3:$O$274,2,FALSE))","v":""},null,null,0]
[null,{"$f":"IF(ISBLANK(A224),\"\",VLOOKUP(A224,'разн. списки'!$N$3:$O$274,2,FALSE))","v":""},null,null,0]
[null,{"$f":"IF(ISBLANK(A225),\"\",VLOOKUP(A225,'разн. списки'!$N$3:$O$274,2,FALSE))","v":""},null,null,0]
[null,{"$f":"IF(ISBLANK(A226),\"\",VLOOKUP(A226,'разн. списки'!$N$3:$O$274,2,FALSE))","v":""},null,null,0]
[null,{"$f":"IF(ISBLANK(A227),\"\",VLOOKUP(A227,'разн. списки'!$N$3:$O$274,2,FALSE))","v":""},null,null,0]
[null,{"$f":"IF(ISBLANK(A228),\"\",VLOOKUP(A228,'разн. списки'!$N$3:$O$274,2,FALSE))","v":""},null,null,0]
[null,{"$f":"IF(ISBLANK(A229),\"\",VLOOKUP(A229,'разн. списки'!$N$3:$O$274,2,FALSE))","v":""},null,null,0]
[null,{"$f":"IF(ISBLANK(A230),\"\",VLOOKUP(A230,'разн. списки'!$N$3:$O$274,2,FALSE))","v":""},null,null,0]
[null,{"$f":"IF(ISBLANK(A231),\"\",VLOOKUP(A231,'разн. списки'!$N$3:$O$274,2,FALSE))","v":""},null,null,0]
[null,{"$f":"IF(ISBLANK(A232),\"\",VLOOKUP(A232,'разн. списки'!$N$3:$O$274,2,FALSE))","v":""},null,null,0]
[null,{"$f":"IF(ISBLANK(A233),\"\",VLOOKUP(A233,'разн. списки'!$N$3:$O$274,2,FALSE))","v":""},null,null,0]
[null,{"$f":"IF(ISBLANK(A234),\"\",VLOOKUP(A234,'разн. списки'!$N$3:$O$274,2,FALSE))","v":""},null,null,0]
[null,{"$f":"IF(ISBLANK(A235),\"\",VLOOKUP(A235,'разн. списки'!$N$3:$O$274,2,FALSE))","v":""},null,null,0]
[null,{"$f":"IF(ISBLANK(A236),\"\",VLOOKUP(A236,'разн. списки'!$N$3:$O$274,2,FALSE))","v":""},null,null,0]
[null,{"$f":"IF(ISBLANK(A237),\"\",VLOOKUP(A237,'разн. списки'!$N$3:$O$274,2,FALSE))","v":""},null,null,0]
[null,{"$f":"IF(ISBLANK(A238),\"\",VLOOKUP(A238,'разн. списки'!$N$3:$O$274,2,FALSE))","v":""},null,null,0]
[null,{"$f":"IF(ISBLANK(A239),\"\",VLOOKUP(A239,'разн. списки'!$N$3:$O$274,2,FALSE))","v":""},null,null,0]
[null,{"$f":"IF(ISBLANK(A240),\"\",VLOOKUP(A240,'разн. списки'!$N$3:$O$274,2,FALSE))","v":""},null,null,0]
[null,{"$f":"IF(ISBLANK(A241),\"\",VLOOKUP(A241,'разн. списки'!$N$3:$O$274,2,FALSE))","v":""},null,null,0]
[null,{"$f":"IF(ISBLANK(A242),\"\",VLOOKUP(A242,'разн. списки'!$N$3:$O$274,2,FALSE))","v":""},null,null,0]
[null,{"$f":"IF(ISBLANK(A243),\"\",VLOOKUP(A243,'разн. списки'!$N$3:$O$274,2,FALSE))","v":""},null,null,0]
[null,{"$f":"IF(ISBLANK(A244),\"\",VLOOKUP(A244,'разн. списки'!$N$3:$O$274,2,FALSE))","v":""},null,null,0]
[null,{"$f":"IF(ISBLANK(A245),\"\",VLOOKUP(A245,'разн. списки'!$N$3:$O$274,2,FALSE))","v":""},null,null,0]
[null,{"$f":"IF(ISBLANK(A246),\"\",VLOOKUP(A246,'разн. списки'!$N$3:$O$274,2,FALSE))","v":""},null,null,0]
[null,{"$f":"IF(ISBLANK(A247),\"\",VLOOKUP(A247,'разн. списки'!$N$3:$O$274,2,FALSE))","v":""},null,null,0]
[null,{"$f":"IF(ISBLANK(A248),\"\",VLOOKUP(A248,'разн. списки'!$N$3:$O$274,2,FALSE))","v":""},null,null,0]
[null,{"$f":"IF(ISBLANK(A249),\"\",VLOOKUP(A249,'разн. списки'!$N$3:$O$274,2,FALSE))","v":""},null,null,0]
[null,{"$f":"IF(ISBLANK(A250),\"\",VLOOKUP(A250,'разн. списки'!$N$3:$O$274,2,FALSE))","v":""},null,null,0]
[null,{"$f":"IF(ISBLANK(A251),\"\",VLOOKUP(A251,'разн. списки'!$N$3:$O$274,2,FALSE))","v":""},null,null,0]
[null,{"$f":"IF(ISBLANK(A252),\"\",VLOOKUP(A252,'разн. списки'!$N$3:$O$274,2,FALSE))","v":""},null,null,0]
[null,{"$f":"IF(ISBLANK(A253),\"\",VLOOKUP(A253,'разн. списки'!$N$3:$O$274,2,FALSE))","v":""},null,null,0]
[null,{"$f":"IF(ISBLANK(A254),\"\",VLOOKUP(A254,'разн. списки'!$N$3:$O$274,2,FALSE))","v":""},null,null,0]
[null,{"$f":"IF(ISBLANK(A255),\"\",VLOOKUP(A255,'разн. списки'!$N$3:$O$274,2,FALSE))","v":""},null,null,0]
[null,{"$f":"IF(ISBLANK(A256),\"\",VLOOKUP(A256,'разн. списки'!$N$3:$O$274,2,FALSE))","v":""},null,null,0]
[null,{"$f":"IF(ISBLANK(A257),\"\",VLOOKUP(A257,'разн. списки'!$N$3:$O$274,2,FALSE))","v":""},null,null,0]
[null,{"$f":"IF(ISBLANK(A258),\"\",VLOOKUP(A258,'разн. списки'!$N$3:$O$274,2,FALSE))","v":""},null,null,0]
[null,{"$f":"IF(ISBLANK(A259),\"\",VLOOKUP(A259,'разн. списки'!$N$3:$O$274,2,FALSE))","v":""},null,null,0]
[null,{"$f":"IF(ISBLANK(A260),\"\",VLOOKUP(A260,'разн. списки'!$N$3:$O$274,2,FALSE))","v":""},null,null,0]
[null,{"$f":"IF(ISBLANK(A261),\"\",VLOOKUP(A261,'разн. списки'!$N$3:$O$274,2,FALSE))","v":""},null,null,0]
[null,{"$f":"IF(ISBLANK(A262),\"\",VLOOKUP(A262,'разн. списки'!$N$3:$O$274,2,FALSE))","v":""},null,null,0]
[null,{"$f":"IF(ISBLANK(A263),\"\",VLOOKUP(A263,'разн. списки'!$N$3:$O$274,2,FALSE))","v":""},null,null,0]
[null,{"$f":"IF(ISBLANK(A264),\"\",VLOOKUP(A264,'разн. списки'!$N$3:$O$274,2,FALSE))","v":""},null,null,{"$f":"SUM(F264:I264)","v":0}]
[null,{"$f":"IF(ISBLANK(A265),\"\",VLOOKUP(A265,'разн. списки'!$N$3:$O$274,2,FALSE))","v":""},null,null,0]
[null,{"$f":"IF(ISBLANK(A266),\"\",VLOOKUP(A266,'разн. списки'!$N$3:$O$274,2,FALSE))","v":""},null,null,0]
[null,{"$f":"IF(ISBLANK(A267),\"\",VLOOKUP(A267,'разн. списки'!$N$3:$O$274,2,FALSE))","v":""},null,null,0]
[null,{"$f":"IF(ISBLANK(A268),\"\",VLOOKUP(A268,'разн. списки'!$N$3:$O$274,2,FALSE))","v":""},null,null,0]
[null,{"$f":"IF(ISBLANK(A269),\"\",VLOOKUP(A269,'разн. списки'!$N$3:$O$274,2,FALSE))","v":""},null,null,0]
[null,{"$f":"IF(ISBLANK(A270),\"\",VLOOKUP(A270,'разн. списки'!$N$3:$O$274,2,FALSE))","v":""},null,null,0]
[null,{"$f":"IF(ISBLANK(A271),\"\",VLOOKUP(A271,'разн. списки'!$N$3:$O$274,2,FALSE))","v":""},null,null,0]
[null,{"$f":"IF(ISBLANK(A272),\"\",VLOOKUP(A272,'разн. списки'!$N$3:$O$274,2,FALSE))","v":""},null,null,0]
[null,{"$f":"IF(ISBLANK(A273),\"\",VLOOKUP(A273,'разн. списки'!$N$3:$O$274,2,FALSE))","v":""},null,null,0]
[null,{"$f":"IF(ISBLANK(A274),\"\",VLOOKUP(A274,'разн. списки'!$N$3:$O$274,2,FALSE))","v":""},null,null,0]
[null,{"$f":"IF(ISBLANK(A275),\"\",VLOOKUP(A275,'разн. списки'!$N$3:$O$274,2,FALSE))","v":""},null,null,0]
[null,{"$f":"IF(ISBLANK(A276),\"\",VLOOKUP(A276,'разн. списки'!$N$3:$O$274,2,FALSE))","v":""},null,null,0]
[null,{"$f":"IF(ISBLANK(A277),\"\",VLOOKUP(A277,'разн. списки'!$N$3:$O$274,2,FALSE))","v":""},null,null,0]
[null,{"$f":"IF(ISBLANK(A278),\"\",VLOOKUP(A278,'разн. списки'!$N$3:$O$274,2,FALSE))","v":""},null,null,0]
[null,{"$f":"IF(ISBLANK(A279),\"\",VLOOKUP(A279,'разн. списки'!$N$3:$O$274,2,FALSE))","v":""},null,null,0]
[null,{"$f":"IF(ISBLANK(A280),\"\",VLOOKUP(A280,'разн. списки'!$N$3:$O$274,2,FALSE))","v":""},null,null,0]
[null,{"$f":"IF(ISBLANK(A281),\"\",VLOOKUP(A281,'разн. списки'!$N$3:$O$274,2,FALSE))","v":""},null,null,0]
[null,{"$f":"IF(ISBLANK(A282),\"\",VLOOKUP(A282,'разн. списки'!$N$3:$O$274,2,FALSE))","v":""},null,null,0]
[null,{"$f":"IF(ISBLANK(A283),\"\",VLOOKUP(A283,'разн. списки'!$N$3:$O$274,2,FALSE))","v":""},null,null,0]
[null,{"$f":"IF(ISBLANK(A284),\"\",VLOOKUP(A284,'разн. списки'!$N$3:$O$274,2,FALSE))","v":""},null,null,0]
[null,{"$f":"IF(ISBLANK(A285),\"\",VLOOKUP(A285,'разн. списки'!$N$3:$O$274,2,FALSE))","v":""},null,null,0]
[null,{"$f":"IF(ISBLANK(A286),\"\",VLOOKUP(A286,'разн. списки'!$N$3:$O$274,2,FALSE))","v":""},null,null,0]
[null,{"$f":"IF(ISBLANK(A287),\"\",VLOOKUP(A287,'разн. списки'!$N$3:$O$274,2,FALSE))","v":""},null,null,0]
[null,{"$f":"IF(ISBLANK(A288),\"\",VLOOKUP(A288,'разн. списки'!$N$3:$O$274,2,FALSE))","v":""},null,null,0]
[null,{"$f":"IF(ISBLANK(A289),\"\",VLOOKUP(A289,'разн. списки'!$N$3:$O$274,2,FALSE))","v":""},null,null,0]
[null,{"$f":"IF(ISBLANK(A290),\"\",VLOOKUP(A290,'разн. списки'!$N$3:$O$274,2,FALSE))","v":""},null,null,0]
[null,{"$f":"IF(ISBLANK(A291),\"\",VLOOKUP(A291,'разн. списки'!$N$3:$O$274,2,FALSE))","v":""},null,null,0]
[null,{"$f":"IF(ISBLANK(A292),\"\",VLOOKUP(A292,'разн. списки'!$N$3:$O$274,2,FALSE))","v":""},null,null,0]
[null,{"$f":"IF(ISBLANK(A293),\"\",VLOOKUP(A293,'разн. списки'!$N$3:$O$274,2,FALSE))","v":""},null,null,0]
[null,{"$f":"IF(ISBLANK(A294),\"\",VLOOKUP(A294,'разн. списки'!$N$3:$O$274,2,FALSE))","v":""},null,null,0]
[null,{"$f":"IF(ISBLANK(A295),\"\",VLOOKUP(A295,'разн. списки'!$N$3:$O$274,2,FALSE))","v":""},null,null,0]
[null,{"$f":"IF(ISBLANK(A296),\"\",VLOOKUP(A296,'разн. списки'!$N$3:$O$274,2,FALSE))","v":""},null,null,0]
[null,{"$f":"IF(ISBLANK(A297),\"\",VLOOKUP(A297,'разн. списки'!$N$3:$O$274,2,FALSE))","v":""},null,null,0]
[null,{"$f":"IF(ISBLANK(A298),\"\",VLOOKUP(A298,'разн. списки'!$N$3:$O$274,2,FALSE))","v":""},null,null,0]
[null,{"$f":"IF(ISBLANK(A299),\"\",VLOOKUP(A299,'разн. списки'!$N$3:$O$274,2,FALSE))","v":""},null,null,0]
[null,{"$f":"IF(ISBLANK(A300),\"\",VLOOKUP(A300,'разн. списки'!$N$3:$O$274,2,FALSE))","v":""},null,null,0]
[null,{"$f":"IF(ISBLANK(A301),\"\",VLOOKUP(A301,'разн. списки'!$N$3:$O$274,2,FALSE))","v":""},null,null,0]
[null,{"$f":"IF(ISBLANK(A302),\"\",VLOOKUP(A302,'разн. списки'!$N$3:$O$274,2,FALSE))","v":""},null,null,0]
[null,{"$f":"IF(ISBLANK(A303),\"\",VLOOKUP(A303,'разн. списки'!$N$3:$O$274,2,FALSE))","v":""},null,null,0]
[null,{"$f":"IF(ISBLANK(A304),\"\",VLOOKUP(A304,'разн. списки'!$N$3:$O$274,2,FALSE))","v":""},null,null,0]
[null,{"$f":"IF(ISBLANK(A305),\"\",VLOOKUP(A305,'разн. списки'!$N$3:$O$274,2,FALSE))","v":""},null,null,0]
[null,{"$f":"IF(ISBLANK(A306),\"\",VLOOKUP(A306,'разн. списки'!$N$3:$O$274,2,FALSE))","v":""},null,null,0]
[null,{"$f":"IF(ISBLANK(A307),\"\",VLOOKUP(A307,'разн. списки'!$N$3:$O$274,2,FALSE))","v":""},null,null,0]
[null,{"$f":"IF(ISBLANK(A308),\"\",VLOOKUP(A308,'разн. списки'!$N$3:$O$274,2,FALSE))","v":""},null,null,0]
[null,{"$f":"IF(ISBLANK(A309),\"\",VLOOKUP(A309,'разн. списки'!$N$3:$O$274,2,FALSE))","v":""},null,null,0]
[null,{"$f":"IF(ISBLANK(A310),\"\",VLOOKUP(A310,'разн. списки'!$N$3:$O$274,2,FALSE))","v":""},null,null,0]
[null,{"$f":"IF(ISBLANK(A311),\"\",VLOOKUP(A311,'разн. списки'!$N$3:$O$274,2,FALSE))","v":""},null,null,0]
[null,{"$f":"IF(ISBLANK(A312),\"\",VLOOKUP(A312,'разн. списки'!$N$3:$O$274,2,FALSE))","v":""},null,null,0]
[null,{"$f":"IF(ISBLANK(A313),\"\",VLOOKUP(A313,'разн. списки'!$N$3:$O$274,2,FALSE))","v":""},null,null,0]
[null,{"$f":"IF(ISBLANK(A314),\"\",VLOOKUP(A314,'разн. списки'!$N$3:$O$274,2,FALSE))","v":""},null,null,0]
[null,{"$f":"IF(ISBLANK(A315),\"\",VLOOKUP(A315,'разн. списки'!$N$3:$O$274,2,FALSE))","v":""},null,null,0]
[null,{"$f":"IF(ISBLANK(A316),\"\",VLOOKUP(A316,'разн. списки'!$N$3:$O$274,2,FALSE))","v":""},null,null,0]
[null,{"$f":"IF(ISBLANK(A317),\"\",VLOOKUP(A317,'разн. списки'!$N$3:$O$274,2,FALSE))","v":""},null,null,0]
[null,{"$f":"IF(ISBLANK(A318),\"\",VLOOKUP(A318,'разн. списки'!$N$3:$O$274,2,FALSE))","v":""},null,null,0]
[null,{"$f":"IF(ISBLANK(A319),\"\",VLOOKUP(A319,'разн. списки'!$N$3:$O$274,2,FALSE))","v":""},null,null,0]
[null,{"$f":"IF(ISBLANK(A320),\"\",VLOOKUP(A320,'разн. списки'!$N$3:$O$274,2,FALSE))","v":""},null,null,0]
[null,{"$f":"IF(ISBLANK(A321),\"\",VLOOKUP(A321,'разн. списки'!$N$3:$O$274,2,FALSE))","v":""},null,null,0]
[null,{"$f":"IF(ISBLANK(A322),\"\",VLOOKUP(A322,'разн. списки'!$N$3:$O$274,2,FALSE))","v":""},null,null,0]
[null,{"$f":"IF(ISBLANK(A323),\"\",VLOOKUP(A323,'разн. списки'!$N$3:$O$274,2,FALSE))","v":""},null,null,0]
[null,{"$f":"IF(ISBLANK(A324),\"\",VLOOKUP(A324,'разн. списки'!$N$3:$O$274,2,FALSE))","v":""},null,null,0]
[null,{"$f":"IF(ISBLANK(A325),\"\",VLOOKUP(A325,'разн. списки'!$N$3:$O$274,2,FALSE))","v":""},null,null,0]
[null,{"$f":"IF(ISBLANK(A326),\"\",VLOOKUP(A326,'разн. списки'!$N$3:$O$274,2,FALSE))","v":""},null,null,0]
[null,{"$f":"IF(ISBLANK(A327),\"\",VLOOKUP(A327,'разн. списки'!$N$3:$O$274,2,FALSE))","v":""},null,null,0]
[null,{"$f":"IF(ISBLANK(A328),\"\",VLOOKUP(A328,'разн. списки'!$N$3:$O$274,2,FALSE))","v":""},null,null,{"$f":"SUM(F328:I328)","v":0}]
[null,{"$f":"IF(ISBLANK(A329),\"\",VLOOKUP(A329,'разн. списки'!$N$3:$O$274,2,FALSE))","v":""},null,null,0]
[null,{"$f":"IF(ISBLANK(A330),\"\",VLOOKUP(A330,'разн. списки'!$N$3:$O$274,2,FALSE))","v":""},null,null,0]
[null,{"$f":"IF(ISBLANK(A331),\"\",VLOOKUP(A331,'разн. списки'!$N$3:$O$274,2,FALSE))","v":""},null,null,0]
[null,{"$f":"IF(ISBLANK(A332),\"\",VLOOKUP(A332,'разн. списки'!$N$3:$O$274,2,FALSE))","v":""},null,null,0]
[null,{"$f":"IF(ISBLANK(A333),\"\",VLOOKUP(A333,'разн. списки'!$N$3:$O$274,2,FALSE))","v":""},null,null,0]
[null,{"$f":"IF(ISBLANK(A334),\"\",VLOOKUP(A334,'разн. списки'!$N$3:$O$274,2,FALSE))","v":""},null,null,0]
[null,{"$f":"IF(ISBLANK(A335),\"\",VLOOKUP(A335,'разн. списки'!$N$3:$O$274,2,FALSE))","v":""},null,null,0]
[null,{"$f":"IF(ISBLANK(A336),\"\",VLOOKUP(A336,'разн. списки'!$N$3:$O$274,2,FALSE))","v":""},null,null,0]
[null,{"$f":"IF(ISBLANK(A337),\"\",VLOOKUP(A337,'разн. списки'!$N$3:$O$274,2,FALSE))","v":""},null,null,0]
[null,{"$f":"IF(ISBLANK(A338),\"\",VLOOKUP(A338,'разн. списки'!$N$3:$O$274,2,FALSE))","v":""},null,null,0]
[null,{"$f":"IF(ISBLANK(A339),\"\",VLOOKUP(A339,'разн. списки'!$N$3:$O$274,2,FALSE))","v":""},null,null,0]
[null,{"$f":"IF(ISBLANK(A340),\"\",VLOOKUP(A340,'разн. списки'!$N$3:$O$274,2,FALSE))","v":""},null,null,0]
[null,{"$f":"IF(ISBLANK(A341),\"\",VLOOKUP(A341,'разн. списки'!$N$3:$O$274,2,FALSE))","v":""},null,null,0]
[null,{"$f":"IF(ISBLANK(A342),\"\",VLOOKUP(A342,'разн. списки'!$N$3:$O$274,2,FALSE))","v":""},null,null,0]
[null,{"$f":"IF(ISBLANK(A343),\"\",VLOOKUP(A343,'разн. списки'!$N$3:$O$274,2,FALSE))","v":""},null,null,0]
[null,{"$f":"IF(ISBLANK(A344),\"\",VLOOKUP(A344,'разн. списки'!$N$3:$O$274,2,FALSE))","v":""},null,null,0]
[null,{"$f":"IF(ISBLANK(A345),\"\",VLOOKUP(A345,'разн. списки'!$N$3:$O$274,2,FALSE))","v":""},null,null,0]
[null,{"$f":"IF(ISBLANK(A346),\"\",VLOOKUP(A346,'разн. списки'!$N$3:$O$274,2,FALSE))","v":""},null,null,0]
[null,{"$f":"IF(ISBLANK(A347),\"\",VLOOKUP(A347,'разн. списки'!$N$3:$O$274,2,FALSE))","v":""},null,null,0]
[null,{"$f":"IF(ISBLANK(A348),\"\",VLOOKUP(A348,'разн. списки'!$N$3:$O$274,2,FALSE))","v":""},null,null,0]
[null,{"$f":"IF(ISBLANK(A349),\"\",VLOOKUP(A349,'разн. списки'!$N$3:$O$274,2,FALSE))","v":""},null,null,0]
[null,{"$f":"IF(ISBLANK(A350),\"\",VLOOKUP(A350,'разн. списки'!$N$3:$O$274,2,FALSE))","v":""},null,null,0]
[null,{"$f":"IF(ISBLANK(A351),\"\",VLOOKUP(A351,'разн. списки'!$N$3:$O$274,2,FALSE))","v":""},null,null,0]
[null,{"$f":"IF(ISBLANK(A352),\"\",VLOOKUP(A352,'разн. списки'!$N$3:$O$274,2,FALSE))","v":""},null,null,0]
[null,{"$f":"IF(ISBLANK(A353),\"\",VLOOKUP(A353,'разн. списки'!$N$3:$O$274,2,FALSE))","v":""},null,null,0]
[null,{"$f":"IF(ISBLANK(A354),\"\",VLOOKUP(A354,'разн. списки'!$N$3:$O$274,2,FALSE))","v":""},null,null,0]
[null,{"$f":"IF(ISBLANK(A355),\"\",VLOOKUP(A355,'разн. списки'!$N$3:$O$274,2,FALSE))","v":""},null,null,0]
[null,{"$f":"IF(ISBLANK(A356),\"\",VLOOKUP(A356,'разн. списки'!$N$3:$O$274,2,FALSE))","v":""},null,null,0]
[null,{"$f":"IF(ISBLANK(A357),\"\",VLOOKUP(A357,'разн. списки'!$N$3:$O$274,2,FALSE))","v":""},null,null,0]
[null,{"$f":"IF(ISBLANK(A358),\"\",VLOOKUP(A358,'разн. списки'!$N$3:$O$274,2,FALSE))","v":""},null,null,0]
[null,{"$f":"IF(ISBLANK(A359),\"\",VLOOKUP(A359,'разн. списки'!$N$3:$O$274,2,FALSE))","v":""},null,null,0]
[null,{"$f":"IF(ISBLANK(A360),\"\",VLOOKUP(A360,'разн. списки'!$N$3:$O$274,2,FALSE))","v":""},null,null,0]
[null,{"$f":"IF(ISBLANK(A361),\"\",VLOOKUP(A361,'разн. списки'!$N$3:$O$274,2,FALSE))","v":""},null,null,0]
[null,{"$f":"IF(ISBLANK(A362),\"\",VLOOKUP(A362,'разн. списки'!$N$3:$O$274,2,FALSE))","v":""},null,null,0]
[null,{"$f":"IF(ISBLANK(A363),\"\",VLOOKUP(A363,'разн. списки'!$N$3:$O$274,2,FALSE))","v":""},null,null,0]
[null,{"$f":"IF(ISBLANK(A364),\"\",VLOOKUP(A364,'разн. списки'!$N$3:$O$274,2,FALSE))","v":""},null,null,0]
[null,{"$f":"IF(ISBLANK(A365),\"\",VLOOKUP(A365,'разн. списки'!$N$3:$O$274,2,FALSE))","v":""},null,null,0]
[null,{"$f":"IF(ISBLANK(A366),\"\",VLOOKUP(A366,'разн. списки'!$N$3:$O$274,2,FALSE))","v":""},null,null,0]
[null,{"$f":"IF(ISBLANK(A367),\"\",VLOOKUP(A367,'разн. списки'!$N$3:$O$274,2,FALSE))","v":""},null,null,0]
[null,{"$f":"IF(ISBLANK(A368),\"\",VLOOKUP(A368,'разн. списки'!$N$3:$O$274,2,FALSE))","v":""},null,null,0]
[null,{"$f":"IF(ISBLANK(A369),\"\",VLOOKUP(A369,'разн. списки'!$N$3:$O$274,2,FALSE))","v":""},null,null,0]
[null,{"$f":"IF(ISBLANK(A370),\"\",VLOOKUP(A370,'разн. списки'!$N$3:$O$274,2,FALSE))","v":""},null,null,0]
[null,{"$f":"IF(ISBLANK(A371),\"\",VLOOKUP(A371,'разн. списки'!$N$3:$O$274,2,FALSE))","v":""},null,null,0]
[null,{"$f":"IF(ISBLANK(A372),\"\",VLOOKUP(A372,'разн. списки'!$N$3:$O$274,2,FALSE))","v":""},null,null,0]
[null,{"$f":"IF(ISBLANK(A373),\"\",VLOOKUP(A373,'разн. списки'!$N$3:$O$274,2,FALSE))","v":""},null,null,0]
[null,{"$f":"IF(ISBLANK(A374),\"\",VLOOKUP(A374,'разн. списки'!$N$3:$O$274,2,FALSE))","v":""},null,null,0]
[null,{"$f":"IF(ISBLANK(A375),\"\",VLOOKUP(A375,'разн. списки'!$N$3:$O$274,2,FALSE))","v":""},null,null,0]
[null,{"$f":"IF(ISBLANK(A376),\"\",VLOOKUP(A376,'разн. списки'!$N$3:$O$274,2,FALSE))","v":""},null,null,0]
[null,{"$f":"IF(ISBLANK(A377),\"\",VLOOKUP(A377,'разн. списки'!$N$3:$O$274,2,FALSE))","v":""},null,null,0]
[null,{"$f":"IF(ISBLANK(A378),\"\",VLOOKUP(A378,'разн. списки'!$N$3:$O$274,2,FALSE))","v":""},null,null,0]
[null,{"$f":"IF(ISBLANK(A379),\"\",VLOOKUP(A379,'разн. списки'!$N$3:$O$274,2,FALSE))","v":""},null,null,0]
[null,{"$f":"IF(ISBLANK(A380),\"\",VLOOKUP(A380,'разн. списки'!$N$3:$O$274,2,FALSE))","v":""},null,null,0]
[null,{"$f":"IF(ISBLANK(A381),\"\",VLOOKUP(A381,'разн. списки'!$N$3:$O$274,2,FALSE))","v":""},null,null,0]
[null,{"$f":"IF(ISBLANK(A382),\"\",VLOOKUP(A382,'разн. списки'!$N$3:$O$274,2,FALSE))","v":""},null,null,0]
[null,{"$f":"IF(ISBLANK(A383),\"\",VLOOKUP(A383,'разн. списки'!$N$3:$O$274,2,FALSE))","v":""},null,null,0]
[null,{"$f":"IF(ISBLANK(A384),\"\",VLOOKUP(A384,'разн. списки'!$N$3:$O$274,2,FALSE))","v":""},null,null,0]
[null,{"$f":"IF(ISBLANK(A385),\"\",VLOOKUP(A385,'разн. списки'!$N$3:$O$274,2,FALSE))","v":""},null,null,0]
[null,{"$f":"IF(ISBLANK(A386),\"\",VLOOKUP(A386,'разн. списки'!$N$3:$O$274,2,FALSE))","v":""},null,null,0]
[null,{"$f":"IF(ISBLANK(A387),\"\",VLOOKUP(A387,'разн. списки'!$N$3:$O$274,2,FALSE))","v":""},null,null,0]
[null,{"$f":"IF(ISBLANK(A388),\"\",VLOOKUP(A388,'разн. списки'!$N$3:$O$274,2,FALSE))","v":""},null,null,0]
[null,{"$f":"IF(ISBLANK(A389),\"\",VLOOKUP(A389,'разн. списки'!$N$3:$O$274,2,FALSE))","v":""},null,null,0]
[null,{"$f":"IF(ISBLANK(A390),\"\",VLOOKUP(A390,'разн. списки'!$N$3:$O$274,2,FALSE))","v":""},null,null,0]
[null,{"$f":"IF(ISBLANK(A391),\"\",VLOOKUP(A391,'разн. списки'!$N$3:$O$274,2,FALSE))","v":""},null,null,0]
[null,{"$f":"IF(ISBLANK(A392),\"\",VLOOKUP(A392,'разн. списки'!$N$3:$O$274,2,FALSE))","v":""},null,null,{"$f":"SUM(F392:I392)","v":0}]
[null,{"$f":"IF(ISBLANK(A393),\"\",VLOOKUP(A393,'разн. списки'!$N$3:$O$274,2,FALSE))","v":""},null,null,0]
[null,{"$f":"IF(ISBLANK(A394),\"\",VLOOKUP(A394,'разн. списки'!$N$3:$O$274,2,FALSE))","v":""},null,null,0]
[null,{"$f":"IF(ISBLANK(A395),\"\",VLOOKUP(A395,'разн. списки'!$N$3:$O$274,2,FALSE))","v":""},null,null,0]
[null,{"$f":"IF(ISBLANK(A396),\"\",VLOOKUP(A396,'разн. списки'!$N$3:$O$274,2,FALSE))","v":""},null,null,0]
[null,{"$f":"IF(ISBLANK(A397),\"\",VLOOKUP(A397,'разн. списки'!$N$3:$O$274,2,FALSE))","v":""},null,null,0]
[null,{"$f":"IF(ISBLANK(A398),\"\",VLOOKUP(A398,'разн. списки'!$N$3:$O$274,2,FALSE))","v":""},null,null,0]
[null,{"$f":"IF(ISBLANK(A399),\"\",VLOOKUP(A399,'разн. списки'!$N$3:$O$274,2,FALSE))","v":""},null,null,0]
[null,{"$f":"IF(ISBLANK(A400),\"\",VLOOKUP(A400,'разн. списки'!$N$3:$O$274,2,FALSE))","v":""},null,null,0]
[null,{"$f":"IF(ISBLANK(A401),\"\",VLOOKUP(A401,'разн. списки'!$N$3:$O$274,2,FALSE))","v":""},null,null,0]
[null,{"$f":"IF(ISBLANK(A402),\"\",VLOOKUP(A402,'разн. списки'!$N$3:$O$274,2,FALSE))","v":""},null,null,0]
[null,{"$f":"IF(ISBLANK(A403),\"\",VLOOKUP(A403,'разн. списки'!$N$3:$O$274,2,FALSE))","v":""},null,null,0]
[null,{"$f":"IF(ISBLANK(A404),\"\",VLOOKUP(A404,'разн. списки'!$N$3:$O$274,2,FALSE))","v":""},null,null,0]
[null,{"$f":"IF(ISBLANK(A405),\"\",VLOOKUP(A405,'разн. списки'!$N$3:$O$274,2,FALSE))","v":""},null,null,0]
[null,{"$f":"IF(ISBLANK(A406),\"\",VLOOKUP(A406,'разн. списки'!$N$3:$O$274,2,FALSE))","v":""},null,null,0]
[null,{"$f":"IF(ISBLANK(A407),\"\",VLOOKUP(A407,'разн. списки'!$N$3:$O$274,2,FALSE))","v":""},null,null,0]
[null,{"$f":"IF(ISBLANK(A408),\"\",VLOOKUP(A408,'разн. списки'!$N$3:$O$274,2,FALSE))","v":""},null,null,0]
[null,{"$f":"IF(ISBLANK(A409),\"\",VLOOKUP(A409,'разн. списки'!$N$3:$O$274,2,FALSE))","v":""},null,null,0]
[null,{"$f":"IF(ISBLANK(A410),\"\",VLOOKUP(A410,'разн. списки'!$N$3:$O$274,2,FALSE))","v":""},null,null,0]
[null,{"$f":"IF(ISBLANK(A411),\"\",VLOOKUP(A411,'разн. списки'!$N$3:$O$274,2,FALSE))","v":""},null,null,0]
[null,{"$f":"IF(ISBLANK(A412),\"\",VLOOKUP(A412,'разн. списки'!$N$3:$O$274,2,FALSE))","v":""},null,null,0]
[null,{"$f":"IF(ISBLANK(A413),\"\",VLOOKUP(A413,'разн. списки'!$N$3:$O$274,2,FALSE))","v":""},null,null,0]
[null,{"$f":"IF(ISBLANK(A414),\"\",VLOOKUP(A414,'разн. списки'!$N$3:$O$274,2,FALSE))","v":""},null,null,0]
[null,{"$f":"IF(ISBLANK(A415),\"\",VLOOKUP(A415,'разн. списки'!$N$3:$O$274,2,FALSE))","v":""},null,null,0]
[null,{"$f":"IF(ISBLANK(A416),\"\",VLOOKUP(A416,'разн. списки'!$N$3:$O$274,2,FALSE))","v":""},null,null,0]
[null,{"$f":"IF(ISBLANK(A417),\"\",VLOOKUP(A417,'разн. списки'!$N$3:$O$274,2,FALSE))","v":""},null,null,0]
[null,{"$f":"IF(ISBLANK(A418),\"\",VLOOKUP(A418,'разн. списки'!$N$3:$O$274,2,FALSE))","v":""},null,null,0]
[null,{"$f":"IF(ISBLANK(A419),\"\",VLOOKUP(A419,'разн. списки'!$N$3:$O$274,2,FALSE))","v":""},null,null,0]
[null,{"$f":"IF(ISBLANK(A420),\"\",VLOOKUP(A420,'разн. списки'!$N$3:$O$274,2,FALSE))","v":""},null,null,0]
[null,{"$f":"IF(ISBLANK(A421),\"\",VLOOKUP(A421,'разн. списки'!$N$3:$O$274,2,FALSE))","v":""},null,null,0]
[null,{"$f":"IF(ISBLANK(A422),\"\",VLOOKUP(A422,'разн. списки'!$N$3:$O$274,2,FALSE))","v":""},null,null,0]
[null,{"$f":"IF(ISBLANK(A423),\"\",VLOOKUP(A423,'разн. списки'!$N$3:$O$274,2,FALSE))","v":""},null,null,0]
[null,{"$f":"IF(ISBLANK(A424),\"\",VLOOKUP(A424,'разн. списки'!$N$3:$O$274,2,FALSE))","v":""},null,null,0]
[null,{"$f":"IF(ISBLANK(A425),\"\",VLOOKUP(A425,'разн. списки'!$N$3:$O$274,2,FALSE))","v":""},null,null,0]
[null,{"$f":"IF(ISBLANK(A426),\"\",VLOOKUP(A426,'разн. списки'!$N$3:$O$274,2,FALSE))","v":""},null,null,0]
[null,{"$f":"IF(ISBLANK(A427),\"\",VLOOKUP(A427,'разн. списки'!$N$3:$O$274,2,FALSE))","v":""},null,null,0]
[null,{"$f":"IF(ISBLANK(A428),\"\",VLOOKUP(A428,'разн. списки'!$N$3:$O$274,2,FALSE))","v":""},null,null,0]
[null,{"$f":"IF(ISBLANK(A429),\"\",VLOOKUP(A429,'разн. списки'!$N$3:$O$274,2,FALSE))","v":""},null,null,0]
[null,{"$f":"IF(ISBLANK(A430),\"\",VLOOKUP(A430,'разн. списки'!$N$3:$O$274,2,FALSE))","v":""},null,null,0]
[null,{"$f":"IF(ISBLANK(A431),\"\",VLOOKUP(A431,'разн. списки'!$N$3:$O$274,2,FALSE))","v":""},null,null,0]
[null,{"$f":"IF(ISBLANK(A432),\"\",VLOOKUP(A432,'разн. списки'!$N$3:$O$274,2,FALSE))","v":""},null,null,0]
[null,{"$f":"IF(ISBLANK(A433),\"\",VLOOKUP(A433,'разн. списки'!$N$3:$O$274,2,FALSE))","v":""},null,null,0]
[null,{"$f":"IF(ISBLANK(A434),\"\",VLOOKUP(A434,'разн. списки'!$N$3:$O$274,2,FALSE))","v":""},null,null,0]
[null,{"$f":"IF(ISBLANK(A435),\"\",VLOOKUP(A435,'разн. списки'!$N$3:$O$274,2,FALSE))","v":""},null,null,0]
[null,{"$f":"IF(ISBLANK(A436),\"\",VLOOKUP(A436,'разн. списки'!$N$3:$O$274,2,FALSE))","v":""},null,null,0]
[null,{"$f":"IF(ISBLANK(A437),\"\",VLOOKUP(A437,'разн. списки'!$N$3:$O$274,2,FALSE))","v":""},null,null,0]
[null,{"$f":"IF(ISBLANK(A438),\"\",VLOOKUP(A438,'разн. списки'!$N$3:$O$274,2,FALSE))","v":""},null,null,0]
[null,{"$f":"IF(ISBLANK(A439),\"\",VLOOKUP(A439,'разн. списки'!$N$3:$O$274,2,FALSE))","v":""},null,null,0]
[null,{"$f":"IF(ISBLANK(A440),\"\",VLOOKUP(A440,'разн. списки'!$N$3:$O$274,2,FALSE))","v":""},null,null,0]
[null,{"$f":"IF(ISBLANK(A441),\"\",VLOOKUP(A441,'разн. списки'!$N$3:$O$274,2,FALSE))","v":""},null,null,0]
[null,{"$f":"IF(ISBLANK(A442),\"\",VLOOKUP(A442,'разн. списки'!$N$3:$O$274,2,FALSE))","v":""},null,null,0]
[null,{"$f":"IF(ISBLANK(A443),\"\",VLOOKUP(A443,'разн. списки'!$N$3:$O$274,2,FALSE))","v":""},null,null,0]
[null,{"$f":"IF(ISBLANK(A444),\"\",VLOOKUP(A444,'разн. списки'!$N$3:$O$274,2,FALSE))","v":""},null,null,0]
[null,{"$f":"IF(ISBLANK(A445),\"\",VLOOKUP(A445,'разн. списки'!$N$3:$O$274,2,FALSE))","v":""},null,null,0]
[null,{"$f":"IF(ISBLANK(A446),\"\",VLOOKUP(A446,'разн. списки'!$N$3:$O$274,2,FALSE))","v":""},null,null,0]
[null,{"$f":"IF(ISBLANK(A447),\"\",VLOOKUP(A447,'разн. списки'!$N$3:$O$274,2,FALSE))","v":""},null,null,0]
[null,{"$f":"IF(ISBLANK(A448),\"\",VLOOKUP(A448,'разн. списки'!$N$3:$O$274,2,FALSE))","v":""},null,null,0]
[null,{"$f":"IF(ISBLANK(A449),\"\",VLOOKUP(A449,'разн. списки'!$N$3:$O$274,2,FALSE))","v":""},null,null,0]
[null,{"$f":"IF(ISBLANK(A450),\"\",VLOOKUP(A450,'разн. списки'!$N$3:$O$274,2,FALSE))","v":""},null,null,0]
[null,{"$f":"IF(ISBLANK(A451),\"\",VLOOKUP(A451,'разн. списки'!$N$3:$O$274,2,FALSE))","v":""},null,null,0]
[null,{"$f":"IF(ISBLANK(A452),\"\",VLOOKUP(A452,'разн. списки'!$N$3:$O$274,2,FALSE))","v":""},null,null,0]
[null,{"$f":"IF(ISBLANK(A453),\"\",VLOOKUP(A453,'разн. списки'!$N$3:$O$274,2,FALSE))","v":""},null,null,0]
[null,{"$f":"IF(ISBLANK(A454),\"\",VLOOKUP(A454,'разн. списки'!$N$3:$O$274,2,FALSE))","v":""},null,null,0]
[null,{"$f":"IF(ISBLANK(A455),\"\",VLOOKUP(A455,'разн. списки'!$N$3:$O$274,2,FALSE))","v":""},null,null,0]
[null,{"$f":"IF(ISBLANK(A456),\"\",VLOOKUP(A456,'разн. списки'!$N$3:$O$274,2,FALSE))","v":""},null,null,{"$f":"SUM(F456:I456)","v":0}]
[null,{"$f":"IF(ISBLANK(A457),\"\",VLOOKUP(A457,'разн. списки'!$N$3:$O$274,2,FALSE))","v":""},null,null,0]
[null,{"$f":"IF(ISBLANK(A458),\"\",VLOOKUP(A458,'разн. списки'!$N$3:$O$274,2,FALSE))","v":""},null,null,0]
[null,{"$f":"IF(ISBLANK(A459),\"\",VLOOKUP(A459,'разн. списки'!$N$3:$O$274,2,FALSE))","v":""},null,null,0]
[null,{"$f":"IF(ISBLANK(A460),\"\",VLOOKUP(A460,'разн. списки'!$N$3:$O$274,2,FALSE))","v":""},null,null,0]
[null,{"$f":"IF(ISBLANK(A461),\"\",VLOOKUP(A461,'разн. списки'!$N$3:$O$274,2,FALSE))","v":""},null,null,0]
[null,{"$f":"IF(ISBLANK(A462),\"\",VLOOKUP(A462,'разн. списки'!$N$3:$O$274,2,FALSE))","v":""},null,null,0]
[null,{"$f":"IF(ISBLANK(A463),\"\",VLOOKUP(A463,'разн. списки'!$N$3:$O$274,2,FALSE))","v":""},null,null,0]
[null,{"$f":"IF(ISBLANK(A464),\"\",VLOOKUP(A464,'разн. списки'!$N$3:$O$274,2,FALSE))","v":""},null,null,0]
[null,{"$f":"IF(ISBLANK(A465),\"\",VLOOKUP(A465,'разн. списки'!$N$3:$O$274,2,FALSE))","v":""},null,null,0]
[null,{"$f":"IF(ISBLANK(A466),\"\",VLOOKUP(A466,'разн. списки'!$N$3:$O$274,2,FALSE))","v":""},null,null,0]
[null,{"$f":"IF(ISBLANK(A467),\"\",VLOOKUP(A467,'разн. списки'!$N$3:$O$274,2,FALSE))","v":""},null,null,0]
[null,{"$f":"IF(ISBLANK(A468),\"\",VLOOKUP(A468,'разн. списки'!$N$3:$O$274,2,FALSE))","v":""},null,null,0]
[null,{"$f":"IF(ISBLANK(A469),\"\",VLOOKUP(A469,'разн. списки'!$N$3:$O$274,2,FALSE))","v":""},null,null,0]
[null,{"$f":"IF(ISBLANK(A470),\"\",VLOOKUP(A470,'разн. списки'!$N$3:$O$274,2,FALSE))","v":""},null,null,0]
[null,{"$f":"IF(ISBLANK(A471),\"\",VLOOKUP(A471,'разн. списки'!$N$3:$O$274,2,FALSE))","v":""},null,null,0]
[null,{"$f":"IF(ISBLANK(A472),\"\",VLOOKUP(A472,'разн. списки'!$N$3:$O$274,2,FALSE))","v":""},null,null,0]
[null,{"$f":"IF(ISBLANK(A473),\"\",VLOOKUP(A473,'разн. списки'!$N$3:$O$274,2,FALSE))","v":""},null,null,0]
[null,{"$f":"IF(ISBLANK(A474),\"\",VLOOKUP(A474,'разн. списки'!$N$3:$O$274,2,FALSE))","v":""},null,null,0]
[null,{"$f":"IF(ISBLANK(A475),\"\",VLOOKUP(A475,'разн. списки'!$N$3:$O$274,2,FALSE))","v":""},null,null,0]
[null,{"$f":"IF(ISBLANK(A476),\"\",VLOOKUP(A476,'разн. списки'!$N$3:$O$274,2,FALSE))","v":""},null,null,0]
[null,{"$f":"IF(ISBLANK(A477),\"\",VLOOKUP(A477,'разн. списки'!$N$3:$O$274,2,FALSE))","v":""},null,null,0]
[null,{"$f":"IF(ISBLANK(A478),\"\",VLOOKUP(A478,'разн. списки'!$N$3:$O$274,2,FALSE))","v":""},null,null,0]
[null,{"$f":"IF(ISBLANK(A479),\"\",VLOOKUP(A479,'разн. списки'!$N$3:$O$274,2,FALSE))","v":""},null,null,0]
[null,{"$f":"IF(ISBLANK(A480),\"\",VLOOKUP(A480,'разн. списки'!$N$3:$O$274,2,FALSE))","v":""},null,null,0]
[null,{"$f":"IF(ISBLANK(A481),\"\",VLOOKUP(A481,'разн. списки'!$N$3:$O$274,2,FALSE))","v":""},null,null,0]
[null,{"$f":"IF(ISBLANK(A482),\"\",VLOOKUP(A482,'разн. списки'!$N$3:$O$274,2,FALSE))","v":""},null,null,0]
[null,{"$f":"IF(ISBLANK(A483),\"\",VLOOKUP(A483,'разн. списки'!$N$3:$O$274,2,FALSE))","v":""},null,null,0]
[null,{"$f":"IF(ISBLANK(A484),\"\",VLOOKUP(A484,'разн. списки'!$N$3:$O$274,2,FALSE))","v":""},null,null,0]
[null,{"$f":"IF(ISBLANK(A485),\"\",VLOOKUP(A485,'разн. списки'!$N$3:$O$274,2,FALSE))","v":""},null,null,0]
[null,{"$f":"IF(ISBLANK(A486),\"\",VLOOKUP(A486,'разн. списки'!$N$3:$O$274,2,FALSE))","v":""},null,null,0]
[null,{"$f":"IF(ISBLANK(A487),\"\",VLOOKUP(A487,'разн. списки'!$N$3:$O$274,2,FALSE))","v":""},null,null,0]
[null,{"$f":"IF(ISBLANK(A488),\"\",VLOOKUP(A488,'разн. списки'!$N$3:$O$274,2,FALSE))","v":""},null,null,0]
[null,{"$f":"IF(ISBLANK(A489),\"\",VLOOKUP(A489,'разн. списки'!$N$3:$O$274,2,FALSE))","v":""},null,null,0]
[null,{"$f":"IF(ISBLANK(A490),\"\",VLOOKUP(A490,'разн. списки'!$N$3:$O$274,2,FALSE))","v":""},null,null,0]
[null,{"$f":"IF(ISBLANK(A491),\"\",VLOOKUP(A491,'разн. списки'!$N$3:$O$274,2,FALSE))","v":""},null,null,0]
[null,{"$f":"IF(ISBLANK(A492),\"\",VLOOKUP(A492,'разн. списки'!$N$3:$O$274,2,FALSE))","v":""},null,null,0]
[null,{"$f":"IF(ISBLANK(A493),\"\",VLOOKUP(A493,'разн. списки'!$N$3:$O$274,2,FALSE))","v":""},null,null,0]
[null,{"$f":"IF(ISBLANK(A494),\"\",VLOOKUP(A494,'разн. списки'!$N$3:$O$274,2,FALSE))","v":""},null,null,0]
[null,{"$f":"IF(ISBLANK(A495),\"\",VLOOKUP(A495,'разн. списки'!$N$3:$O$274,2,FALSE))","v":""},null,null,0]
[null,{"$f":"IF(ISBLANK(A496),\"\",VLOOKUP(A496,'разн. списки'!$N$3:$O$274,2,FALSE))","v":""},null,null,0]
[null,{"$f":"IF(ISBLANK(A497),\"\",VLOOKUP(A497,'разн. списки'!$N$3:$O$274,2,FALSE))","v":""},null,null,0]
[null,{"$f":"IF(ISBLANK(A498),\"\",VLOOKUP(A498,'разн. списки'!$N$3:$O$274,2,FALSE))","v":""},null,null,0]
[null,{"$f":"IF(ISBLANK(A499),\"\",VLOOKUP(A499,'разн. списки'!$N$3:$O$274,2,FALSE))","v":""},null,null,0]
[null,{"$f":"IF(ISBLANK(A500),\"\",VLOOKUP(A500,'разн. списки'!$N$3:$O$274,2,FALSE))","v":""},null,null,0]
[null,{"$f":"IF(ISBLANK(A501),\"\",VLOOKUP(A501,'разн. списки'!$N$3:$O$274,2,FALSE))","v":""},null,null,0]
[null,{"$f":"IF(ISBLANK(A502),\"\",VLOOKUP(A502,'разн. списки'!$N$3:$O$274,2,FALSE))","v":""},null,null,0]
[null,{"$f":"IF(ISBLANK(A503),\"\",VLOOKUP(A503,'разн. списки'!$N$3:$O$274,2,FALSE))","v":""},null,null,0]
[null,{"$f":"IF(ISBLANK(A504),\"\",VLOOKUP(A504,'разн. списки'!$N$3:$O$274,2,FALSE))","v":""},null,null,0]
[null,{"$f":"IF(ISBLANK(A505),\"\",VLOOKUP(A505,'разн. списки'!$N$3:$O$274,2,FALSE))","v":""},null,null,0]
[null,{"$f":"IF(ISBLANK(A506),\"\",VLOOKUP(A506,'разн. списки'!$N$3:$O$274,2,FALSE))","v":""},null,null,0]
[null,{"$f":"IF(ISBLANK(A507),\"\",VLOOKUP(A507,'разн. списки'!$N$3:$O$274,2,FALSE))","v":""},null,null,0]
[null,{"$f":"IF(ISBLANK(A508),\"\",VLOOKUP(A508,'разн. списки'!$N$3:$O$274,2,FALSE))","v":""},null,null,0]
[null,{"$f":"IF(ISBLANK(A509),\"\",VLOOKUP(A509,'разн. списки'!$N$3:$O$274,2,FALSE))","v":""},null,null,0]
[null,{"$f":"IF(ISBLANK(A510),\"\",VLOOKUP(A510,'разн. списки'!$N$3:$O$274,2,FALSE))","v":""},null,null,0]
[null,{"$f":"IF(ISBLANK(A511),\"\",VLOOKUP(A511,'разн. списки'!$N$3:$O$274,2,FALSE))","v":""},null,null,0]
[null,{"$f":"IF(ISBLANK(A512),\"\",VLOOKUP(A512,'разн. списки'!$N$3:$O$274,2,FALSE))","v":""},null,null,0]
[null,{"$f":"IF(ISBLANK(A513),\"\",VLOOKUP(A513,'разн. списки'!$N$3:$O$274,2,FALSE))","v":""},null,null,0]
[null,{"$f":"IF(ISBLANK(A514),\"\",VLOOKUP(A514,'разн. списки'!$N$3:$O$274,2,FALSE))","v":""},null,null,0]
[null,{"$f":"IF(ISBLANK(A515),\"\",VLOOKUP(A515,'разн. списки'!$N$3:$O$274,2,FALSE))","v":""},null,null,0]
[null,{"$f":"IF(ISBLANK(A516),\"\",VLOOKUP(A516,'разн. списки'!$N$3:$O$274,2,FALSE))","v":""},null,null,0]
[null,{"$f":"IF(ISBLANK(A517),\"\",VLOOKUP(A517,'разн. списки'!$N$3:$O$274,2,FALSE))","v":""},null,null,0]
[null,{"$f":"IF(ISBLANK(A518),\"\",VLOOKUP(A518,'разн. списки'!$N$3:$O$274,2,FALSE))","v":""},null,null,0]
[null,{"$f":"IF(ISBLANK(A519),\"\",VLOOKUP(A519,'разн. списки'!$N$3:$O$274,2,FALSE))","v":""},null,null,0]
[null,{"$f":"IF(ISBLANK(A520),\"\",VLOOKUP(A520,'разн. списки'!$N$3:$O$274,2,FALSE))","v":""},null,null,{"$f":"SUM(F520:I520)","v":0}]
[null,{"$f":"IF(ISBLANK(A521),\"\",VLOOKUP(A521,'разн. списки'!$N$3:$O$274,2,FALSE))","v":""},null,null,0]
[null,{"$f":"IF(ISBLANK(A522),\"\",VLOOKUP(A522,'разн. списки'!$N$3:$O$274,2,FALSE))","v":""},null,null,0]
[null,{"$f":"IF(ISBLANK(A523),\"\",VLOOKUP(A523,'разн. списки'!$N$3:$O$274,2,FALSE))","v":""},null,null,0]
[null,{"$f":"IF(ISBLANK(A524),\"\",VLOOKUP(A524,'разн. списки'!$N$3:$O$274,2,FALSE))","v":""},null,null,0]
[null,{"$f":"IF(ISBLANK(A525),\"\",VLOOKUP(A525,'разн. списки'!$N$3:$O$274,2,FALSE))","v":""},null,null,0]
[null,{"$f":"IF(ISBLANK(A526),\"\",VLOOKUP(A526,'разн. списки'!$N$3:$O$274,2,FALSE))","v":""},null,null,0]
[null,{"$f":"IF(ISBLANK(A527),\"\",VLOOKUP(A527,'разн. списки'!$N$3:$O$274,2,FALSE))","v":""},null,null,0]
[null,{"$f":"IF(ISBLANK(A528),\"\",VLOOKUP(A528,'разн. списки'!$N$3:$O$274,2,FALSE))","v":""},null,null,0]
[null,{"$f":"IF(ISBLANK(A529),\"\",VLOOKUP(A529,'разн. списки'!$N$3:$O$274,2,FALSE))","v":""},null,null,0]
[null,{"$f":"IF(ISBLANK(A530),\"\",VLOOKUP(A530,'разн. списки'!$N$3:$O$274,2,FALSE))","v":""},null,null,0]
[null,{"$f":"IF(ISBLANK(A531),\"\",VLOOKUP(A531,'разн. списки'!$N$3:$O$274,2,FALSE))","v":""},null,null,0]
[null,{"$f":"IF(ISBLANK(A532),\"\",VLOOKUP(A532,'разн. списки'!$N$3:$O$274,2,FALSE))","v":""},null,null,0]
[null,{"$f":"IF(ISBLANK(A533),\"\",VLOOKUP(A533,'разн. списки'!$N$3:$O$274,2,FALSE))","v":""},null,null,0]
[null,{"$f":"IF(ISBLANK(A534),\"\",VLOOKUP(A534,'разн. списки'!$N$3:$O$274,2,FALSE))","v":""},null,null,0]
[null,{"$f":"IF(ISBLANK(A535),\"\",VLOOKUP(A535,'разн. списки'!$N$3:$O$274,2,FALSE))","v":""},null,null,0]
[null,{"$f":"IF(ISBLANK(A536),\"\",VLOOKUP(A536,'разн. списки'!$N$3:$O$274,2,FALSE))","v":""},null,null,0]
[null,{"$f":"IF(ISBLANK(A537),\"\",VLOOKUP(A537,'разн. списки'!$N$3:$O$274,2,FALSE))","v":""},null,null,0]
[null,{"$f":"IF(ISBLANK(A538),\"\",VLOOKUP(A538,'разн. списки'!$N$3:$O$274,2,FALSE))","v":""},null,null,0]
[null,{"$f":"IF(ISBLANK(A539),\"\",VLOOKUP(A539,'разн. списки'!$N$3:$O$274,2,FALSE))","v":""},null,null,0]
[null,{"$f":"IF(ISBLANK(A540),\"\",VLOOKUP(A540,'разн. списки'!$N$3:$O$274,2,FALSE))","v":""},null,null,0]
[null,{"$f":"IF(ISBLANK(A541),\"\",VLOOKUP(A541,'разн. списки'!$N$3:$O$274,2,FALSE))","v":""},null,null,0]
[null,{"$f":"IF(ISBLANK(A542),\"\",VLOOKUP(A542,'разн. списки'!$N$3:$O$274,2,FALSE))","v":""},null,null,0]
[null,{"$f":"IF(ISBLANK(A543),\"\",VLOOKUP(A543,'разн. списки'!$N$3:$O$274,2,FALSE))","v":""},null,null,0]
[null,{"$f":"IF(ISBLANK(A544),\"\",VLOOKUP(A544,'разн. списки'!$N$3:$O$274,2,FALSE))","v":""},null,null,0]
[null,{"$f":"IF(ISBLANK(A545),\"\",VLOOKUP(A545,'разн. списки'!$N$3:$O$274,2,FALSE))","v":""},null,null,0]
[null,{"$f":"IF(ISBLANK(A546),\"\",VLOOKUP(A546,'разн. списки'!$N$3:$O$274,2,FALSE))","v":""},null,null,0]
[null,{"$f":"IF(ISBLANK(A547),\"\",VLOOKUP(A547,'разн. списки'!$N$3:$O$274,2,FALSE))","v":""},null,null,0]
[null,{"$f":"IF(ISBLANK(A548),\"\",VLOOKUP(A548,'разн. списки'!$N$3:$O$274,2,FALSE))","v":""},null,null,0]
[null,{"$f":"IF(ISBLANK(A549),\"\",VLOOKUP(A549,'разн. списки'!$N$3:$O$274,2,FALSE))","v":""},null,null,0]
[null,{"$f":"IF(ISBLANK(A550),\"\",VLOOKUP(A550,'разн. списки'!$N$3:$O$274,2,FALSE))","v":""},null,null,0]
[null,{"$f":"IF(ISBLANK(A551),\"\",VLOOKUP(A551,'разн. списки'!$N$3:$O$274,2,FALSE))","v":""},null,null,0]
[null,{"$f":"IF(ISBLANK(A552),\"\",VLOOKUP(A552,'разн. списки'!$N$3:$O$274,2,FALSE))","v":""},null,null,0]
[null,{"$f":"IF(ISBLANK(A553),\"\",VLOOKUP(A553,'разн. списки'!$N$3:$O$274,2,FALSE))","v":""},null,null,0]
[null,{"$f":"IF(ISBLANK(A554),\"\",VLOOKUP(A554,'разн. списки'!$N$3:$O$274,2,FALSE))","v":""},null,null,0]
[null,{"$f":"IF(ISBLANK(A555),\"\",VLOOKUP(A555,'разн. списки'!$N$3:$O$274,2,FALSE))","v":""},null,null,0]
[null,{"$f":"IF(ISBLANK(A556),\"\",VLOOKUP(A556,'разн. списки'!$N$3:$O$274,2,FALSE))","v":""},null,null,0]
[null,{"$f":"IF(ISBLANK(A557),\"\",VLOOKUP(A557,'разн. списки'!$N$3:$O$274,2,FALSE))","v":""},null,null,0]
[null,{"$f":"IF(ISBLANK(A558),\"\",VLOOKUP(A558,'разн. списки'!$N$3:$O$274,2,FALSE))","v":""},null,null,0]
[null,{"$f":"IF(ISBLANK(A559),\"\",VLOOKUP(A559,'разн. списки'!$N$3:$O$274,2,FALSE))","v":""},null,null,0]
[null,{"$f":"IF(ISBLANK(A560),\"\",VLOOKUP(A560,'разн. списки'!$N$3:$O$274,2,FALSE))","v":""},null,null,0]
[null,{"$f":"IF(ISBLANK(A561),\"\",VLOOKUP(A561,'разн. списки'!$N$3:$O$274,2,FALSE))","v":""},null,null,0]
[null,{"$f":"IF(ISBLANK(A562),\"\",VLOOKUP(A562,'разн. списки'!$N$3:$O$274,2,FALSE))","v":""},null,null,0]
[null,{"$f":"IF(ISBLANK(A563),\"\",VLOOKUP(A563,'разн. списки'!$N$3:$O$274,2,FALSE))","v":""},null,null,0]
[null,{"$f":"IF(ISBLANK(A564),\"\",VLOOKUP(A564,'разн. списки'!$N$3:$O$274,2,FALSE))","v":""},null,null,0]
[null,{"$f":"IF(ISBLANK(A565),\"\",VLOOKUP(A565,'разн. списки'!$N$3:$O$274,2,FALSE))","v":""},null,null,0]
[null,{"$f":"IF(ISBLANK(A566),\"\",VLOOKUP(A566,'разн. списки'!$N$3:$O$274,2,FALSE))","v":""},null,null,0]
[null,{"$f":"IF(ISBLANK(A567),\"\",VLOOKUP(A567,'разн. списки'!$N$3:$O$274,2,FALSE))","v":""},null,null,0]
[null,{"$f":"IF(ISBLANK(A568),\"\",VLOOKUP(A568,'разн. списки'!$N$3:$O$274,2,FALSE))","v":""},null,null,0]
[null,{"$f":"IF(ISBLANK(A569),\"\",VLOOKUP(A569,'разн. списки'!$N$3:$O$274,2,FALSE))","v":""},null,null,0]
[null,{"$f":"IF(ISBLANK(A570),\"\",VLOOKUP(A570,'разн. списки'!$N$3:$O$274,2,FALSE))","v":""},null,null,0]
[null,{"$f":"IF(ISBLANK(A571),\"\",VLOOKUP(A571,'разн. списки'!$N$3:$O$274,2,FALSE))","v":""},null,null,0]
[null,{"$f":"IF(ISBLANK(A572),\"\",VLOOKUP(A572,'разн. списки'!$N$3:$O$274,2,FALSE))","v":""},null,null,0]
[null,{"$f":"IF(ISBLANK(A573),\"\",VLOOKUP(A573,'разн. списки'!$N$3:$O$274,2,FALSE))","v":""},null,null,0]

{"sheet":"Ф6-9","index":6,"n_rows":106,"n_cols":14,"rows_kept":106,"cut":false,"hidden":false,"merged":[[101,0,103,0],[101,1,103,1],[101,2,102,5],[101,6,102,9],[101,10,102,13],[95,9,95,10],[95,0,96,0],[94,0,94,11],[1,0,1,8],[100,0,100,6],[6,0,6,8],[95,1,95,4],[2,6,2,8],[95,5,95,8],[2,0,3,0],[2,1,3,1],[2,2,3,2],[2,3,3,3],[2,4,3,4],[2,5,3,5]]}
[]
["Форма №6 Особенности контингента выпускников 2022 года "]
["Кол-во выпускников, получивших диплом, по всем формам обучения, чел.","Кол-во выпускников- победителей, призеров чемпионатов Ворлдскиллс, чел.","Кол-во выпускников, обучающихся по целевому договору, чел","Кол-во занятых выпускников (с учетом самозанятых), чел.","Кол-во выпускников, имеющих наставников из числа специалистов-практиков, работающих на предприятиях и организациях реального сектора экономики","Если выпускники имеют наставников из числа специалистов-практиков, работающих на предприятиях и организациях реального сектора экономики, то укажите название предприятий","Распределение выпускников по возрасту, чел."]
[null,null,null,null,null,null,"До 18 лет","От 18 до 21","От 22 до 40 лет"]
[{"$f":"SUM('Ф1-3'!B7,'Ф1-3'!B14)","v":385},10,15,{"$f":"SUM('Таб 1.1-1.2'!H16:H202)","v":203},24,null,55,30,300]
[]
["Форма №7 Информационная справка"]
["Наименование образовательной организации","Код профессии/Специальности (выберите из списка)","Кол-во обучающихся на начало обучения","Кол-во допущенных к ГИА","Кол-во не явившихся на ГИА","Кол-во получивших дипломы","Из них с отличием ","Из них на «4» и «5»","Остальные дипломы"]
[{"$f":"'Таб 1.1-1.2'!$F$2","v":"Вместо этого текста, напишите название"},"05.01.01 Гидрометнаблюдатель",100,75,10,75,25,10,{"$f":"F9-(SUM(G9:H9))","v":40}]
[{"$f":"'Таб 1.1-1.2'!$F$2","v":"Вместо этого текста, напишите название"},"08.01.04 Кровельщик",42,43,15,52,24,7,{"$f":"F10-(SUM(G10:H10))","v":21}]
[{"$f":"'Таб 1.1-1.2'!$F$2","v":"Вместо этого текста, напишите название"},"08.01.09 Слесарь по строительно-монтажным работам",10,11,12,10,5,2,3]
[{"$f":"'Таб 1.1-1.2'!$F$2","v":"Вместо этого текста, напишите название"},null,null,null,null,null,null,null,0]
[{"$f":"'Таб 1.1-1.2'!$F$2","v":"Вместо этого текста, напишите название"},null,null,null,null,null,null,null,0]
[{"$f":"'Таб 1.1-1.2'!$F$2","v":"Вместо этого текста, напишите название"},null,null,null,null,null,null,null,0]
[{"$f":"'Таб 1.1-1.2'!$F$2","v":"Вместо этого текста, напишите название"},null,null,null,null,null,null,null,0]
[{"$f":"'Таб 1.1-1.2'!$F$2","v":"Вместо этого текста, напишите название"},null,null,null,null,null,null,null,0]
[{"$f":"'Таб 1.1-1.2'!$F$2","v":"Вместо этого текста, напишите название"},null,null,null,null,null,null,null,0]
[{"$f":"'Таб 1.1-1.2'!$F$2","v":"Вместо этого текста, напишите название"},null,null,null,null,null,null,null,0]
[{"$f":"'Таб 1.1-1.2'!$F$2","v":"Вместо этого текста, напишите название"},null,null,null,null,null,null,null,0]
[{"$f":"'Таб 1.1-1.2'!$F$2","v":"Вместо этого текста, напишите название"},null,null,null,null,null,null,null,0]
[{"$f":"'Таб 1.1-1.2'!$F$2","v":"Вместо этого текста, напишите название"},null,null,null,null,null,null,null,0]
[{"$f":"'Таб 1.1-1.2'!$F$2","v":"Вместо этого текста, напишите название"},null,null,null,null,null,null,null,0]
[{"$f":"'Таб 1.1-1.2'!$F$2","v":"Вместо этого текста, напишите название"},null,null,null,null,null,null,null,0]
[{"$f":"'Таб 1.1-1.2'!$F$2","v":"Вместо этого текста, напишите название"},null,null,null,null,null,null,null,0]
[{"$f":"'Таб 1.1-1.2'!$F$2","v":"Вместо этого текста, напишите название"},null,null,null,null,null,null,null,0]
[{"$f":"'Таб 1.1-1.2'!$F$2","v":"Вместо этого текста, напишите название"},null,null,null,null,null,null,null,0]
[{"$f":"'Таб 1.1-1.2'!$F$2","v":"Вместо этого текста, напишите название"},null,null,null,null,null,null,null,0]
[{"$f":"'Таб 1.1-1.2'!$F$2","v":"Вместо этого текста, напишите название"},null,null,null,null,null,null,null,0]
[{"$f":"'Таб 1.1-1.2'!$F$2","v":"Вместо этого текста, напишите название"},null,null,null,null,null,null,null,0]
[{"$f":"'Таб 1.1-1.2'!$F$2","v":"Вместо этого текста, напишите название"},null,null,null,null,null,null,null,0]
[{"$f":"'Таб 1.1-1.2'!$F$2","v":"Вместо этого текста, напишите название"},null,null,null,null,null,null,null,0]
[{"$f":"'Таб 1.1-1.2'!$F$2","v":"Вместо этого текста, напишите название"},null,null,null,null,null,null,null,0]
[{"$f":"'Таб 1.1-1.2'!$F$2","v":"Вместо этого текста, напишите название"},null,null,null,null,null,null,null,0]
[{"$f":"'Таб 1.1-1.2'!$F$2","v":"Вместо этого текста, напишите название"},null,null,null,null,null,null,null,0]
[{"$f":"'Таб 1.1-1.2'!$F$2","v":"Вместо этого текста, напишите название"},null,null,null,null,null,null,null,0]
[{"$f":"'Таб 1.1-1.2'!$F$2","v":"Вместо этого текста, напишите название"},null,null,null,null,null,null,null,0]
[{"$f":"'Таб 1.1-1.2'!$F$2","v":"Вместо этого текста, напишите название"},null,null,null,null,null,null,null,0]
[{"$f":"'Таб 1.1-1.2'!$F$2","v":"Вместо этого текста, напишите название"},null,null,null,null,null,null,null,0]
[{"$f":"'Таб 1.1-1.2'!$F$2","v":"Вместо этого текста, напишите название"},null,null,null,null,null,null,null,0]
[{"$f":"'Таб 1.1-1.2'!$F$2","v":"Вместо этого текста, напишите название"},null,null,null,null,null,null,null,0]
[{"$f":"'Таб 1.1-1.2'!$F$2","v":"Вместо этого текста, напишите название"},null,null,null,null,null,null,null,0]
[{"$f":"'Таб 1.1-1.2'!$F$2","v":"Вместо этого текста, напишите название"},null,null,null,null,null,null,null,0]
[{"$f":"'Таб 1.1-1.2'!$F$2","v":"Вместо этого текста, напишите название"},null,null,null,null,null,null,null,0]
[{"$f":"'Таб 1.1-1.2'!$F$2","v":"Вместо этого текста, напишите название"},null,null,null,null,null,null,null,0]
[{"$f":"'Таб 1.1-1.2'!$F$2","v":"Вместо этого текста, напишите название"},null,null,null,null,null,null,null,0]
[{"$f":"'Таб 1.1-1.2'!$F$2","v":"Вместо этого текста, напишите название"},null,null,null,null,null,null,null,0]
[{"$f":"'Таб 1.1-1.2'!$F$2","v":"Вместо этого текста, напишите название"},null,null,null,null,null,null,null,0]
[{"$f":"'Таб 1.1-1.2'!$F$2","v":"Вместо этого текста, напишите название"},null,null,null,null,null,null,null,0]
[{"$f":"'Таб 1.1-1.2'!$F$2","v":"Вместо этого текста, напишите название"},null,null,null,null,null,null,null,0]
[{"$f":"'Таб 1.1-1.2'!$F$2","v":"Вместо этого текста, напишите название"},null,null,null,null,null,null,null,0]
[{"$f":"'Таб 1.1-1.2'!$F$2","v":"Вместо этого текста, напишите название"},null,null,null,null,null,null,null,0]
[{"$f":"'Таб 1.1-1.2'!$F$2","v":"Вместо этого текста, напишите название"},null,null,null,null,null,null,null,0]
[{"$f":"'Таб 1.1-1.2'!$F$2","v":"Вместо этого текста, напишите название"},null,null,null,null,null,null,null,0]
[{"$f":"'Таб 1.1-1.2'!$F$2","v":"Вместо этого текста, напишите название"},null,null,null,null,null,null,null,0]
[{"$f":"'Таб 1.1-1.2'!$F$2","v":"Вместо этого текста, напишите название"},null,null,null,null,null,null,null,0]
[{"$f":"'Таб 1.1-1.2'!$F$2","v":"Вместо этого текста, напишите название"},null,null,null,null,null,null,null,0]
[{"$f":"'Таб 1.1-1.2'!$F$2","v":"Вместо этого текста, напишите название"},null,null,null,null,null,null,null,0]
[{"$f":"'Таб 1.1-1.2'!$F$2","v":"Вместо этого текста, напишите название"},null,null,null,null,null,null,null,0]
[{"$f":"'Таб 1.1-1.2'!$F$2","v":"Вместо этого текста, напишите название"},null,null,null,null,null,null,null,0]
[{"$f":"'Таб 1.1-1.2'!$F$2","v":"Вместо этого текста, напишите название"},null,null,null,null,null,null,null,0]
[{"$f":"'Таб 1.1-1.2'!$F$2","v":"Вместо этого текста, напишите название"},null,null,null,null,null,null,null,0]
[{"$f":"'Таб 1.1-1.2'!$F$2","v":"Вместо этого текста, напишите название"},null,null,null,null,null,null,null,0]
[{"$f":"'Таб 1.1-1.2'!$F$2","v":"Вместо этого текста, напишите название"},null,null,null,null,null,null,null,0]
[{"$f":"'Таб 1.1-1.2'!$F$2","v":"Вместо этого текста, напишите название"},null,null,null,null,null,null,null,0]
[{"$f":"'Таб 1.1-1.2'!$F$2","v":"Вместо этого текста, напишите название"},null,null,null,null,null,null,null,0]
[{"$f":"'Таб 1.1-1.2'!$F$2","v":"Вместо этого текста, напишите название"},null,null,null,null,null,null,null,0]
[{"$f":"'Таб 1.1-1.2'!$F$2","v":"Вместо этого текста, напишите название"},null,null,null,null,null,null,null,0]
[{"$f":"'Таб 1.1-1.2'!$F$2","v":"Вместо этого текста, напишите название"},null,null,null,null,null,null,null,0]
[{"$f":"'Таб 1.1-1.2'!$F$2","v":"Вместо этого текста, напишите название"},null,null,null,null,null,null,null,0]
[{"$f":"'Таб 1.1-1.2'!$F$2","v":"Вместо этого текста, напишите название"},null,null,null,null,null,null,null,0]
[{"$f":"'Таб 1.1-1.2'!$F$2","v":"Вместо этого текста, напишите название"},null,null,null,null,null,null,null,0]
[{"$f":"'Таб 1.1-1.2'!$F$2","v":"Вместо этого текста, напишите название"},null,null,null,null,null,null,null,0]
[{"$f":"'Таб 1.1-1.2'!$F$2","v":"Вместо этого текста, напишите название"},null,null,null,null,null,null,null,0]
[{"$f":"'Таб 1.1-1.2'!$F$2","v":"Вместо этого текста, напишите название"},null,null,null,null,null,null,null,{"$f":"F74-(SUM(G74:H74))","v":0}]
[{"$f":"'Таб 1.1-1.2'!$F$2","v":"Вместо этого текста, напишите название"},null,null,null,null,null,null,null,0]
[{"$f":"'Таб 1.1-1.2'!$F$2","v":"Вместо этого текста, напишите название"},null,null,null,null,null,null,null,0]
[{"$f":"'Таб 1.1-1.2'!$F$2","v":"Вместо этого текста, напишите название"},null,null,null,null,null,null,null,0]
[{"$f":"'Таб 1.1-1.2'!$F$2","v":"Вместо этого текста, напишите название"},null,null,null,null,null,null,null,0]
[{"$f":"'Таб 1.1-1.2'!$F$2","v":"Вместо этого текста, напишите название"},null,null,null,null,null,null,null,0]
[{"$f":"'Таб 1.1-1.2'!$F$2","v":"Вместо этого текста, напишите название"},null,null,null,null,null,null,null,0]
[{"$f":"'Таб 1.1-1.2'!$F$2","v":"Вместо этого текста, напишите название"},null,null,null,null,null,null,null,0]
[{"$f":"'Таб 1.1-1.2'!$F$2","v":"Вместо этого текста, напишите название"},null,null,null,null,null,null,null,0]
[{"$f":"'Таб 1.1-1.2'!$F$2","v":"Вместо этого текста, напишите название"},null,null,null,null,null,null,null,0]
[{"$f":"'Таб 1.1-1.2'!$F$2","v":"Вместо этого текста, напишите название"},null,null,null,null,null,null,null,0]
[{"$f":"'Таб 1.1-1.2'!$F$2","v":"Вместо этого текста, напишите название"},null,null,null,null,null,null,null,0]
[{"$f":"'Таб 1.1-1.2'!$F$2","v":"Вместо этого текста, напишите название"},null,null,null,null,null,null,null,0]
[{"$f":"'Таб 1.1-1.2'!$F$2","v":"Вместо этого текста, напишите название"},null,null,null,null,null,null,null,0]
[{"$f":"'Таб 1.1-1.2'!$F$2","v":"Вместо этого текста, напишите название"},null,null,null,null,null,null,null,0]
[{"$f":"'Таб 1.1-1.2'!$F$2","v":"Вместо этого текста, напишите название"},null,null,null,null,null,null,null,0]
[{"$f":"'Таб 1.1-1.2'!$F$2","v":"Вместо этого текста, напишите название"},null,null,null,null,null,null,null,0]
[{"$f":"'Таб 1.1-1.2'!$F$2","v":"Вместо этого текста, напишите название"},null,null,null,null,null,null,null,0]
[{"$f":"'Таб 1.1-1.2'!$F$2","v":"Вместо этого текста, напишите название"},null,null,null,null,null,null,null,0]
[]
[]
["Форма №8 Условия организации и проведения ГИА"]
["Наименование образовательной организации","Материально-техническое обеспечение проведения ГИА",null,null,null,"Кадровое обеспечение организации и проведения ГИА",null,null,null,"Информационное обеспечение организации и проведения ГИА посредством цифровой платформы ЦОПП",null,"Мероприятия по повышению эффективности сдачи ДЭ"]
[null,"Наименование мастерской, оснащенной современной МТБ по компетенции, для организации и проведения ГИА (В случае если имеются несколько указать через запятую)"," Центр проведения демонстрационного экзамена (да/нет).  Если используется база другой организации укажите ДА и название организации","Площадка предприятий-работодателя (наименование предприятий/компетенция)","Прочие помещения в соответствии с ФГОС по специальностям /профессиям для организации и проведения ГИА (указать наименование)","Всего приняло участие в организации и проведении ГИА (разработка программ, ФОС, поставка расходных материалов и пр.,). Указывается общее количество человек по всем формам обучения, подробная информация конкретизируется в аналитическом отчете. (НЕ ЗАПОЛНЯЕТСЯ, СУММА СТОЛБЦОВ 7-9)","из них  работники предприятий и организаций различных видов экономической деятельности - работодатели, чел. ","из них  работники образовательных организаций, чел. ","из них наставники из числа работников предприятий и организаций различных видов экономической деятельности, чел.","Информация о сроках проведения мероприятий по подготовке и проведения ГИА размещена на цифровой платформе ЦОПП в графике загрузки мастерских, оснащенных современной МТБ/ ЦПДЭ.","Информация о дополнительных программах повышения квалификации для студентов по подготовке к демонстрационному экзамену по компетенции, размещена на ЦП ЦОПП.","Проведены мастер-классы по выполнению заданий демонстрационного экзамена экспертами Ворлдскиллс"]
[1,2,3,4,5,6,7,8,9,10,11,12]
[{"$f":"'Таб 1.1-1.2'!$F$2","v":"Вместо этого текста, напишите название"},null,null,null,null,{"$f":"SUM(G99:I99)","v":20},5,7,8]
[]
["Форма №9 Качественные индикаторы реализации ФГОС СПО по профессиям/специальностям"]
["Наименование образовательной организации","Количество выпускников, допущенных и сдававших ГИА (суммарно по всем формам обучения), чел","Результаты защиты ВКР (суммарно по всем ПРОФЕССИЯМ СПО независимо от формы организации и проведения). Подробная информация в разрезе профессий конкретизируется в аналитическом отчете",null,null,null,"Результаты защиты ВКР (суммарно по всем СПЕЦИАЛЬНОСТЯМ СПО независимо от формы организации и проведения). Подробная информация в разрезе специальностей конкретизируется в аналитическом отчете",null,null,null,"Результаты ГОСУДАРСТВЕННОГО ЭКЗАМЕНА (суммарно независимо от формы организации и проведения). Подробная информация в разрезе специальсностей конкретизируется в аналитическом отчете"]
[]
[null,null,"отлично","хорошо","удовлетворительно ","Неудовлетворительно ","отлично","хорошо","удовлетворительно ","Неудовлетворительно ","отлично","хорошо","удовлетворительно ","Неудовлетворительно "]
[0,2,3,4,5,6,7,8,9,10,11,12,13,14]
[{"$f":"'Таб 1.1-1.2'!$F$2","v":"Вместо этого текста, напишите название"},{"$f":"(SUM(професс[Количество выпускников по профессии]))+(SUM(Спец[Количество выпускников по специальности, чел]))","v":168},{"$f":"SUM(професс[отлично (ВКР)])","v":15},{"$f":"SUM(професс[хорошо (ВКР)])","v":14},{"$f":"SUM(професс[удовлетворительно (ВКР)])","v":17},{"$f":"SUM(професс[Неудовлетворительно (ВКР)])","v":16},{"$f":"SUM(Спец[отлично (ВКР)])","v":57},{"$f":"SUM(Спец[хорошо (ВКР)])","v":8},{"$f":"SUM(Спец[удовлетворительно (ВКР)])","v":11},{"$f":"SUM(Спец[Неудовлетворительно (ВКР)])","v":15},{"$f":"(SUM(професс[отлично (ГЭ)]))+(SUM(Спец[отлично (ГЭ)]))","v":13},{"$f":"(SUM(професс[хорошо (ГЭ)]))+(SUM(Спец[хорошо (ГЭ]))","v":22},{"$f":"(SUM(професс[удовлетворительно (ГЭ)]))+(SUM(Спец[удовлетворительно  (ГЭ)]))","v":24},{"$f":"(SUM(професс[Неудовлетворительно (ГЭ)]))+(SUM(Спец[Неудовлетворительно (ГЭ)]))","v":29}]

{"sheet":"Трудоустройство выпускников","index":7,"n_rows":310,"n_cols":31,"rows_kept":310,"cut":false,"hidden":false,"merged":[[0,29,3,29],[0,30,3,30],[1,4,1,9],[1,10,1,12],[1,13,1,16],[1,17,1,22],[1,23,1,28],[0,0,3,0],[0,1,3,1],[0,2,3,2],[0,3,2,3],[0,4,0,28]]}
["Код профессии, специальности*","Номер строки","Наименование показателей \n(категория выпускников)\n\n(редактирование наименовани \nне допускается)\n\n","Суммарный выпуск \nв 2022 году (человек)","Распределение выпускников по каналам занятости и иным видам деятельности, человек (каждый выпускник учитывается один раз. Единица измерения - человек)",null,null,null,null,null,null,null,null,null,null,null,null,null,null,null,null,null,null,null,null,null,null,null,null,"Принимаемые меры по содействию занятости \n\n(тезисно - вид меры, охват выпускников мерой)","ПРОВЕРКА \n\n(сумма по всем категориям выпускников, распределенных по видам занятости, должна равняться сумме выпускников всего)"]
[null,null,null,null,"Занятые выпускники",null,null,null,null,null,"Потенциальная занятость (не относится к занятости по итогам обучения, требует дополнительных мер)",null,null,"Зона риска (требует оперативных мер и адресной работы)",null,null,null,"Прочее, редкие жизненные обстоятельства",null,null,null,null,null,"Профессиональные намерения выпускников, ожидаемый эффект от работы по содействию занятости (на ближайшую перспективу - порядка 3-х месяцев)"]
[null,null,null,null,"Трудоустроены \n(по трудовому договору, договору ГПХ в соответствии с трудовым законодательством, законодательством  об обязательном пенсионном страховании)","\n\nВ том числе (из трудоустроенных): в соответствии с освоенной профессией, специальностью (исходя из осуществляемой трудовой функции)","\n\nВ том числе (из трудоустроенных): работают на протяжении не менее 4-х месяцев на последнем месте работы","Индиви-дуальные предприни-матели ","Самозанятые (перешедшие на специальный налоговый режим  - налог на профессио-нальный доход)","Продолжили обучение","Проходят службу в армии по призыву","Проходят службу в армии на контрактной основе, в органах внутренних дел, Государственной противопожарной службе, органах по контролю за оборотом наркотических средств и психотропных веществ, учреждениях и органах уголовно-исполнительной системы, войсках национальной гвардии Российской Федерации, органах принудительного исполнения Российской Федерации*","Находятся в отпуске по уходу за ребенком","Неформальная занятость (нелегальная)","Зарегистрированы в центрах занятости в качестве безработных (получают пособие по безработице) и не планируют трудоустраиваться","Не имеют мотивации к трудоустройству (кроме зарегистрированных в качестве безработных) и не планируют трудоустраиваться, в том числе по причинам получения иных социальных льгот ","Иные причины нахождения под риском нетрудоустройства","Смерть, тяжелое состояние здоровья","Находятся под следствием, отбывают наказание ","Переезд за пределы Российской Федерации\n\n(кроме переезда в иные регионы - по ним регион должен располагать сведениями)","Не могут трудоустраиваться в связи с уходом за больными родственниками, в связи с иными семейными обстоятельствами","Выпускники из числа иностранных граждан, которые не имеют СНИЛС","Иное\n \n(в первую очередь выпускники распределяются по всем остальным графам. Данная графа предназначена для очень редких случаев. Если в нее включено более 1 из 200 выпускников - укажите причины в гр. 33 ","будут трудоустроены","будут осуществлять предприни-мательскую деятельность","будут самозанятыми","будут призваны в армию","будут в армии на контрактной основе, в органах внутренних дел, Государственной противопожарной службе, органах по контролю за оборотом наркотических средств и психотропных веществ, учреждениях и органах уголовно-исполнительной системы, войсках национальной гвардии Российской Федерации, органах принудительного исполнения Российской Федерации*\n","будут продолжать обучение"]
[null,null,null,"человек","человек","человек","человек","человек","человек","человек","человек","человек","человек","человек","человек","человек","человек","человек","человек","человек","человек","человек","человек","человек","человек","человек","человек","человек","человек"]
["04","05","06","07","08","09","10","11","12","13","14","15","16","17","18","19","20","21","22","23","24","25","26","27","28","29","30","31","32","33","34"]
[null,1,"Всего  (общая численность выпускников)",null,null,null,null,null,null,null,null,null,null,null,null,null,null,null,null,null,null,null,null,null,null,null,null,null,null,null,{"$f":"SUM(H6:AC6,E6)=D6","v":true}]
[{"$f":"$A$6","v":0},2,"из общей численности выпускников (из строки 01): лица с ОВЗ",null,null,null,null,null,null,null,null,null,null,null,null,null,null,null,null,null,null,null,null,null,null,null,null,null,null,null,{"$f":"SUM(H7:AC7,E7)=D7","v":true}]
[{"$f":"$A$6","v":0},3,"из числа лиц с ОВЗ (из строки 02): инвалиды и дети-инвалиды",null,null,null,null,null,null,null,null,null,null,null,null,null,null,null,null,null,null,null,null,null,null,null,null,null,null,null,true]
[0,4,"Инвалиды и дети-инвалиды (кроме учтенных в строке 03)",null,null,null,null,null,null,null,null,null,null,null,null,null,null,null,null,null,null,null,null,null,null,null,null,null,null,null,true]
[0,5,"Имеют договор о целевом обучении",null,null,null,null,null,null,null,null,null,null,null,null,null,null,null,null,null,null,null,null,null,null,null,null,null,null,null,true]
[null,1,"Всего  (общая численность выпускников)",null,null,null,null,null,null,null,null,null,null,null,null,null,null,null,null,null,null,null,null,null,null,null,null,null,null,null,true]
[{"$f":"$A$11","v":0},2,"из общей численности выпускников (из строки 01): лица с ОВЗ",null,null,null,null,null,null,null,null,null,null,null,null,null,null,null,null,null,null,null,null,null,null,null,null,null,null,null,true]
[{"$f":"$A$11","v":0},3,"из числа лиц с ОВЗ (из строки 02): инвалиды и дети-инвалиды",null,null,null,null,null,null,null,null,null,null,null,null,null,null,null,null,null,null,null,null,null,null,null,null,null,null,null,true]
[0,4,"Инвалиды и дети-инвалиды (кроме учтенных в строке 03)",null,null,null,null,null,null,null,null,null,null,null,null,null,null,null,null,null,null,null,null,null,null,null,null,null,null,null,true]
[0,5,"Имеют договор о целевом обучении",null,null,null,null,null,null,null,null,null,null,null,null,null,null,null,null,null,null,null,null,null,null,null,null,null,null,null,true]
[null,1,"Всего  (общая численность выпускников)",null,null,null,null,null,null,null,null,null,null,null,null,null,null,null,null,null,null,null,null,null,null,null,null,null,null,null,true]
[{"$f":"$A$16","v":0},2,"из общей численности выпускников (из строки 01): лица с ОВЗ",null,null,null,null,null,null,null,null,null,null,null,null,null,null,null,null,null,null,null,null,null,null,null,null,null,null,null,true]
[{"$f":"$A$16","v":0},3,"из числа лиц с ОВЗ (из строки 02): инвалиды и дети-инвалиды",null,null,null,null,null,null,null,null,null,null,null,null,null,null,null,null,null,null,null,null,null,null,null,null,null,null,null,true]
[0,4,"Инвалиды и дети-инвалиды (кроме учтенных в строке 03)",null,null,null,null,null,null,null,null,null,null,null,null,null,null,null,null,null,null,null,null,null,null,null,null,null,null,null,true]
[0,5,"Имеют договор о целевом обучении",null,null,null,null,null,null,null,null,null,null,null,null,null,null,null,null,null,null,null,null,null,null,null,null,null,null,null,true]
[null,1,"Всего  (общая численность выпускников)",null,null,null,null,null,null,null,null,null,null,null,null,null,null,null,null,null,null,null,null,null,null,null,null,null,null,null,true]
[{"$f":"$A$21","v":0},2,"из общей численности выпускников (из строки 01): лица с ОВЗ",null,null,null,null,null,null,null,null,null,null,null,null,null,null,null,null,null,null,null,null,null,null,null,null,null,null,null,true]
[{"$f":"$A$21","v":0},3,"из числа лиц с ОВЗ (из строки 02): инвалиды и дети-инвалиды",null,null,null,null,null,null,null,null,null,null,null,null,null,null,null,null,null,null,null,null,null,null,null,null,null,null,null,true]
[0,4,"Инвалиды и дети-инвалиды (кроме учтенных в строке 03)",null,null,null,null,null,null,null,null,null,null,null,null,null,null,null,null,null,null,null,null,null,null,null,null,null,null,null,true]
[0,5,"Имеют договор о целевом обучении",null,null,null,null,null,null,null,null,null,null,null,null,null,null,null,null,null,null,null,null,null,null,null,null,null,null,null,true]
[null,1,"Всего  (общая численность выпускников)",null,null,null,null,null,null,null,null,null,null,null,null,null,null,null,null,null,null,null,null,null,null,null,null,null,null,null,true]
[{"$f":"$A$26","v":0},2,"из общей численности выпускников (из строки 01): лица с ОВЗ",null,null,null,null,null,null,null,null,null,null,null,null,null,null,null,null,null,null,null,null,null,null,null,null,null,null,null,true]
[{"$f":"$A$26","v":0},3,"из числа лиц с ОВЗ (из строки 02): инвалиды и дети-инвалиды",null,null,null,null,null,null,null,null,null,null,null,null,null,null,null,null,null,null,null,null,null,null,null,null,null,null,null,true]
[0,4,"Инвалиды и дети-инвалиды (кроме учтенных в строке 03)",null,null,null,null,null,null,null,null,null,null,null,null,null,null,null,null,null,null,null,null,null,null,null,null,null,null,null,true]
[0,5,"Имеют договор о целевом обучении",null,null,null,null,null,null,null,null,null,null,null,null,null,null,null,null,null,null,null,null,null,null,null,null,null,null,null,true]
[null,1,"Всего  (общая численность выпускников)",null,null,null,null,null,null,null,null,null,null,null,null,null,null,null,null,null,null,null,null,null,null,null,null,null,null,null,true]
[{"$f":"$A$31","v":0},2,"из общей численности выпускников (из строки 01): лица с ОВЗ",null,null,null,null,null,null,null,null,null,null,null,null,null,null,null,null,null,null,null,null,null,null,null,null,null,null,null,true]
[{"$f":"$A$31","v":0},3,"из числа лиц с ОВЗ (из строки 02): инвалиды и дети-инвалиды",null,null,null,null,null,null,null,null,null,null,null,null,null,null,null,null,null,null,null,null,null,null,null,null,null,null,null,true]
[0,4,"Инвалиды и дети-инвалиды (кроме учтенных в строке 03)",null,null,null,null,null,null,null,null,null,null,null,null,null,null,null,null,null,null,null,null,null,null,null,null,null,null,null,true]
[0,5,"Имеют договор о целевом обучении",null,null,null,null,null,null,null,null,null,null,null,null,null,null,null,null,null,null,null,null,null,null,null,null,null,null,null,true]
[null,1,"Всего  (общая численность выпускников)",null,null,null,null,null,null,null,null,null,null,null,null,null,null,null,null,null,null,null,null,null,null,null,null,null,null,null,true]
[{"$f":"$A$36","v":0},2,"из общей численности выпускников (из строки 01): лица с ОВЗ",null,null,null,null,null,null,null,null,null,null,null,null,null,null,null,null,null,null,null,null,null,null,null,null,null,null,null,true]
[{"$f":"$A$36","v":0},3,"из числа лиц с ОВЗ (из строки 02): инвалиды и дети-инвалиды",null,null,null,null,null,null,null,null,null,null,null,null,null,null,null,null,null,null,null,null,null,null,null,null,null,null,null,true]
[0,4,"Инвалиды и дети-инвалиды (кроме учтенных в строке 03)",null,null,null,null,null,null,null,null,null,null,null,null,null,null,null,null,null,null,null,null,null,null,null,null,null,null,null,true]
[0,5,"Имеют договор о целевом обучении",null,null,null,null,null,null,null,null,null,null,null,null,null,null,null,null,null,null,null,null,null,null,null,null,null,null,null,true]
[null,1,"Всего  (общая численность выпускников)",null,null,null,null,null,null,null,null,null,null,null,null,null,null,null,null,null,null,null,null,null,null,null,null,null,null,null,true]
[{"$f":"$A$41","v":0},2,"из общей численности выпускников (из строки 01): лица с ОВЗ",null,null,null,null,null,null,null,null,null,null,null,null,null,null,null,null,null,null,null,null,null,null,null,null,null,null,null,true]
[{"$f":"$A$41","v":0},3,"из числа лиц с ОВЗ (из строки 02): инвалиды и дети-инвалиды",null,null,null,null,null,null,null,null,null,null,null,null,null,null,null,null,null,null,null,null,null,null,null,null,null,null,null,true]
[0,4,"Инвалиды и дети-инвалиды (кроме учтенных в строке 03)",null,null,null,null,null,null,null,null,null,null,null,null,null,null,null,null,null,null,null,null,null,null,null,null,null,null,null,true]
[0,5,"Имеют договор о целевом обучении",null,null,null,null,null,null,null,null,null,null,null,null,null,null,null,null,null,null,null,null,null,null,null,null,null,null,null,true]
[null,1,"Всего  (общая численность выпускников)",null,null,null,null,null,null,null,null,null,null,null,null,null,null,null,null,null,null,null,null,null,null,null,null,null,null,null,true]
[{"$f":"$A$46","v":0},2,"из общей численности выпускников (из строки 01): лица с ОВЗ",null,null,null,null,null,null,null,null,null,null,null,null,null,null,null,null,null,null,null,null,null,null,null,null,null,null,null,true]
[{"$f":"$A$46","v":0},3,"из числа лиц с ОВЗ (из строки 02): инвалиды и дети-инвалиды",null,null,null,null,null,null,null,null,null,null,null,null,null,null,null,null,null,null,null,null,null,null,null,null,null,null,null,true]
[0,4,"Инвалиды и дети-инвалиды (кроме учтенных в строке 03)",null,null,null,null,null,null,null,null,null,null,null,null,null,null,null,null,null,null,null,null,null,null,null,null,null,null,null,true]
[0,5,"Имеют договор о целевом обучении",null,null,null,null,null,null,null,null,null,null,null,null,null,null,null,null,null,null,null,null,null,null,null,null,null,null,null,true]
[null,1,"Всего  (общая численность выпускников)",null,null,null,null,null,null,null,null,null,null,null,null,null,null,null,null,null,null,null,null,null,null,null,null,null,null,null,true]
[{"$f":"$A$51","v":0},2,"из общей численности выпускников (из строки 01): лица с ОВЗ",null,null,null,null,null,null,null,null,null,null,null,null,null,null,null,null,null,null,null,null,null,null,null,null,null,null,null,true]
[{"$f":"$A$51","v":0},3,"из числа лиц с ОВЗ (из строки 02): инвалиды и дети-инвалиды",null,null,null,null,null,null,null,null,null,null,null,null,null,null,null,null,null,null,null,null,null,null,null,null,null,null,null,true]
[0,4,"Инвалиды и дети-инвалиды (кроме учтенных в строке 03)",null,null,null,null,null,null,null,null,null,null,null,null,null,null,null,null,null,null,null,null,null,null,null,null,null,null,null,true]
[0,5,"Имеют договор о целевом обучении",null,null,null,null,null,null,null,null,null,null,null,null,null,null,null,null,null,null,null,null,null,null,null,null,null,null,null,true]
[null,1,"Всего  (общая численность выпускников)",null,null,null,null,null,null,null,null,null,null,null,null,null,null,null,null,null,null,null,null,null,null,null,null,null,null,null,true]
[{"$f":"$A$56","v":0},2,"из общей численности выпускников (из строки 01): лица с ОВЗ",null,null,null,null,null,null,null,null,null,null,null,null,null,null,null,null,null,null,null,null,null,null,null,null,null,null,null,true]
[{"$f":"$A$56","v":0},3,"из числа лиц с ОВЗ (из строки 02): инвалиды и дети-инвалиды",null,null,null,null,null,null,null,null,null,null,null,null,null,null,null,null,null,null,null,null,null,null,null,null,null,null,null,true]
[0,4,"Инвалиды и дети-инвалиды (кроме учтенных в строке 03)",null,null,null,null,null,null,null,null,null,null,null,null,null,null,null,null,null,null,null,null,null,null,null,null,null,null,null,true]
[0,5,"Имеют договор о целевом обучении",null,null,null,null,null,null,null,null,null,null,null,null,null,null,null,null,null,null,null,null,null,null,null,null,null,null,null,true]
[null,1,"Всего  (общая численность выпускников)",null,null,null,null,null,null,null,null,null,null,null,null,null,null,null,null,null,null,null,null,null,null,null,null,null,null,null,true]
[{"$f":"$A$61","v":0},2,"из общей численности выпускников (из строки 01): лица с ОВЗ",null,null,null,null,null,null,null,null,null,null,null,null,null,null,null,null,null,null,null,null,null,null,null,null,null,null,null,true]
[{"$f":"$A$61","v":0},3,"из числа лиц с ОВЗ (из строки 02): инвалиды и дети-инвалиды",null,null,null,null,null,null,null,null,null,null,null,null,null,null,null,null,null,null,null,null,null,null,null,null,null,null,null,true]
[0,4,"Инвалиды и дети-инвалиды (кроме учтенных в строке 03)",null,null,null,null,null,null,null,null,null,null,null,null,null,null,null,null,null,null,null,null,null,null,null,null,null,null,null,true]
[0,5,"Имеют договор о целевом обучении",null,null,null,null,null,null,null,null,null,null,null,null,null,null,null,null,null,null,null,null,null,null,null,null,null,null,null,true]
[null,1,"Всего  (общая численность выпускников)",null,null,null,null,null,null,null,null,null,null,null,null,null,null,null,null,null,null,null,null,null,null,null,null,null,null,null,true]
[{"$f":"$A$66","v":0},2,"из общей численности выпускников (из строки 01): лица с ОВЗ",null,null,null,null,null,null,null,null,null,null,null,null,null,null,null,null,null,null,null,null,null,null,null,null,null,null,null,true]
[{"$f":"$A$66","v":0},3,"из числа лиц с ОВЗ (из строки 02): инвалиды и дети-инвалиды",null,null,null,null,null,null,null,null,null,null,null,null,null,null,null,null,null,null,null,null,null,null,null,null,null,null,null,true]
[0,4,"Инвалиды и дети-инвалиды (кроме учтенных в строке 03)",null,null,null,null,null,null,null,null,null,null,null,null,null,null,null,null,null,null,null,null,null,null,null,null,null,null,null,true]
[0,5,"Имеют договор о целевом обучении",null,null,null,null,null,null,null,null,null,null,null,null,null,null,null,null,null,null,null,null,null,null,null,null,null,null,null,true]
[null,1,"Всего  (общая численность выпускников)",null,null,null,null,null,null,null,null,null,null,null,null,null,null,null,null,null,null,null,null,null,null,null,null,null,null,null,{"$f":"SUM(H71:AC71,E71)=D71","v":true}]
[{"$f":"$A$71","v":0},2,"из общей численности выпускников (из строки 01): лица с ОВЗ",null,null,null,null,null,null,null,null,null,null,null,null,null,null,null,null,null,null,null,null,null,null,null,null,null,null,null,true]
[{"$f":"$A$71","v":0},3,"из числа лиц с ОВЗ (из строки 02): инвалиды и дети-инвалиды",null,null,null,null,null,null,null,null,null,null,null,null,null,null,null,null,null,null,null,null,null,null,null,null,null,null,null,true]
[0,4,"Инвалиды и дети-инвалиды (кроме учтенных в строке 03)",null,null,null,null,null,null,null,null,null,null,null,null,null,null,null,null,null,null,null,null,null,null,null,null,null,null,null,true]
[0,5,"Имеют договор о целевом обучении",null,null,null,null,null,null,null,null,null,null,null,null,null,null,null,null,null,null,null,null,null,null,null,null,null,null,null,true]
[null,1,"Всего  (общая численность выпускников)",null,null,null,null,null,null,null,null,null,null,null,null,null,null,null,null,null,null,null,null,null,null,null,null,null,null,null,true]
[{"$f":"$A$76","v":0},2,"из общей численности выпускников (из строки 01): лица с ОВЗ",null,null,null,null,null,null,null,null,null,null,null,null,null,null,null,null,null,null,null,null,null,null,null,null,null,null,null,true]
[{"$f":"$A$76","v":0},3,"из числа лиц с ОВЗ (из строки 02): инвалиды и дети-инвалиды",null,null,null,null,null,null,null,null,null,null,null,null,null,null,null,null,null,null,null,null,null,null,null,null,null,null,null,true]
[0,4,"Инвалиды и дети-инвалиды (кроме учтенных в строке 03)",null,null,null,null,null,null,null,null,null,null,null,null,null,null,null,null,null,null,null,null,null,null,null,null,null,null,null,true]
[0,5,"Имеют договор о целевом обучении",null,null,null,null,null,null,null,null,null,null,null,null,null,null,null,null,null,null,null,null,null,null,null,null,null,null,null,true]
[null,1,"Всего  (общая численность выпускников)",null,null,null,null,null,null,null,null,null,null,null,null,null,null,null,null,null,null,null,null,null,null,null,null,null,null,null,true]
[{"$f":"$A$81","v":0},2,"из общей численности выпускников (из строки 01): лица с ОВЗ",null,null,null,null,null,null,null,null,null,null,null,null,null,null,null,null,null,null,null,null,null,null,null,null,null,null,null,true]
[{"$f":"$A$81","v":0},3,"из числа лиц с ОВЗ (из строки 02): инвалиды и дети-инвалиды",null,null,null,null,null,null,null,null,null,null,null,null,null,null,null,null,null,null,null,null,null,null,null,null,null,null,null,true]
[0,4,"Инвалиды и дети-инвалиды (кроме учтенных в строке 03)",null,null,null,null,null,null,null,null,null,null,null,null,null,null,null,null,null,null,null,null,null,null,null,null,null,null,null,true]
[0,5,"Имеют договор о целевом обучении",null,null,null,null,null,null,null,null,null,null,null,null,null,null,null,null,null,null,null,null,null,null,null,null,null,null,null,true]
[null,1,"Всего  (общая численность выпускников)",null,null,null,null,null,null,null,null,null,null,null,null,null,null,null,null,null,null,null,null,null,null,null,null,null,null,null,true]
[{"$f":"$A$86","v":0},2,"из общей численности выпускников (из строки 01): лица с ОВЗ",null,null,null,null,null,null,null,null,null,null,null,null,null,null,null,null,null,null,null,null,null,null,null,null,null,null,null,true]
[{"$f":"$A$86","v":0},3,"из числа лиц с ОВЗ (из строки 02): инвалиды и дети-инвалиды",null,null,null,null,null,null,null,null,null,null,null,null,null,null,null,null,null,null,null,null,null,null,null,null,null,null,null,true]
[0,4,"Инвалиды и дети-инвалиды (кроме учтенных в строке 03)",null,null,null,null,null,null,null,null,null,null,null,null,null,null,null,null,null,null,null,null,null,null,null,null,null,null,null,true]
[0,5,"Имеют договор о целевом обучении",null,null,null,null,null,null,null,null,null,null,null,null,null,null,null,null,null,null,null,null,null,null,null,null,null,null,null,true]
[null,1,"Всего  (общая численность выпускников)",null,null,null,null,null,null,null,null,null,null,null,null,null,null,null,null,null,null,null,null,null,null,null,null,null,null,null,true]
[{"$f":"$A$91","v":0},2,"из общей численности выпускников (из строки 01): лица с ОВЗ",null,null,null,null,null,null,null,null,null,null,null,null,null,null,null,null,null,null,null,null,null,null,null,null,null,null,null,true]
[{"$f":"$A$91","v":0},3,"из числа лиц с ОВЗ (из строки 02): инвалиды и дети-инвалиды",null,null,null,null,null,null,null,null,null,null,null,null,null,null,null,null,null,null,null,null,null,null,null,null,null,null,null,true]
[0,4,"Инвалиды и дети-инвалиды (кроме учтенных в строке 03)",null,null,null,null,null,null,null,null,null,null,null,null,null,null,null,null,null,null,null,null,null,null,null,null,null,null,null,true]
[0,5,"Имеют договор о целевом обучении",null,null,null,null,null,null,null,null,null,null,null,null,null,null,null,null,null,null,null,null,null,null,null,null,null,null,null,true]
[null,1,"Всего  (общая численность выпускников)",null,null,null,null,null,null,null,null,null,null,null,null,null,null,null,null,null,null,null,null,null,null,null,null,null,null,null,true]
[{"$f":"$A$96","v":0},2,"из общей численности выпускников (из строки 01): лица с ОВЗ",null,null,null,null,null,null,null,null,null,null,null,null,null,null,null,null,null,null,null,null,null,null,null,null,null,null,null,true]
[{"$f":"$A$96","v":0},3,"из числа лиц с ОВЗ (из строки 02): инвалиды и дети-инвалиды",null,null,null,null,null,null,null,null,null,null,null,null,null,null,null,null,null,null,null,null,null,null,null,null,null,null,null,true]
[0,4,"Инвалиды и дети-инвалиды (кроме учтенных в строке 03)",null,null,null,null,null,null,null,null,null,null,null,null,null,null,null,null,null,null,null,null,null,null,null,null,null,null,null,true]
[0,5,"Имеют договор о целевом обучении",null,null,null,null,null,null,null,null,null,null,null,null,null,null,null,null,null,null,null,null,null,null,null,null,null,null,null,true]
[null,1,"Всего  (общая численность выпускников)",null,null,null,null,null,null,null,null,null,null,null,null,null,null,null,null,null,null,null,null,null,null,null,null,null,null,null,true]
[{"$f":"$A$101","v":0},2,"из общей численности выпускников (из строки 01): лица с ОВЗ",null,null,null,null,null,null,null,null,null,null,null,null,null,null,null,null,null,null,null,null,null,null,null,null,null,null,null,true]
[{"$f":"$A$101","v":0},3,"из числа лиц с ОВЗ (из строки 02): инвалиды и дети-инвалиды",null,null,null,null,null,null,null,null,null,null,null,null,null,null,null,null,null,null,null,null,null,null,null,null,null,null,null,true]
[0,4,"Инвалиды и дети-инвалиды (кроме учтенных в строке 03)",null,null,null,null,null,null,null,null,null,null,null,null,null,null,null,null,null,null,null,null,null,null,null,null,null,null,null,true]
[0,5,"Имеют договор о целевом обучении",null,null,null,null,null,null,null,null,null,null,null,null,null,null,null,null,null,null,null,null,null,null,null,null,null,null,null,true]
[null,1,"Всего  (общая численность выпускников)",null,null,null,null,null,null,null,null,null,null,null,null,null,null,null,null,null,null,null,null,null,null,null,null,null,null,null,true]
[{"$f":"$A$106","v":0},2,"из общей численности выпускников (из строки 01): лица с ОВЗ",null,null,null,null,null,null,null,null,null,null,null,null,null,null,null,null,null,null,null,null,null,null,null,null,null,null,null,true]
[{"$f":"$A$106","v":0},3,"из числа лиц с ОВЗ (из строки 02): инвалиды и дети-инвалиды",null,null,null,null,null,null,null,null,null,null,null,null,null,null,null,null,null,null,null,null,null,null,null,null,null,null,null,true]
[0,4,"Инвалиды и дети-инвалиды (кроме учтенных в строке 03)",null,null,null,null,null,null,null,null,null,null,null,null,null,null,null,null,null,null,null,null,null,null,null,null,null,null,null,true]
[0,5,"Имеют договор о целевом обучении",null,null,null,null,null,null,null,null,null,null,null,null,null,null,null,null,null,null,null,null,null,null,null,null,null,null,null,true]
[null,1,"Всего  (общая численность выпускников)",null,null,null,null,null,null,null,null,null,null,null,null,null,null,null,null,null,null,null,null,null,null,null,null,null,null,null,true]
[{"$f":"$A$111","v":0},2,"из общей численности выпускников (из строки 01): лица с ОВЗ",null,null,null,null,null,null,null,null,null,null,null,null,null,null,null,null,null,null,null,null,null,null,null,null,null,null,null,true]
[{"$f":"$A$111","v":0},3,"из числа лиц с ОВЗ (из строки 02): инвалиды и дети-инвалиды",null,null,null,null,null,null,null,null,null,null,null,null,null,null,null,null,null,null,null,null,null,null,null,null,null,null,null,true]
[0,4,"Инвалиды и дети-инвалиды (кроме учтенных в строке 03)",null,null,null,null,null,null,null,null,null,null,null,null,null,null,null,null,null,null,null,null,null,null,null,null,null,null,null,true]
[0,5,"Имеют договор о целевом обучении",null,null,null,null,null,null,null,null,null,null,null,null,null,null,null,null,null,null,null,null,null,null,null,null,null,null,null,true]
[null,1,"Всего  (общая численность выпускников)",null,null,null,null,null,null,null,null,null,null,null,null,null,null,null,null,null,null,null,null,null,null,null,null,null,null,null,true]
[{"$f":"$A$116","v":0},2,"из общей численности выпускников (из строки 01): лица с ОВЗ",null,null,null,null,null,null,null,null,null,null,null,null,null,null,null,null,null,null,null,null,null,null,null,null,null,null,null,true]
[{"$f":"$A$116","v":0},3,"из числа лиц с ОВЗ (из строки 02): инвалиды и дети-инвалиды",null,null,null,null,null,null,null,null,null,null,null,null,null,null,null,null,null,null,null,null,null,null,null,null,null,null,null,true]
[0,4,"Инвалиды и дети-инвалиды (кроме учтенных в строке 03)",null,null,null,null,null,null,null,null,null,null,null,null,null,null,null,null,null,null,null,null,null,null,null,null,null,null,null,true]
[0,5,"Имеют договор о целевом обучении",null,null,null,null,null,null,null,null,null,null,null,null,null,null,null,null,null,null,null,null,null,null,null,null,null,null,null,true]
[null,1,"Всего  (общая численность выпускников)",null,null,null,null,null,null,null,null,null,null,null,null,null,null,null,null,null,null,null,null,null,null,null,null,null,null,null,true]
[{"$f":"$A$121","v":0},2,"из общей численности выпускников (из строки 01): лица с ОВЗ",null,null,null,null,null,null,null,null,null,null,null,null,null,null,null,null,null,null,null,null,null,null,null,null,null,null,null,true]
[{"$f":"$A$121","v":0},3,"из числа лиц с ОВЗ (из строки 02): инвалиды и дети-инвалиды",null,null,null,null,null,null,null,null,null,null,null,null,null,null,null,null,null,null,null,null,null,null,null,null,null,null,null,true]
[0,4,"Инвалиды и дети-инвалиды (кроме учтенных в строке 03)",null,null,null,null,null,null,null,null,null,null,null,null,null,null,null,null,null,null,null,null,null,null,null,null,null,null,null,true]
[0,5,"Имеют договор о целевом обучении",null,null,null,null,null,null,null,null,null,null,null,null,null,null,null,null,null,null,null,null,null,null,null,null,null,null,null,true]
[null,1,"Всего  (общая численность выпускников)",null,null,null,null,null,null,null,null,null,null,null,null,null,null,null,null,null,null,null,null,null,null,null,null,null,null,null,true]
[{"$f":"$A$126","v":0},2,"из общей численности выпускников (из строки 01): лица с ОВЗ",null,null,null,null,null,null,null,null,null,null,null,null,null,null,null,null,null,null,null,null,null,null,null,null,null,null,null,true]
[{"$f":"$A$126","v":0},3,"из числа лиц с ОВЗ (из строки 02): инвалиды и дети-инвалиды",null,null,null,null,null,null,null,null,null,null,null,null,null,null,null,null,null,null,null,null,null,null,null,null,null,null,null,true]
[0,4,"Инвалиды и дети-инвалиды (кроме учтенных в строке 03)",null,null,null,null,null,null,null,null,null,null,null,null,null,null,null,null,null,null,null,null,null,null,null,null,null,null,null,true]
[0,5,"Имеют договор о целевом обучении",null,null,null,null,null,null,null,null,null,null,null,null,null,null,null,null,null,null,null,null,null,null,null,null,null,null,null,true]
[null,1,"Всего  (общая численность выпускников)",null,null,null,null,null,null,null,null,null,null,null,null,null,null,null,null,null,null,null,null,null,null,null,null,null,null,null,true]
[{"$f":"$A$131","v":0},2,"из общей численности выпускников (из строки 01): лица с ОВЗ",null,null,null,null,null,null,null,null,null,null,null,null,null,null,null,null,null,null,null,null,null,null,null,null,null,null,null,true]
[{"$f":"$A$131","v":0},3,"из числа лиц с ОВЗ (из строки 02): инвалиды и дети-инвалиды",null,null,null,null,null,null,null,null,null,null,null,null,null,null,null,null,null,null,null,null,null,null,null,null,null,null,null,true]
[0,4,"Инвалиды и дети-инвалиды (кроме учтенных в строке 03)",null,null,null,null,null,null,null,null,null,null,null,null,null,null,null,null,null,null,null,null,null,null,null,null,null,null,null,true]
[0,5,"Имеют договор о целевом обучении",null,null,null,null,null,null,null,null,null,null,null,null,null,null,null,null,null,null,null,null,null,null,null,null,null,null,null,{"$f":"SUM(H135:AC135,E135)=D135","v":true}]
[null,1,"Всего  (общая численность выпускников)",null,null,null,null,null,null,null,null,null,null,null,null,null,null,null,null,null,null,null,null,null,null,null,null,null,null,null,true]
[{"$f":"$A$136","v":0},2,"из общей численности выпускников (из строки 01): лица с ОВЗ",null,null,null,null,null,null,null,null,null,null,null,null,null,null,null,null,null,null,null,null,null,null,null,null,null,null,null,true]
[{"$f":"$A$136","v":0},3,"из числа лиц с ОВЗ (из строки 02): инвалиды и дети-инвалиды",null,null,null,null,null,null,null,null,null,null,null,null,null,null,null,null,null,null,null,null,null,null,null,null,null,null,null,true]
[0,4,"Инвалиды и дети-инвалиды (кроме учтенных в строке 03)",null,null,null,null,null,null,null,null,null,null,null,null,null,null,null,null,null,null,null,null,null,null,null,null,null,null,null,true]
[0,5,"Имеют договор о целевом обучении",null,null,null,null,null,null,null,null,null,null,null,null,null,null,null,null,null,null,null,null,null,null,null,null,null,null,null,true]
[null,1,"Всего  (общая численность выпускников)",null,null,null,null,null,null,null,null,null,null,null,null,null,null,null,null,null,null,null,null,null,null,null,null,null,null,null,true]
[{"$f":"$A$141","v":0},2,"из общей численности выпускников (из строки 01): лица с ОВЗ",null,null,null,null,null,null,null,null,null,null,null,null,null,null,null,null,null,null,null,null,null,null,null,null,null,null,null,true]
[{"$f":"$A$141","v":0},3,"из числа лиц с ОВЗ (из строки 02): инвалиды и дети-инвалиды",null,null,null,null,null,null,null,null,null,null,null,null,null,null,null,null,null,null,null,null,null,null,null,null,null,null,null,true]
[0,4,"Инвалиды и дети-инвалиды (кроме учтенных в строке 03)",null,null,null,null,null,null,null,null,null,null,null,null,null,null,null,null,null,null,null,null,null,null,null,null,null,null,null,true]
[0,5,"Имеют договор о целевом обучении",null,null,null,null,null,null,null,null,null,null,null,null,null,null,null,null,null,null,null,null,null,null,null,null,null,null,null,true]
[null,1,"Всего  (общая численность выпускников)",null,null,null,null,null,null,null,null,null,null,null,null,null,null,null,null,null,null,null,null,null,null,null,null,null,null,null,true]
[{"$f":"$A$146","v":0},2,"из общей численности выпускников (из строки 01): лица с ОВЗ",null,null,null,null,null,null,null,null,null,null,null,null,null,null,null,null,null,null,null,null,null,null,null,null,null,null,null,true]
[{"$f":"$A$146","v":0},3,"из числа лиц с ОВЗ (из строки 02): инвалиды и дети-инвалиды",null,null,null,null,null,null,null,null,null,null,null,null,null,null,null,null,null,null,null,null,null,null,null,null,null,null,null,true]
[0,4,"Инвалиды и дети-инвалиды (кроме учтенных в строке 03)",null,null,null,null,null,null,null,null,null,null,null,null,null,null,null,null,null,null,null,null,null,null,null,null,null,null,null,true]
[0,5,"Имеют договор о целевом обучении",null,null,null,null,null,null,null,null,null,null,null,null,null,null,null,null,null,null,null,null,null,null,null,null,null,null,null,true]
[null,1,"Всего  (общая численность выпускников)",null,null,null,null,null,null,null,null,null,null,null,null,null,null,null,null,null,null,null,null,null,null,null,null,null,null,null,true]
[{"$f":"$A$151","v":0},2,"из общей численности выпускников (из строки 01): лица с ОВЗ",null,null,null,null,null,null,null,null,null,null,null,null,null,null,null,null,null,null,null,null,null,null,null,null,null,null,null,true]
[{"$f":"$A$151","v":0},3,"из числа лиц с ОВЗ (из строки 02): инвалиды и дети-инвалиды",null,null,null,null,null,null,null,null,null,null,null,null,null,null,null,null,null,null,null,null,null,null,null,null,null,null,null,true]
[0,4,"Инвалиды и дети-инвалиды (кроме учтенных в строке 03)",null,null,null,null,null,null,null,null,null,null,null,null,null,null,null,null,null,null,null,null,null,null,null,null,null,null,null,true]
[0,5,"Имеют договор о целевом обучении",null,null,null,null,null,null,null,null,null,null,null,null,null,null,null,null,null,null,null,null,null,null,null,null,null,null,null,true]
[null,1,"Всего  (общая численность выпускников)",null,null,null,null,null,null,null,null,null,null,null,null,null,null,null,null,null,null,null,null,null,null,null,null,null,null,null,true]
[{"$f":"$A$156","v":0},2,"из общей численности выпускников (из строки 01): лица с ОВЗ",null,null,null,null,null,null,null,null,null,null,null,null,null,null,null,null,null,null,null,null,null,null,null,null,null,null,null,true]
[{"$f":"$A$156","v":0},3,"из числа лиц с ОВЗ (из строки 02): инвалиды и дети-инвалиды",null,null,null,null,null,null,null,null,null,null,null,null,null,null,null,null,null,null,null,null,null,null,null,null,null,null,null,true]
[0,4,"Инвалиды и дети-инвалиды (кроме учтенных в строке 03)",null,null,null,null,null,null,null,null,null,null,null,null,null,null,null,null,null,null,null,null,null,null,null,null,null,null,null,true]
[0,5,"Имеют договор о целевом обучении",null,null,null,null,null,null,null,null,null,null,null,null,null,null,null,null,null,null,null,null,null,null,null,null,null,null,null,true]
[null,1,"Всего  (общая численность выпускников)",null,null,null,null,null,null,null,null,null,null,null,null,null,null,null,null,null,null,null,null,null,null,null,null,null,null,null,true]
[{"$f":"$A$161","v":0},2,"из общей численности выпускников (из строки 01): лица с ОВЗ",null,null,null,null,null,null,null,null,null,null,null,null,null,null,null,null,null,null,null,null,null,null,null,null,null,null,null,true]
[{"$f":"$A$161","v":0},3,"из числа лиц с ОВЗ (из строки 02): инвалиды и дети-инвалиды",null,null,null,null,null,null,null,null,null,null,null,null,null,null,null,null,null,null,null,null,null,null,null,null,null,null,null,true]
[0,4,"Инвалиды и дети-инвалиды (кроме учтенных в строке 03)",null,null,null,null,null,null,null,null,null,null,null,null,null,null,null,null,null,null,null,null,null,null,null,null,null,null,null,true]
[0,5,"Имеют договор о целевом обучении",null,null,null,null,null,null,null,null,null,null,null,null,null,null,null,null,null,null,null,null,null,null,null,null,null,null,null,true]
[null,1,"Всего  (общая численность выпускников)",null,null,null,null,null,null,null,null,null,null,null,null,null,null,null,null,null,null,null,null,null,null,null,null,null,null,null,true]
[{"$f":"$A$166","v":0},2,"из общей численности выпускников (из строки 01): лица с ОВЗ",null,null,null,null,null,null,null,null,null,null,null,null,null,null,null,null,null,null,null,null,null,null,null,null,null,null,null,true]
[{"$f":"$A$166","v":0},3,"из числа лиц с ОВЗ (из строки 02): инвалиды и дети-инвалиды",null,null,null,null,null,null,null,null,null,null,null,null,null,null,null,null,null,null,null,null,null,null,null,null,null,null,null,true]
[0,4,"Инвалиды и дети-инвалиды (кроме учтенных в строке 03)",null,null,null,null,null,null,null,null,null,null,null,null,null,null,null,null,null,null,null,null,null,null,null,null,null,null,null,true]
[0,5,"Имеют договор о целевом обучении",null,null,null,null,null,null,null,null,null,null,null,null,null,null,null,null,null,null,null,null,null,null,null,null,null,null,null,true]
[null,1,"Всего  (общая численность выпускников)",null,null,null,null,null,null,null,null,null,null,null,null,null,null,null,null,null,null,null,null,null,null,null,null,null,null,null,true]
[{"$f":"$A$171","v":0},2,"из общей численности выпускников (из строки 01): лица с ОВЗ",null,null,null,null,null,null,null,null,null,null,null,null,null,null,null,null,null,null,null,null,null,null,null,null,null,null,null,true]
[{"$f":"$A$171","v":0},3,"из числа лиц с ОВЗ (из строки 02): инвалиды и дети-инвалиды",null,null,null,null,null,null,null,null,null,null,null,null,null,null,null,null,null,null,null,null,null,null,null,null,null,null,null,true]
[0,4,"Инвалиды и дети-инвалиды (кроме учтенных в строке 03)",null,null,null,null,null,null,null,null,null,null,null,null,null,null,null,null,null,null,null,null,null,null,null,null,null,null,null,true]
[0,5,"Имеют договор о целевом обучении",null,null,null,null,null,null,null,null,null,null,null,null,null,null,null,null,null,null,null,null,null,null,null,null,null,null,null,true]
[null,1,"Всего  (общая численность выпускников)",null,null,null,null,null,null,null,null,null,null,null,null,null,null,null,null,null,null,null,null,null,null,null,null,null,null,null,true]
[{"$f":"$A$176","v":0},2,"из общей численности выпускников (из строки 01): лица с ОВЗ",null,null,null,null,null,null,null,null,null,null,null,null,null,null,null,null,null,null,null,null,null,null,null,null,null,null,null,true]
[{"$f":"$A$176","v":0},3,"из числа лиц с ОВЗ (из строки 02): инвалиды и дети-инвалиды",null,null,null,null,null,null,null,null,null,null,null,null,null,null,null,null,null,null,null,null,null,null,null,null,null,null,null,true]
[0,4,"Инвалиды и дети-инвалиды (кроме учтенных в строке 03)",null,null,null,null,null,null,null,null,null,null,null,null,null,null,null,null,null,null,null,null,null,null,null,null,null,null,null,true]
[0,5,"Имеют договор о целевом обучении",null,null,null,null,null,null,null,null,null,null,null,null,null,null,null,null,null,null,null,null,null,null,null,null,null,null,null,true]
[null,1,"Всего  (общая численность выпускников)",null,null,null,null,null,null,null,null,null,null,null,null,null,null,null,null,null,null,null,null,null,null,null,null,null,null,null,true]
[{"$f":"$A$181","v":0},2,"из общей численности выпускников (из строки 01): лица с ОВЗ",null,null,null,null,null,null,null,null,null,null,null,null,null,null,null,null,null,null,null,null,null,null,null,null,null,null,null,true]
[{"$f":"$A$181","v":0},3,"из числа лиц с ОВЗ (из строки 02): инвалиды и дети-инвалиды",null,null,null,null,null,null,null,null,null,null,null,null,null,null,null,null,null,null,null,null,null,null,null,null,null,null,null,true]
[0,4,"Инвалиды и дети-инвалиды (кроме учтенных в строке 03)",null,null,null,null,null,null,null,null,null,null,null,null,null,null,null,null,null,null,null,null,null,null,null,null,null,null,null,true]
[0,5,"Имеют договор о целевом обучении",null,null,null,null,null,null,null,null,null,null,null,null,null,null,null,null,null,null,null,null,null,null,null,null,null,null,null,true]
[null,1,"Всего  (общая численность выпускников)",null,null,null,null,null,null,null,null,null,null,null,null,null,null,null,null,null,null,null,null,null,null,null,null,null,null,null,true]
[{"$f":"$A$186","v":0},2,"из общей численности выпускников (из строки 01): лица с ОВЗ",null,null,null,null,null,null,null,null,null,null,null,null,null,null,null,null,null,null,null,null,null,null,null,null,null,null,null,true]
[{"$f":"$A$186","v":0},3,"из числа лиц с ОВЗ (из строки 02): инвалиды и дети-инвалиды",null,null,null,null,null,null,null,null,null,null,null,null,null,null,null,null,null,null,null,null,null,null,null,null,null,null,null,true]
[0,4,"Инвалиды и дети-инвалиды (кроме учтенных в строке 03)",null,null,null,null,null,null,null,null,null,null,null,null,null,null,null,null,null,null,null,null,null,null,null,null,null,null,null,true]
[0,5,"Имеют договор о целевом обучении",null,null,null,null,null,null,null,null,null,null,null,null,null,null,null,null,null,null,null,null,null,null,null,null,null,null,null,true]
[null,1,"Всего  (общая численность выпускников)",null,null,null,null,null,null,null,null,null,null,null,null,null,null,null,null,null,null,null,null,null,null,null,null,null,null,null,true]
[{"$f":"$A$191","v":0},2,"из общей численности выпускников (из строки 01): лица с ОВЗ",null,null,null,null,null,null,null,null,null,null,null,null,null,null,null,null,null,null,null,null,null,null,null,null,null,null,null,true]
[{"$f":"$A$191","v":0},3,"из числа лиц с ОВЗ (из строки 02): инвалиды и дети-инвалиды",null,null,null,null,null,null,null,null,null,null,null,null,null,null,null,null,null,null,null,null,null,null,null,null,null,null,null,true]
[0,4,"Инвалиды и дети-инвалиды (кроме учтенных в строке 03)",null,null,null,null,null,null,null,null,null,null,null,null,null,null,null,null,null,null,null,null,null,null,null,null,null,null,null,true]
[0,5,"Имеют договор о целевом обучении",null,null,null,null,null,null,null,null,null,null,null,null,null,null,null,null,null,null,null,null,null,null,null,null,null,null,null,true]
[null,1,"Всего  (общая численность выпускников)",null,null,null,null,null,null,null,null,null,null,null,null,null,null,null,null,null,null,null,null,null,null,null,null,null,null,null,true]
[{"$f":"$A$196","v":0},2,"из общей численности выпускников (из строки 01): лица с ОВЗ",null,null,null,null,null,null,null,null,null,null,null,null,null,null,null,null,null,null,null,null,null,null,null,null,null,null,null,true]
[{"$f":"$A$196","v":0},3,"из числа лиц с ОВЗ (из строки 02): инвалиды и дети-инвалиды",null,null,null,null,null,null,null,null,null,null,null,null,null,null,null,null,null,null,null,null,null,null,null,null,null,null,null,true]
[0,4,"Инвалиды и дети-инвалиды (кроме учтенных в строке 03)",null,null,null,null,null,null,null,null,null,null,null,null,null,null,null,null,null,null,null,null,null,null,null,null,null,null,null,{"$f":"SUM(H199:AC199,E199)=D199","v":true}]
[0,5,"Имеют договор о целевом обучении",null,null,null,null,null,null,null,null,null,null,null,null,null,null,null,null,null,null,null,null,null,null,null,null,null,null,null,true]
[null,1,"Всего  (общая численность выпускников)",null,null,null,null,null,null,null,null,null,null,null,null,null,null,null,null,null,null,null,null,null,null,null,null,null,null,null,true]
[{"$f":"$A$201","v":0},2,"из общей численности выпускников (из строки 01): лица с ОВЗ",null,null,null,null,null,null,null,null,null,null,null,null,null,null,null,null,null,null,null,null,null,null,null,null,null,null,null,true]
[{"$f":"$A$201","v":0},3,"из числа лиц с ОВЗ (из строки 02): инвалиды и дети-инвалиды",null,null,null,null,null,null,null,null,null,null,null,null,null,null,null,null,null,null,null,null,null,null,null,null,null,null,null,true]
[0,4,"Инвалиды и дети-инвалиды (кроме учтенных в строке 03)",null,null,null,null,null,null,null,null,null,null,null,null,null,null,null,null,null,null,null,null,null,null,null,null,null,null,null,true]
[0,5,"Имеют договор о целевом обучении",null,null,null,null,null,null,null,null,null,null,null,null,null,null,null,null,null,null,null,null,null,null,null,null,null,null,null,true]
[null,1,"Всего  (общая численность выпускников)",null,null,null,null,null,null,null,null,null,null,null,null,null,null,null,null,null,null,null,null,null,null,null,null,null,null,null,true]
[{"$f":"$A$206","v":0},2,"из общей численности выпускников (из строки 01): лица с ОВЗ",null,null,null,null,null,null,null,null,null,null,null,null,null,null,null,null,null,null,null,null,null,null,null,null,null,null,null,true]
[{"$f":"$A$206","v":0},3,"из числа лиц с ОВЗ (из строки 02): инвалиды и дети-инвалиды",null,null,null,null,null,null,null,null,null,null,null,null,null,null,null,null,null,null,null,null,null,null,null,null,null,null,null,true]
[0,4,"Инвалиды и дети-инвалиды (кроме учтенных в строке 03)",null,null,null,null,null,null,null,null,null,null,null,null,null,null,null,null,null,null,null,null,null,null,null,null,null,null,null,true]
[0,5,"Имеют договор о целевом обучении",null,null,null,null,null,null,null,null,null,null,null,null,null,null,null,null,null,null,null,null,null,null,null,null,null,null,null,true]
[null,1,"Всего  (общая численность выпускников)",null,null,null,null,null,null,null,null,null,null,null,null,null,null,null,null,null,null,null,null,null,null,null,null,null,null,null,true]
[{"$f":"$A$211","v":0},2,"из общей численности выпускников (из строки 01): лица с ОВЗ",null,null,null,null,null,null,null,null,null,null,null,null,null,null,null,null,null,null,null,null,null,null,null,null,null,null,null,true]
[{"$f":"$A$211","v":0},3,"из числа лиц с ОВЗ (из строки 02): инвалиды и дети-инвалиды",null,null,null,null,null,null,null,null,null,null,null,null,null,null,null,null,null,null,null,null,null,null,null,null,null,null,null,true]
[0,4,"Инвалиды и дети-инвалиды (кроме учтенных в строке 03)",null,null,null,null,null,null,null,null,null,null,null,null,null,null,null,null,null,null,null,null,null,null,null,null,null,null,null,true]
[0,5,"Имеют договор о целевом обучении",null,null,null,null,null,null,null,null,null,null,null,null,null,null,null,null,null,null,null,null,null,null,null,null,null,null,null,true]
[null,1,"Всего  (общая численность выпускников)",null,null,null,null,null,null,null,null,null,null,null,null,null,null,null,null,null,null,null,null,null,null,null,null,null,null,null,true]
[{"$f":"$A$216","v":0},2,"из общей численности выпускников (из строки 01): лица с ОВЗ",null,null,null,null,null,null,null,null,null,null,null,null,null,null,null,null,null,null,null,null,null,null,null,null,null,null,null,true]
[{"$f":"$A$216","v":0},3,"из числа лиц с ОВЗ (из строки 02): инвалиды и дети-инвалиды",null,null,null,null,null,null,null,null,null,null,null,null,null,null,null,null,null,null,null,null,null,null,null,null,null,null,null,true]
[0,4,"Инвалиды и дети-инвалиды (кроме учтенных в строке 03)",null,null,null,null,null,null,null,null,null,null,null,null,null,null,null,null,null,null,null,null,null,null,null,null,null,null,null,true]
[0,5,"Имеют договор о целевом обучении",null,null,null,null,null,null,null,null,null,null,null,null,null,null,null,null,null,null,null,null,null,null,null,null,null,null,null,true]
[null,1,"Всего  (общая численность выпускников)",null,null,null,null,null,null,null,null,null,null,null,null,null,null,null,null,null,null,null,null,null,null,null,null,null,null,null,true]
[{"$f":"$A$221","v":0},2,"из общей численности выпускников (из строки 01): лица с ОВЗ",null,null,null,null,null,null,null,null,null,null,null,null,null,null,null,null,null,null,null,null,null,null,null,null,null,null,null,true]
[{"$f":"$A$221","v":0},3,"из числа лиц с ОВЗ (из строки 02): инвалиды и дети-инвалиды",null,null,null,null,null,null,null,null,null,null,null,null,null,null,null,null,null,null,null,null,null,null,null,null,null,null,null,true]
[0,4,"Инвалиды и дети-инвалиды (кроме учтенных в строке 03)",null,null,null,null,null,null,null,null,null,null,null,null,null,null,null,null,null,null,null,null,null,null,null,null,null,null,null,true]
[0,5,"Имеют договор о целевом обучении",null,null,null,null,null,null,null,null,null,null,null,null,null,null,null,null,null,null,null,null,null,null,null,null,null,null,null,true]
[null,1,"Всего  (общая численность выпускников)",null,null,null,null,null,null,null,null,null,null,null,null,null,null,null,null,null,null,null,null,null,null,null,null,null,null,null,true]
[{"$f":"$A$226","v":0},2,"из общей численности выпускников (из строки 01): лица с ОВЗ",null,null,null,null,null,null,null,null,null,null,null,null,null,null,null,null,null,null,null,null,null,null,null,null,null,null,null,true]
[{"$f":"$A$226","v":0},3,"из числа лиц с ОВЗ (из строки 02): инвалиды и дети-инвалиды",null,null,null,null,null,null,null,null,null,null,null,null,null,null,null,null,null,null,null,null,null,null,null,null,null,null,null,true]
[0,4,"Инвалиды и дети-инвалиды (кроме учтенных в строке 03)",null,null,null,null,null,null,null,null,null,null,null,null,null,null,null,null,null,null,null,null,null,null,null,null,null,null,null,true]
[0,5,"Имеют договор о целевом обучении",null,null,null,null,null,null,null,null,null,null,null,null,null,null,null,null,null,null,null,null,null,null,null,null,null,null,null,true]
[null,1,"Всего  (общая численность выпускников)",null,null,null,null,null,null,null,null,null,null,null,null,null,null,null,null,null,null,null,null,null,null,null,null,null,null,null,true]
[{"$f":"$A$231","v":0},2,"из общей численности выпускников (из строки 01): лица с ОВЗ",null,null,null,null,null,null,null,null,null,null,null,null,null,null,null,null,null,null,null,null,null,null,null,null,null,null,null,true]
[{"$f":"$A$231","v":0},3,"из числа лиц с ОВЗ (из строки 02): инвалиды и дети-инвалиды",null,null,null,null,null,null,null,null,null,null,null,null,null,null,null,null,null,null,null,null,null,null,null,null,null,null,null,true]
[0,4,"Инвалиды и дети-инвалиды (кроме учтенных в строке 03)",null,null,null,null,null,null,null,null,null,null,null,null,null,null,null,null,null,null,null,null,null,null,null,null,null,null,null,true]
[0,5,"Имеют договор о целевом обучении",null,null,null,null,null,null,null,null,null,null,null,null,null,null,null,null,null,null,null,null,null,null,null,null,null,null,null,true]
[null,1,"Всего  (общая численность выпускников)",null,null,null,null,null,null,null,null,null,null,null,null,null,null,null,null,null,null,null,null,null,null,null,null,null,null,null,true]
[{"$f":"$A$236","v":0},2,"из общей численности выпускников (из строки 01): лица с ОВЗ",null,null,null,null,null,null,null,null,null,null,null,null,null,null,null,null,null,null,null,null,null,null,null,null,null,null,null,true]
[{"$f":"$A$236","v":0},3,"из числа лиц с ОВЗ (из строки 02): инвалиды и дети-инвалиды",null,null,null,null,null,null,null,null,null,null,null,null,null,null,null,null,null,null,null,null,null,null,null,null,null,null,null,true]
[0,4,"Инвалиды и дети-инвалиды (кроме учтенных в строке 03)",null,null,null,null,null,null,null,null,null,null,null,null,null,null,null,null,null,null,null,null,null,null,null,null,null,null,null,true]
[0,5,"Имеют договор о целевом обучении",null,null,null,null,null,null,null,null,null,null,null,null,null,null,null,null,null,null,null,null,null,null,null,null,null,null,null,true]
[null,1,"Всего  (общая численность выпускников)",null,null,null,null,null,null,null,null,null,null,null,null,null,null,null,null,null,null,null,null,null,null,null,null,null,null,null,true]
[{"$f":"$A$241","v":0},2,"из общей численности выпускников (из строки 01): лица с ОВЗ",null,null,null,null,null,null,null,null,null,null,null,null,null,null,null,null,null,null,null,null,null,null,null,null,null,null,null,true]
[{"$f":"$A$241","v":0},3,"из числа лиц с ОВЗ (из строки 02): инвалиды и дети-инвалиды",null,null,null,null,null,null,null,null,null,null,null,null,null,null,null,null,null,null,null,null,null,null,null,null,null,null,null,true]
[0,4,"Инвалиды и дети-инвалиды (кроме учтенных в строке 03)",null,null,null,null,null,null,null,null,null,null,null,null,null,null,null,null,null,null,null,null,null,null,null,null,null,null,null,true]
[0,5,"Имеют договор о целевом обучении",null,null,null,null,null,null,null,null,null,null,null,null,null,null,null,null,null,null,null,null,null,null,null,null,null,null,null,true]
[null,1,"Всего  (общая численность выпускников)",null,null,null,null,null,null,null,null,null,null,null,null,null,null,null,null,null,null,null,null,null,null,null,null,null,null,null,true]
[{"$f":"$A$246","v":0},2,"из общей численности выпускников (из строки 01): лица с ОВЗ",null,null,null,null,null,null,null,null,null,null,null,null,null,null,null,null,null,null,null,null,null,null,null,null,null,null,null,true]
[{"$f":"$A$246","v":0},3,"из числа лиц с ОВЗ (из строки 02): инвалиды и дети-инвалиды",null,null,null,null,null,null,null,null,null,null,null,null,null,null,null,null,null,null,null,null,null,null,null,null,null,null,null,true]
[0,4,"Инвалиды и дети-инвалиды (кроме учтенных в строке 03)",null,null,null,null,null,null,null,null,null,null,null,null,null,null,null,null,null,null,null,null,null,null,null,null,null,null,null,true]
[0,5,"Имеют договор о целевом обучении",null,null,null,null,null,null,null,null,null,null,null,null,null,null,null,null,null,null,null,null,null,null,null,null,null,null,null,true]
[null,1,"Всего  (общая численность выпускников)",null,null,null,null,null,null,null,null,null,null,null,null,null,null,null,null,null,null,null,null,null,null,null,null,null,null,null,true]
[{"$f":"$A$246","v":0},2,"из общей численности выпускников (из строки 01): лица с ОВЗ",null,null,null,null,null,null,null,null,null,null,null,null,null,null,null,null,null,null,null,null,null,null,null,null,null,null,null,true]
[{"$f":"$A$246","v":0},3,"из числа лиц с ОВЗ (из строки 02): инвалиды и дети-инвалиды",null,null,null,null,null,null,null,null,null,null,null,null,null,null,null,null,null,null,null,null,null,null,null,null,null,null,null,true]
[0,4,"Инвалиды и дети-инвалиды (кроме учтенных в строке 03)",null,null,null,null,null,null,null,null,null,null,null,null,null,null,null,null,null,null,null,null,null,null,null,null,null,null,null,true]
[0,5,"Имеют договор о целевом обучении",null,null,null,null,null,null,null,null,null,null,null,null,null,null,null,null,null,null,null,null,null,null,null,null,null,null,null,true]
[null,1,"Всего  (общая численность выпускников)",null,null,null,null,null,null,null,null,null,null,null,null,null,null,null,null,null,null,null,null,null,null,null,null,null,null,null,true]
[{"$f":"$A$246","v":0},2,"из общей численности выпускников (из строки 01): лица с ОВЗ",null,null,null,null,null,null,null,null,null,null,null,null,null,null,null,null,null,null,null,null,null,null,null,null,null,null,null,true]
[{"$f":"$A$246","v":0},3,"из числа лиц с ОВЗ (из строки 02): инвалиды и дети-инвалиды",null,null,null,null,null,null,null,null,null,null,null,null,null,null,null,null,null,null,null,null,null,null,null,null,null,null,null,true]
[0,4,"Инвалиды и дети-инвалиды (кроме учтенных в строке 03)",null,null,null,null,null,null,null,null,null,null,null,null,null,null,null,null,null,null,null,null,null,null,null,null,null,null,null,true]
[0,5,"Имеют договор о целевом обучении",null,null,null,null,null,null,null,null,null,null,null,null,null,null,null,null,null,null,null,null,null,null,null,null,null,null,null,true]
[null,1,"Всего  (общая численность выпускников)",null,null,null,null,null,null,null,null,null,null,null,null,null,null,null,null,null,null,null,null,null,null,null,null,null,null,null,true]
[{"$f":"$A$246","v":0},2,"из общей численности выпускников (из строки 01): лица с ОВЗ",null,null,null,null,null,null,null,null,null,null,null,null,null,null,null,null,null,null,null,null,null,null,null,null,null,null,null,true]
[{"$f":"$A$246","v":0},3,"из числа лиц с ОВЗ (из строки 02): инвалиды и дети-инвалиды",null,null,null,null,null,null,null,null,null,null,null,null,null,null,null,null,null,null,null,null,null,null,null,null,null,null,null,{"$f":"SUM(H263:AC263,E263)=D263","v":true}]
[0,4,"Инвалиды и дети-инвалиды (кроме учтенных в строке 03)",null,null,null,null,null,null,null,null,null,null,null,null,null,null,null,null,null,null,null,null,null,null,null,null,null,null,null,true]
[0,5,"Имеют договор о целевом обучении",null,null,null,null,null,null,null,null,null,null,null,null,null,null,null,null,null,null,null,null,null,null,null,null,null,null,null,true]
[null,1,"Всего  (общая численность выпускников)",null,null,null,null,null,null,null,null,null,null,null,null,null,null,null,null,null,null,null,null,null,null,null,null,null,null,null,true]
[{"$f":"$A$246","v":0},2,"из общей численности выпускников (из строки 01): лица с ОВЗ",null,null,null,null,null,null,null,null,null,null,null,null,null,null,null,null,null,null,null,null,null,null,null,null,null,null,null,true]
[{"$f":"$A$246","v":0},3,"из числа лиц с ОВЗ (из строки 02): инвалиды и дети-инвалиды",null,null,null,null,null,null,null,null,null,null,null,null,null,null,null,null,null,null,null,null,null,null,null,null,null,null,null,true]
[0,4,"Инвалиды и дети-инвалиды (кроме учтенных в строке 03)",null,null,null,null,null,null,null,null,null,null,null,null,null,null,null,null,null,null,null,null,null,null,null,null,null,null,null,true]
[0,5,"Имеют договор о целевом обучении",null,null,null,null,null,null,null,null,null,null,null,null,null,null,null,null,null,null,null,null,null,null,null,null,null,null,null,true]
[null,1,"Всего  (общая численность выпускников)",null,null,null,null,null,null,null,null,null,null,null,null,null,null,null,null,null,null,null,null,null,null,null,null,null,null,null,true]
[{"$f":"$A$246","v":0},2,"из общей численности выпускников (из строки 01): лица с ОВЗ",null,null,null,null,null,null,null,null,null,null,null,null,null,null,null,null,null,null,null,null,null,null,null,null,null,null,null,true]
[{"$f":"$A$246","v":0},3,"из числа лиц с ОВЗ (из строки 02): инвалиды и дети-инвалиды",null,null,null,null,null,null,null,null,null,null,null,null,null,null,null,null,null,null,null,null,null,null,null,null,null,null,null,true]
[0,4,"Инвалиды и дети-инвалиды (кроме учтенных в строке 03)",null,null,null,null,null,null,null,null,null,null,null,null,null,null,null,null,null,null,null,null,null,null,null,null,null,null,null,true]
[0,5,"Имеют договор о целевом обучении",null,null,null,null,null,null,null,null,null,null,null,null,null,null,null,null,null,null,null,null,null,null,null,null,null,null,null,true]
[null,1,"Всего  (общая численность выпускников)",null,null,null,null,null,null,null,null,null,null,null,null,null,null,null,null,null,null,null,null,null,null,null,null,null,null,null,true]
[{"$f":"$A$246","v":0},2,"из общей численности выпускников (из строки 01): лица с ОВЗ",null,null,null,null,null,null,null,null,null,null,null,null,null,null,null,null,null,null,null,null,null,null,null,null,null,null,null,true]
[{"$f":"$A$246","v":0},3,"из числа лиц с ОВЗ (из строки 02): инвалиды и дети-инвалиды",null,null,null,null,null,null,null,null,null,null,null,null,null,null,null,null,null,null,null,null,null,null,null,null,null,null,null,true]
[0,4,"Инвалиды и дети-инвалиды (кроме учтенных в строке 03)",null,null,null,null,null,null,null,null,null,null,null,null,null,null,null,null,null,null,null,null,null,null,null,null,null,null,null,true]
[0,5,"Имеют договор о целевом обучении",null,null,null,null,null,null,null,null,null,null,null,null,null,null,null,null,null,null,null,null,null,null,null,null,null,null,null,true]
[null,1,"Всего  (общая численность выпускников)",null,null,null,null,null,null,null,null,null,null,null,null,null,null,null,null,null,null,null,null,null,null,null,null,null,null,null,true]
[{"$f":"$A$246","v":0},2,"из общей численности выпускников (из строки 01): лица с ОВЗ",null,null,null,null,null,null,null,null,null,null,null,null,null,null,null,null,null,null,null,null,null,null,null,null,null,null,null,true]
[{"$f":"$A$246","v":0},3,"из числа лиц с ОВЗ (из строки 02): инвалиды и дети-инвалиды",null,null,null,null,null,null,null,null,null,null,null,null,null,null,null,null,null,null,null,null,null,null,null,null,null,null,null,true]
[0,4,"Инвалиды и дети-инвалиды (кроме учтенных в строке 03)",null,null,null,null,null,null,null,null,null,null,null,null,null,null,null,null,null,null,null,null,null,null,null,null,null,null,null,true]
[0,5,"Имеют договор о целевом обучении",null,null,null,null,null,null,null,null,null,null,null,null,null,null,null,null,null,null,null,null,null,null,null,null,null,null,null,true]
[null,1,"Всего  (общая численность выпускников)",null,null,null,null,null,null,null,null,null,null,null,null,null,null,null,null,null,null,null,null,null,null,null,null,null,null,null,true]
[{"$f":"$A$246","v":0},2,"из общей численности выпускников (из строки 01): лица с ОВЗ",null,null,null,null,null,null,null,null,null,null,null,null,null,null,null,null,null,null,null,null,null,null,null,null,null,null,null,true]
[{"$f":"$A$246","v":0},3,"из числа лиц с ОВЗ (из строки 02): инвалиды и дети-инвалиды",null,null,null,null,null,null,null,null,null,null,null,null,null,null,null,null,null,null,null,null,null,null,null,null,null,null,null,true]
[0,4,"Инвалиды и дети-инвалиды (кроме учтенных в строке 03)",null,null,null,null,null,null,null,null,null,null,null,null,null,null,null,null,null,null,null,null,null,null,null,null,null,null,null,true]
[0,5,"Имеют договор о целевом обучении",null,null,null,null,null,null,null,null,null,null,null,null,null,null,null,null,null,null,null,null,null,null,null,null,null,null,null,true]
[null,1,"Всего  (общая численность выпускников)",null,null,null,null,null,null,null,null,null,null,null,null,null,null,null,null,null,null,null,null,null,null,null,null,null,null,null,true]
[{"$f":"$A$246","v":0},2,"из общей численности выпускников (из строки 01): лица с ОВЗ",null,null,null,null,null,null,null,null,null,null,null,null,null,null,null,null,null,null,null,null,null,null,null,null,null,null,null,true]
[{"$f":"$A$246","v":0},3,"из числа лиц с ОВЗ (из строки 02): инвалиды и дети-инвалиды",null,null,null,null,null,null,null,null,null,null,null,null,null,null,null,null,null,null,null,null,null,null,null,null,null,null,null,true]
[0,4,"Инвалиды и дети-инвалиды (кроме учтенных в строке 03)",null,null,null,null,null,null,null,null,null,null,null,null,null,null,null,null,null,null,null,null,null,null,null,null,null,null,null,true]
[0,5,"Имеют договор о целевом обучении",null,null,null,null,null,null,null,null,null,null,null,null,null,null,null,null,null,null,null,null,null,null,null,null,null,null,null,true]
[null,1,"Всего  (общая численность выпускников)",null,null,null,null,null,null,null,null,null,null,null,null,null,null,null,null,null,null,null,null,null,null,null,null,null,null,null,true]
[{"$f":"$A$246","v":0},2,"из общей численности выпускников (из строки 01): лица с ОВЗ",null,null,null,null,null,null,null,null,null,null,null,null,null,null,null,null,null,null,null,null,null,null,null,null,null,null,null,true]
[{"$f":"$A$246","v":0},3,"из числа лиц с ОВЗ (из строки 02): инвалиды и дети-инвалиды",null,null,null,null,null,null,null,null,null,null,null,null,null,null,null,null,null,null,null,null,null,null,null,null,null,null,null,true]
[0,4,"Инвалиды и дети-инвалиды (кроме учтенных в строке 03)",null,null,null,null,null,null,null,null,null,null,null,null,null,null,null,null,null,null,null,null,null,null,null,null,null,null,null,true]
[0,5,"Имеют договор о целевом обучении",null,null,null,null,null,null,null,null,null,null,null,null,null,null,null,null,null,null,null,null,null,null,null,null,null,null,null,true]
[null,1,"Всего  (общая численность выпускников)",null,null,null,null,null,null,null,null,null,null,null,null,null,null,null,null,null,null,null,null,null,null,null,null,null,null,null,true]
[{"$f":"$A$246","v":0},2,"из общей численности выпускников (из строки 01): лица с ОВЗ",null,null,null,null,null,null,null,null,null,null,null,null,null,null,null,null,null,null,null,null,null,null,null,null,null,null,null,true]
[{"$f":"$A$246","v":0},3,"из числа лиц с ОВЗ (из строки 02): инвалиды и дети-инвалиды",null,null,null,null,null,null,null,null,null,null,null,null,null,null,null,null,null,null,null,null,null,null,null,null,null,null,null,true]
[0,4,"Инвалиды и дети-инвалиды (кроме учтенных в строке 03)",null,null,null,null,null,null,null,null,null,null,null,null,null,null,null,null,null,null,null,null,null,null,null,null,null,null,null,true]
[0,5,"Имеют договор о целевом обучении",null,null,null,null,null,null,null,null,null,null,null,null,null,null,null,null,null,null,null,null,null,null,null,null,null,null,null,true]
[null,1,"Всего  (общая численность выпускников)",null,null,null,null,null,null,null,null,null,null,null,null,null,null,null,null,null,null,null,null,null,null,null,null,null,null,null,true]
[{"$f":"$A$246","v":0},2,"из общей численности выпускников (из строки 01): лица с ОВЗ",null,null,null,null,null,null,null,null,null,null,null,null,null,null,null,null,null,null,null,null,null,null,null,null,null,null,null,true]
[{"$f":"$A$246","v":0},3,"из числа лиц с ОВЗ (из строки 02): инвалиды и дети-инвалиды",null,null,null,null,null,null,null,null,null,null,null,null,null,null,null,null,null,null,null,null,null,null,null,null,null,null,null,true]
[0,4,"Инвалиды и дети-инвалиды (кроме учтенных в строке 03)",null,null,null,null,null,null,null,null,null,null,null,null,null,null,null,null,null,null,null,null,null,null,null,null,null,null,null,true]
[0,5,"Имеют договор о целевом обучении",null,null,null,null,null,null,null,null,null,null,null,null,null,null,null,null,null,null,null,null,null,null,null,null,null,null,null,true]

{"sheet":"диаграммы","index":8,"n_rows":287,"n_cols":2,"rows_kept":287,"cut":false,"hidden":false,"merged":[[245,1,245,28],[268,1,268,28],[286,1,286,28],[114,1,114,28],[146,1,146,28],[185,1,185,28],[0,1,0,28],[32,1,32,28],[48,1,48,28],[81,1,81,28],[224,1,224,28]]}
[null,"Таблица 1.1. Сравнительная таблица количественных показателей выпуска за период с 2018 по 2022 г. (Заполняет только головное учреждение)"]
[]
[]
[]
[]
[]
[]
[]
[]
[]
[]
[]
[]
[]
[]
[]
[]
[]
[]
[]
[]
[]
[]
[]
[]
[]
[]
[]
[]
[]
[]
[]
[null,"Таблица 1.2. Выпуск 2022 г. по специальностям и профессиям (заполняют все учреждения, как головные, так и филиалы - отдельно друг от друга)"]
[]
[]
[]
[]
[]
[]
[]
[]
[]
[]
[]
[]
[]
[]
[]
[null,"Форма №1  Сведения о характеристике состава государственной экзаменационной комиссии по программам среднего профессионального образования по специальностям"]
[]
[]
[]
[]
[]
[]
[]
[]
[]
[]
[]
[]
[]
[]
[]
[]
[]
[]
[]
[]
[]
[]
[]
[]
[]
[]
[]
[]
[]
[]
[]
[]
[null,"Форма №2  Сведения о характеристике состава государственной экзаменационной комиссии по программам среднего профессионального образования квалифицированных рабочих и служащих"]
[]
[]
[]
[]
[]
[]
[]
[]
[]
[]
[]
[]
[]
[]
[]
[]
[]
[]
[]
[]
[]
[]
[]
[]
[]
[]
[]
[]
[]
[]
[]
[]
[null,"Форма №3 Сведения о численности обучающихся последнего года обучения по программам среднего профессионального образования"]
[]
[]
[]
[]
[]
[]
[]
[]
[]
[]
[]
[]
[]
[]
[]
[]
[]
[]
[]
[]
[]
[]
[]
[]
[]
[]
[]
[]
[]
[]
[]
[null,"Форма №4 Виды и формы государственной итоговой аттестации по программам среднего профессионального образования по программам подготовки квалифицированных рабочих, служащих (ПРОФЕССИИ)"]
[]
[]
[]
[]
[]
[]
[]
[]
[]
[]
[]
[]
[]
[]
[]
[]
[]
[]
[]
[]
[]
[]
[]
[]
[]
[]
[]
[]
[]
[]
[]
[]
[]
[]
[]
[]
[]
[]
[null,"ФОРМА №5 Виды и формы государственной итоговой аттестации по программам среднего профессионального образования по программам специалистов среднего звена"]
[]
[]
[]
[]
[]
[]
[]
[]
[]
[]
[]
[]
[]
[]
[]
[]
[]
[]
[]
[]
[]
[]
[]
[]
[]
[]
[]
[]
[]
[]
[]
[]
[]
[]
[]
[]
[]
[]
[null,"Форма №6 Особенности контингента выпускников 2022 года "]
[]
[]
[]
[]
[]
[]
[]
[]
[]
[]
[]
[]
[]
[]
[]
[]
[]
[]
[]
[]
[null,"Форма №7 Информационная справка"]
[]
[]
[]
[]
[]
[]
[]
[]
[]
[]
[]
[]
[]
[]
[]
[]
[]
[]
[]
[]
[]
[]
[null,"Форма №8 Условия организации и проведения ГИА"]
[]
[]
[]
[]
[]
[]
[]
[]
[]
[]
[]
[]
[]
[]
[]
[]
[]
[null,"Форма №9 Качественные индикаторы реализации ФГОС СПО по профессиям/специальностям"]